Workbook

Sheet Mode Op
A1: MODE OPERATOIRE FEUILLE DE CLASSEMENT
A4: - Améliorations : La moyenne des ex-æquo se calcule automatiquement. Les temps des coureurs figurent sur les feuilles de résultats avec les écarts. Les en-têtes des feuillets « Engagements sur place », « Etats de résultats », « Rapport du Prés. du Jury » se complètent automatiquement. Sur le verso de l’état de résultats, en portant le n° de dossard du coureur pénalisé, son nom, son club, et son n° de licence sont inscrits (dans le cas où le Commissaire est équipé d’une imprimante sur le lieu de la course).
A5: ----------
A6: - Feuillet « INSCRIPTION ». Remplir le feuillet inscription . Pour la distance, remplir la case « circuit de » et « à parcourir ». Dans le cas d’une course en ligne, distance totale x 1. Ajouter les engagés sur place en respectant l’appellation du club si celui-ci est au Prix d’équipe.
A7: - Feuillet « PRIX D EQUIPE » : Pour le nom des clubs, faire un « copier-coller » entre le nom entré au premier coureur de l’équipe et les autres coureurs du même club, puis avec le feuillet « prix d’équipe », si le club est inscrit. Attention, le nom du club doit être strictement le même que celui du feuillet prix d’équipe. Si un coureur est ajouté (engagement sur place) et que d’autres coureurs du même club sont déjà engagés : copier-coller le nom du club. Si un club se rajoute au prix d’équipe, même chose (copier-coller avec feuillet prix d’équipe). Le prix d’équipe ne peut se calculer que si cette procédure est respectée.
A8: - Feuillet « Eng. Sur place » : Porter simplement le numéro du dossard qui correspond à la feuille « inscription », le reste se remplit automatiquement.
A9: - Sur le feuillet « INSCRIPTION », mettre d’office « X » dans la colonne des présents, il suffira de les enlever si les coureurs sont non - partants. Il est possible de mettre EXC. Si les coureurs sont excusés (le nombre de partants n’est comptabilisé qu’à partir des « X ».
A10: - Pour éditer les feuilles, définir la zone d’impression pour éviter d’imprimer les 5 pages.
A11: - Feuillet « Emargement » : définir la zone d’impression en s’arrêtant à un bas de page.
A12: - Une fois la course terminée et le classement fait, aller sur le feuillet « classement », saisir seulement les numéros des dossards et le temps du 1er et des autres s’il y a lieu (çà permet de calculer la moyenne de la course). S’il y a des ex-æquo, remplacer, pour tous les coureurs ex-æquo, les places de la colonne B par la place du 1er ex-æquo. La moyenne du « trou » se calcule automatiquement. Si un coureur est déjà classé, son numéro apparaît dans la colonne K surligné en jaune. Cliquer sur le rectangle «prix d’équipe 2 hommes» ou « prix d’équipe 3 hommes » (au temps ou à la place) selon la catégorie de course.
A13: - Il n’y a plus qu’à éditer la feuille de résultats (format A4). Celle-ci est protégée car il n’y a rien à modifier. Dans le cas contraire, il suffit d’ôter la protection.
A14: - Le dernier feuillet (Internet), sert à envoyer les résultats pour mise en ligne sur le site FSGT 29. On peut enlever des lignes, ou en ajouter en insérant des lignes entre la dernière actuelle et le prix d’équipe, puis en faisant une recopie vers le bas de la dernière ligne (qui contient la formule en liaison avec la feuille de classement).
A15: En résumé : bien remplir la liste des engagés, le feuillet prix d’équipe par un copier-coller, et le feuillet classement (colonnes surlignées en vert).
A17: Pour réutiliser le programme, il vaut mieux utiliser un programme vierge (ne pas oublier de l’enregistrer sous un autre nom).
A19: ATTENTION : beaucoup de cellules contiennent des formules. Ne pas supprimer de lignes ou de colonnes, et ne pas modifier les cellules contenant les formules (sauf expert). Toujours faire des essais avec une version du programme enregistrée sous un autre nom.

Sheet Inscription
A1: PRIX :
A2: VILLE : | D2: cyclo cross de Créhen
A3: ORGANISATEUR : | D3: EC Créhen
A4: DATE : | D4: 2024-11-30
A9: DOSSARD | C9: NOM et PRENOM | E9: CLUB | F9: CATEGORIE Age/valeur | G9: N° licence
B10: PRES.
A12: 1 | B12: 1 | C12: Saulnier | D12: Florentin | E12: CCV Beaussais | F12: 137523 | G12: 1
A13: 2 | B13: 2 | C13: Coualan | D13: Jordan | E13: CC Pleven | F13: 511484 | G13: 1
A14: 3 | B14: 3 | C14: Sieurin | D14: Sébastien | E14: VC Evron | G14: 1
A15: 4 | B15: 4 | C15: Allot | D15: Sébastien | E15: VS Ploumagoar | G15: 1
A16: 5 | B16: 5 | C16: Joannot | D16: Jérémy | E16: Team Broons | F16: 506026 | G16: 1
A17: 6 | B17: 6 | C17: Le Bellego | D17: Maxime | E17: VTT du Lié | F17: 480114 | G17: 1
A18: 7 | B18: 7 | C18: Flégeau | D18: David | E18: Team Bikers 22 | F18: 137996 | G18: 1
A19: 8 | B19: 8 | C19: Le Ponner | D19: Christophe | E19: UC Plaudren | G19: 1
A20: 9
A21: 10
A22: 11
A23: 12
A24: 13
A25: 14
A26: 15
A27: 16
A28: 17
A29: 18
A30: 19
A31: 20 | B31: 20 | C31: Ruffet | D31: Titouan | E31: CC Moncontour | F31: 457920 | G31: junior
A32: 21 | B32: 21 | C32: Le Masson | D32: Hugo | E32: VC Evron | G32: Junior
A33: 22
A34: 23
A35: 24
A36: 25
A37: 26
A38: 27
A39: 28
A40: 29
A41: 30 | B41: 30 | C41: Huby | D41: Laurent | E41: CC d'Uzel | F41: 278430 | G41: 2
A42: 31 | B42: 31 | C42: Prigent | D42: Benoit | E42: Lamball'breizh | F42: 468745 | G42: 2
A43: 32 | B43: 32 | C43: Bedel | D43: Baptiste | E43: Lamball'breizh | F43: 136137 | G43: 2
A44: 33 | B44: 33 | C44: Nicolas | D44: Patrice | E44: COS Kerentrech | F44: 247939 | G44: 2
A45: 34 | B45: 34 | C45: Perrennou | D45: Claude | E45: COS Kerentrech | G45: 2
A46: 35 | B46: 35 | C46: Leroux | D46: Jérôme | E46: CCV Beaussais | F46: 349169 | G46: 2
A47: 36 | B47: 36 | C47: Bittoré | D47: Luca | E47: CCV Beaussais | F47: 465568 | G47: 2
A48: 37 | B48: 37 | C48: Besnard | D48: Jean-Jacques | E48: CC Moncontour | F48: 425505 | G48: 2
A49: 38 | B49: 38 | C49: Macé | D49: Jérome | E49: VC Evron | F49: 434904 | G49: 2
A50: 39 | B50: 39 | C50: Henry | D50: Damien | E50: VC Dinan | F50: 474783 | G50: 2
A51: 40 | B51: 40 | C51: Lebret | D51: Julien | E51: Team Bikers 22 | F51: 431988 | G51: 2
A52: 41 | B52: 41 | C52: letaconnoux | D52: sylvain | E52: accro cycles | G52: 2
A53: 42
A54: 43
A55: 44
A56: 45
A57: 46
A58: 47
A59: 48
A60: 49
A61: 50
A62: 51
A63: 52
A64: 53
A65: 54
A66: 55
A67: 56
A68: 57
A69: 58
A70: 59
A71: 60 | B71: 60 | C71: Nicolas | D71: Jean-Charles | E71: AC Vildé-Guingalan | F71: 137756 | G71: 3
A72: 61 | B72: 61 | C72: Lemaitre | D72: Alain | E72: AC Vildé-Guingalan | F72: 136151 | G72: 3
A73: 62 | B73: 62 | C73: Lecellier | D73: Raymond | E73: Team Mégrit | F73: 143624 | G73: 3
A74: 63 | B74: 63 | C74: Georget | D74: Charles | E74: Lamball'breizh | F74: 136132 | G74: 3
A75: 64 | B75: 64 | C75: Bedel | D75: Michel | E75: Lamball'breizh | F75: 267277 | G75: 3
A76: 65 | B76: 65 | C76: Colombier | D76: Michel | E76: CC Robert le Roux | F76: 286379 | G76: 3
A77: 66 | B77: 66 | C77: Gouya | D77: Noël | E77: Team Pays de Dinan | F77: 136620 | G77: 3
A78: 67 | B78: 67 | C78: Croisier | D78: Ronan | E78: Team Pays de Dinan | F78: 136268 | G78: 3
A79: 68 | B79: 68 | C79: Durand | D79: Jacques | E79: Team Pays de Dinan | F79: 136617 | G79: 3
A80: 69 | B80: 69 | C80: Guillot | D80: Denis | E80: Team Pays de Dinan | G80: 3
A81: 70 | B81: 70 | C81: Gaillard | D81: Marcel | E81: COS Kerentrech | F81: 153464 | G81: 3
A82: 71 | B82: 71 | C82: Colleu | D82: Pascal | E82: CCV Beaussais | F82: 137558 | G82: 3
A83: 72 | B83: 72 | C83: Goupil | D83: Michel | E83: Team Mégrit | G83: 3
A84: 73 | B84: 73 | C84: Durand | D84: Francky | E84: CC Moncontour | F84: 480456 | G84: 3
A85: 74 | B85: 74 | C85: Jeuneu | D85: Gilles | E85: Accro Cycles | F85: 137390 | G85: 3
A86: 75 | B86: 75 | C86: Pezres | D86: Didier | E86: EC Créhen | F86: 137518 | G86: 3
A87: 76 | B87: 76 | C87: Colas | D87: Roger | E87: EC Créhen | F87: 137514 | G87: 3
A88: 77 | B88: 77 | C88: Gouya | D88: Philippe | E88: EC Créhen | F88: 136134 | G88: 3
A89: 78 | B89: 78 | C89: Gilson | D89: Frédéric | E89: CC Moncontour | F89: 424247 | G89: 3
A90: 79
A91: 80
A92: 81
A93: 82
A94: 83
A95: 84
A96: 85
A97: 86
A98: 87
A99: 88
A100: 89
A101: 90 | B101: 90 | C101: Camus | D101: Kristell | E101: VC Evron | G101: féminine
A102: 91 | B102: 91 | C102: Rivolet | D102: Agnes | E102: VTT Côtes d'Armor Hillion | F102: 443442 | G102: féminine
A103: 92 | B103: 92 | C103: Leray | D103: Gwladys | E103: Team XC du Léguer | F103: 359228 | G103: féminine
A104: 93 | B104: 93 | C104: Amice | D104: Florine | E104: Souffle d'espoir | F104: 137425 | G104: féminine
A105: 94
A106: 95
A107: 96
A108: 97
A109: 98
A110: 99
A111: 100 | B111: 100 | C111: Creseveur | D111: Gurwan | E111: Team XC du Léguer | F111: 330214 | G111: Cadet
A112: 101 | B112: 101 | C112: Flégeau | D112: Gaël | E112: Team Bikers 22 | F112: 269847 | G112: cadet
A113: 102 | B113: 102 | C113: Rouille | D113: Robin | E113: Team Bikers 22 | F113: 390947 | G113: cadet
A114: 103 | B114: 103 | C114: Madec | D114: Rafael | E114: VS Ploumagoar | G114: cadet
A115: 104 | B115: 104 | C115: Durand | D115: Joan | E115: Lamball'breizh | F115: 383110 | G115: cadet
A116: 105 | B116: 105 | C116: Cadieu | D116: Martin | E116: VTT du Lié | G116: Cadet
A117: 106
A118: 107
A119: 108
A120: 109
A121: 110 | B121: 110 | C121: Le Bihan | D121: Clément | E121: UC Plaudren | F121: 136145 | G121: minime
A122: 111 | B122: 111 | C122: Besnard colas | D122: Ismaël | E122: CC Moncontour | F122: 400382 | G122: minime
A123: 112 | B123: 112 | C123: Le Bihan | D123: Evann | E123: UC Plaudren | F123: 379622 | G123: minime
A124: 113 | B124: 113 | C124: Henry | D124: Sulian | E124: VC Dinan | F124: 486449 | G124: Minime
A125: 114 | B125: 114 | C125: Briand | D125: Mathis | E125: VC Evron | F125: 431995 | G125: minime
A126: 115 | B126: 115 | C126: le Corguille | D126: Brieuc | E126: VC Plurien | F126: 434773 | G126: minime
A127: 116
A128: 117
A129: 118
A130: 119
A131: 120 | B131: 120 | C131: Briand | D131: Axel | E131: VC Evron | F131: 429219 | G131: Benjamin
A132: 121 | B132: 121 | C132: Croisier | D132: Léa | E132: Team Pays de Dinan | F132: 263040 | G132: Benjamin
A133: 122 | B133: 122 | C133: Huguet | D133: Mathis | E133: Team Bikers 22 | F133: 390457 | G133: Benjamin
A134: 123 | B134: 123 | C134: Macé | D134: Tom | E134: Team Broons | F134: 256614 | G134: Benjamin
A135: 124 | B135: 124 | C135: Callennec | D135: Lucy | E135: Bégard VTT Gwerun | F135: 509013 | G135: Benjamin
A136: 125 | B136: 125 | C136: Lebret | D136: Sacha | E136: Team Bikers 22 | F136: 390946 | G136: Benjamin
A137: 126 | B137: 126 | C137: Lanoé | D137: Hugo | E137: VC Evron | F137: 382435 | G137: Benjamin
A138: 127 | B138: 127 | C138: Creseveur | D138: Gwenvael | E138: Team XC du Léguer | F138: 330214 | G138: Benjamin
A139: 128 | B139: 128 | C139: Lévéque | D139: Noé | E139: Accro Cycles | F139: 337516 | G139: Benjamin
A140: 129 | B140: 129 | C140: Colas | D140: Thibault | E140: Team XC du Léguer | F140: 330206 | G140: Benjamin
A141: 130 | B141: 130 | C141: Remond | D141: Malo | E141: Team XC du Léguer | F141: 395912 | G141: benjamin
A142: 131 | B142: 131 | C142: Auffret | D142: Siméon | E142: VC Plurien | F142: 459988 | G142: benjamin
A143: 132 | B143: 132 | C143: Gerard | D143: Jules | E143: Team Bikers 22 | F143: 491636 | G143: Benjamin
A144: 133 | B144: 133 | C144: Cadieu | D144: Gabriel | E144: VTT du Lié | G144: benjamin
A145: 134
A146: 135
A147: 136
A148: 137
A149: 138
A150: 139
A151: 140 | B151: 140 | C151: Meunier Le Breton | D151: Lilwena | E151: VTT Côtes D'Armor Hillion | F151: 369755 | G151: pupille
A152: 141 | B152: 141 | C152: Bruezière | D152: Enzo | E152: Team Bikers 22 | F152: 459065 | G152: pupille
A153: 142 | B153: 142 | C153: Rouillé Biard | D153: Manech | E153: VTT Côtes D'Armor Hillion | F153: 451260 | G153: pupille
A154: 143 | B154: 143 | C154: Kowalski | D154: Paul | E154: Team Bikers 22 | F154: 460607 | G154: pupille
A155: 144 | B155: 144 | C155: Devaux | D155: Naël | E155: Team Bikers 22 | G155: Pupille
A156: 145
A157: 146
A158: 147
A159: 148
A160: 149
A161: 150
A162: 151
A163: 152
A164: 153
A165: 154
A166: 155
A167: 156
A168: 157
A169: 158
A170: 159
A171: 160 | B171: 160 | C171: Macé | D171: Loukas | E171: VC Evron | F171: 396776 | G171: poussin
A172: 161 | B172: 161 | C172: Leveque | D172: Nathan | E172: Lamball'breizh | F172: 435105 | G172: poussin
A173: 162 | B173: 162 | C173: Lévèque | D173: Clément | E173: Accro Cycles | F173: 377265 | G173: poussin
A174: 163 | B174: 163 | C174: Vitel | D174: Manoë | E174: Team Bikers 22 | G174: Poussin
A175: 164 | B175: 164 | C175: Gouret | D175: Louison | E175: VC Evron | G175: poussin
A176: 165 | B176: 165 | C176: Raoult | D176: Léon | E176: VC Evron | G176: poussin
A177: 166 | B177: 166 | C177: Boilet | D177: Malo | E177: Lamball'breizh | F177: 520459 | G177: poussin
A178: 167
A179: 168
A180: 169
A181: 170 | B181: 170 | C181: Brueziere | D181: Eden | E181: Team Bikers 22 | F181: 491634 | G181: moustique
A182: 171
A183: 172
A184: 173
A185: 174
A186: 175
A187: 176
A188: 177
A189: 178
A190: 179
A191: 180
A192: 181
A193: 182
A194: 183
A195: 184
A196: 185
A197: 186
A198: 187
A199: 188
A200: 189
A201: 190
A202: 191
A203: 192
A204: 193
A205: 194
... 6 more rows

Sheet PRIX D EQUIPE
A2: PRIX D EQUIPE
A5: 1
A6: 2
A7: 3
A8: 4
A9: 5
A10: 6
A11: 7
A12: 8
A13: 9
A14: 10
A15: 11
A16: 12
A17: 13
A18: 14
A19: 15
A20: 16
A21: 17
A22: 18
A23: 19
A24: 20
A25: 21
A26: 22
A27: 23
A28: 24
A29: 25
A30: 26
A31: 27
A32: 28
A33: 29
A34: 30
A35: 31
A36: 32
A37: 33
A38: 34
A39: 35

Sheet ENG Dep
A1: Fédération Sportive et Gymnique du Travail
A2: ENGAGEMENTS SUR LA LIGNE
A4: ORGANISATEUR : | D4: =IF(Inscription!D3="","",Inscription!D3) -> EC Créhen
A5: EPREUVE : | C5: =IF(Inscription!D1="","",Inscription!D1) -> 
A6: CAT.: | B6: =IF(Inscription!D5="","",Inscription!D5) ->  | F6: DATE : | G6: =IF(Inscription!D4="","",Inscription!D4) -> 2024-11-30
A7: NOMBRE D ENGAGES AU DEPART : | E7: =COUNTA(A12:A39) -> 0
A9: DOSS | C9: NOM / PRENOM | E9: ASSOCIATION | F9: CAT | G9: N° licence
C12: =IF(A12>0,CONCATENATE((VLOOKUP($A12,Inscription!$A$12:$G$211,3,FALSE))," ",(VLOOKUP($A12,Inscription!$A$12:$G$211,4,FALSE)))," ") ->  | E12: =IF($A12>0,(VLOOKUP($A12,Inscription!$A$12:$G$211,5,FALSE))," ") ->  | F12: =IF($A12>0,(VLOOKUP($A12,Inscription!$A$12:$G$211,6,FALSE))," ") ->  | G12: =IF($A12>0,(VLOOKUP($A12,Inscription!$A$12:$G$211,7,FALSE))," ") -> 
C13: =IF(A13>0,CONCATENATE((VLOOKUP($A13,Inscription!$A$12:$G$211,3,FALSE))," ",(VLOOKUP($A13,Inscription!$A$12:$G$211,4,FALSE)))," ") ->  | E13: =IF($A13>0,(VLOOKUP($A13,Inscription!$A$12:$G$211,5,FALSE))," ") ->  | F13: =IF($A13>0,(VLOOKUP($A13,Inscription!$A$12:$G$211,6,FALSE))," ") ->  | G13: =IF($A13>0,(VLOOKUP($A13,Inscription!$A$12:$G$211,7,FALSE))," ") -> 
C14: =IF(A14>0,CONCATENATE((VLOOKUP($A14,Inscription!$A$12:$G$211,3,FALSE))," ",(VLOOKUP($A14,Inscription!$A$12:$G$211,4,FALSE)))," ") ->  | E14: =IF($A14>0,(VLOOKUP($A14,Inscription!$A$12:$G$211,5,FALSE))," ") ->  | F14: =IF($A14>0,(VLOOKUP($A14,Inscription!$A$12:$G$211,6,FALSE))," ") ->  | G14: =IF($A14>0,(VLOOKUP($A14,Inscription!$A$12:$G$211,7,FALSE))," ") -> 
C15: =IF(A15>0,CONCATENATE((VLOOKUP($A15,Inscription!$A$12:$G$211,3,FALSE))," ",(VLOOKUP($A15,Inscription!$A$12:$G$211,4,FALSE)))," ") ->  | E15: =IF($A15>0,(VLOOKUP($A15,Inscription!$A$12:$G$211,5,FALSE))," ") ->  | F15: =IF($A15>0,(VLOOKUP($A15,Inscription!$A$12:$G$211,6,FALSE))," ") ->  | G15: =IF($A15>0,(VLOOKUP($A15,Inscription!$A$12:$G$211,7,FALSE))," ") -> 
C16: =IF(A16>0,CONCATENATE((VLOOKUP($A16,Inscription!$A$12:$G$211,3,FALSE))," ",(VLOOKUP($A16,Inscription!$A$12:$G$211,4,FALSE)))," ") ->  | E16: =IF($A16>0,(VLOOKUP($A16,Inscription!$A$12:$G$211,5,FALSE))," ") ->  | F16: =IF($A16>0,(VLOOKUP($A16,Inscription!$A$12:$G$211,6,FALSE))," ") ->  | G16: =IF($A16>0,(VLOOKUP($A16,Inscription!$A$12:$G$211,7,FALSE))," ") -> 
C17: =IF(A17>0,CONCATENATE((VLOOKUP($A17,Inscription!$A$12:$G$211,3,FALSE))," ",(VLOOKUP($A17,Inscription!$A$12:$G$211,4,FALSE)))," ") ->  | E17: =IF($A17>0,(VLOOKUP($A17,Inscription!$A$12:$G$211,5,FALSE))," ") ->  | F17: =IF($A17>0,(VLOOKUP($A17,Inscription!$A$12:$G$211,6,FALSE))," ") ->  | G17: =IF($A17>0,(VLOOKUP($A17,Inscription!$A$12:$G$211,7,FALSE))," ") -> 
C18: =IF(A18>0,CONCATENATE((VLOOKUP($A18,Inscription!$A$12:$G$211,3,FALSE))," ",(VLOOKUP($A18,Inscription!$A$12:$G$211,4,FALSE)))," ") ->  | E18: =IF($A18>0,(VLOOKUP($A18,Inscription!$A$12:$G$211,5,FALSE))," ") ->  | F18: =IF($A18>0,(VLOOKUP($A18,Inscription!$A$12:$G$211,6,FALSE))," ") ->  | G18: =IF($A18>0,(VLOOKUP($A18,Inscription!$A$12:$G$211,7,FALSE))," ") -> 
C19: =IF(A19>0,CONCATENATE((VLOOKUP($A19,Inscription!$A$12:$G$211,3,FALSE))," ",(VLOOKUP($A19,Inscription!$A$12:$G$211,4,FALSE)))," ") ->  | E19: =IF($A19>0,(VLOOKUP($A19,Inscription!$A$12:$G$211,5,FALSE))," ") ->  | F19: =IF($A19>0,(VLOOKUP($A19,Inscription!$A$12:$G$211,6,FALSE))," ") ->  | G19: =IF($A19>0,(VLOOKUP($A19,Inscription!$A$12:$G$211,7,FALSE))," ") -> 
C20: =IF(A20>0,CONCATENATE((VLOOKUP($A20,Inscription!$A$12:$G$211,3,FALSE))," ",(VLOOKUP($A20,Inscription!$A$12:$G$211,4,FALSE)))," ") ->  | E20: =IF($A20>0,(VLOOKUP($A20,Inscription!$A$12:$G$211,5,FALSE))," ") ->  | F20: =IF($A20>0,(VLOOKUP($A20,Inscription!$A$12:$G$211,6,FALSE))," ") ->  | G20: =IF($A20>0,(VLOOKUP($A20,Inscription!$A$12:$G$211,7,FALSE))," ") -> 
C21: =IF(A21>0,CONCATENATE((VLOOKUP($A21,Inscription!$A$12:$G$211,3,FALSE))," ",(VLOOKUP($A21,Inscription!$A$12:$G$211,4,FALSE)))," ") ->  | E21: =IF($A21>0,(VLOOKUP($A21,Inscription!$A$12:$G$211,5,FALSE))," ") ->  | F21: =IF($A21>0,(VLOOKUP($A21,Inscription!$A$12:$G$211,6,FALSE))," ") ->  | G21: =IF($A21>0,(VLOOKUP($A21,Inscription!$A$12:$G$211,7,FALSE))," ") -> 
C22: =IF(A22>0,CONCATENATE((VLOOKUP($A22,Inscription!$A$12:$G$211,3,FALSE))," ",(VLOOKUP($A22,Inscription!$A$12:$G$211,4,FALSE)))," ") ->  | E22: =IF($A22>0,(VLOOKUP($A22,Inscription!$A$12:$G$211,5,FALSE))," ") ->  | F22: =IF($A22>0,(VLOOKUP($A22,Inscription!$A$12:$G$211,6,FALSE))," ") ->  | G22: =IF($A22>0,(VLOOKUP($A22,Inscription!$A$12:$G$211,7,FALSE))," ") -> 
C23: =IF(A23>0,CONCATENATE((VLOOKUP($A23,Inscription!$A$12:$G$211,3,FALSE))," ",(VLOOKUP($A23,Inscription!$A$12:$G$211,4,FALSE)))," ") ->  | E23: =IF($A23>0,(VLOOKUP($A23,Inscription!$A$12:$G$211,5,FALSE))," ") ->  | F23: =IF($A23>0,(VLOOKUP($A23,Inscription!$A$12:$G$211,6,FALSE))," ") ->  | G23: =IF($A23>0,(VLOOKUP($A23,Inscription!$A$12:$G$211,7,FALSE))," ") -> 
C24: =IF(A24>0,CONCATENATE((VLOOKUP($A24,Inscription!$A$12:$G$211,3,FALSE))," ",(VLOOKUP($A24,Inscription!$A$12:$G$211,4,FALSE)))," ") ->  | E24: =IF($A24>0,(VLOOKUP($A24,Inscription!$A$12:$G$211,5,FALSE))," ") ->  | F24: =IF($A24>0,(VLOOKUP($A24,Inscription!$A$12:$G$211,6,FALSE))," ") ->  | G24: =IF($A24>0,(VLOOKUP($A24,Inscription!$A$12:$G$211,7,FALSE))," ") -> 
C25: =IF(A25>0,CONCATENATE((VLOOKUP($A25,Inscription!$A$12:$G$211,3,FALSE))," ",(VLOOKUP($A25,Inscription!$A$12:$G$211,4,FALSE)))," ") ->  | E25: =IF($A25>0,(VLOOKUP($A25,Inscription!$A$12:$G$211,5,FALSE))," ") ->  | F25: =IF($A25>0,(VLOOKUP($A25,Inscription!$A$12:$G$211,6,FALSE))," ") ->  | G25: =IF($A25>0,(VLOOKUP($A25,Inscription!$A$12:$G$211,7,FALSE))," ") -> 
C26: =IF(A26>0,CONCATENATE((VLOOKUP($A26,Inscription!$A$12:$G$211,3,FALSE))," ",(VLOOKUP($A26,Inscription!$A$12:$G$211,4,FALSE)))," ") ->  | E26: =IF($A26>0,(VLOOKUP($A26,Inscription!$A$12:$G$211,5,FALSE))," ") ->  | F26: =IF($A26>0,(VLOOKUP($A26,Inscription!$A$12:$G$211,6,FALSE))," ") ->  | G26: =IF($A26>0,(VLOOKUP($A26,Inscription!$A$12:$G$211,7,FALSE))," ") -> 
C27: =IF(A27>0,CONCATENATE((VLOOKUP($A27,Inscription!$A$12:$G$211,3,FALSE))," ",(VLOOKUP($A27,Inscription!$A$12:$G$211,4,FALSE)))," ") ->  | E27: =IF($A27>0,(VLOOKUP($A27,Inscription!$A$12:$G$211,5,FALSE))," ") ->  | F27: =IF($A27>0,(VLOOKUP($A27,Inscription!$A$12:$G$211,6,FALSE))," ") ->  | G27: =IF($A27>0,(VLOOKUP($A27,Inscription!$A$12:$G$211,7,FALSE))," ") -> 
C28: =IF(A28>0,CONCATENATE((VLOOKUP($A28,Inscription!$A$12:$G$211,3,FALSE))," ",(VLOOKUP($A28,Inscription!$A$12:$G$211,4,FALSE)))," ") ->  | E28: =IF($A28>0,(VLOOKUP($A28,Inscription!$A$12:$G$211,5,FALSE))," ") ->  | F28: =IF($A28>0,(VLOOKUP($A28,Inscription!$A$12:$G$211,6,FALSE))," ") ->  | G28: =IF($A28>0,(VLOOKUP($A28,Inscription!$A$12:$G$211,7,FALSE))," ") -> 
C29: =IF(A29>0,CONCATENATE((VLOOKUP($A29,Inscription!$A$12:$G$211,3,FALSE))," ",(VLOOKUP($A29,Inscription!$A$12:$G$211,4,FALSE)))," ") ->  | E29: =IF($A29>0,(VLOOKUP($A29,Inscription!$A$12:$G$211,5,FALSE))," ") ->  | F29: =IF($A29>0,(VLOOKUP($A29,Inscription!$A$12:$G$211,6,FALSE))," ") ->  | G29: =IF($A29>0,(VLOOKUP($A29,Inscription!$A$12:$G$211,7,FALSE))," ") -> 
C30: =IF(A30>0,CONCATENATE((VLOOKUP($A30,Inscription!$A$12:$G$211,3,FALSE))," ",(VLOOKUP($A30,Inscription!$A$12:$G$211,4,FALSE)))," ") ->  | E30: =IF($A30>0,(VLOOKUP($A30,Inscription!$A$12:$G$211,5,FALSE))," ") ->  | F30: =IF($A30>0,(VLOOKUP($A30,Inscription!$A$12:$G$211,6,FALSE))," ") ->  | G30: =IF($A30>0,(VLOOKUP($A30,Inscription!$A$12:$G$211,7,FALSE))," ") -> 
C31: =IF(A31>0,CONCATENATE((VLOOKUP($A31,Inscription!$A$12:$G$211,3,FALSE))," ",(VLOOKUP($A31,Inscription!$A$12:$G$211,4,FALSE)))," ") ->  | E31: =IF($A31>0,(VLOOKUP($A31,Inscription!$A$12:$G$211,5,FALSE))," ") ->  | F31: =IF($A31>0,(VLOOKUP($A31,Inscription!$A$12:$G$211,6,FALSE))," ") ->  | G31: =IF($A31>0,(VLOOKUP($A31,Inscription!$A$12:$G$211,7,FALSE))," ") -> 
C32: =IF(A32>0,CONCATENATE((VLOOKUP($A32,Inscription!$A$12:$G$211,3,FALSE))," ",(VLOOKUP($A32,Inscription!$A$12:$G$211,4,FALSE)))," ") ->  | E32: =IF($A32>0,(VLOOKUP($A32,Inscription!$A$12:$G$211,5,FALSE))," ") ->  | F32: =IF($A32>0,(VLOOKUP($A32,Inscription!$A$12:$G$211,6,FALSE))," ") ->  | G32: =IF($A32>0,(VLOOKUP($A32,Inscription!$A$12:$G$211,7,FALSE))," ") -> 
C33: =IF(A33>0,CONCATENATE((VLOOKUP($A33,Inscription!$A$12:$G$211,3,FALSE))," ",(VLOOKUP($A33,Inscription!$A$12:$G$211,4,FALSE)))," ") ->  | E33: =IF($A33>0,(VLOOKUP($A33,Inscription!$A$12:$G$211,5,FALSE))," ") ->  | F33: =IF($A33>0,(VLOOKUP($A33,Inscription!$A$12:$G$211,6,FALSE))," ") ->  | G33: =IF($A33>0,(VLOOKUP($A33,Inscription!$A$12:$G$211,7,FALSE))," ") -> 
C34: =IF(A34>0,CONCATENATE((VLOOKUP($A34,Inscription!$A$12:$G$211,3,FALSE))," ",(VLOOKUP($A34,Inscription!$A$12:$G$211,4,FALSE)))," ") ->  | E34: =IF($A34>0,(VLOOKUP($A34,Inscription!$A$12:$G$211,5,FALSE))," ") ->  | F34: =IF($A34>0,(VLOOKUP($A34,Inscription!$A$12:$G$211,6,FALSE))," ") ->  | G34: =IF($A34>0,(VLOOKUP($A34,Inscription!$A$12:$G$211,7,FALSE))," ") -> 
C35: =IF(A35>0,CONCATENATE((VLOOKUP($A35,Inscription!$A$12:$G$211,3,FALSE))," ",(VLOOKUP($A35,Inscription!$A$12:$G$211,4,FALSE)))," ") ->  | E35: =IF($A35>0,(VLOOKUP($A35,Inscription!$A$12:$G$211,5,FALSE))," ") ->  | F35: =IF($A35>0,(VLOOKUP($A35,Inscription!$A$12:$G$211,6,FALSE))," ") ->  | G35: =IF($A35>0,(VLOOKUP($A35,Inscription!$A$12:$G$211,7,FALSE))," ") -> 
C36: =IF(A36>0,CONCATENATE((VLOOKUP($A36,Inscription!$A$12:$G$211,3,FALSE))," ",(VLOOKUP($A36,Inscription!$A$12:$G$211,4,FALSE)))," ") ->  | E36: =IF($A36>0,(VLOOKUP($A36,Inscription!$A$12:$G$211,5,FALSE))," ") ->  | F36: =IF($A36>0,(VLOOKUP($A36,Inscription!$A$12:$G$211,6,FALSE))," ") ->  | G36: =IF($A36>0,(VLOOKUP($A36,Inscription!$A$12:$G$211,7,FALSE))," ") -> 
C37: =IF(A37>0,CONCATENATE((VLOOKUP($A37,Inscription!$A$12:$G$211,3,FALSE))," ",(VLOOKUP($A37,Inscription!$A$12:$G$211,4,FALSE)))," ") ->  | E37: =IF($A37>0,(VLOOKUP($A37,Inscription!$A$12:$G$211,5,FALSE))," ") ->  | F37: =IF($A37>0,(VLOOKUP($A37,Inscription!$A$12:$G$211,6,FALSE))," ") ->  | G37: =IF($A37>0,(VLOOKUP($A37,Inscription!$A$12:$G$211,7,FALSE))," ") -> 
C38: =IF(A38>0,CONCATENATE((VLOOKUP($A38,Inscription!$A$12:$G$211,3,FALSE))," ",(VLOOKUP($A38,Inscription!$A$12:$G$211,4,FALSE)))," ") ->  | E38: =IF($A38>0,(VLOOKUP($A38,Inscription!$A$12:$G$211,5,FALSE))," ") ->  | F38: =IF($A38>0,(VLOOKUP($A38,Inscription!$A$12:$G$211,6,FALSE))," ") ->  | G38: =IF($A38>0,(VLOOKUP($A38,Inscription!$A$12:$G$211,7,FALSE))," ") -> 
C39: =IF(A39>0,CONCATENATE((VLOOKUP($A39,Inscription!$A$12:$G$211,3,FALSE))," ",(VLOOKUP($A39,Inscription!$A$12:$G$211,4,FALSE)))," ") ->  | E39: =IF($A39>0,(VLOOKUP($A39,Inscription!$A$12:$G$211,5,FALSE))," ") ->  | F39: =IF($A39>0,(VLOOKUP($A39,Inscription!$A$12:$G$211,6,FALSE))," ") ->  | G39: =IF($A39>0,(VLOOKUP($A39,Inscription!$A$12:$G$211,7,FALSE))," ") -> 
A40: ENGAGEMENTS SUR PLACE AU PRIX D EQUIPE (Nom de l'association)
E46: =COUNTA(E40:G43) -> 0
E47: =$E$7 -> 0
B49: Le Commissaire : NOM : SIGNATURE : | E49: LE CLUB ORGANISATEUR : NOM : SIGNATURE : | G49: VISA COMPTABILITE : DATE :
A50: IMPRIME A JOINDRE AVEC L'ETAT DE RESULTAT.

Sheet EMARGEMENT
A1: FEUILLE D EMARGEMENT
A2: DOSS. | B2: NOM PRENOM | C2: CLUB | D2: CATEGORIE | E2: LICENCE N° | F2: SIGNATURE
A3: =Inscription!A12 -> 1 | B3: =CONCATENATE(Inscription!C12," ",Inscription!D12) -> Saulnier Florentin | C3: =Inscription!E12 -> CCV Beaussais | D3: =Inscription!F12 -> 137523 | E3: =Inscription!G12 -> 1
A4: =Inscription!A13 -> 2 | B4: =CONCATENATE(Inscription!C13," ",Inscription!D13) -> Coualan Jordan | C4: =Inscription!E13 -> CC Pleven | D4: =Inscription!F13 -> 511484 | E4: =Inscription!G13 -> 1
A5: =Inscription!A14 -> 3 | B5: =CONCATENATE(Inscription!C14," ",Inscription!D14) -> Sieurin Sébastien | C5: =Inscription!E14 -> VC Evron | D5: =Inscription!F14 -> 0 | E5: =Inscription!G14 -> 1
A6: =Inscription!A15 -> 4 | B6: =CONCATENATE(Inscription!C15," ",Inscription!D15) -> Allot Sébastien | C6: =Inscription!E15 -> VS Ploumagoar | D6: =Inscription!F15 -> 0 | E6: =Inscription!G15 -> 1
A7: =Inscription!A16 -> 5 | B7: =CONCATENATE(Inscription!C16," ",Inscription!D16) -> Joannot Jérémy | C7: =Inscription!E16 -> Team Broons | D7: =Inscription!F16 -> 506026 | E7: =Inscription!G16 -> 1
A8: =Inscription!A17 -> 6 | B8: =CONCATENATE(Inscription!C17," ",Inscription!D17) -> Le Bellego Maxime | C8: =Inscription!E17 -> VTT du Lié | D8: =Inscription!F17 -> 480114 | E8: =Inscription!G17 -> 1
A9: =Inscription!A18 -> 7 | B9: =CONCATENATE(Inscription!C18," ",Inscription!D18) -> Flégeau David | C9: =Inscription!E18 -> Team Bikers 22 | D9: =Inscription!F18 -> 137996 | E9: =Inscription!G18 -> 1
A10: =Inscription!A19 -> 8 | B10: =CONCATENATE(Inscription!C19," ",Inscription!D19) -> Le Ponner Christophe | C10: =Inscription!E19 -> UC Plaudren | D10: =Inscription!F19 -> 0 | E10: =Inscription!G19 -> 1
A11: =Inscription!A20 -> 9 | B11: =CONCATENATE(Inscription!C20," ",Inscription!D20) ->  | C11: =Inscription!E20 -> 0 | D11: =Inscription!F20 -> 0 | E11: =Inscription!G20 -> 0
A12: =Inscription!A21 -> 10 | B12: =CONCATENATE(Inscription!C21," ",Inscription!D21) ->  | C12: =Inscription!E21 -> 0 | D12: =Inscription!F21 -> 0 | E12: =Inscription!G21 -> 0
A13: =Inscription!A22 -> 11 | B13: =CONCATENATE(Inscription!C22," ",Inscription!D22) ->  | C13: =Inscription!E22 -> 0 | D13: =Inscription!F22 -> 0 | E13: =Inscription!G22 -> 0
A14: =Inscription!A23 -> 12 | B14: =CONCATENATE(Inscription!C23," ",Inscription!D23) ->  | C14: =Inscription!E23 -> 0 | D14: =Inscription!F23 -> 0 | E14: =Inscription!G23 -> 0
A15: =Inscription!A24 -> 13 | B15: =CONCATENATE(Inscription!C24," ",Inscription!D24) ->  | C15: =Inscription!E24 -> 0 | D15: =Inscription!F24 -> 0 | E15: =Inscription!G24 -> 0
A16: =Inscription!A25 -> 14 | B16: =CONCATENATE(Inscription!C25," ",Inscription!D25) ->  | C16: =Inscription!E25 -> 0 | D16: =Inscription!F25 -> 0 | E16: =Inscription!G25 -> 0
A17: =Inscription!A26 -> 15 | B17: =CONCATENATE(Inscription!C26," ",Inscription!D26) ->  | C17: =Inscription!E26 -> 0 | D17: =Inscription!F26 -> 0 | E17: =Inscription!G26 -> 0
A18: =Inscription!A27 -> 16 | B18: =CONCATENATE(Inscription!C27," ",Inscription!D27) ->  | C18: =Inscription!E27 -> 0 | D18: =Inscription!F27 -> 0 | E18: =Inscription!G27 -> 0
A19: =Inscription!A28 -> 17 | B19: =CONCATENATE(Inscription!C28," ",Inscription!D28) ->  | C19: =Inscription!E28 -> 0 | D19: =Inscription!F28 -> 0 | E19: =Inscription!G28 -> 0
A20: =Inscription!A29 -> 18 | B20: =CONCATENATE(Inscription!C29," ",Inscription!D29) ->  | C20: =Inscription!E29 -> 0 | D20: =Inscription!F29 -> 0 | E20: =Inscription!G29 -> 0
A21: =Inscription!A30 -> 19 | B21: =CONCATENATE(Inscription!C30," ",Inscription!D30) ->  | C21: =Inscription!E30 -> 0 | D21: =Inscription!F30 -> 0 | E21: =Inscription!G30 -> 0
A22: =Inscription!A31 -> 20 | B22: =CONCATENATE(Inscription!C31," ",Inscription!D31) -> Ruffet Titouan | C22: =Inscription!E31 -> CC Moncontour | D22: =Inscription!F31 -> 457920 | E22: =Inscription!G31 -> junior
A23: =Inscription!A32 -> 21 | B23: =CONCATENATE(Inscription!C32," ",Inscription!D32) -> Le Masson Hugo | C23: =Inscription!E32 -> VC Evron | D23: =Inscription!F32 -> 0 | E23: =Inscription!G32 -> Junior
A24: =Inscription!A33 -> 22 | B24: =CONCATENATE(Inscription!C33," ",Inscription!D33) ->  | C24: =Inscription!E33 -> 0 | D24: =Inscription!F33 -> 0 | E24: =Inscription!G33 -> 0
A25: =Inscription!A34 -> 23 | B25: =CONCATENATE(Inscription!C34," ",Inscription!D34) ->  | C25: =Inscription!E34 -> 0 | D25: =Inscription!F34 -> 0 | E25: =Inscription!G34 -> 0
A26: =Inscription!A35 -> 24 | B26: =CONCATENATE(Inscription!C35," ",Inscription!D35) ->  | C26: =Inscription!E35 -> 0 | D26: =Inscription!F35 -> 0 | E26: =Inscription!G35 -> 0
A27: =Inscription!A36 -> 25 | B27: =CONCATENATE(Inscription!C36," ",Inscription!D36) ->  | C27: =Inscription!E36 -> 0 | D27: =Inscription!F36 -> 0 | E27: =Inscription!G36 -> 0
A28: =Inscription!A37 -> 26 | B28: =CONCATENATE(Inscription!C37," ",Inscription!D37) ->  | C28: =Inscription!E37 -> 0 | D28: =Inscription!F37 -> 0 | E28: =Inscription!G37 -> 0
A29: =Inscription!A38 -> 27 | B29: =CONCATENATE(Inscription!C38," ",Inscription!D38) ->  | C29: =Inscription!E38 -> 0 | D29: =Inscription!F38 -> 0 | E29: =Inscription!G38 -> 0
A30: =Inscription!A39 -> 28 | B30: =CONCATENATE(Inscription!C39," ",Inscription!D39) ->  | C30: =Inscription!E39 -> 0 | D30: =Inscription!F39 -> 0 | E30: =Inscription!G39 -> 0
A31: =Inscription!A40 -> 29 | B31: =CONCATENATE(Inscription!C40," ",Inscription!D40) ->  | C31: =Inscription!E40 -> 0 | D31: =Inscription!F40 -> 0 | E31: =Inscription!G40 -> 0
A32: =Inscription!A41 -> 30 | B32: =CONCATENATE(Inscription!C41," ",Inscription!D41) -> Huby Laurent | C32: =Inscription!E41 -> CC d'Uzel | D32: =Inscription!F41 -> 278430 | E32: =Inscription!G41 -> 2
A33: =Inscription!A42 -> 31 | B33: =CONCATENATE(Inscription!C42," ",Inscription!D42) -> Prigent Benoit | C33: =Inscription!E42 -> Lamball'breizh | D33: =Inscription!F42 -> 468745 | E33: =Inscription!G42 -> 2
A34: =Inscription!A43 -> 32 | B34: =CONCATENATE(Inscription!C43," ",Inscription!D43) -> Bedel Baptiste | C34: =Inscription!E43 -> Lamball'breizh | D34: =Inscription!F43 -> 136137 | E34: =Inscription!G43 -> 2
A35: =Inscription!A44 -> 33 | B35: =CONCATENATE(Inscription!C44," ",Inscription!D44) -> Nicolas Patrice | C35: =Inscription!E44 -> COS Kerentrech | D35: =Inscription!F44 -> 247939 | E35: =Inscription!G44 -> 2
A36: =Inscription!A45 -> 34 | B36: =CONCATENATE(Inscription!C45," ",Inscription!D45) -> Perrennou Claude | C36: =Inscription!E45 -> COS Kerentrech | D36: =Inscription!F45 -> 0 | E36: =Inscription!G45 -> 2
A37: =Inscription!A46 -> 35 | B37: =CONCATENATE(Inscription!C46," ",Inscription!D46) -> Leroux Jérôme | C37: =Inscription!E46 -> CCV Beaussais | D37: =Inscription!F46 -> 349169 | E37: =Inscription!G46 -> 2
A38: =Inscription!A47 -> 36 | B38: =CONCATENATE(Inscription!C47," ",Inscription!D47) -> Bittoré Luca | C38: =Inscription!E47 -> CCV Beaussais | D38: =Inscription!F47 -> 465568 | E38: =Inscription!G47 -> 2
A39: =Inscription!A48 -> 37 | B39: =CONCATENATE(Inscription!C48," ",Inscription!D48) -> Besnard Jean-Jacques | C39: =Inscription!E48 -> CC Moncontour | D39: =Inscription!F48 -> 425505 | E39: =Inscription!G48 -> 2
A40: =Inscription!A49 -> 38 | B40: =CONCATENATE(Inscription!C49," ",Inscription!D49) -> Macé Jérome | C40: =Inscription!E49 -> VC Evron | D40: =Inscription!F49 -> 434904 | E40: =Inscription!G49 -> 2
A41: =Inscription!A50 -> 39 | B41: =CONCATENATE(Inscription!C50," ",Inscription!D50) -> Henry Damien | C41: =Inscription!E50 -> VC Dinan | D41: =Inscription!F50 -> 474783 | E41: =Inscription!G50 -> 2
A42: =Inscription!A51 -> 40 | B42: =CONCATENATE(Inscription!C51," ",Inscription!D51) -> Lebret Julien | C42: =Inscription!E51 -> Team Bikers 22 | D42: =Inscription!F51 -> 431988 | E42: =Inscription!G51 -> 2
A43: =Inscription!A52 -> 41 | B43: =CONCATENATE(Inscription!C52," ",Inscription!D52) -> letaconnoux sylvain | C43: =Inscription!E52 -> accro cycles | D43: =Inscription!F52 -> 0 | E43: =Inscription!G52 -> 2
A44: =Inscription!A53 -> 42 | B44: =CONCATENATE(Inscription!C53," ",Inscription!D53) ->  | C44: =Inscription!E53 -> 0 | D44: =Inscription!F53 -> 0 | E44: =Inscription!G53 -> 0
A45: =Inscription!A54 -> 43 | B45: =CONCATENATE(Inscription!C54," ",Inscription!D54) ->  | C45: =Inscription!E54 -> 0 | D45: =Inscription!F54 -> 0 | E45: =Inscription!G54 -> 0
A46: =Inscription!A55 -> 44 | B46: =CONCATENATE(Inscription!C55," ",Inscription!D55) ->  | C46: =Inscription!E55 -> 0 | D46: =Inscription!F55 -> 0 | E46: =Inscription!G55 -> 0
A47: =Inscription!A56 -> 45 | B47: =CONCATENATE(Inscription!C56," ",Inscription!D56) ->  | C47: =Inscription!E56 -> 0 | D47: =Inscription!F56 -> 0 | E47: =Inscription!G56 -> 0
A48: =Inscription!A57 -> 46 | B48: =CONCATENATE(Inscription!C57," ",Inscription!D57) ->  | C48: =Inscription!E57 -> 0 | D48: =Inscription!F57 -> 0 | E48: =Inscription!G57 -> 0
A49: =Inscription!A58 -> 47 | B49: =CONCATENATE(Inscription!C58," ",Inscription!D58) ->  | C49: =Inscription!E58 -> 0 | D49: =Inscription!F58 -> 0 | E49: =Inscription!G58 -> 0
A50: =Inscription!A59 -> 48 | B50: =CONCATENATE(Inscription!C59," ",Inscription!D59) ->  | C50: =Inscription!E59 -> 0 | D50: =Inscription!F59 -> 0 | E50: =Inscription!G59 -> 0
A51: =Inscription!A60 -> 49 | B51: =CONCATENATE(Inscription!C60," ",Inscription!D60) ->  | C51: =Inscription!E60 -> 0 | D51: =Inscription!F60 -> 0 | E51: =Inscription!G60 -> 0
A52: =Inscription!A61 -> 50 | B52: =CONCATENATE(Inscription!C61," ",Inscription!D61) ->  | C52: =Inscription!E61 -> 0 | D52: =Inscription!F61 -> 0 | E52: =Inscription!G61 -> 0
A53: =Inscription!A62 -> 51 | B53: =CONCATENATE(Inscription!C62," ",Inscription!D62) ->  | C53: =Inscription!E62 -> 0 | D53: =Inscription!F62 -> 0 | E53: =Inscription!G62 -> 0
A54: =Inscription!A63 -> 52 | B54: =CONCATENATE(Inscription!C63," ",Inscription!D63) ->  | C54: =Inscription!E63 -> 0 | D54: =Inscription!F63 -> 0 | E54: =Inscription!G63 -> 0
A55: =Inscription!A64 -> 53 | B55: =CONCATENATE(Inscription!C64," ",Inscription!D64) ->  | C55: =Inscription!E64 -> 0 | D55: =Inscription!F64 -> 0 | E55: =Inscription!G64 -> 0
A56: =Inscription!A65 -> 54 | B56: =CONCATENATE(Inscription!C65," ",Inscription!D65) ->  | C56: =Inscription!E65 -> 0 | D56: =Inscription!F65 -> 0 | E56: =Inscription!G65 -> 0
A57: =Inscription!A66 -> 55 | B57: =CONCATENATE(Inscription!C66," ",Inscription!D66) ->  | C57: =Inscription!E66 -> 0 | D57: =Inscription!F66 -> 0 | E57: =Inscription!G66 -> 0
A58: =Inscription!A67 -> 56 | B58: =CONCATENATE(Inscription!C67," ",Inscription!D67) ->  | C58: =Inscription!E67 -> 0 | D58: =Inscription!F67 -> 0 | E58: =Inscription!G67 -> 0
A59: =Inscription!A68 -> 57 | B59: =CONCATENATE(Inscription!C68," ",Inscription!D68) ->  | C59: =Inscription!E68 -> 0 | D59: =Inscription!F68 -> 0 | E59: =Inscription!G68 -> 0
A60: =Inscription!A69 -> 58 | B60: =CONCATENATE(Inscription!C69," ",Inscription!D69) ->  | C60: =Inscription!E69 -> 0 | D60: =Inscription!F69 -> 0 | E60: =Inscription!G69 -> 0
A61: =Inscription!A70 -> 59 | B61: =CONCATENATE(Inscription!C70," ",Inscription!D70) ->  | C61: =Inscription!E70 -> 0 | D61: =Inscription!F70 -> 0 | E61: =Inscription!G70 -> 0
A62: =Inscription!A71 -> 60 | B62: =CONCATENATE(Inscription!C71," ",Inscription!D71) -> Nicolas Jean-Charles | C62: =Inscription!E71 -> AC Vildé-Guingalan | D62: =Inscription!F71 -> 137756 | E62: =Inscription!G71 -> 3
A63: =Inscription!A72 -> 61 | B63: =CONCATENATE(Inscription!C72," ",Inscription!D72) -> Lemaitre Alain | C63: =Inscription!E72 -> AC Vildé-Guingalan | D63: =Inscription!F72 -> 136151 | E63: =Inscription!G72 -> 3
A64: =Inscription!A73 -> 62 | B64: =CONCATENATE(Inscription!C73," ",Inscription!D73) -> Lecellier Raymond | C64: =Inscription!E73 -> Team Mégrit | D64: =Inscription!F73 -> 143624 | E64: =Inscription!G73 -> 3
A65: =Inscription!A74 -> 63 | B65: =CONCATENATE(Inscription!C74," ",Inscription!D74) -> Georget Charles | C65: =Inscription!E74 -> Lamball'breizh | D65: =Inscription!F74 -> 136132 | E65: =Inscription!G74 -> 3
A66: =Inscription!A75 -> 64 | B66: =CONCATENATE(Inscription!C75," ",Inscription!D75) -> Bedel Michel | C66: =Inscription!E75 -> Lamball'breizh | D66: =Inscription!F75 -> 267277 | E66: =Inscription!G75 -> 3
A67: =Inscription!A76 -> 65 | B67: =CONCATENATE(Inscription!C76," ",Inscription!D76) -> Colombier Michel | C67: =Inscription!E76 -> CC Robert le Roux | D67: =Inscription!F76 -> 286379 | E67: =Inscription!G76 -> 3
A68: =Inscription!A77 -> 66 | B68: =CONCATENATE(Inscription!C77," ",Inscription!D77) -> Gouya Noël | C68: =Inscription!E77 -> Team Pays de Dinan | D68: =Inscription!F77 -> 136620 | E68: =Inscription!G77 -> 3
A69: =Inscription!A78 -> 67 | B69: =CONCATENATE(Inscription!C78," ",Inscription!D78) -> Croisier Ronan | C69: =Inscription!E78 -> Team Pays de Dinan | D69: =Inscription!F78 -> 136268 | E69: =Inscription!G78 -> 3
A70: =Inscription!A79 -> 68 | B70: =CONCATENATE(Inscription!C79," ",Inscription!D79) -> Durand Jacques | C70: =Inscription!E79 -> Team Pays de Dinan | D70: =Inscription!F79 -> 136617 | E70: =Inscription!G79 -> 3
A71: =Inscription!A80 -> 69 | B71: =CONCATENATE(Inscription!C80," ",Inscription!D80) -> Guillot Denis | C71: =Inscription!E80 -> Team Pays de Dinan | D71: =Inscription!F80 -> 0 | E71: =Inscription!G80 -> 3
A72: =Inscription!A81 -> 70 | B72: =CONCATENATE(Inscription!C81," ",Inscription!D81) -> Gaillard Marcel | C72: =Inscription!E81 -> COS Kerentrech | D72: =Inscription!F81 -> 153464 | E72: =Inscription!G81 -> 3
A73: =Inscription!A82 -> 71 | B73: =CONCATENATE(Inscription!C82," ",Inscription!D82) -> Colleu Pascal | C73: =Inscription!E82 -> CCV Beaussais | D73: =Inscription!F82 -> 137558 | E73: =Inscription!G82 -> 3
A74: =Inscription!A83 -> 72 | B74: =CONCATENATE(Inscription!C83," ",Inscription!D83) -> Goupil Michel | C74: =Inscription!E83 -> Team Mégrit | D74: =Inscription!F83 -> 0 | E74: =Inscription!G83 -> 3
A75: =Inscription!A84 -> 73 | B75: =CONCATENATE(Inscription!C84," ",Inscription!D84) -> Durand Francky | C75: =Inscription!E84 -> CC Moncontour | D75: =Inscription!F84 -> 480456 | E75: =Inscription!G84 -> 3
A76: =Inscription!A85 -> 74 | B76: =CONCATENATE(Inscription!C85," ",Inscription!D85) -> Jeuneu Gilles | C76: =Inscription!E85 -> Accro Cycles | D76: =Inscription!F85 -> 137390 | E76: =Inscription!G85 -> 3
A77: =Inscription!A86 -> 75 | B77: =CONCATENATE(Inscription!C86," ",Inscription!D86) -> Pezres Didier | C77: =Inscription!E86 -> EC Créhen | D77: =Inscription!F86 -> 137518 | E77: =Inscription!G86 -> 3
A78: =Inscription!A87 -> 76 | B78: =CONCATENATE(Inscription!C87," ",Inscription!D87) -> Colas Roger | C78: =Inscription!E87 -> EC Créhen | D78: =Inscription!F87 -> 137514 | E78: =Inscription!G87 -> 3
A79: =Inscription!A88 -> 77 | B79: =CONCATENATE(Inscription!C88," ",Inscription!D88) -> Gouya Philippe | C79: =Inscription!E88 -> EC Créhen | D79: =Inscription!F88 -> 136134 | E79: =Inscription!G88 -> 3
A80: =Inscription!A89 -> 78 | B80: =CONCATENATE(Inscription!C89," ",Inscription!D89) -> Gilson Frédéric | C80: =Inscription!E89 -> CC Moncontour | D80: =Inscription!F89 -> 424247 | E80: =Inscription!G89 -> 3
A81: =Inscription!A90 -> 79 | B81: =CONCATENATE(Inscription!C90," ",Inscription!D90) ->  | C81: =Inscription!E90 -> 0 | D81: =Inscription!F90 -> 0 | E81: =Inscription!G90 -> 0
A82: =Inscription!A91 -> 80 | B82: =CONCATENATE(Inscription!C91," ",Inscription!D91) ->  | C82: =Inscription!E91 -> 0 | D82: =Inscription!F91 -> 0 | E82: =Inscription!G91 -> 0
A83: =Inscription!A92 -> 81 | B83: =CONCATENATE(Inscription!C92," ",Inscription!D92) ->  | C83: =Inscription!E92 -> 0 | D83: =Inscription!F92 -> 0 | E83: =Inscription!G92 -> 0
A84: =Inscription!A93 -> 82 | B84: =CONCATENATE(Inscription!C93," ",Inscription!D93) ->  | C84: =Inscription!E93 -> 0 | D84: =Inscription!F93 -> 0 | E84: =Inscription!G93 -> 0
A85: =Inscription!A94 -> 83 | B85: =CONCATENATE(Inscription!C94," ",Inscription!D94) ->  | C85: =Inscription!E94 -> 0 | D85: =Inscription!F94 -> 0 | E85: =Inscription!G94 -> 0
A86: =Inscription!A95 -> 84 | B86: =CONCATENATE(Inscription!C95," ",Inscription!D95) ->  | C86: =Inscription!E95 -> 0 | D86: =Inscription!F95 -> 0 | E86: =Inscription!G95 -> 0
A87: =Inscription!A96 -> 85 | B87: =CONCATENATE(Inscription!C96," ",Inscription!D96) ->  | C87: =Inscription!E96 -> 0 | D87: =Inscription!F96 -> 0 | E87: =Inscription!G96 -> 0
A88: =Inscription!A97 -> 86 | B88: =CONCATENATE(Inscription!C97," ",Inscription!D97) ->  | C88: =Inscription!E97 -> 0 | D88: =Inscription!F97 -> 0 | E88: =Inscription!G97 -> 0
A89: =Inscription!A98 -> 87 | B89: =CONCATENATE(Inscription!C98," ",Inscription!D98) ->  | C89: =Inscription!E98 -> 0 | D89: =Inscription!F98 -> 0 | E89: =Inscription!G98 -> 0
A90: =Inscription!A99 -> 88 | B90: =CONCATENATE(Inscription!C99," ",Inscription!D99) ->  | C90: =Inscription!E99 -> 0 | D90: =Inscription!F99 -> 0 | E90: =Inscription!G99 -> 0
A91: =Inscription!A100 -> 89 | B91: =CONCATENATE(Inscription!C100," ",Inscription!D100) ->  | C91: =Inscription!E100 -> 0 | D91: =Inscription!F100 -> 0 | E91: =Inscription!G100 -> 0
A92: =Inscription!A101 -> 90 | B92: =CONCATENATE(Inscription!C101," ",Inscription!D101) -> Camus Kristell | C92: =Inscription!E101 -> VC Evron | D92: =Inscription!F101 -> 0 | E92: =Inscription!G101 -> féminine
A93: =Inscription!A102 -> 91 | B93: =CONCATENATE(Inscription!C102," ",Inscription!D102) -> Rivolet Agnes | C93: =Inscription!E102 -> VTT Côtes d'Armor Hillion | D93: =Inscription!F102 -> 443442 | E93: =Inscription!G102 -> féminine
A94: =Inscription!A103 -> 92 | B94: =CONCATENATE(Inscription!C103," ",Inscription!D103) -> Leray Gwladys | C94: =Inscription!E103 -> Team XC du Léguer | D94: =Inscription!F103 -> 359228 | E94: =Inscription!G103 -> féminine
A95: =Inscription!A104 -> 93 | B95: =CONCATENATE(Inscription!C104," ",Inscription!D104) -> Amice Florine | C95: =Inscription!E104 -> Souffle d'espoir | D95: =Inscription!F104 -> 137425 | E95: =Inscription!G104 -> féminine
A96: =Inscription!A105 -> 94 | B96: =CONCATENATE(Inscription!C105," ",Inscription!D105) ->  | C96: =Inscription!E105 -> 0 | D96: =Inscription!F105 -> 0 | E96: =Inscription!G105 -> 0
A97: =Inscription!A106 -> 95 | B97: =CONCATENATE(Inscription!C106," ",Inscription!D106) ->  | C97: =Inscription!E106 -> 0 | D97: =Inscription!F106 -> 0 | E97: =Inscription!G106 -> 0
A98: =Inscription!A107 -> 96 | B98: =CONCATENATE(Inscription!C107," ",Inscription!D107) ->  | C98: =Inscription!E107 -> 0 | D98: =Inscription!F107 -> 0 | E98: =Inscription!G107 -> 0
A99: =Inscription!A108 -> 97 | B99: =CONCATENATE(Inscription!C108," ",Inscription!D108) ->  | C99: =Inscription!E108 -> 0 | D99: =Inscription!F108 -> 0 | E99: =Inscription!G108 -> 0
A100: =Inscription!A109 -> 98 | B100: =CONCATENATE(Inscription!C109," ",Inscription!D109) ->  | C100: =Inscription!E109 -> 0 | D100: =Inscription!F109 -> 0 | E100: =Inscription!G109 -> 0
A101: =Inscription!A110 -> 99 | B101: =CONCATENATE(Inscription!C110," ",Inscription!D110) ->  | C101: =Inscription!E110 -> 0 | D101: =Inscription!F110 -> 0 | E101: =Inscription!G110 -> 0
A102: =Inscription!A111 -> 100 | B102: =CONCATENATE(Inscription!C111," ",Inscription!D111) -> Creseveur Gurwan | C102: =Inscription!E111 -> Team XC du Léguer | D102: =Inscription!F111 -> 330214 | E102: =Inscription!G111 -> Cadet
A103: =Inscription!A112 -> 101 | B103: =CONCATENATE(Inscription!C112," ",Inscription!D112) -> Flégeau Gaël | C103: =Inscription!E112 -> Team Bikers 22 | D103: =Inscription!F112 -> 269847 | E103: =Inscription!G112 -> cadet
A104: =Inscription!A113 -> 102 | B104: =CONCATENATE(Inscription!C113," ",Inscription!D113) -> Rouille Robin | C104: =Inscription!E113 -> Team Bikers 22 | D104: =Inscription!F113 -> 390947 | E104: =Inscription!G113 -> cadet
A105: =Inscription!A114 -> 103 | B105: =CONCATENATE(Inscription!C114," ",Inscription!D114) -> Madec Rafael | C105: =Inscription!E114 -> VS Ploumagoar | D105: =Inscription!F114 -> 0 | E105: =Inscription!G114 -> cadet
A106: =Inscription!A115 -> 104 | B106: =CONCATENATE(Inscription!C115," ",Inscription!D115) -> Durand Joan | C106: =Inscription!E115 -> Lamball'breizh | D106: =Inscription!F115 -> 383110 | E106: =Inscription!G115 -> cadet
A107: =Inscription!A116 -> 105 | B107: =CONCATENATE(Inscription!C116," ",Inscription!D116) -> Cadieu Martin | C107: =Inscription!E116 -> VTT du Lié | D107: =Inscription!F116 -> 0 | E107: =Inscription!G116 -> Cadet
A108: =Inscription!A117 -> 106 | B108: =CONCATENATE(Inscription!C117," ",Inscription!D117) ->  | C108: =Inscription!E117 -> 0 | D108: =Inscription!F117 -> 0 | E108: =Inscription!G117 -> 0
A109: =Inscription!A118 -> 107 | B109: =CONCATENATE(Inscription!C118," ",Inscription!D118) ->  | C109: =Inscription!E118 -> 0 | D109: =Inscription!F118 -> 0 | E109: =Inscription!G118 -> 0
A110: =Inscription!A119 -> 108 | B110: =CONCATENATE(Inscription!C119," ",Inscription!D119) ->  | C110: =Inscription!E119 -> 0 | D110: =Inscription!F119 -> 0 | E110: =Inscription!G119 -> 0
A111: =Inscription!A120 -> 109 | B111: =CONCATENATE(Inscription!C120," ",Inscription!D120) ->  | C111: =Inscription!E120 -> 0 | D111: =Inscription!F120 -> 0 | E111: =Inscription!G120 -> 0
A112: =Inscription!A121 -> 110 | B112: =CONCATENATE(Inscription!C121," ",Inscription!D121) -> Le Bihan Clément | C112: =Inscription!E121 -> UC Plaudren | D112: =Inscription!F121 -> 136145 | E112: =Inscription!G121 -> minime
A113: =Inscription!A122 -> 111 | B113: =CONCATENATE(Inscription!C122," ",Inscription!D122) -> Besnard colas Ismaël | C113: =Inscription!E122 -> CC Moncontour | D113: =Inscription!F122 -> 400382 | E113: =Inscription!G122 -> minime
A114: =Inscription!A123 -> 112 | B114: =CONCATENATE(Inscription!C123," ",Inscription!D123) -> Le Bihan Evann | C114: =Inscription!E123 -> UC Plaudren | D114: =Inscription!F123 -> 379622 | E114: =Inscription!G123 -> minime
A115: =Inscription!A124 -> 113 | B115: =CONCATENATE(Inscription!C124," ",Inscription!D124) -> Henry Sulian | C115: =Inscription!E124 -> VC Dinan | D115: =Inscription!F124 -> 486449 | E115: =Inscription!G124 -> Minime
A116: =Inscription!A125 -> 114 | B116: =CONCATENATE(Inscription!C125," ",Inscription!D125) -> Briand Mathis | C116: =Inscription!E125 -> VC Evron | D116: =Inscription!F125 -> 431995 | E116: =Inscription!G125 -> minime
A117: =Inscription!A126 -> 115 | B117: =CONCATENATE(Inscription!C126," ",Inscription!D126) -> le Corguille Brieuc | C117: =Inscription!E126 -> VC Plurien | D117: =Inscription!F126 -> 434773 | E117: =Inscription!G126 -> minime
A118: =Inscription!A127 -> 116 | B118: =CONCATENATE(Inscription!C127," ",Inscription!D127) ->  | C118: =Inscription!E127 -> 0 | D118: =Inscription!F127 -> 0 | E118: =Inscription!G127 -> 0
A119: =Inscription!A128 -> 117 | B119: =CONCATENATE(Inscription!C128," ",Inscription!D128) ->  | C119: =Inscription!E128 -> 0 | D119: =Inscription!F128 -> 0 | E119: =Inscription!G128 -> 0
A120: =Inscription!A129 -> 118 | B120: =CONCATENATE(Inscription!C129," ",Inscription!D129) ->  | C120: =Inscription!E129 -> 0 | D120: =Inscription!F129 -> 0 | E120: =Inscription!G129 -> 0
A121: =Inscription!A130 -> 119 | B121: =CONCATENATE(Inscription!C130," ",Inscription!D130) ->  | C121: =Inscription!E130 -> 0 | D121: =Inscription!F130 -> 0 | E121: =Inscription!G130 -> 0
A122: =Inscription!A131 -> 120 | B122: =CONCATENATE(Inscription!C131," ",Inscription!D131) -> Briand Axel | C122: =Inscription!E131 -> VC Evron | D122: =Inscription!F131 -> 429219 | E122: =Inscription!G131 -> Benjamin
A123: =Inscription!A132 -> 121 | B123: =CONCATENATE(Inscription!C132," ",Inscription!D132) -> Croisier Léa | C123: =Inscription!E132 -> Team Pays de Dinan | D123: =Inscription!F132 -> 263040 | E123: =Inscription!G132 -> Benjamin
A124: =Inscription!A133 -> 122 | B124: =CONCATENATE(Inscription!C133," ",Inscription!D133) -> Huguet Mathis | C124: =Inscription!E133 -> Team Bikers 22 | D124: =Inscription!F133 -> 390457 | E124: =Inscription!G133 -> Benjamin
A125: =Inscription!A134 -> 123 | B125: =CONCATENATE(Inscription!C134," ",Inscription!D134) -> Macé Tom | C125: =Inscription!E134 -> Team Broons | D125: =Inscription!F134 -> 256614 | E125: =Inscription!G134 -> Benjamin
A126: =Inscription!A135 -> 124 | B126: =CONCATENATE(Inscription!C135," ",Inscription!D135) -> Callennec Lucy | C126: =Inscription!E135 -> Bégard VTT Gwerun | D126: =Inscription!F135 -> 509013 | E126: =Inscription!G135 -> Benjamin
A127: =Inscription!A136 -> 125 | B127: =CONCATENATE(Inscription!C136," ",Inscription!D136) -> Lebret Sacha | C127: =Inscription!E136 -> Team Bikers 22 | D127: =Inscription!F136 -> 390946 | E127: =Inscription!G136 -> Benjamin
A128: =Inscription!A137 -> 126 | B128: =CONCATENATE(Inscription!C137," ",Inscription!D137) -> Lanoé Hugo | C128: =Inscription!E137 -> VC Evron | D128: =Inscription!F137 -> 382435 | E128: =Inscription!G137 -> Benjamin
A129: =Inscription!A138 -> 127 | B129: =CONCATENATE(Inscription!C138," ",Inscription!D138) -> Creseveur Gwenvael | C129: =Inscription!E138 -> Team XC du Léguer | D129: =Inscription!F138 -> 330214 | E129: =Inscription!G138 -> Benjamin
A130: =Inscription!A139 -> 128 | B130: =CONCATENATE(Inscription!C139," ",Inscription!D139) -> Lévéque Noé | C130: =Inscription!E139 -> Accro Cycles | D130: =Inscription!F139 -> 337516 | E130: =Inscription!G139 -> Benjamin
A131: =Inscription!A140 -> 129 | B131: =CONCATENATE(Inscription!C140," ",Inscription!D140) -> Colas Thibault | C131: =Inscription!E140 -> Team XC du Léguer | D131: =Inscription!F140 -> 330206 | E131: =Inscription!G140 -> Benjamin
A132: =Inscription!A141 -> 130 | B132: =CONCATENATE(Inscription!C141," ",Inscription!D141) -> Remond Malo | C132: =Inscription!E141 -> Team XC du Léguer | D132: =Inscription!F141 -> 395912 | E132: =Inscription!G141 -> benjamin
A133: =Inscription!A142 -> 131 | B133: =CONCATENATE(Inscription!C142," ",Inscription!D142) -> Auffret Siméon | C133: =Inscription!E142 -> VC Plurien | D133: =Inscription!F142 -> 459988 | E133: =Inscription!G142 -> benjamin
A134: =Inscription!A143 -> 132 | B134: =CONCATENATE(Inscription!C143," ",Inscription!D143) -> Gerard Jules | C134: =Inscription!E143 -> Team Bikers 22 | D134: =Inscription!F143 -> 491636 | E134: =Inscription!G143 -> Benjamin
A135: =Inscription!A144 -> 133 | B135: =CONCATENATE(Inscription!C144," ",Inscription!D144) -> Cadieu Gabriel | C135: =Inscription!E144 -> VTT du Lié | D135: =Inscription!F144 -> 0 | E135: =Inscription!G144 -> benjamin
A136: =Inscription!A145 -> 134 | B136: =CONCATENATE(Inscription!C145," ",Inscription!D145) ->  | C136: =Inscription!E145 -> 0 | D136: =Inscription!F145 -> 0 | E136: =Inscription!G145 -> 0
A137: =Inscription!A146 -> 135 | B137: =CONCATENATE(Inscription!C146," ",Inscription!D146) ->  | C137: =Inscription!E146 -> 0 | D137: =Inscription!F146 -> 0 | E137: =Inscription!G146 -> 0
A138: =Inscription!A147 -> 136 | B138: =CONCATENATE(Inscription!C147," ",Inscription!D147) ->  | C138: =Inscription!E147 -> 0 | D138: =Inscription!F147 -> 0 | E138: =Inscription!G147 -> 0
A139: =Inscription!A148 -> 137 | B139: =CONCATENATE(Inscription!C148," ",Inscription!D148) ->  | C139: =Inscription!E148 -> 0 | D139: =Inscription!F148 -> 0 | E139: =Inscription!G148 -> 0
A140: =Inscription!A149 -> 138 | B140: =CONCATENATE(Inscription!C149," ",Inscription!D149) ->  | C140: =Inscription!E149 -> 0 | D140: =Inscription!F149 -> 0 | E140: =Inscription!G149 -> 0
A141: =Inscription!A150 -> 139 | B141: =CONCATENATE(Inscription!C150," ",Inscription!D150) ->  | C141: =Inscription!E150 -> 0 | D141: =Inscription!F150 -> 0 | E141: =Inscription!G150 -> 0
A142: =Inscription!A151 -> 140 | B142: =CONCATENATE(Inscription!C151," ",Inscription!D151) -> Meunier Le Breton Lilwena | C142: =Inscription!E151 -> VTT Côtes D'Armor Hillion | D142: =Inscription!F151 -> 369755 | E142: =Inscription!G151 -> pupille
A143: =Inscription!A152 -> 141 | B143: =CONCATENATE(Inscription!C152," ",Inscription!D152) -> Bruezière Enzo | C143: =Inscription!E152 -> Team Bikers 22 | D143: =Inscription!F152 -> 459065 | E143: =Inscription!G152 -> pupille
A144: =Inscription!A153 -> 142 | B144: =CONCATENATE(Inscription!C153," ",Inscription!D153) -> Rouillé Biard Manech | C144: =Inscription!E153 -> VTT Côtes D'Armor Hillion | D144: =Inscription!F153 -> 451260 | E144: =Inscription!G153 -> pupille
A145: =Inscription!A154 -> 143 | B145: =CONCATENATE(Inscription!C154," ",Inscription!D154) -> Kowalski Paul | C145: =Inscription!E154 -> Team Bikers 22 | D145: =Inscription!F154 -> 460607 | E145: =Inscription!G154 -> pupille
A146: =Inscription!A155 -> 144 | B146: =CONCATENATE(Inscription!C155," ",Inscription!D155) -> Devaux Naël | C146: =Inscription!E155 -> Team Bikers 22 | D146: =Inscription!F155 -> 0 | E146: =Inscription!G155 -> Pupille
A147: =Inscription!A156 -> 145 | B147: =CONCATENATE(Inscription!C156," ",Inscription!D156) ->  | C147: =Inscription!E156 -> 0 | D147: =Inscription!F156 -> 0 | E147: =Inscription!G156 -> 0
A148: =Inscription!A157 -> 146 | B148: =CONCATENATE(Inscription!C157," ",Inscription!D157) ->  | C148: =Inscription!E157 -> 0 | D148: =Inscription!F157 -> 0 | E148: =Inscription!G157 -> 0
A149: =Inscription!A158 -> 147 | B149: =CONCATENATE(Inscription!C158," ",Inscription!D158) ->  | C149: =Inscription!E158 -> 0 | D149: =Inscription!F158 -> 0 | E149: =Inscription!G158 -> 0
A150: =Inscription!A159 -> 148 | B150: =CONCATENATE(Inscription!C159," ",Inscription!D159) ->  | C150: =Inscription!E159 -> 0 | D150: =Inscription!F159 -> 0 | E150: =Inscription!G159 -> 0
A151: =Inscription!A160 -> 149 | B151: =CONCATENATE(Inscription!C160," ",Inscription!D160) ->  | C151: =Inscription!E160 -> 0 | D151: =Inscription!F160 -> 0 | E151: =Inscription!G160 -> 0
A152: =Inscription!A161 -> 150 | B152: =CONCATENATE(Inscription!C161," ",Inscription!D161) ->  | C152: =Inscription!E161 -> 0 | D152: =Inscription!F161 -> 0 | E152: =Inscription!G161 -> 0
A153: =Inscription!A162 -> 151 | B153: =CONCATENATE(Inscription!C162," ",Inscription!D162) ->  | C153: =Inscription!E162 -> 0 | D153: =Inscription!F162 -> 0 | E153: =Inscription!G162 -> 0
A154: =Inscription!A163 -> 152 | B154: =CONCATENATE(Inscription!C163," ",Inscription!D163) ->  | C154: =Inscription!E163 -> 0 | D154: =Inscription!F163 -> 0 | E154: =Inscription!G163 -> 0
A155: =Inscription!A164 -> 153 | B155: =CONCATENATE(Inscription!C164," ",Inscription!D164) ->  | C155: =Inscription!E164 -> 0 | D155: =Inscription!F164 -> 0 | E155: =Inscription!G164 -> 0
A156: =Inscription!A165 -> 154 | B156: =CONCATENATE(Inscription!C165," ",Inscription!D165) ->  | C156: =Inscription!E165 -> 0 | D156: =Inscription!F165 -> 0 | E156: =Inscription!G165 -> 0
A157: =Inscription!A166 -> 155 | B157: =CONCATENATE(Inscription!C166," ",Inscription!D166) ->  | C157: =Inscription!E166 -> 0 | D157: =Inscription!F166 -> 0 | E157: =Inscription!G166 -> 0
A158: =Inscription!A167 -> 156 | B158: =CONCATENATE(Inscription!C167," ",Inscription!D167) ->  | C158: =Inscription!E167 -> 0 | D158: =Inscription!F167 -> 0 | E158: =Inscription!G167 -> 0
A159: =Inscription!A168 -> 157 | B159: =CONCATENATE(Inscription!C168," ",Inscription!D168) ->  | C159: =Inscription!E168 -> 0 | D159: =Inscription!F168 -> 0 | E159: =Inscription!G168 -> 0
A160: =Inscription!A169 -> 158 | B160: =CONCATENATE(Inscription!C169," ",Inscription!D169) ->  | C160: =Inscription!E169 -> 0 | D160: =Inscription!F169 -> 0 | E160: =Inscription!G169 -> 0
A161: =Inscription!A170 -> 159 | B161: =CONCATENATE(Inscription!C170," ",Inscription!D170) ->  | C161: =Inscription!E170 -> 0 | D161: =Inscription!F170 -> 0 | E161: =Inscription!G170 -> 0
A162: =Inscription!A171 -> 160 | B162: =CONCATENATE(Inscription!C171," ",Inscription!D171) -> Macé Loukas | C162: =Inscription!E171 -> VC Evron | D162: =Inscription!F171 -> 396776 | E162: =Inscription!G171 -> poussin
A163: =Inscription!A172 -> 161 | B163: =CONCATENATE(Inscription!C172," ",Inscription!D172) -> Leveque Nathan | C163: =Inscription!E172 -> Lamball'breizh | D163: =Inscription!F172 -> 435105 | E163: =Inscription!G172 -> poussin
A164: =Inscription!A173 -> 162 | B164: =CONCATENATE(Inscription!C173," ",Inscription!D173) -> Lévèque Clément | C164: =Inscription!E173 -> Accro Cycles | D164: =Inscription!F173 -> 377265 | E164: =Inscription!G173 -> poussin
A165: =Inscription!A174 -> 163 | B165: =CONCATENATE(Inscription!C174," ",Inscription!D174) -> Vitel Manoë | C165: =Inscription!E174 -> Team Bikers 22 | D165: =Inscription!F174 -> 0 | E165: =Inscription!G174 -> Poussin
A166: =Inscription!A175 -> 164 | B166: =CONCATENATE(Inscription!C175," ",Inscription!D175) -> Gouret Louison | C166: =Inscription!E175 -> VC Evron | D166: =Inscription!F175 -> 0 | E166: =Inscription!G175 -> poussin
A167: =Inscription!A176 -> 165 | B167: =CONCATENATE(Inscription!C176," ",Inscription!D176) -> Raoult Léon | C167: =Inscription!E176 -> VC Evron | D167: =Inscription!F176 -> 0 | E167: =Inscription!G176 -> poussin
A168: =Inscription!A177 -> 166 | B168: =CONCATENATE(Inscription!C177," ",Inscription!D177) -> Boilet Malo | C168: =Inscription!E177 -> Lamball'breizh | D168: =Inscription!F177 -> 520459 | E168: =Inscription!G177 -> poussin
A169: =Inscription!A178 -> 167 | B169: =CONCATENATE(Inscription!C178," ",Inscription!D178) ->  | C169: =Inscription!E178 -> 0 | D169: =Inscription!F178 -> 0 | E169: =Inscription!G178 -> 0
A170: =Inscription!A179 -> 168 | B170: =CONCATENATE(Inscription!C179," ",Inscription!D179) ->  | C170: =Inscription!E179 -> 0 | D170: =Inscription!F179 -> 0 | E170: =Inscription!G179 -> 0
A171: =Inscription!A180 -> 169 | B171: =CONCATENATE(Inscription!C180," ",Inscription!D180) ->  | C171: =Inscription!E180 -> 0 | D171: =Inscription!F180 -> 0 | E171: =Inscription!G180 -> 0
A172: =Inscription!A181 -> 170 | B172: =CONCATENATE(Inscription!C181," ",Inscription!D181) -> Brueziere Eden | C172: =Inscription!E181 -> Team Bikers 22 | D172: =Inscription!F181 -> 491634 | E172: =Inscription!G181 -> moustique
A173: =Inscription!A182 -> 171 | B173: =CONCATENATE(Inscription!C182," ",Inscription!D182) ->  | C173: =Inscription!E182 -> 0 | D173: =Inscription!F182 -> 0 | E173: =Inscription!G182 -> 0
A174: =Inscription!A183 -> 172 | B174: =CONCATENATE(Inscription!C183," ",Inscription!D183) ->  | C174: =Inscription!E183 -> 0 | D174: =Inscription!F183 -> 0 | E174: =Inscription!G183 -> 0
A175: =Inscription!A184 -> 173 | B175: =CONCATENATE(Inscription!C184," ",Inscription!D184) ->  | C175: =Inscription!E184 -> 0 | D175: =Inscription!F184 -> 0 | E175: =Inscription!G184 -> 0
A176: =Inscription!A185 -> 174 | B176: =CONCATENATE(Inscription!C185," ",Inscription!D185) ->  | C176: =Inscription!E185 -> 0 | D176: =Inscription!F185 -> 0 | E176: =Inscription!G185 -> 0
A177: =Inscription!A186 -> 175 | B177: =CONCATENATE(Inscription!C186," ",Inscription!D186) ->  | C177: =Inscription!E186 -> 0 | D177: =Inscription!F186 -> 0 | E177: =Inscription!G186 -> 0
A178: =Inscription!A187 -> 176 | B178: =CONCATENATE(Inscription!C187," ",Inscription!D187) ->  | C178: =Inscription!E187 -> 0 | D178: =Inscription!F187 -> 0 | E178: =Inscription!G187 -> 0
A179: =Inscription!A188 -> 177 | B179: =CONCATENATE(Inscription!C188," ",Inscription!D188) ->  | C179: =Inscription!E188 -> 0 | D179: =Inscription!F188 -> 0 | E179: =Inscription!G188 -> 0
A180: =Inscription!A189 -> 178 | B180: =CONCATENATE(Inscription!C189," ",Inscription!D189) ->  | C180: =Inscription!E189 -> 0 | D180: =Inscription!F189 -> 0 | E180: =Inscription!G189 -> 0
A181: =Inscription!A190 -> 179 | B181: =CONCATENATE(Inscription!C190," ",Inscription!D190) ->  | C181: =Inscription!E190 -> 0 | D181: =Inscription!F190 -> 0 | E181: =Inscription!G190 -> 0
A182: =Inscription!A191 -> 180 | B182: =CONCATENATE(Inscription!C191," ",Inscription!D191) ->  | C182: =Inscription!E191 -> 0 | D182: =Inscription!F191 -> 0 | E182: =Inscription!G191 -> 0
A183: =Inscription!A192 -> 181 | B183: =CONCATENATE(Inscription!C192," ",Inscription!D192) ->  | C183: =Inscription!E192 -> 0 | D183: =Inscription!F192 -> 0 | E183: =Inscription!G192 -> 0
A184: =Inscription!A193 -> 182 | B184: =CONCATENATE(Inscription!C193," ",Inscription!D193) ->  | C184: =Inscription!E193 -> 0 | D184: =Inscription!F193 -> 0 | E184: =Inscription!G193 -> 0
A185: =Inscription!A194 -> 183 | B185: =CONCATENATE(Inscription!C194," ",Inscription!D194) ->  | C185: =Inscription!E194 -> 0 | D185: =Inscription!F194 -> 0 | E185: =Inscription!G194 -> 0
A186: =Inscription!A195 -> 184 | B186: =CONCATENATE(Inscription!C195," ",Inscription!D195) ->  | C186: =Inscription!E195 -> 0 | D186: =Inscription!F195 -> 0 | E186: =Inscription!G195 -> 0
A187: =Inscription!A196 -> 185 | B187: =CONCATENATE(Inscription!C196," ",Inscription!D196) ->  | C187: =Inscription!E196 -> 0 | D187: =Inscription!F196 -> 0 | E187: =Inscription!G196 -> 0
A188: =Inscription!A197 -> 186 | B188: =CONCATENATE(Inscription!C197," ",Inscription!D197) ->  | C188: =Inscription!E197 -> 0 | D188: =Inscription!F197 -> 0 | E188: =Inscription!G197 -> 0
A189: =Inscription!A198 -> 187 | B189: =CONCATENATE(Inscription!C198," ",Inscription!D198) ->  | C189: =Inscription!E198 -> 0 | D189: =Inscription!F198 -> 0 | E189: =Inscription!G198 -> 0
A190: =Inscription!A199 -> 188 | B190: =CONCATENATE(Inscription!C199," ",Inscription!D199) ->  | C190: =Inscription!E199 -> 0 | D190: =Inscription!F199 -> 0 | E190: =Inscription!G199 -> 0
A191: =Inscription!A200 -> 189 | B191: =CONCATENATE(Inscription!C200," ",Inscription!D200) ->  | C191: =Inscription!E200 -> 0 | D191: =Inscription!F200 -> 0 | E191: =Inscription!G200 -> 0
A192: =Inscription!A201 -> 190 | B192: =CONCATENATE(Inscription!C201," ",Inscription!D201) ->  | C192: =Inscription!E201 -> 0 | D192: =Inscription!F201 -> 0 | E192: =Inscription!G201 -> 0
A193: =Inscription!A202 -> 191 | B193: =CONCATENATE(Inscription!C202," ",Inscription!D202) ->  | C193: =Inscription!E202 -> 0 | D193: =Inscription!F202 -> 0 | E193: =Inscription!G202 -> 0
A194: =Inscription!A203 -> 192 | B194: =CONCATENATE(Inscription!C203," ",Inscription!D203) ->  | C194: =Inscription!E203 -> 0 | D194: =Inscription!F203 -> 0 | E194: =Inscription!G203 -> 0
A195: =Inscription!A204 -> 193 | B195: =CONCATENATE(Inscription!C204," ",Inscription!D204) ->  | C195: =Inscription!E204 -> 0 | D195: =Inscription!F204 -> 0 | E195: =Inscription!G204 -> 0
A196: =Inscription!A205 -> 194 | B196: =CONCATENATE(Inscription!C205," ",Inscription!D205) ->  | C196: =Inscription!E205 -> 0 | D196: =Inscription!F205 -> 0 | E196: =Inscription!G205 -> 0
A197: =Inscription!A206 -> 195 | B197: =CONCATENATE(Inscription!C206," ",Inscription!D206) ->  | C197: =Inscription!E206 -> 0 | D197: =Inscription!F206 -> 0 | E197: =Inscription!G206 -> 0
A198: =Inscription!A207 -> 196 | B198: =CONCATENATE(Inscription!C207," ",Inscription!D207) ->  | C198: =Inscription!E207 -> 0 | D198: =Inscription!F207 -> 0 | E198: =Inscription!G207 -> 0
A199: =Inscription!A208 -> 197 | B199: =CONCATENATE(Inscription!C208," ",Inscription!D208) ->  | C199: =Inscription!E208 -> 0 | D199: =Inscription!F208 -> 0 | E199: =Inscription!G208 -> 0
A200: =Inscription!A209 -> 198 | B200: =CONCATENATE(Inscription!C209," ",Inscription!D209) ->  | C200: =Inscription!E209 -> 0 | D200: =Inscription!F209 -> 0 | E200: =Inscription!G209 -> 0
... 2 more rows

Sheet CLASSEMENT
A1: COURSE | C1: =CONCATENATE(Inscription!D2," ",Inscription!G2) -> cyclo cross de Créhen | G1: =IF(Inscription!$D$4>0,"DATE : "&TEXT(Inscription!D$4,"jj mmmm aaaa"),"") -> DATE : 30 novembre 2024
A2: CATEGORIE | C2: =Inscription!D5 -> 0 | F2: PARTANTS | G2: =Inscription!F8 -> 0 | H2: CLASSES
A3: Pts PE | B3: Place | C3: Doss | D3: NOM et PRENOM | F3: CLUB | G3: N° LICENCE | H3: CAT. | J3: PLACE | K3: TPS
A4: =IF(B4<1,1000,(IF(Z4=B4,B4,(20100-SUM($Z$4:$Z$204))/(COUNTIF($Z$4:$Z$204,"T"))))) -> 1000 | D4: =IF(C4>0,CONCATENATE((VLOOKUP($C4,Inscription!$A$12:$G$211,3,FALSE))," ",(VLOOKUP($C4,Inscription!$A$12:$G$211,4,FALSE)))," ") ->  | F4: =IF(C4>0,(VLOOKUP($C4,Inscription!$A$12:$G$211,5,FALSE))," ") ->  | G4: =IF(C4>0,(VLOOKUP($C4,Inscription!$A$12:$G$211,7,FALSE))," ") ->  | H4: =LEFT(IF(C4>0,(VLOOKUP($C4,Inscription!$A$12:$G$211,6,FALSE))," "),8) ->  | I4: =IF(COUNTIF($F4:$F$4,$F4)<2,$F4," ") ->  | J4: =IF(I4=F4,A4,"") -> 1000 | K4: =IF(I4=F4,#REF!,"") ->  | L4: =IF(COUNTIF($F4:$F$4,$F4)<3,$F4," ") ->  | M4: =IF(L4=$F4,$A4,"") -> 1000 | N4: =IF(L4=$F4,#REF!,"") ->  | O4: =IF(L4=I4,"",L4) ->  | P4: =IF(O4=$F4,$A4,1000) -> 1000 | Q4: =IF(O4=$F4,#REF!,1000) -> 1000 | R4: =IF(COUNTIF($F4:$F$4,I4)<4,$F4," ") ->  | S4: =IF(R4=$F4,$A4,"") -> 1000 | T4: =IF(R4=$F4,#REF!,"") ->  | U4: =IF(R4=I4,"",R4) ->  | V4: =IF(U4=O4,"",R4) ->  | W4: =IF(V4=$F4,$A4,"") ->  | X4: =IF(V4=$F4,#REF!,"") ->  | Y4: =IF(COUNTIF($C$4:$C$204,C4)>1,"X"," ") ->  | Z4: =IF(COUNTIF($B$4:$B$204,B4)>1,"T",B4) -> 0
B5: 1 | C5: 170 | D5: =IF(C5>0,CONCATENATE((VLOOKUP($C5,Inscription!$A$12:$G$211,3,FALSE))," ",(VLOOKUP($C5,Inscription!$A$12:$G$211,4,FALSE)))," ") -> Brueziere Eden | F5: =IF(C5>0,(VLOOKUP($C5,Inscription!$A$12:$G$211,5,FALSE))," ") -> Team Bikers 22 | G5: =IF(C5>0,(VLOOKUP($C5,Inscription!$A$12:$G$211,7,FALSE))," ") -> moustique | H5: =LEFT(IF(C5>0,(VLOOKUP($C5,Inscription!$A$12:$G$211,6,FALSE))," "),8) -> 491634 | I5: =IF(COUNTIF($F$4:$F5,$F5)<2,$F5," ") -> Team Bikers 22 | K5: =IF(I5=F5,#REF!,"") ->  | L5: =IF(COUNTIF($F$4:$F5,$F5)<3,$F5," ") -> Team Bikers 22 | M5: =IF(L5=$F5,$A5,"") ->  | N5: =IF(L5=$F5,#REF!,"") ->  | O5: =IF(L5=I5,"",L5) ->  | P5: =IF(O5=$F5,$A5,1000) -> 1000 | Q5: =IF(O5=$F5,#REF!,1000) -> 1000 | R5: =IF(COUNTIF($F$4:$F5,I5)<4,$F5," ") -> Team Bikers 22 | S5: =IF(R5=$F5,$A5,"") ->  | T5: =IF(R5=$F5,#REF!,"") ->  | U5: =IF(R5=I5,"",R5) ->  | V5: =IF(U5=O5,"",R5) ->  | W5: =IF(V5=$F5,$A5,"") ->  | X5: =IF(V5=$F5,#REF!,"") ->  | Z5: T | AA5: 1 | AB5: ='PRIX D EQUIPE'!B5 -> 0 | AC5: =IF($AB5="",1000,(IF(ISNA(VLOOKUP($AB5,$I$4:$L$204,2,FALSE)),1000,VLOOKUP($AB5,$I$4:$L$204,2,FALSE)))) -> 1000 | AD5: =IF($AB5="",1000,(IF(ISNA(VLOOKUP($AB5,$I$4:$L$204,3,FALSE)),1000,VLOOKUP($AB5,$I$4:$L$204,3,FALSE)))) -> 1000 | AE5: =IF($AB5="",1000,(IF(ISNA(VLOOKUP($AB5,$O$4:$Q$204,2,FALSE)),1000,VLOOKUP($AB5,$O$4:$Q$204,2,FALSE)))) -> 1000 | AF5: =IF($AB5="",1000,(IF(ISNA(VLOOKUP($AB5,$O$4:$Q$204,3,FALSE)),1000,VLOOKUP($AB5,$O$4:$Q$204,3,FALSE)))) -> 1000 | AG5: =IF($AB5="",1000,(IF(ISNA(VLOOKUP($AB5,$V$4:$X$204,2,FALSE)),1000,VLOOKUP($AB5,$V$4:$X$204,2,FALSE)))) -> 1000 | AH5: =IF($AB5="",1000,(IF(ISNA(VLOOKUP($AB5,$V$4:$X$204,3,FALSE)),1000,VLOOKUP($AB5,$V$4:$X$204,3,FALSE)))) -> 1000 | AI5: =IF(AB5=" "," ",IF($AB5>0,SUM(AC5+AE5+AG5)," ")) ->  | AJ5: =IF(AB5=" "," ",IF($AB5>0,SUM(AD5+AF5+AH5)," ")) -> 
A6: 1000 | D6: =IF(C6>0,CONCATENATE((VLOOKUP($C6,Inscription!$A$12:$G$211,3,FALSE))," ",(VLOOKUP($C6,Inscription!$A$12:$G$211,4,FALSE)))," ") ->  | F6: =IF(C6>0,(VLOOKUP($C6,Inscription!$A$12:$G$211,5,FALSE))," ") ->  | G6: =IF(C6>0,(VLOOKUP($C6,Inscription!$A$12:$G$211,7,FALSE))," ") ->  | H6: =LEFT(IF(C6>0,(VLOOKUP($C6,Inscription!$A$12:$G$211,6,FALSE))," "),8) ->  | I6: =IF(COUNTIF($F$4:$F6,$F6)<2,$F6," ") ->  | J6: 1000 | K6: =IF(I6=F6,#REF!,"") ->  | L6: =IF(COUNTIF($F$4:$F6,$F6)<3,$F6," ") ->  | M6: 1000 | N6: =IF(L6=$F6,#REF!,"") ->  | P6: 1000 | Q6: =IF(O6=$F6,#REF!,1000) -> 1000 | R6: =IF(COUNTIF($F$4:$F6,I6)<4,$F6," ") ->  | S6: 1000 | T6: =IF(R6=$F6,#REF!,"") ->  | X6: =IF(V6=$F6,#REF!,"") ->  | Z6: 0 | AA6: 2 | AB6: ='PRIX D EQUIPE'!B6 -> 0 | AC6: 1000 | AD6: 1000 | AE6: 1000 | AF6: 1000 | AG6: 1000 | AH6: 1000
A7: 1000 | D7: =IF(C7>0,CONCATENATE((VLOOKUP($C7,Inscription!$A$12:$G$211,3,FALSE))," ",(VLOOKUP($C7,Inscription!$A$12:$G$211,4,FALSE)))," ") ->  | F7: =IF(C7>0,(VLOOKUP($C7,Inscription!$A$12:$G$211,5,FALSE))," ") ->  | G7: =IF(C7>0,(VLOOKUP($C7,Inscription!$A$12:$G$211,7,FALSE))," ") ->  | H7: =LEFT(IF(C7>0,(VLOOKUP($C7,Inscription!$A$12:$G$211,6,FALSE))," "),8) ->  | I7: =IF(COUNTIF($F$4:$F7,$F7)<2,$F7," ") ->  | J7: 1000 | K7: =IF(I7=F7,#REF!,"") ->  | L7: =IF(COUNTIF($F$4:$F7,$F7)<3,$F7," ") ->  | M7: 1000 | N7: =IF(L7=$F7,#REF!,"") ->  | P7: 1000 | Q7: =IF(O7=$F7,#REF!,1000) -> 1000 | R7: =IF(COUNTIF($F$4:$F7,I7)<4,$F7," ") ->  | S7: 1000 | T7: =IF(R7=$F7,#REF!,"") ->  | X7: =IF(V7=$F7,#REF!,"") ->  | Z7: 0 | AA7: 3 | AB7: ='PRIX D EQUIPE'!B7 -> 0 | AC7: 1000 | AD7: 1000 | AE7: 1000 | AF7: 1000 | AG7: 1000 | AH7: 1000
B8: 1 | C8: 160 | D8: =IF(C8>0,CONCATENATE((VLOOKUP($C8,Inscription!$A$12:$G$211,3,FALSE))," ",(VLOOKUP($C8,Inscription!$A$12:$G$211,4,FALSE)))," ") -> Macé Loukas | F8: =IF(C8>0,(VLOOKUP($C8,Inscription!$A$12:$G$211,5,FALSE))," ") -> VC Evron | G8: =IF(C8>0,(VLOOKUP($C8,Inscription!$A$12:$G$211,7,FALSE))," ") -> poussin | H8: =LEFT(IF(C8>0,(VLOOKUP($C8,Inscription!$A$12:$G$211,6,FALSE))," "),8) -> 396776 | I8: =IF(COUNTIF($F$4:$F8,$F8)<2,$F8," ") -> VC Evron | K8: =IF(I8=F8,#REF!,"") ->  | L8: =IF(COUNTIF($F$4:$F8,$F8)<3,$F8," ") -> VC Evron | N8: =IF(L8=$F8,#REF!,"") ->  | P8: 1000 | Q8: =IF(O8=$F8,#REF!,1000) -> 1000 | R8: =IF(COUNTIF($F$4:$F8,I8)<4,$F8," ") -> VC Evron | T8: =IF(R8=$F8,#REF!,"") ->  | X8: =IF(V8=$F8,#REF!,"") ->  | Z8: T | AA8: 4 | AB8: ='PRIX D EQUIPE'!B8 -> 0 | AC8: 1000 | AD8: 1000 | AE8: 1000 | AF8: 1000 | AG8: 1000 | AH8: 1000
B9: 2 | C9: 161 | D9: =IF(C9>0,CONCATENATE((VLOOKUP($C9,Inscription!$A$12:$G$211,3,FALSE))," ",(VLOOKUP($C9,Inscription!$A$12:$G$211,4,FALSE)))," ") -> Leveque Nathan | F9: =IF(C9>0,(VLOOKUP($C9,Inscription!$A$12:$G$211,5,FALSE))," ") -> Lamball'breizh | G9: =IF(C9>0,(VLOOKUP($C9,Inscription!$A$12:$G$211,7,FALSE))," ") -> poussin | H9: =LEFT(IF(C9>0,(VLOOKUP($C9,Inscription!$A$12:$G$211,6,FALSE))," "),8) -> 435105 | I9: =IF(COUNTIF($F$4:$F9,$F9)<2,$F9," ") -> Lamball'breizh | K9: =IF(I9=F9,#REF!,"") ->  | L9: =IF(COUNTIF($F$4:$F9,$F9)<3,$F9," ") -> Lamball'breizh | N9: =IF(L9=$F9,#REF!,"") ->  | P9: 1000 | Q9: =IF(O9=$F9,#REF!,1000) -> 1000 | R9: =IF(COUNTIF($F$4:$F9,I9)<4,$F9," ") -> Lamball'breizh | T9: =IF(R9=$F9,#REF!,"") ->  | X9: =IF(V9=$F9,#REF!,"") ->  | Z9: T | AA9: 5 | AB9: ='PRIX D EQUIPE'!B9 -> 0 | AC9: 1000 | AD9: 1000 | AE9: 1000 | AF9: 1000 | AG9: 1000 | AH9: 1000
B10: 3 | C10: 162 | D10: =IF(C10>0,CONCATENATE((VLOOKUP($C10,Inscription!$A$12:$G$211,3,FALSE))," ",(VLOOKUP($C10,Inscription!$A$12:$G$211,4,FALSE)))," ") -> Lévèque Clément | F10: =IF(C10>0,(VLOOKUP($C10,Inscription!$A$12:$G$211,5,FALSE))," ") -> Accro Cycles | G10: =IF(C10>0,(VLOOKUP($C10,Inscription!$A$12:$G$211,7,FALSE))," ") -> poussin | H10: =LEFT(IF(C10>0,(VLOOKUP($C10,Inscription!$A$12:$G$211,6,FALSE))," "),8) -> 377265 | I10: =IF(COUNTIF($F$4:$F10,$F10)<2,$F10," ") -> Accro Cycles | K10: =IF(I10=F10,#REF!,"") ->  | L10: =IF(COUNTIF($F$4:$F10,$F10)<3,$F10," ") -> Accro Cycles | N10: =IF(L10=$F10,#REF!,"") ->  | P10: 1000 | Q10: =IF(O10=$F10,#REF!,1000) -> 1000 | R10: =IF(COUNTIF($F$4:$F10,I10)<4,$F10," ") -> Accro Cycles | T10: =IF(R10=$F10,#REF!,"") ->  | X10: =IF(V10=$F10,#REF!,"") ->  | Z10: T | AA10: 6 | AB10: ='PRIX D EQUIPE'!B10 -> 0 | AC10: 1000 | AD10: 1000 | AE10: 1000 | AF10: 1000 | AG10: 1000 | AH10: 1000
B11: 4 | C11: 164 | D11: =IF(C11>0,CONCATENATE((VLOOKUP($C11,Inscription!$A$12:$G$211,3,FALSE))," ",(VLOOKUP($C11,Inscription!$A$12:$G$211,4,FALSE)))," ") -> Gouret Louison | F11: =IF(C11>0,(VLOOKUP($C11,Inscription!$A$12:$G$211,5,FALSE))," ") -> VC Evron | G11: =IF(C11>0,(VLOOKUP($C11,Inscription!$A$12:$G$211,7,FALSE))," ") -> poussin | H11: =LEFT(IF(C11>0,(VLOOKUP($C11,Inscription!$A$12:$G$211,6,FALSE))," "),8) ->  | I11: =IF(COUNTIF($F$4:$F11,$F11)<2,$F11," ") ->  | K11: =IF(I11=F11,#REF!,"") ->  | L11: =IF(COUNTIF($F$4:$F11,$F11)<3,$F11," ") -> VC Evron | N11: =IF(L11=$F11,#REF!,"") ->  | O11: VC Evron | Q11: =IF(O11=$F11,#REF!,1000) ->  | R11: =IF(COUNTIF($F$4:$F11,I11)<4,$F11," ") -> VC Evron | T11: =IF(R11=$F11,#REF!,"") ->  | U11: VC Evron | X11: =IF(V11=$F11,#REF!,"") ->  | Z11: T | AA11: 7 | AB11: ='PRIX D EQUIPE'!B11 -> 0 | AC11: 1000 | AD11: 1000 | AE11: 1000 | AF11: 1000 | AG11: 1000 | AH11: 1000
B12: 5 | C12: 163 | D12: =IF(C12>0,CONCATENATE((VLOOKUP($C12,Inscription!$A$12:$G$211,3,FALSE))," ",(VLOOKUP($C12,Inscription!$A$12:$G$211,4,FALSE)))," ") -> Vitel Manoë | F12: =IF(C12>0,(VLOOKUP($C12,Inscription!$A$12:$G$211,5,FALSE))," ") -> Team Bikers 22 | G12: =IF(C12>0,(VLOOKUP($C12,Inscription!$A$12:$G$211,7,FALSE))," ") -> Poussin | H12: =LEFT(IF(C12>0,(VLOOKUP($C12,Inscription!$A$12:$G$211,6,FALSE))," "),8) ->  | I12: =IF(COUNTIF($F$4:$F12,$F12)<2,$F12," ") ->  | K12: =IF(I12=F12,#REF!,"") ->  | L12: =IF(COUNTIF($F$4:$F12,$F12)<3,$F12," ") -> Team Bikers 22 | N12: =IF(L12=$F12,#REF!,"") ->  | O12: Team Bikers 22 | Q12: =IF(O12=$F12,#REF!,1000) ->  | R12: =IF(COUNTIF($F$4:$F12,I12)<4,$F12," ") -> Team Bikers 22 | T12: =IF(R12=$F12,#REF!,"") ->  | U12: Team Bikers 22 | X12: =IF(V12=$F12,#REF!,"") ->  | Z12: T | AA12: 8 | AB12: ='PRIX D EQUIPE'!B12 -> 0 | AC12: 1000 | AD12: 1000 | AE12: 1000 | AF12: 1000 | AG12: 1000 | AH12: 1000
B13: 6 | C13: 165 | D13: =IF(C13>0,CONCATENATE((VLOOKUP($C13,Inscription!$A$12:$G$211,3,FALSE))," ",(VLOOKUP($C13,Inscription!$A$12:$G$211,4,FALSE)))," ") -> Raoult Léon | F13: =IF(C13>0,(VLOOKUP($C13,Inscription!$A$12:$G$211,5,FALSE))," ") -> VC Evron | G13: =IF(C13>0,(VLOOKUP($C13,Inscription!$A$12:$G$211,7,FALSE))," ") -> poussin | H13: =LEFT(IF(C13>0,(VLOOKUP($C13,Inscription!$A$12:$G$211,6,FALSE))," "),8) ->  | I13: =IF(COUNTIF($F$4:$F13,$F13)<2,$F13," ") ->  | K13: =IF(I13=F13,#REF!,"") ->  | L13: =IF(COUNTIF($F$4:$F13,$F13)<3,$F13," ") ->  | N13: =IF(L13=$F13,#REF!,"") ->  | P13: 1000 | Q13: =IF(O13=$F13,#REF!,1000) -> 1000 | R13: =IF(COUNTIF($F$4:$F13,I13)<4,$F13," ") -> VC Evron | T13: =IF(R13=$F13,#REF!,"") ->  | U13: VC Evron | V13: VC Evron | X13: =IF(V13=$F13,#REF!,"") ->  | Z13: T | AA13: 9 | AB13: ='PRIX D EQUIPE'!B13 -> 0 | AC13: 1000 | AD13: 1000 | AE13: 1000 | AF13: 1000 | AG13: 1000 | AH13: 1000
B14: 7 | C14: 166 | D14: =IF(C14>0,CONCATENATE((VLOOKUP($C14,Inscription!$A$12:$G$211,3,FALSE))," ",(VLOOKUP($C14,Inscription!$A$12:$G$211,4,FALSE)))," ") -> Boilet Malo | F14: =IF(C14>0,(VLOOKUP($C14,Inscription!$A$12:$G$211,5,FALSE))," ") -> Lamball'breizh | G14: =IF(C14>0,(VLOOKUP($C14,Inscription!$A$12:$G$211,7,FALSE))," ") -> poussin | H14: =LEFT(IF(C14>0,(VLOOKUP($C14,Inscription!$A$12:$G$211,6,FALSE))," "),8) -> 520459 | I14: =IF(COUNTIF($F$4:$F14,$F14)<2,$F14," ") ->  | K14: =IF(I14=F14,#REF!,"") ->  | L14: =IF(COUNTIF($F$4:$F14,$F14)<3,$F14," ") -> Lamball'breizh | N14: =IF(L14=$F14,#REF!,"") ->  | O14: Lamball'breizh | Q14: =IF(O14=$F14,#REF!,1000) ->  | R14: =IF(COUNTIF($F$4:$F14,I14)<4,$F14," ") -> Lamball'breizh | T14: =IF(R14=$F14,#REF!,"") ->  | U14: Lamball'breizh | X14: =IF(V14=$F14,#REF!,"") ->  | Z14: T | AA14: 10 | AB14: ='PRIX D EQUIPE'!B14 -> 0 | AC14: 1000 | AD14: 1000 | AE14: 1000 | AF14: 1000 | AG14: 1000 | AH14: 1000
A15: 1000 | D15: =IF(C15>0,CONCATENATE((VLOOKUP($C15,Inscription!$A$12:$G$211,3,FALSE))," ",(VLOOKUP($C15,Inscription!$A$12:$G$211,4,FALSE)))," ") ->  | F15: =IF(C15>0,(VLOOKUP($C15,Inscription!$A$12:$G$211,5,FALSE))," ") ->  | G15: =IF(C15>0,(VLOOKUP($C15,Inscription!$A$12:$G$211,7,FALSE))," ") ->  | H15: =LEFT(IF(C15>0,(VLOOKUP($C15,Inscription!$A$12:$G$211,6,FALSE))," "),8) ->  | I15: =IF(COUNTIF($F$4:$F15,$F15)<2,$F15," ") ->  | J15: 1000 | K15: =IF(I15=F15,#REF!,"") ->  | L15: =IF(COUNTIF($F$4:$F15,$F15)<3,$F15," ") ->  | M15: 1000 | N15: =IF(L15=$F15,#REF!,"") ->  | P15: 1000 | Q15: =IF(O15=$F15,#REF!,1000) -> 1000 | R15: =IF(COUNTIF($F$4:$F15,I15)<4,$F15," ") ->  | S15: 1000 | T15: =IF(R15=$F15,#REF!,"") ->  | X15: =IF(V15=$F15,#REF!,"") ->  | Z15: 0 | AA15: 11 | AB15: ='PRIX D EQUIPE'!B15 -> 0 | AC15: 1000 | AD15: 1000 | AE15: 1000 | AF15: 1000 | AG15: 1000 | AH15: 1000
A16: 1000 | D16: =IF(C16>0,CONCATENATE((VLOOKUP($C16,Inscription!$A$12:$G$211,3,FALSE))," ",(VLOOKUP($C16,Inscription!$A$12:$G$211,4,FALSE)))," ") ->  | F16: =IF(C16>0,(VLOOKUP($C16,Inscription!$A$12:$G$211,5,FALSE))," ") ->  | G16: =IF(C16>0,(VLOOKUP($C16,Inscription!$A$12:$G$211,7,FALSE))," ") ->  | H16: =LEFT(IF(C16>0,(VLOOKUP($C16,Inscription!$A$12:$G$211,6,FALSE))," "),8) ->  | I16: =IF(COUNTIF($F$4:$F16,$F16)<2,$F16," ") ->  | J16: 1000 | K16: =IF(I16=F16,#REF!,"") ->  | L16: =IF(COUNTIF($F$4:$F16,$F16)<3,$F16," ") ->  | M16: 1000 | N16: =IF(L16=$F16,#REF!,"") ->  | P16: 1000 | Q16: =IF(O16=$F16,#REF!,1000) -> 1000 | R16: =IF(COUNTIF($F$4:$F16,I16)<4,$F16," ") ->  | S16: 1000 | T16: =IF(R16=$F16,#REF!,"") ->  | X16: =IF(V16=$F16,#REF!,"") ->  | Z16: 0 | AA16: 12 | AB16: ='PRIX D EQUIPE'!B16 -> 0 | AC16: 1000 | AD16: 1000 | AE16: 1000 | AF16: 1000 | AG16: 1000 | AH16: 1000
B17: 1 | C17: 140 | D17: =IF(C17>0,CONCATENATE((VLOOKUP($C17,Inscription!$A$12:$G$211,3,FALSE))," ",(VLOOKUP($C17,Inscription!$A$12:$G$211,4,FALSE)))," ") -> Meunier Le Breton Lilwena | F17: =IF(C17>0,(VLOOKUP($C17,Inscription!$A$12:$G$211,5,FALSE))," ") -> VTT Côtes D'Armor Hillion | G17: =IF(C17>0,(VLOOKUP($C17,Inscription!$A$12:$G$211,7,FALSE))," ") -> pupille | H17: =LEFT(IF(C17>0,(VLOOKUP($C17,Inscription!$A$12:$G$211,6,FALSE))," "),8) -> 369755 | I17: =IF(COUNTIF($F$4:$F17,$F17)<2,$F17," ") -> VTT Côtes D'Armor Hillion | K17: =IF(I17=F17,#REF!,"") ->  | L17: =IF(COUNTIF($F$4:$F17,$F17)<3,$F17," ") -> VTT Côtes D'Armor Hillion | N17: =IF(L17=$F17,#REF!,"") ->  | P17: 1000 | Q17: =IF(O17=$F17,#REF!,1000) -> 1000 | R17: =IF(COUNTIF($F$4:$F17,I17)<4,$F17," ") -> VTT Côtes D'Armor Hillion | T17: =IF(R17=$F17,#REF!,"") ->  | X17: =IF(V17=$F17,#REF!,"") ->  | Z17: T | AA17: 13 | AB17: ='PRIX D EQUIPE'!B17 -> 0 | AC17: 1000 | AD17: 1000 | AE17: 1000 | AF17: 1000 | AG17: 1000 | AH17: 1000
A18: 1000 | D18: =IF(C18>0,CONCATENATE((VLOOKUP($C18,Inscription!$A$12:$G$211,3,FALSE))," ",(VLOOKUP($C18,Inscription!$A$12:$G$211,4,FALSE)))," ") ->  | F18: =IF(C18>0,(VLOOKUP($C18,Inscription!$A$12:$G$211,5,FALSE))," ") ->  | G18: =IF(C18>0,(VLOOKUP($C18,Inscription!$A$12:$G$211,7,FALSE))," ") ->  | H18: =LEFT(IF(C18>0,(VLOOKUP($C18,Inscription!$A$12:$G$211,6,FALSE))," "),8) ->  | I18: =IF(COUNTIF($F$4:$F18,$F18)<2,$F18," ") ->  | J18: 1000 | K18: =IF(I18=F18,#REF!,"") ->  | L18: =IF(COUNTIF($F$4:$F18,$F18)<3,$F18," ") ->  | M18: 1000 | N18: =IF(L18=$F18,#REF!,"") ->  | P18: 1000 | Q18: =IF(O18=$F18,#REF!,1000) -> 1000 | R18: =IF(COUNTIF($F$4:$F18,I18)<4,$F18," ") ->  | S18: 1000 | T18: =IF(R18=$F18,#REF!,"") ->  | X18: =IF(V18=$F18,#REF!,"") ->  | Z18: 0 | AA18: 14 | AB18: ='PRIX D EQUIPE'!B18 -> 0 | AC18: 1000 | AD18: 1000 | AE18: 1000 | AF18: 1000 | AG18: 1000 | AH18: 1000
A19: 1000 | D19: =IF(C19>0,CONCATENATE((VLOOKUP($C19,Inscription!$A$12:$G$211,3,FALSE))," ",(VLOOKUP($C19,Inscription!$A$12:$G$211,4,FALSE)))," ") ->  | F19: =IF(C19>0,(VLOOKUP($C19,Inscription!$A$12:$G$211,5,FALSE))," ") ->  | G19: =IF(C19>0,(VLOOKUP($C19,Inscription!$A$12:$G$211,7,FALSE))," ") ->  | H19: =LEFT(IF(C19>0,(VLOOKUP($C19,Inscription!$A$12:$G$211,6,FALSE))," "),8) ->  | I19: =IF(COUNTIF($F$4:$F19,$F19)<2,$F19," ") ->  | J19: 1000 | K19: =IF(I19=F19,#REF!,"") ->  | L19: =IF(COUNTIF($F$4:$F19,$F19)<3,$F19," ") ->  | M19: 1000 | N19: =IF(L19=$F19,#REF!,"") ->  | P19: 1000 | Q19: =IF(O19=$F19,#REF!,1000) -> 1000 | R19: =IF(COUNTIF($F$4:$F19,I19)<4,$F19," ") ->  | S19: 1000 | T19: =IF(R19=$F19,#REF!,"") ->  | X19: =IF(V19=$F19,#REF!,"") ->  | Z19: 0 | AA19: 15 | AB19: ='PRIX D EQUIPE'!B19 -> 0 | AC19: 1000 | AD19: 1000 | AE19: 1000 | AF19: 1000 | AG19: 1000 | AH19: 1000
B20: 1 | C20: 142 | D20: =IF(C20>0,CONCATENATE((VLOOKUP($C20,Inscription!$A$12:$G$211,3,FALSE))," ",(VLOOKUP($C20,Inscription!$A$12:$G$211,4,FALSE)))," ") -> Rouillé Biard Manech | F20: =IF(C20>0,(VLOOKUP($C20,Inscription!$A$12:$G$211,5,FALSE))," ") -> VTT Côtes D'Armor Hillion | G20: =IF(C20>0,(VLOOKUP($C20,Inscription!$A$12:$G$211,7,FALSE))," ") -> pupille | H20: =LEFT(IF(C20>0,(VLOOKUP($C20,Inscription!$A$12:$G$211,6,FALSE))," "),8) -> 451260 | I20: =IF(COUNTIF($F$4:$F20,$F20)<2,$F20," ") ->  | K20: =IF(I20=F20,#REF!,"") ->  | L20: =IF(COUNTIF($F$4:$F20,$F20)<3,$F20," ") -> VTT Côtes D'Armor Hillion | N20: =IF(L20=$F20,#REF!,"") ->  | O20: VTT Côtes D'Armor Hillion | Q20: =IF(O20=$F20,#REF!,1000) ->  | R20: =IF(COUNTIF($F$4:$F20,I20)<4,$F20," ") ->  | T20: =IF(R20=$F20,#REF!,"") ->  | X20: =IF(V20=$F20,#REF!,"") ->  | Z20: T | AA20: 16 | AB20: ='PRIX D EQUIPE'!B20 -> 0 | AC20: 1000 | AD20: 1000 | AE20: 1000 | AF20: 1000 | AG20: 1000 | AH20: 1000
B21: 2 | C21: 143 | D21: =IF(C21>0,CONCATENATE((VLOOKUP($C21,Inscription!$A$12:$G$211,3,FALSE))," ",(VLOOKUP($C21,Inscription!$A$12:$G$211,4,FALSE)))," ") -> Kowalski Paul | F21: =IF(C21>0,(VLOOKUP($C21,Inscription!$A$12:$G$211,5,FALSE))," ") -> Team Bikers 22 | G21: =IF(C21>0,(VLOOKUP($C21,Inscription!$A$12:$G$211,7,FALSE))," ") -> pupille | H21: =LEFT(IF(C21>0,(VLOOKUP($C21,Inscription!$A$12:$G$211,6,FALSE))," "),8) -> 460607 | I21: =IF(COUNTIF($F$4:$F21,$F21)<2,$F21," ") ->  | K21: =IF(I21=F21,#REF!,"") ->  | L21: =IF(COUNTIF($F$4:$F21,$F21)<3,$F21," ") ->  | N21: =IF(L21=$F21,#REF!,"") ->  | P21: 1000 | Q21: =IF(O21=$F21,#REF!,1000) -> 1000 | R21: =IF(COUNTIF($F$4:$F21,I21)<4,$F21," ") ->  | T21: =IF(R21=$F21,#REF!,"") ->  | X21: =IF(V21=$F21,#REF!,"") ->  | Z21: T | AA21: 17 | AB21: ='PRIX D EQUIPE'!B21 -> 0 | AC21: 1000 | AD21: 1000 | AE21: 1000 | AF21: 1000 | AG21: 1000 | AH21: 1000
B22: 3 | C22: 141 | D22: =IF(C22>0,CONCATENATE((VLOOKUP($C22,Inscription!$A$12:$G$211,3,FALSE))," ",(VLOOKUP($C22,Inscription!$A$12:$G$211,4,FALSE)))," ") -> Bruezière Enzo | F22: =IF(C22>0,(VLOOKUP($C22,Inscription!$A$12:$G$211,5,FALSE))," ") -> Team Bikers 22 | G22: =IF(C22>0,(VLOOKUP($C22,Inscription!$A$12:$G$211,7,FALSE))," ") -> pupille | H22: =LEFT(IF(C22>0,(VLOOKUP($C22,Inscription!$A$12:$G$211,6,FALSE))," "),8) -> 459065 | I22: =IF(COUNTIF($F$4:$F22,$F22)<2,$F22," ") ->  | K22: =IF(I22=F22,#REF!,"") ->  | L22: =IF(COUNTIF($F$4:$F22,$F22)<3,$F22," ") ->  | N22: =IF(L22=$F22,#REF!,"") ->  | P22: 1000 | Q22: =IF(O22=$F22,#REF!,1000) -> 1000 | R22: =IF(COUNTIF($F$4:$F22,I22)<4,$F22," ") ->  | T22: =IF(R22=$F22,#REF!,"") ->  | X22: =IF(V22=$F22,#REF!,"") ->  | Z22: T | AA22: 18 | AB22: ='PRIX D EQUIPE'!B22 -> 0 | AC22: 1000 | AD22: 1000 | AE22: 1000 | AF22: 1000 | AG22: 1000 | AH22: 1000
B23: 4 | C23: 144 | D23: =IF(C23>0,CONCATENATE((VLOOKUP($C23,Inscription!$A$12:$G$211,3,FALSE))," ",(VLOOKUP($C23,Inscription!$A$12:$G$211,4,FALSE)))," ") -> Devaux Naël | F23: =IF(C23>0,(VLOOKUP($C23,Inscription!$A$12:$G$211,5,FALSE))," ") -> Team Bikers 22 | G23: =IF(C23>0,(VLOOKUP($C23,Inscription!$A$12:$G$211,7,FALSE))," ") -> Pupille | H23: =LEFT(IF(C23>0,(VLOOKUP($C23,Inscription!$A$12:$G$211,6,FALSE))," "),8) ->  | I23: =IF(COUNTIF($F$4:$F23,$F23)<2,$F23," ") ->  | K23: =IF(I23=F23,#REF!,"") ->  | L23: =IF(COUNTIF($F$4:$F23,$F23)<3,$F23," ") ->  | N23: =IF(L23=$F23,#REF!,"") ->  | P23: 1000 | Q23: =IF(O23=$F23,#REF!,1000) -> 1000 | R23: =IF(COUNTIF($F$4:$F23,I23)<4,$F23," ") ->  | T23: =IF(R23=$F23,#REF!,"") ->  | X23: =IF(V23=$F23,#REF!,"") ->  | Z23: T | AA23: 19 | AB23: ='PRIX D EQUIPE'!B23 -> 0 | AC23: 1000 | AD23: 1000 | AE23: 1000 | AF23: 1000 | AG23: 1000 | AH23: 1000
A24: 1000 | D24: =IF(C24>0,CONCATENATE((VLOOKUP($C24,Inscription!$A$12:$G$211,3,FALSE))," ",(VLOOKUP($C24,Inscription!$A$12:$G$211,4,FALSE)))," ") ->  | F24: =IF(C24>0,(VLOOKUP($C24,Inscription!$A$12:$G$211,5,FALSE))," ") ->  | G24: =IF(C24>0,(VLOOKUP($C24,Inscription!$A$12:$G$211,7,FALSE))," ") ->  | H24: =LEFT(IF(C24>0,(VLOOKUP($C24,Inscription!$A$12:$G$211,6,FALSE))," "),8) ->  | I24: =IF(COUNTIF($F$4:$F24,$F24)<2,$F24," ") ->  | J24: 1000 | K24: =IF(I24=F24,#REF!,"") ->  | L24: =IF(COUNTIF($F$4:$F24,$F24)<3,$F24," ") ->  | M24: 1000 | N24: =IF(L24=$F24,#REF!,"") ->  | P24: 1000 | Q24: =IF(O24=$F24,#REF!,1000) -> 1000 | R24: =IF(COUNTIF($F$4:$F24,I24)<4,$F24," ") ->  | S24: 1000 | T24: =IF(R24=$F24,#REF!,"") ->  | X24: =IF(V24=$F24,#REF!,"") ->  | Z24: 0 | AA24: 20 | AB24: ='PRIX D EQUIPE'!B24 -> 0 | AC24: 1000 | AD24: 1000 | AE24: 1000 | AF24: 1000 | AG24: 1000 | AH24: 1000
A25: 1000 | D25: =IF(C25>0,CONCATENATE((VLOOKUP($C25,Inscription!$A$12:$G$211,3,FALSE))," ",(VLOOKUP($C25,Inscription!$A$12:$G$211,4,FALSE)))," ") ->  | F25: =IF(C25>0,(VLOOKUP($C25,Inscription!$A$12:$G$211,5,FALSE))," ") ->  | G25: =IF(C25>0,(VLOOKUP($C25,Inscription!$A$12:$G$211,7,FALSE))," ") ->  | H25: =LEFT(IF(C25>0,(VLOOKUP($C25,Inscription!$A$12:$G$211,6,FALSE))," "),8) ->  | I25: =IF(COUNTIF($F$4:$F25,$F25)<2,$F25," ") ->  | J25: 1000 | K25: =IF(I25=F25,#REF!,"") ->  | L25: =IF(COUNTIF($F$4:$F25,$F25)<3,$F25," ") ->  | M25: 1000 | N25: =IF(L25=$F25,#REF!,"") ->  | P25: 1000 | Q25: =IF(O25=$F25,#REF!,1000) -> 1000 | R25: =IF(COUNTIF($F$4:$F25,I25)<4,$F25," ") ->  | S25: 1000 | T25: =IF(R25=$F25,#REF!,"") ->  | X25: =IF(V25=$F25,#REF!,"") ->  | Z25: 0 | AA25: 21 | AB25: ='PRIX D EQUIPE'!B25 -> 0 | AC25: 1000 | AD25: 1000 | AE25: 1000 | AF25: 1000 | AG25: 1000 | AH25: 1000
B26: 1 | C26: 124 | D26: =IF(C26>0,CONCATENATE((VLOOKUP($C26,Inscription!$A$12:$G$211,3,FALSE))," ",(VLOOKUP($C26,Inscription!$A$12:$G$211,4,FALSE)))," ") -> Callennec Lucy | F26: =IF(C26>0,(VLOOKUP($C26,Inscription!$A$12:$G$211,5,FALSE))," ") -> Bégard VTT Gwerun | G26: =IF(C26>0,(VLOOKUP($C26,Inscription!$A$12:$G$211,7,FALSE))," ") -> Benjamin | H26: =LEFT(IF(C26>0,(VLOOKUP($C26,Inscription!$A$12:$G$211,6,FALSE))," "),8) -> 509013 | I26: =IF(COUNTIF($F$4:$F26,$F26)<2,$F26," ") -> Bégard VTT Gwerun | K26: =IF(I26=F26,#REF!,"") ->  | L26: =IF(COUNTIF($F$4:$F26,$F26)<3,$F26," ") -> Bégard VTT Gwerun | N26: =IF(L26=$F26,#REF!,"") ->  | P26: 1000 | Q26: =IF(O26=$F26,#REF!,1000) -> 1000 | R26: =IF(COUNTIF($F$4:$F26,I26)<4,$F26," ") -> Bégard VTT Gwerun | T26: =IF(R26=$F26,#REF!,"") ->  | X26: =IF(V26=$F26,#REF!,"") ->  | Z26: T | AA26: 22 | AB26: ='PRIX D EQUIPE'!B26 -> 0 | AC26: 1000 | AD26: 1000 | AE26: 1000 | AF26: 1000 | AG26: 1000 | AH26: 1000
B27: absent | C27: 121 | D27: =IF(C27>0,CONCATENATE((VLOOKUP($C27,Inscription!$A$12:$G$211,3,FALSE))," ",(VLOOKUP($C27,Inscription!$A$12:$G$211,4,FALSE)))," ") -> Croisier Léa | F27: =IF(C27>0,(VLOOKUP($C27,Inscription!$A$12:$G$211,5,FALSE))," ") -> Team Pays de Dinan | G27: =IF(C27>0,(VLOOKUP($C27,Inscription!$A$12:$G$211,7,FALSE))," ") -> Benjamin | H27: =LEFT(IF(C27>0,(VLOOKUP($C27,Inscription!$A$12:$G$211,6,FALSE))," "),8) -> 263040 | I27: =IF(COUNTIF($F$4:$F27,$F27)<2,$F27," ") -> Team Pays de Dinan | K27: =IF(I27=F27,#REF!,"") ->  | L27: =IF(COUNTIF($F$4:$F27,$F27)<3,$F27," ") -> Team Pays de Dinan | N27: =IF(L27=$F27,#REF!,"") ->  | P27: 1000 | Q27: =IF(O27=$F27,#REF!,1000) -> 1000 | R27: =IF(COUNTIF($F$4:$F27,I27)<4,$F27," ") -> Team Pays de Dinan | T27: =IF(R27=$F27,#REF!,"") ->  | X27: =IF(V27=$F27,#REF!,"") ->  | Z27: T | AA27: 23 | AB27: ='PRIX D EQUIPE'!B27 -> 0 | AC27: 1000 | AD27: 1000 | AE27: 1000 | AF27: 1000 | AG27: 1000 | AH27: 1000
A28: 1000 | D28: =IF(C28>0,CONCATENATE((VLOOKUP($C28,Inscription!$A$12:$G$211,3,FALSE))," ",(VLOOKUP($C28,Inscription!$A$12:$G$211,4,FALSE)))," ") ->  | F28: =IF(C28>0,(VLOOKUP($C28,Inscription!$A$12:$G$211,5,FALSE))," ") ->  | G28: =IF(C28>0,(VLOOKUP($C28,Inscription!$A$12:$G$211,7,FALSE))," ") ->  | H28: =LEFT(IF(C28>0,(VLOOKUP($C28,Inscription!$A$12:$G$211,6,FALSE))," "),8) ->  | I28: =IF(COUNTIF($F$4:$F28,$F28)<2,$F28," ") ->  | J28: 1000 | K28: =IF(I28=F28,#REF!,"") ->  | L28: =IF(COUNTIF($F$4:$F28,$F28)<3,$F28," ") ->  | M28: 1000 | N28: =IF(L28=$F28,#REF!,"") ->  | P28: 1000 | Q28: =IF(O28=$F28,#REF!,1000) -> 1000 | R28: =IF(COUNTIF($F$4:$F28,I28)<4,$F28," ") ->  | S28: 1000 | T28: =IF(R28=$F28,#REF!,"") ->  | X28: =IF(V28=$F28,#REF!,"") ->  | Z28: 0 | AA28: 24 | AB28: ='PRIX D EQUIPE'!B28 -> 0 | AC28: 1000 | AD28: 1000 | AE28: 1000 | AF28: 1000 | AG28: 1000 | AH28: 1000
A29: 1000 | D29: =IF(C29>0,CONCATENATE((VLOOKUP($C29,Inscription!$A$12:$G$211,3,FALSE))," ",(VLOOKUP($C29,Inscription!$A$12:$G$211,4,FALSE)))," ") ->  | F29: =IF(C29>0,(VLOOKUP($C29,Inscription!$A$12:$G$211,5,FALSE))," ") ->  | G29: =IF(C29>0,(VLOOKUP($C29,Inscription!$A$12:$G$211,7,FALSE))," ") ->  | H29: =LEFT(IF(C29>0,(VLOOKUP($C29,Inscription!$A$12:$G$211,6,FALSE))," "),8) ->  | I29: =IF(COUNTIF($F$4:$F29,$F29)<2,$F29," ") ->  | J29: 1000 | K29: =IF(I29=F29,#REF!,"") ->  | L29: =IF(COUNTIF($F$4:$F29,$F29)<3,$F29," ") ->  | M29: 1000 | N29: =IF(L29=$F29,#REF!,"") ->  | P29: 1000 | Q29: =IF(O29=$F29,#REF!,1000) -> 1000 | R29: =IF(COUNTIF($F$4:$F29,I29)<4,$F29," ") ->  | S29: 1000 | T29: =IF(R29=$F29,#REF!,"") ->  | X29: =IF(V29=$F29,#REF!,"") ->  | Z29: 0 | AA29: 25 | AB29: ='PRIX D EQUIPE'!B29 -> 0 | AC29: 1000 | AD29: 1000 | AE29: 1000 | AF29: 1000 | AG29: 1000 | AH29: 1000
B30: 1 | C30: 133 | D30: =IF(C30>0,CONCATENATE((VLOOKUP($C30,Inscription!$A$12:$G$211,3,FALSE))," ",(VLOOKUP($C30,Inscription!$A$12:$G$211,4,FALSE)))," ") -> Cadieu Gabriel | F30: =IF(C30>0,(VLOOKUP($C30,Inscription!$A$12:$G$211,5,FALSE))," ") -> VTT du Lié | G30: =IF(C30>0,(VLOOKUP($C30,Inscription!$A$12:$G$211,7,FALSE))," ") -> benjamin | H30: =LEFT(IF(C30>0,(VLOOKUP($C30,Inscription!$A$12:$G$211,6,FALSE))," "),8) ->  | I30: =IF(COUNTIF($F$4:$F30,$F30)<2,$F30," ") -> VTT du Lié | K30: =IF(I30=F30,#REF!,"") ->  | L30: =IF(COUNTIF($F$4:$F30,$F30)<3,$F30," ") -> VTT du Lié | N30: =IF(L30=$F30,#REF!,"") ->  | P30: 1000 | Q30: =IF(O30=$F30,#REF!,1000) -> 1000 | R30: =IF(COUNTIF($F$4:$F30,I30)<4,$F30," ") -> VTT du Lié | T30: =IF(R30=$F30,#REF!,"") ->  | X30: =IF(V30=$F30,#REF!,"") ->  | Z30: T | AA30: 26 | AB30: ='PRIX D EQUIPE'!B30 -> 0 | AC30: 1000 | AD30: 1000 | AE30: 1000 | AF30: 1000 | AG30: 1000 | AH30: 1000 | AI30: =IF(AB30=" "," ",IF($AB30>0,SUM(AC30+AE30+AG30)," ")) ->  | AJ30: =IF(AB30=" "," ",IF($AB30>0,SUM(AD30+AF30+AH30)," ")) -> 
B31: 2 | C31: 120 | D31: =IF(C31>0,CONCATENATE((VLOOKUP($C31,Inscription!$A$12:$G$211,3,FALSE))," ",(VLOOKUP($C31,Inscription!$A$12:$G$211,4,FALSE)))," ") -> Briand Axel | F31: =IF(C31>0,(VLOOKUP($C31,Inscription!$A$12:$G$211,5,FALSE))," ") -> VC Evron | G31: =IF(C31>0,(VLOOKUP($C31,Inscription!$A$12:$G$211,7,FALSE))," ") -> Benjamin | H31: =LEFT(IF(C31>0,(VLOOKUP($C31,Inscription!$A$12:$G$211,6,FALSE))," "),8) -> 429219 | I31: =IF(COUNTIF($F$4:$F31,$F31)<2,$F31," ") ->  | K31: =IF(I31=F31,#REF!,"") ->  | L31: =IF(COUNTIF($F$4:$F31,$F31)<3,$F31," ") ->  | N31: =IF(L31=$F31,#REF!,"") ->  | P31: 1000 | Q31: =IF(O31=$F31,#REF!,1000) -> 1000 | R31: =IF(COUNTIF($F$4:$F31,I31)<4,$F31," ") ->  | T31: =IF(R31=$F31,#REF!,"") ->  | X31: =IF(V31=$F31,#REF!,"") ->  | Z31: T | AA31: 27 | AB31: ='PRIX D EQUIPE'!B31 -> 0 | AC31: 1000 | AD31: 1000 | AE31: 1000 | AF31: 1000 | AG31: 1000 | AH31: 1000
B32: 3 | C32: 122 | D32: =IF(C32>0,CONCATENATE((VLOOKUP($C32,Inscription!$A$12:$G$211,3,FALSE))," ",(VLOOKUP($C32,Inscription!$A$12:$G$211,4,FALSE)))," ") -> Huguet Mathis | F32: =IF(C32>0,(VLOOKUP($C32,Inscription!$A$12:$G$211,5,FALSE))," ") -> Team Bikers 22 | G32: =IF(C32>0,(VLOOKUP($C32,Inscription!$A$12:$G$211,7,FALSE))," ") -> Benjamin | H32: =LEFT(IF(C32>0,(VLOOKUP($C32,Inscription!$A$12:$G$211,6,FALSE))," "),8) -> 390457 | I32: =IF(COUNTIF($F$4:$F32,$F32)<2,$F32," ") ->  | K32: =IF(I32=F32,#REF!,"") ->  | L32: =IF(COUNTIF($F$4:$F32,$F32)<3,$F32," ") ->  | N32: =IF(L32=$F32,#REF!,"") ->  | P32: 1000 | Q32: =IF(O32=$F32,#REF!,1000) -> 1000 | R32: =IF(COUNTIF($F$4:$F32,I32)<4,$F32," ") ->  | T32: =IF(R32=$F32,#REF!,"") ->  | X32: =IF(V32=$F32,#REF!,"") ->  | Z32: T | AA32: 28 | AB32: ='PRIX D EQUIPE'!B32 -> 0 | AC32: 1000 | AD32: 1000 | AE32: 1000 | AF32: 1000 | AG32: 1000 | AH32: 1000
B33: 4 | C33: 126 | D33: =IF(C33>0,CONCATENATE((VLOOKUP($C33,Inscription!$A$12:$G$211,3,FALSE))," ",(VLOOKUP($C33,Inscription!$A$12:$G$211,4,FALSE)))," ") -> Lanoé Hugo | F33: =IF(C33>0,(VLOOKUP($C33,Inscription!$A$12:$G$211,5,FALSE))," ") -> VC Evron | G33: =IF(C33>0,(VLOOKUP($C33,Inscription!$A$12:$G$211,7,FALSE))," ") -> Benjamin | H33: =LEFT(IF(C33>0,(VLOOKUP($C33,Inscription!$A$12:$G$211,6,FALSE))," "),8) -> 382435 | I33: =IF(COUNTIF($F$4:$F33,$F33)<2,$F33," ") ->  | K33: =IF(I33=F33,#REF!,"") ->  | L33: =IF(COUNTIF($F$4:$F33,$F33)<3,$F33," ") ->  | N33: =IF(L33=$F33,#REF!,"") ->  | P33: 1000 | Q33: =IF(O33=$F33,#REF!,1000) -> 1000 | R33: =IF(COUNTIF($F$4:$F33,I33)<4,$F33," ") ->  | T33: =IF(R33=$F33,#REF!,"") ->  | X33: =IF(V33=$F33,#REF!,"") ->  | Z33: T | AA33: 29 | AB33: ='PRIX D EQUIPE'!B33 -> 0 | AC33: 1000 | AD33: 1000 | AE33: 1000 | AF33: 1000 | AG33: 1000 | AH33: 1000
B34: 5 | C34: 123 | D34: =IF(C34>0,CONCATENATE((VLOOKUP($C34,Inscription!$A$12:$G$211,3,FALSE))," ",(VLOOKUP($C34,Inscription!$A$12:$G$211,4,FALSE)))," ") -> Macé Tom | F34: =IF(C34>0,(VLOOKUP($C34,Inscription!$A$12:$G$211,5,FALSE))," ") -> Team Broons | G34: =IF(C34>0,(VLOOKUP($C34,Inscription!$A$12:$G$211,7,FALSE))," ") -> Benjamin | H34: =LEFT(IF(C34>0,(VLOOKUP($C34,Inscription!$A$12:$G$211,6,FALSE))," "),8) -> 256614 | I34: =IF(COUNTIF($F$4:$F34,$F34)<2,$F34," ") -> Team Broons | K34: =IF(I34=F34,#REF!,"") ->  | L34: =IF(COUNTIF($F$4:$F34,$F34)<3,$F34," ") -> Team Broons | N34: =IF(L34=$F34,#REF!,"") ->  | P34: 1000 | Q34: =IF(O34=$F34,#REF!,1000) -> 1000 | R34: =IF(COUNTIF($F$4:$F34,I34)<4,$F34," ") -> Team Broons | T34: =IF(R34=$F34,#REF!,"") ->  | X34: =IF(V34=$F34,#REF!,"") ->  | Z34: T | AA34: 30 | AB34: ='PRIX D EQUIPE'!B34 -> 0 | AC34: 1000 | AD34: 1000 | AE34: 1000 | AF34: 1000 | AG34: 1000 | AH34: 1000
B35: 6 | C35: 125 | D35: =IF(C35>0,CONCATENATE((VLOOKUP($C35,Inscription!$A$12:$G$211,3,FALSE))," ",(VLOOKUP($C35,Inscription!$A$12:$G$211,4,FALSE)))," ") -> Lebret Sacha | F35: =IF(C35>0,(VLOOKUP($C35,Inscription!$A$12:$G$211,5,FALSE))," ") -> Team Bikers 22 | G35: =IF(C35>0,(VLOOKUP($C35,Inscription!$A$12:$G$211,7,FALSE))," ") -> Benjamin | H35: =LEFT(IF(C35>0,(VLOOKUP($C35,Inscription!$A$12:$G$211,6,FALSE))," "),8) -> 390946 | I35: =IF(COUNTIF($F$4:$F35,$F35)<2,$F35," ") ->  | K35: =IF(I35=F35,#REF!,"") ->  | L35: =IF(COUNTIF($F$4:$F35,$F35)<3,$F35," ") ->  | N35: =IF(L35=$F35,#REF!,"") ->  | P35: 1000 | Q35: =IF(O35=$F35,#REF!,1000) -> 1000 | R35: =IF(COUNTIF($F$4:$F35,I35)<4,$F35," ") ->  | T35: =IF(R35=$F35,#REF!,"") ->  | X35: =IF(V35=$F35,#REF!,"") ->  | Z35: T | AA35: 31 | AB35: ='PRIX D EQUIPE'!B35 -> 0 | AC35: 1000 | AD35: 1000 | AE35: 1000 | AF35: 1000 | AG35: 1000 | AH35: 1000
B36: 7 | C36: 128 | D36: =IF(C36>0,CONCATENATE((VLOOKUP($C36,Inscription!$A$12:$G$211,3,FALSE))," ",(VLOOKUP($C36,Inscription!$A$12:$G$211,4,FALSE)))," ") -> Lévéque Noé | F36: =IF(C36>0,(VLOOKUP($C36,Inscription!$A$12:$G$211,5,FALSE))," ") -> Accro Cycles | G36: =IF(C36>0,(VLOOKUP($C36,Inscription!$A$12:$G$211,7,FALSE))," ") -> Benjamin | H36: =LEFT(IF(C36>0,(VLOOKUP($C36,Inscription!$A$12:$G$211,6,FALSE))," "),8) -> 337516 | I36: =IF(COUNTIF($F$4:$F36,$F36)<2,$F36," ") ->  | K36: =IF(I36=F36,#REF!,"") ->  | L36: =IF(COUNTIF($F$4:$F36,$F36)<3,$F36," ") -> Accro Cycles | N36: =IF(L36=$F36,#REF!,"") ->  | O36: Accro Cycles | Q36: =IF(O36=$F36,#REF!,1000) ->  | R36: =IF(COUNTIF($F$4:$F36,I36)<4,$F36," ") ->  | T36: =IF(R36=$F36,#REF!,"") ->  | X36: =IF(V36=$F36,#REF!,"") ->  | Z36: T | AA36: 32 | AB36: ='PRIX D EQUIPE'!B36 -> 0 | AC36: 1000 | AD36: 1000 | AE36: 1000 | AF36: 1000 | AG36: 1000 | AH36: 1000
B37: 8 | C37: 132 | D37: =IF(C37>0,CONCATENATE((VLOOKUP($C37,Inscription!$A$12:$G$211,3,FALSE))," ",(VLOOKUP($C37,Inscription!$A$12:$G$211,4,FALSE)))," ") -> Gerard Jules | F37: =IF(C37>0,(VLOOKUP($C37,Inscription!$A$12:$G$211,5,FALSE))," ") -> Team Bikers 22 | G37: =IF(C37>0,(VLOOKUP($C37,Inscription!$A$12:$G$211,7,FALSE))," ") -> Benjamin | H37: =LEFT(IF(C37>0,(VLOOKUP($C37,Inscription!$A$12:$G$211,6,FALSE))," "),8) -> 491636 | I37: =IF(COUNTIF($F$4:$F37,$F37)<2,$F37," ") ->  | K37: =IF(I37=F37,#REF!,"") ->  | L37: =IF(COUNTIF($F$4:$F37,$F37)<3,$F37," ") ->  | N37: =IF(L37=$F37,#REF!,"") ->  | P37: 1000 | Q37: =IF(O37=$F37,#REF!,1000) -> 1000 | R37: =IF(COUNTIF($F$4:$F37,I37)<4,$F37," ") ->  | T37: =IF(R37=$F37,#REF!,"") ->  | X37: =IF(V37=$F37,#REF!,"") ->  | Z37: T | AA37: 33 | AB37: ='PRIX D EQUIPE'!B37 -> 0 | AC37: 1000 | AD37: 1000 | AE37: 1000 | AF37: 1000 | AG37: 1000 | AH37: 1000
B38: 9 | C38: 127 | D38: =IF(C38>0,CONCATENATE((VLOOKUP($C38,Inscription!$A$12:$G$211,3,FALSE))," ",(VLOOKUP($C38,Inscription!$A$12:$G$211,4,FALSE)))," ") -> Creseveur Gwenvael | F38: =IF(C38>0,(VLOOKUP($C38,Inscription!$A$12:$G$211,5,FALSE))," ") -> Team XC du Léguer | G38: =IF(C38>0,(VLOOKUP($C38,Inscription!$A$12:$G$211,7,FALSE))," ") -> Benjamin | H38: =LEFT(IF(C38>0,(VLOOKUP($C38,Inscription!$A$12:$G$211,6,FALSE))," "),8) -> 330214 | I38: =IF(COUNTIF($F$4:$F38,$F38)<2,$F38," ") -> Team XC du Léguer | K38: =IF(I38=F38,#REF!,"") ->  | L38: =IF(COUNTIF($F$4:$F38,$F38)<3,$F38," ") -> Team XC du Léguer | N38: =IF(L38=$F38,#REF!,"") ->  | P38: 1000 | Q38: =IF(O38=$F38,#REF!,1000) -> 1000 | R38: =IF(COUNTIF($F$4:$F38,I38)<4,$F38," ") -> Team XC du Léguer | T38: =IF(R38=$F38,#REF!,"") ->  | X38: =IF(V38=$F38,#REF!,"") ->  | Z38: T | AA38: 34 | AB38: ='PRIX D EQUIPE'!B38 -> 0 | AC38: 1000 | AD38: 1000 | AE38: 1000 | AF38: 1000 | AG38: 1000 | AH38: 1000
B39: 10 | C39: 131 | D39: =IF(C39>0,CONCATENATE((VLOOKUP($C39,Inscription!$A$12:$G$211,3,FALSE))," ",(VLOOKUP($C39,Inscription!$A$12:$G$211,4,FALSE)))," ") -> Auffret Siméon | F39: =IF(C39>0,(VLOOKUP($C39,Inscription!$A$12:$G$211,5,FALSE))," ") -> VC Plurien | G39: =IF(C39>0,(VLOOKUP($C39,Inscription!$A$12:$G$211,7,FALSE))," ") -> benjamin | H39: =LEFT(IF(C39>0,(VLOOKUP($C39,Inscription!$A$12:$G$211,6,FALSE))," "),8) -> 459988 | I39: =IF(COUNTIF($F$4:$F39,$F39)<2,$F39," ") -> VC Plurien | K39: =IF(I39=F39,#REF!,"") ->  | L39: =IF(COUNTIF($F$4:$F39,$F39)<3,$F39," ") -> VC Plurien | N39: =IF(L39=$F39,#REF!,"") ->  | P39: 1000 | Q39: =IF(O39=$F39,#REF!,1000) -> 1000 | R39: =IF(COUNTIF($F$4:$F39,I39)<4,$F39," ") -> VC Plurien | T39: =IF(R39=$F39,#REF!,"") ->  | X39: =IF(V39=$F39,#REF!,"") ->  | Z39: T | AA39: 35 | AB39: ='PRIX D EQUIPE'!B39 -> 0 | AC39: 1000 | AD39: 1000 | AE39: 1000 | AF39: 1000 | AG39: 1000 | AH39: 1000
B40: 11 | C40: 130 | D40: =IF(C40>0,CONCATENATE((VLOOKUP($C40,Inscription!$A$12:$G$211,3,FALSE))," ",(VLOOKUP($C40,Inscription!$A$12:$G$211,4,FALSE)))," ") -> Remond Malo | F40: =IF(C40>0,(VLOOKUP($C40,Inscription!$A$12:$G$211,5,FALSE))," ") -> Team XC du Léguer | G40: =IF(C40>0,(VLOOKUP($C40,Inscription!$A$12:$G$211,7,FALSE))," ") -> benjamin | H40: =LEFT(IF(C40>0,(VLOOKUP($C40,Inscription!$A$12:$G$211,6,FALSE))," "),8) -> 395912 | I40: =IF(COUNTIF($F$4:$F40,$F40)<2,$F40," ") ->  | K40: =IF(I40=F40,#REF!,"") ->  | L40: =IF(COUNTIF($F$4:$F40,$F40)<3,$F40," ") -> Team XC du Léguer | N40: =IF(L40=$F40,#REF!,"") ->  | O40: Team XC du Léguer | Q40: =IF(O40=$F40,#REF!,1000) ->  | R40: =IF(COUNTIF($F$4:$F40,I40)<4,$F40," ") ->  | T40: =IF(R40=$F40,#REF!,"") ->  | X40: =IF(V40=$F40,#REF!,"") ->  | Z40: T
B41: 12 | C41: 129 | D41: =IF(C41>0,CONCATENATE((VLOOKUP($C41,Inscription!$A$12:$G$211,3,FALSE))," ",(VLOOKUP($C41,Inscription!$A$12:$G$211,4,FALSE)))," ") -> Colas Thibault | F41: =IF(C41>0,(VLOOKUP($C41,Inscription!$A$12:$G$211,5,FALSE))," ") -> Team XC du Léguer | G41: =IF(C41>0,(VLOOKUP($C41,Inscription!$A$12:$G$211,7,FALSE))," ") -> Benjamin | H41: =LEFT(IF(C41>0,(VLOOKUP($C41,Inscription!$A$12:$G$211,6,FALSE))," "),8) -> 330206 | I41: =IF(COUNTIF($F$4:$F41,$F41)<2,$F41," ") ->  | K41: =IF(I41=F41,#REF!,"") ->  | L41: =IF(COUNTIF($F$4:$F41,$F41)<3,$F41," ") ->  | N41: =IF(L41=$F41,#REF!,"") ->  | P41: 1000 | Q41: =IF(O41=$F41,#REF!,1000) -> 1000 | R41: =IF(COUNTIF($F$4:$F41,I41)<4,$F41," ") ->  | T41: =IF(R41=$F41,#REF!,"") ->  | X41: =IF(V41=$F41,#REF!,"") ->  | Z41: T
A45: =IF(B45<1,1000,(IF(Z45=B45,B45,(20100-SUM($Z$4:$Z$204))/(COUNTIF($Z$4:$Z$204,"T"))))) -> 1000 | D45: =IF(C45>0,CONCATENATE((VLOOKUP($C45,Inscription!$A$12:$G$211,3,FALSE))," ",(VLOOKUP($C45,Inscription!$A$12:$G$211,4,FALSE)))," ") ->  | F45: =IF(C45>0,(VLOOKUP($C45,Inscription!$A$12:$G$211,5,FALSE))," ") ->  | G45: =IF(C45>0,(VLOOKUP($C45,Inscription!$A$12:$G$211,7,FALSE))," ") ->  | H45: =LEFT(IF(C45>0,(VLOOKUP($C45,Inscription!$A$12:$G$211,6,FALSE))," "),8) ->  | I45: =IF(COUNTIF($F$4:$F45,$F45)<2,$F45," ") ->  | J45: =IF(I45=F45,A45,"") -> 1000 | K45: =IF(I45=F45,#REF!,"") ->  | L45: =IF(COUNTIF($F$4:$F45,$F45)<3,$F45," ") ->  | M45: 1000 | N45: =IF(L45=$F45,#REF!,"") ->  | P45: 1000 | Q45: =IF(O45=$F45,#REF!,1000) -> 1000 | R45: =IF(COUNTIF($F$4:$F45,I45)<4,$F45," ") ->  | S45: 1000 | T45: =IF(R45=$F45,#REF!,"") ->  | X45: =IF(V45=$F45,#REF!,"") ->  | Y45: =IF(COUNTIF($C$4:$C$204,C45)>1,"X"," ") ->  | Z45: =IF(COUNTIF($B$4:$B$204,B45)>1,"T",B45) -> 0 | AA45: 1 | AB45: 0 | AC45: 1000 | AD45: 1000 | AE45: 1000 | AF45: 1000 | AG45: 1000 | AH45: 1000 | AI45: =IF(AB45=" "," ",IF($AB45>0,SUM(AC45+AE45+AG45)," ")) ->  | AJ45: =IF(AB45=" "," ",IF($AB45>0,SUM(AD45+AF45+AH45)," ")) -> 
B46: 1 | C46: 110 | D46: =IF(C46>0,CONCATENATE((VLOOKUP($C46,Inscription!$A$12:$G$211,3,FALSE))," ",(VLOOKUP($C46,Inscription!$A$12:$G$211,4,FALSE)))," ") -> Le Bihan Clément | F46: =IF(C46>0,(VLOOKUP($C46,Inscription!$A$12:$G$211,5,FALSE))," ") -> UC Plaudren | G46: =IF(C46>0,(VLOOKUP($C46,Inscription!$A$12:$G$211,7,FALSE))," ") -> minime | H46: =LEFT(IF(C46>0,(VLOOKUP($C46,Inscription!$A$12:$G$211,6,FALSE))," "),8) -> 136145 | I46: =IF(COUNTIF($F$4:$F46,$F46)<2,$F46," ") -> UC Plaudren | K46: =IF(I46=F46,#REF!,"") ->  | L46: =IF(COUNTIF($F$4:$F46,$F46)<3,$F46," ") -> UC Plaudren | N46: =IF(L46=$F46,#REF!,"") ->  | P46: 1000 | Q46: =IF(O46=$F46,#REF!,1000) -> 1000 | R46: =IF(COUNTIF($F$4:$F46,I46)<4,$F46," ") -> UC Plaudren | T46: =IF(R46=$F46,#REF!,"") ->  | X46: =IF(V46=$F46,#REF!,"") ->  | Z46: T | AA46: 2 | AB46: 0 | AC46: 1000 | AD46: 1000 | AE46: 1000 | AF46: 1000 | AG46: 1000 | AH46: 1000
B47: 2 | C47: 112 | D47: =IF(C47>0,CONCATENATE((VLOOKUP($C47,Inscription!$A$12:$G$211,3,FALSE))," ",(VLOOKUP($C47,Inscription!$A$12:$G$211,4,FALSE)))," ") -> Le Bihan Evann | F47: =IF(C47>0,(VLOOKUP($C47,Inscription!$A$12:$G$211,5,FALSE))," ") -> UC Plaudren | G47: =IF(C47>0,(VLOOKUP($C47,Inscription!$A$12:$G$211,7,FALSE))," ") -> minime | H47: =LEFT(IF(C47>0,(VLOOKUP($C47,Inscription!$A$12:$G$211,6,FALSE))," "),8) -> 379622 | I47: =IF(COUNTIF($F$4:$F47,$F47)<2,$F47," ") ->  | K47: =IF(I47=F47,#REF!,"") ->  | L47: =IF(COUNTIF($F$4:$F47,$F47)<3,$F47," ") -> UC Plaudren | N47: =IF(L47=$F47,#REF!,"") ->  | O47: UC Plaudren | Q47: =IF(O47=$F47,#REF!,1000) ->  | R47: =IF(COUNTIF($F$4:$F47,I47)<4,$F47," ") ->  | T47: =IF(R47=$F47,#REF!,"") ->  | X47: =IF(V47=$F47,#REF!,"") ->  | Z47: T | AA47: 3 | AB47: 0 | AC47: 1000 | AD47: 1000 | AE47: 1000 | AF47: 1000 | AG47: 1000 | AH47: 1000
B48: 3 | C48: 111 | D48: =IF(C48>0,CONCATENATE((VLOOKUP($C48,Inscription!$A$12:$G$211,3,FALSE))," ",(VLOOKUP($C48,Inscription!$A$12:$G$211,4,FALSE)))," ") -> Besnard colas Ismaël | F48: =IF(C48>0,(VLOOKUP($C48,Inscription!$A$12:$G$211,5,FALSE))," ") -> CC Moncontour | G48: =IF(C48>0,(VLOOKUP($C48,Inscription!$A$12:$G$211,7,FALSE))," ") -> minime | H48: =LEFT(IF(C48>0,(VLOOKUP($C48,Inscription!$A$12:$G$211,6,FALSE))," "),8) -> 400382 | I48: =IF(COUNTIF($F$4:$F48,$F48)<2,$F48," ") -> CC Moncontour | K48: =IF(I48=F48,#REF!,"") ->  | L48: =IF(COUNTIF($F$4:$F48,$F48)<3,$F48," ") -> CC Moncontour | N48: =IF(L48=$F48,#REF!,"") ->  | P48: 1000 | Q48: =IF(O48=$F48,#REF!,1000) -> 1000 | R48: =IF(COUNTIF($F$4:$F48,I48)<4,$F48," ") -> CC Moncontour | T48: =IF(R48=$F48,#REF!,"") ->  | X48: =IF(V48=$F48,#REF!,"") ->  | Z48: T | AA48: 4 | AB48: 0 | AC48: 1000 | AD48: 1000 | AE48: 1000 | AF48: 1000 | AG48: 1000 | AH48: 1000
B49: 4 | C49: 115 | D49: =IF(C49>0,CONCATENATE((VLOOKUP($C49,Inscription!$A$12:$G$211,3,FALSE))," ",(VLOOKUP($C49,Inscription!$A$12:$G$211,4,FALSE)))," ") -> le Corguille Brieuc | F49: =IF(C49>0,(VLOOKUP($C49,Inscription!$A$12:$G$211,5,FALSE))," ") -> VC Plurien | G49: =IF(C49>0,(VLOOKUP($C49,Inscription!$A$12:$G$211,7,FALSE))," ") -> minime | H49: =LEFT(IF(C49>0,(VLOOKUP($C49,Inscription!$A$12:$G$211,6,FALSE))," "),8) -> 434773 | I49: =IF(COUNTIF($F$4:$F49,$F49)<2,$F49," ") ->  | K49: =IF(I49=F49,#REF!,"") ->  | L49: =IF(COUNTIF($F$4:$F49,$F49)<3,$F49," ") -> VC Plurien | N49: =IF(L49=$F49,#REF!,"") ->  | O49: VC Plurien | Q49: =IF(O49=$F49,#REF!,1000) ->  | R49: =IF(COUNTIF($F$4:$F49,I49)<4,$F49," ") ->  | T49: =IF(R49=$F49,#REF!,"") ->  | X49: =IF(V49=$F49,#REF!,"") ->  | Z49: T | AA49: 5 | AB49: 0 | AC49: 1000 | AD49: 1000 | AE49: 1000 | AF49: 1000 | AG49: 1000 | AH49: 1000
B50: 5 | C50: 114 | D50: =IF(C50>0,CONCATENATE((VLOOKUP($C50,Inscription!$A$12:$G$211,3,FALSE))," ",(VLOOKUP($C50,Inscription!$A$12:$G$211,4,FALSE)))," ") -> Briand Mathis | F50: =IF(C50>0,(VLOOKUP($C50,Inscription!$A$12:$G$211,5,FALSE))," ") -> VC Evron | G50: =IF(C50>0,(VLOOKUP($C50,Inscription!$A$12:$G$211,7,FALSE))," ") -> minime | H50: =LEFT(IF(C50>0,(VLOOKUP($C50,Inscription!$A$12:$G$211,6,FALSE))," "),8) -> 431995 | I50: =IF(COUNTIF($F$4:$F50,$F50)<2,$F50," ") ->  | K50: =IF(I50=F50,#REF!,"") ->  | L50: =IF(COUNTIF($F$4:$F50,$F50)<3,$F50," ") ->  | N50: =IF(L50=$F50,#REF!,"") ->  | P50: 1000 | Q50: =IF(O50=$F50,#REF!,1000) -> 1000 | R50: =IF(COUNTIF($F$4:$F50,I50)<4,$F50," ") ->  | T50: =IF(R50=$F50,#REF!,"") ->  | X50: =IF(V50=$F50,#REF!,"") ->  | Z50: T | AA50: 6 | AB50: 0 | AC50: 1000 | AD50: 1000 | AE50: 1000 | AF50: 1000 | AG50: 1000 | AH50: 1000
B51: absent | C51: 113
A52: =IF(B52<1,1000,(IF(Z52=B52,B52,(20100-SUM($Z$4:$Z$204))/(COUNTIF($Z$4:$Z$204,"T"))))) -> 1000 | D52: =IF(C52>0,CONCATENATE((VLOOKUP($C52,Inscription!$A$12:$G$211,3,FALSE))," ",(VLOOKUP($C52,Inscription!$A$12:$G$211,4,FALSE)))," ") ->  | F52: =IF(C52>0,(VLOOKUP($C52,Inscription!$A$12:$G$211,5,FALSE))," ") ->  | G52: =IF(C52>0,(VLOOKUP($C52,Inscription!$A$12:$G$211,7,FALSE))," ") ->  | H52: =LEFT(IF(C52>0,(VLOOKUP($C52,Inscription!$A$12:$G$211,6,FALSE))," "),8) ->  | I52: =IF(COUNTIF($F$4:$F52,$F52)<2,$F52," ") ->  | J52: =IF(I52=F52,A52,"") -> 1000 | K52: =IF(I52=F52,#REF!,"") ->  | L52: =IF(COUNTIF($F$4:$F52,$F52)<3,$F52," ") ->  | M52: 1000 | N52: =IF(L52=$F52,#REF!,"") ->  | P52: 1000 | Q52: =IF(O52=$F52,#REF!,1000) -> 1000 | R52: =IF(COUNTIF($F$4:$F52,I52)<4,$F52," ") ->  | S52: 1000 | T52: =IF(R52=$F52,#REF!,"") ->  | X52: =IF(V52=$F52,#REF!,"") ->  | Y52: =IF(COUNTIF($C$4:$C$204,C52)>1,"X"," ") ->  | Z52: =IF(COUNTIF($B$4:$B$204,B52)>1,"T",B52) -> 0 | AA52: 7 | AB52: 0 | AC52: 1000 | AD52: 1000 | AE52: 1000 | AF52: 1000 | AG52: 1000 | AH52: 1000
A53: 1000 | D53: =IF(C53>0,CONCATENATE((VLOOKUP($C53,Inscription!$A$12:$G$211,3,FALSE))," ",(VLOOKUP($C53,Inscription!$A$12:$G$211,4,FALSE)))," ") ->  | F53: =IF(C53>0,(VLOOKUP($C53,Inscription!$A$12:$G$211,5,FALSE))," ") ->  | G53: =IF(C53>0,(VLOOKUP($C53,Inscription!$A$12:$G$211,7,FALSE))," ") ->  | H53: =LEFT(IF(C53>0,(VLOOKUP($C53,Inscription!$A$12:$G$211,6,FALSE))," "),8) ->  | I53: =IF(COUNTIF($F$4:$F53,$F53)<2,$F53," ") ->  | J53: 1000 | K53: =IF(I53=F53,#REF!,"") ->  | L53: =IF(COUNTIF($F$4:$F53,$F53)<3,$F53," ") ->  | M53: 1000 | N53: =IF(L53=$F53,#REF!,"") ->  | P53: 1000 | Q53: =IF(O53=$F53,#REF!,1000) -> 1000 | R53: =IF(COUNTIF($F$4:$F53,I53)<4,$F53," ") ->  | S53: 1000 | T53: =IF(R53=$F53,#REF!,"") ->  | X53: =IF(V53=$F53,#REF!,"") ->  | Z53: 0 | AA53: 8 | AB53: 0 | AC53: 1000 | AD53: 1000 | AE53: 1000 | AF53: 1000 | AG53: 1000 | AH53: 1000
A54: 1000 | D54: =IF(C54>0,CONCATENATE((VLOOKUP($C54,Inscription!$A$12:$G$211,3,FALSE))," ",(VLOOKUP($C54,Inscription!$A$12:$G$211,4,FALSE)))," ") ->  | F54: =IF(C54>0,(VLOOKUP($C54,Inscription!$A$12:$G$211,5,FALSE))," ") ->  | G54: =IF(C54>0,(VLOOKUP($C54,Inscription!$A$12:$G$211,7,FALSE))," ") ->  | H54: =LEFT(IF(C54>0,(VLOOKUP($C54,Inscription!$A$12:$G$211,6,FALSE))," "),8) ->  | I54: =IF(COUNTIF($F$4:$F54,$F54)<2,$F54," ") ->  | J54: 1000 | K54: =IF(I54=F54,#REF!,"") ->  | L54: =IF(COUNTIF($F$4:$F54,$F54)<3,$F54," ") ->  | M54: 1000 | N54: =IF(L54=$F54,#REF!,"") ->  | P54: 1000 | Q54: =IF(O54=$F54,#REF!,1000) -> 1000 | R54: =IF(COUNTIF($F$4:$F54,I54)<4,$F54," ") ->  | S54: 1000 | T54: =IF(R54=$F54,#REF!,"") ->  | X54: =IF(V54=$F54,#REF!,"") ->  | Z54: 0 | AA54: 9 | AB54: 0 | AC54: 1000 | AD54: 1000 | AE54: 1000 | AF54: 1000 | AG54: 1000 | AH54: 1000
A55: 49 | B55: 49 | C55: 101 | D55: =IF(C55>0,CONCATENATE((VLOOKUP($C55,Inscription!$A$12:$G$211,3,FALSE))," ",(VLOOKUP($C55,Inscription!$A$12:$G$211,4,FALSE)))," ") -> Flégeau Gaël | F55: =IF(C55>0,(VLOOKUP($C55,Inscription!$A$12:$G$211,5,FALSE))," ") -> Team Bikers 22 | G55: =IF(C55>0,(VLOOKUP($C55,Inscription!$A$12:$G$211,7,FALSE))," ") -> cadet | H55: =LEFT(IF(C55>0,(VLOOKUP($C55,Inscription!$A$12:$G$211,6,FALSE))," "),8) -> 269847 | I55: =IF(COUNTIF($F$4:$F55,$F55)<2,$F55," ") ->  | K55: =IF(I55=F55,#REF!,"") ->  | L55: =IF(COUNTIF($F$4:$F55,$F55)<3,$F55," ") ->  | N55: =IF(L55=$F55,#REF!,"") ->  | P55: 1000 | Q55: =IF(O55=$F55,#REF!,1000) -> 1000 | R55: =IF(COUNTIF($F$4:$F55,I55)<4,$F55," ") ->  | T55: =IF(R55=$F55,#REF!,"") ->  | X55: =IF(V55=$F55,#REF!,"") ->  | Z55: 49 | AA55: 10 | AB55: 0 | AC55: 1000 | AD55: 1000 | AE55: 1000 | AF55: 1000 | AG55: 1000 | AH55: 1000
A56: 50 | B56: 50 | C56: 104 | D56: =IF(C56>0,CONCATENATE((VLOOKUP($C56,Inscription!$A$12:$G$211,3,FALSE))," ",(VLOOKUP($C56,Inscription!$A$12:$G$211,4,FALSE)))," ") -> Durand Joan | F56: =IF(C56>0,(VLOOKUP($C56,Inscription!$A$12:$G$211,5,FALSE))," ") -> Lamball'breizh | G56: =IF(C56>0,(VLOOKUP($C56,Inscription!$A$12:$G$211,7,FALSE))," ") -> cadet | H56: =LEFT(IF(C56>0,(VLOOKUP($C56,Inscription!$A$12:$G$211,6,FALSE))," "),8) -> 383110 | I56: =IF(COUNTIF($F$4:$F56,$F56)<2,$F56," ") ->  | K56: =IF(I56=F56,#REF!,"") ->  | L56: =IF(COUNTIF($F$4:$F56,$F56)<3,$F56," ") ->  | N56: =IF(L56=$F56,#REF!,"") ->  | P56: 1000 | Q56: =IF(O56=$F56,#REF!,1000) -> 1000 | R56: =IF(COUNTIF($F$4:$F56,I56)<4,$F56," ") ->  | T56: =IF(R56=$F56,#REF!,"") ->  | X56: =IF(V56=$F56,#REF!,"") ->  | Z56: 50 | AA56: 11 | AB56: 0 | AC56: 1000 | AD56: 1000 | AE56: 1000 | AF56: 1000 | AG56: 1000 | AH56: 1000
A57: 51 | B57: 51 | C57: 100 | D57: =IF(C57>0,CONCATENATE((VLOOKUP($C57,Inscription!$A$12:$G$211,3,FALSE))," ",(VLOOKUP($C57,Inscription!$A$12:$G$211,4,FALSE)))," ") -> Creseveur Gurwan | F57: =IF(C57>0,(VLOOKUP($C57,Inscription!$A$12:$G$211,5,FALSE))," ") -> Team XC du Léguer | G57: =IF(C57>0,(VLOOKUP($C57,Inscription!$A$12:$G$211,7,FALSE))," ") -> Cadet | H57: =LEFT(IF(C57>0,(VLOOKUP($C57,Inscription!$A$12:$G$211,6,FALSE))," "),8) -> 330214 | I57: =IF(COUNTIF($F$4:$F57,$F57)<2,$F57," ") ->  | K57: =IF(I57=F57,#REF!,"") ->  | L57: =IF(COUNTIF($F$4:$F57,$F57)<3,$F57," ") ->  | N57: =IF(L57=$F57,#REF!,"") ->  | P57: 1000 | Q57: =IF(O57=$F57,#REF!,1000) -> 1000 | R57: =IF(COUNTIF($F$4:$F57,I57)<4,$F57," ") ->  | T57: =IF(R57=$F57,#REF!,"") ->  | X57: =IF(V57=$F57,#REF!,"") ->  | Z57: 51 | AA57: 12 | AB57: 0 | AC57: 1000 | AD57: 1000 | AE57: 1000 | AF57: 1000 | AG57: 1000 | AH57: 1000
A58: 52 | B58: 52 | C58: 105 | D58: =IF(C58>0,CONCATENATE((VLOOKUP($C58,Inscription!$A$12:$G$211,3,FALSE))," ",(VLOOKUP($C58,Inscription!$A$12:$G$211,4,FALSE)))," ") -> Cadieu Martin | F58: =IF(C58>0,(VLOOKUP($C58,Inscription!$A$12:$G$211,5,FALSE))," ") -> VTT du Lié | G58: =IF(C58>0,(VLOOKUP($C58,Inscription!$A$12:$G$211,7,FALSE))," ") -> Cadet | H58: =LEFT(IF(C58>0,(VLOOKUP($C58,Inscription!$A$12:$G$211,6,FALSE))," "),8) ->  | I58: =IF(COUNTIF($F$4:$F58,$F58)<2,$F58," ") ->  | K58: =IF(I58=F58,#REF!,"") ->  | L58: =IF(COUNTIF($F$4:$F58,$F58)<3,$F58," ") -> VTT du Lié | M58: 52 | N58: =IF(L58=$F58,#REF!,"") ->  | O58: VTT du Lié | P58: 52 | Q58: =IF(O58=$F58,#REF!,1000) ->  | R58: =IF(COUNTIF($F$4:$F58,I58)<4,$F58," ") ->  | T58: =IF(R58=$F58,#REF!,"") ->  | X58: =IF(V58=$F58,#REF!,"") ->  | Z58: 52 | AA58: 13 | AB58: 0 | AC58: 1000 | AD58: 1000 | AE58: 1000 | AF58: 1000 | AG58: 1000 | AH58: 1000
A59: 53 | B59: 53 | C59: 102 | D59: =IF(C59>0,CONCATENATE((VLOOKUP($C59,Inscription!$A$12:$G$211,3,FALSE))," ",(VLOOKUP($C59,Inscription!$A$12:$G$211,4,FALSE)))," ") -> Rouille Robin | F59: =IF(C59>0,(VLOOKUP($C59,Inscription!$A$12:$G$211,5,FALSE))," ") -> Team Bikers 22 | G59: =IF(C59>0,(VLOOKUP($C59,Inscription!$A$12:$G$211,7,FALSE))," ") -> cadet | H59: =LEFT(IF(C59>0,(VLOOKUP($C59,Inscription!$A$12:$G$211,6,FALSE))," "),8) -> 390947 | I59: =IF(COUNTIF($F$4:$F59,$F59)<2,$F59," ") ->  | K59: =IF(I59=F59,#REF!,"") ->  | L59: =IF(COUNTIF($F$4:$F59,$F59)<3,$F59," ") ->  | N59: =IF(L59=$F59,#REF!,"") ->  | P59: 1000 | Q59: =IF(O59=$F59,#REF!,1000) -> 1000 | R59: =IF(COUNTIF($F$4:$F59,I59)<4,$F59," ") ->  | T59: =IF(R59=$F59,#REF!,"") ->  | X59: =IF(V59=$F59,#REF!,"") ->  | Z59: 53 | AA59: 14 | AB59: 0 | AC59: 1000 | AD59: 1000 | AE59: 1000 | AF59: 1000 | AG59: 1000 | AH59: 1000
A60: 54 | B60: 54 | C60: 103 | D60: =IF(C60>0,CONCATENATE((VLOOKUP($C60,Inscription!$A$12:$G$211,3,FALSE))," ",(VLOOKUP($C60,Inscription!$A$12:$G$211,4,FALSE)))," ") -> Madec Rafael | F60: =IF(C60>0,(VLOOKUP($C60,Inscription!$A$12:$G$211,5,FALSE))," ") -> VS Ploumagoar | G60: =IF(C60>0,(VLOOKUP($C60,Inscription!$A$12:$G$211,7,FALSE))," ") -> cadet | H60: =LEFT(IF(C60>0,(VLOOKUP($C60,Inscription!$A$12:$G$211,6,FALSE))," "),8) ->  | I60: =IF(COUNTIF($F$4:$F60,$F60)<2,$F60," ") -> VS Ploumagoar | J60: 54 | K60: =IF(I60=F60,#REF!,"") ->  | L60: =IF(COUNTIF($F$4:$F60,$F60)<3,$F60," ") -> VS Ploumagoar | M60: 54 | N60: =IF(L60=$F60,#REF!,"") ->  | P60: 1000 | Q60: =IF(O60=$F60,#REF!,1000) -> 1000 | R60: =IF(COUNTIF($F$4:$F60,I60)<4,$F60," ") -> VS Ploumagoar | S60: 54 | T60: =IF(R60=$F60,#REF!,"") ->  | X60: =IF(V60=$F60,#REF!,"") ->  | Z60: 54 | AA60: 15 | AB60: 0 | AC60: 1000 | AD60: 1000 | AE60: 1000 | AF60: 1000 | AG60: 1000 | AH60: 1000
A61: 1000 | D61: =IF(C61>0,CONCATENATE((VLOOKUP($C61,Inscription!$A$12:$G$211,3,FALSE))," ",(VLOOKUP($C61,Inscription!$A$12:$G$211,4,FALSE)))," ") ->  | F61: =IF(C61>0,(VLOOKUP($C61,Inscription!$A$12:$G$211,5,FALSE))," ") ->  | G61: =IF(C61>0,(VLOOKUP($C61,Inscription!$A$12:$G$211,7,FALSE))," ") ->  | H61: =LEFT(IF(C61>0,(VLOOKUP($C61,Inscription!$A$12:$G$211,6,FALSE))," "),8) ->  | I61: =IF(COUNTIF($F$4:$F61,$F61)<2,$F61," ") ->  | J61: 1000 | K61: =IF(I61=F61,#REF!,"") ->  | L61: =IF(COUNTIF($F$4:$F61,$F61)<3,$F61," ") ->  | M61: 1000 | N61: =IF(L61=$F61,#REF!,"") ->  | P61: 1000 | Q61: =IF(O61=$F61,#REF!,1000) -> 1000 | R61: =IF(COUNTIF($F$4:$F61,I61)<4,$F61," ") ->  | S61: 1000 | T61: =IF(R61=$F61,#REF!,"") ->  | X61: =IF(V61=$F61,#REF!,"") ->  | Z61: 0 | AA61: 16 | AB61: 0 | AC61: 1000 | AD61: 1000 | AE61: 1000 | AF61: 1000 | AG61: 1000 | AH61: 1000
A62: 1000 | D62: =IF(C62>0,CONCATENATE((VLOOKUP($C62,Inscription!$A$12:$G$211,3,FALSE))," ",(VLOOKUP($C62,Inscription!$A$12:$G$211,4,FALSE)))," ") ->  | F62: =IF(C62>0,(VLOOKUP($C62,Inscription!$A$12:$G$211,5,FALSE))," ") ->  | G62: =IF(C62>0,(VLOOKUP($C62,Inscription!$A$12:$G$211,7,FALSE))," ") ->  | H62: =LEFT(IF(C62>0,(VLOOKUP($C62,Inscription!$A$12:$G$211,6,FALSE))," "),8) ->  | I62: =IF(COUNTIF($F$4:$F62,$F62)<2,$F62," ") ->  | J62: 1000 | K62: =IF(I62=F62,#REF!,"") ->  | L62: =IF(COUNTIF($F$4:$F62,$F62)<3,$F62," ") ->  | M62: 1000 | N62: =IF(L62=$F62,#REF!,"") ->  | P62: 1000 | Q62: =IF(O62=$F62,#REF!,1000) -> 1000 | R62: =IF(COUNTIF($F$4:$F62,I62)<4,$F62," ") ->  | S62: 1000 | T62: =IF(R62=$F62,#REF!,"") ->  | X62: =IF(V62=$F62,#REF!,"") ->  | Z62: 0 | AA62: 17 | AB62: 0 | AC62: 1000 | AD62: 1000 | AE62: 1000 | AF62: 1000 | AG62: 1000 | AH62: 1000
A63: =IF(B117<1,1000,(IF(Z63=B117,B117,(20100-SUM($Z$4:$Z$204))/(COUNTIF($Z$4:$Z$204,"T"))))) -> 1000 | B63: 1 | C63: 62 | D63: =IF(C63>0,CONCATENATE((VLOOKUP($C63,Inscription!$A$12:$G$211,3,FALSE))," ",(VLOOKUP($C63,Inscription!$A$12:$G$211,4,FALSE)))," ") -> Lecellier Raymond | F63: =IF(C63>0,(VLOOKUP($C63,Inscription!$A$12:$G$211,5,FALSE))," ") -> Team Mégrit | G63: =IF(C63>0,(VLOOKUP($C63,Inscription!$A$12:$G$211,7,FALSE))," ") -> 3 | H63: =LEFT(IF(C63>0,(VLOOKUP($C63,Inscription!$A$12:$G$211,6,FALSE))," "),8) -> 143624 | I63: =IF(COUNTIF($F$4:$F63,$F63)<2,$F63," ") -> Team Mégrit | J63: 1000 | K63: =IF(I63=F63,#REF!,"") ->  | L63: =IF(COUNTIF($F$4:$F63,$F63)<3,$F63," ") -> Team Mégrit | M63: 1000 | N63: =IF(L63=$F63,#REF!,"") ->  | P63: 1000 | Q63: =IF(O63=$F63,#REF!,1000) -> 1000 | R63: =IF(COUNTIF($F$4:$F63,I63)<4,$F63," ") -> Team Mégrit | S63: 1000 | T63: =IF(R63=$F63,#REF!,"") ->  | X63: =IF(V63=$F63,#REF!,"") ->  | Y63: =IF(COUNTIF($C$4:$C$204,C117)>1,"X"," ") ->  | Z63: =IF(COUNTIF($B$4:$B$204,B117)>1,"T",B117) -> 0 | AA63: 18 | AB63: 0 | AC63: 1000 | AD63: 1000 | AE63: 1000 | AF63: 1000 | AG63: 1000 | AH63: 1000
A64: =IF(B118<1,1000,(IF(Z64=B118,B118,(20100-SUM($Z$4:$Z$204))/(COUNTIF($Z$4:$Z$204,"T"))))) -> 1000 | B64: 2 | C64: 60 | D64: =IF(C64>0,CONCATENATE((VLOOKUP($C64,Inscription!$A$12:$G$211,3,FALSE))," ",(VLOOKUP($C64,Inscription!$A$12:$G$211,4,FALSE)))," ") -> Nicolas Jean-Charles | F64: =IF(C64>0,(VLOOKUP($C64,Inscription!$A$12:$G$211,5,FALSE))," ") -> AC Vildé-Guingalan | G64: =IF(C64>0,(VLOOKUP($C64,Inscription!$A$12:$G$211,7,FALSE))," ") -> 3 | H64: =LEFT(IF(C64>0,(VLOOKUP($C64,Inscription!$A$12:$G$211,6,FALSE))," "),8) -> 137756 | I64: =IF(COUNTIF($F$4:$F64,$F64)<2,$F64," ") -> AC Vildé-Guingalan | J64: 1000 | K64: =IF(I64=F64,#REF!,"") ->  | L64: =IF(COUNTIF($F$4:$F64,$F64)<3,$F64," ") -> AC Vildé-Guingalan | M64: 1000 | N64: =IF(L64=$F64,#REF!,"") ->  | P64: 1000 | Q64: =IF(O64=$F64,#REF!,1000) -> 1000 | R64: =IF(COUNTIF($F$4:$F64,I64)<4,$F64," ") -> AC Vildé-Guingalan | S64: 1000 | T64: =IF(R64=$F64,#REF!,"") ->  | X64: =IF(V64=$F64,#REF!,"") ->  | Y64: =IF(COUNTIF($C$4:$C$204,C118)>1,"X"," ") ->  | Z64: =IF(COUNTIF($B$4:$B$204,B118)>1,"T",B118) -> 0 | AA64: 19 | AB64: 0 | AC64: 1000 | AD64: 1000 | AE64: 1000 | AF64: 1000 | AG64: 1000 | AH64: 1000
A65: =IF(B119<1,1000,(IF(Z65=B119,B119,(20100-SUM($Z$4:$Z$204))/(COUNTIF($Z$4:$Z$204,"T"))))) -> 1000 | B65: 3 | C65: 69 | D65: =IF(C65>0,CONCATENATE((VLOOKUP($C65,Inscription!$A$12:$G$211,3,FALSE))," ",(VLOOKUP($C65,Inscription!$A$12:$G$211,4,FALSE)))," ") -> Guillot Denis | F65: =IF(C65>0,(VLOOKUP($C65,Inscription!$A$12:$G$211,5,FALSE))," ") -> Team Pays de Dinan | G65: =IF(C65>0,(VLOOKUP($C65,Inscription!$A$12:$G$211,7,FALSE))," ") -> 3 | H65: =LEFT(IF(C65>0,(VLOOKUP($C65,Inscription!$A$12:$G$211,6,FALSE))," "),8) ->  | I65: =IF(COUNTIF($F$4:$F65,$F65)<2,$F65," ") ->  | K65: =IF(I65=F65,#REF!,"") ->  | L65: =IF(COUNTIF($F$4:$F65,$F65)<3,$F65," ") -> Team Pays de Dinan | M65: 1000 | N65: =IF(L65=$F65,#REF!,"") ->  | O65: Team Pays de Dinan | P65: 1000 | Q65: =IF(O65=$F65,#REF!,1000) ->  | R65: =IF(COUNTIF($F$4:$F65,I65)<4,$F65," ") ->  | T65: =IF(R65=$F65,#REF!,"") ->  | X65: =IF(V65=$F65,#REF!,"") ->  | Y65: =IF(COUNTIF($C$4:$C$204,C119)>1,"X"," ") ->  | Z65: =IF(COUNTIF($B$4:$B$204,B119)>1,"T",B119) -> 0 | AA65: 20 | AB65: 0 | AC65: 1000 | AD65: 1000 | AE65: 1000 | AF65: 1000 | AG65: 1000 | AH65: 1000
A66: =IF(B120<1,1000,(IF(Z66=B120,B120,(20100-SUM($Z$4:$Z$204))/(COUNTIF($Z$4:$Z$204,"T"))))) -> 1000 | B66: 4 | C66: 66 | D66: =IF(C66>0,CONCATENATE((VLOOKUP($C66,Inscription!$A$12:$G$211,3,FALSE))," ",(VLOOKUP($C66,Inscription!$A$12:$G$211,4,FALSE)))," ") -> Gouya Noël | F66: =IF(C66>0,(VLOOKUP($C66,Inscription!$A$12:$G$211,5,FALSE))," ") -> Team Pays de Dinan | G66: =IF(C66>0,(VLOOKUP($C66,Inscription!$A$12:$G$211,7,FALSE))," ") -> 3 | H66: =LEFT(IF(C66>0,(VLOOKUP($C66,Inscription!$A$12:$G$211,6,FALSE))," "),8) -> 136620 | I66: =IF(COUNTIF($F$4:$F66,$F66)<2,$F66," ") ->  | K66: =IF(I66=F66,#REF!,"") ->  | L66: =IF(COUNTIF($F$4:$F66,$F66)<3,$F66," ") ->  | N66: =IF(L66=$F66,#REF!,"") ->  | P66: 1000 | Q66: =IF(O66=$F66,#REF!,1000) -> 1000 | R66: =IF(COUNTIF($F$4:$F66,I66)<4,$F66," ") ->  | T66: =IF(R66=$F66,#REF!,"") ->  | X66: =IF(V66=$F66,#REF!,"") ->  | Y66: =IF(COUNTIF($C$4:$C$204,C120)>1,"X"," ") ->  | Z66: =IF(COUNTIF($B$4:$B$204,B120)>1,"T",B120) -> 0 | AA66: 21 | AB66: 0 | AC66: 1000 | AD66: 1000 | AE66: 1000 | AF66: 1000 | AG66: 1000 | AH66: 1000
A67: =IF(B67<1,1000,(IF(Z67=B67,B67,(20100-SUM($Z$4:$Z$204))/(COUNTIF($Z$4:$Z$204,"T"))))) ->  | B67: 5 | C67: 61 | D67: =IF(C67>0,CONCATENATE((VLOOKUP($C67,Inscription!$A$12:$G$211,3,FALSE))," ",(VLOOKUP($C67,Inscription!$A$12:$G$211,4,FALSE)))," ") -> Lemaitre Alain | F67: =IF(C67>0,(VLOOKUP($C67,Inscription!$A$12:$G$211,5,FALSE))," ") -> AC Vildé-Guingalan | G67: =IF(C67>0,(VLOOKUP($C67,Inscription!$A$12:$G$211,7,FALSE))," ") -> 3 | H67: =LEFT(IF(C67>0,(VLOOKUP($C67,Inscription!$A$12:$G$211,6,FALSE))," "),8) -> 136151 | I67: =IF(COUNTIF($F$4:$F67,$F67)<2,$F67," ") ->  | K67: =IF(I67=F67,#REF!,"") ->  | L67: =IF(COUNTIF($F$4:$F67,$F67)<3,$F67," ") -> AC Vildé-Guingalan | N67: =IF(L67=$F67,#REF!,"") ->  | O67: AC Vildé-Guingalan | Q67: =IF(O67=$F67,#REF!,1000) ->  | R67: =IF(COUNTIF($F$4:$F67,I67)<4,$F67," ") ->  | T67: =IF(R67=$F67,#REF!,"") ->  | X67: =IF(V67=$F67,#REF!,"") ->  | Y67: =IF(COUNTIF($C$4:$C$204,C67)>1,"X"," ") ->  | Z67: =IF(COUNTIF($B$4:$B$204,B67)>1,"T",B67) -> T | AA67: 22 | AB67: 0 | AC67: 1000 | AD67: 1000 | AE67: 1000 | AF67: 1000 | AG67: 1000 | AH67: 1000
B68: 6 | C68: 71 | D68: =IF(C68>0,CONCATENATE((VLOOKUP($C68,Inscription!$A$12:$G$211,3,FALSE))," ",(VLOOKUP($C68,Inscription!$A$12:$G$211,4,FALSE)))," ") -> Colleu Pascal | F68: =IF(C68>0,(VLOOKUP($C68,Inscription!$A$12:$G$211,5,FALSE))," ") -> CCV Beaussais | G68: =IF(C68>0,(VLOOKUP($C68,Inscription!$A$12:$G$211,7,FALSE))," ") -> 3 | H68: =LEFT(IF(C68>0,(VLOOKUP($C68,Inscription!$A$12:$G$211,6,FALSE))," "),8) -> 137558 | I68: =IF(COUNTIF($F$4:$F68,$F68)<2,$F68," ") -> CCV Beaussais | K68: =IF(I68=F68,#REF!,"") ->  | L68: =IF(COUNTIF($F$4:$F68,$F68)<3,$F68," ") -> CCV Beaussais | N68: =IF(L68=$F68,#REF!,"") ->  | P68: 1000 | Q68: =IF(O68=$F68,#REF!,1000) -> 1000 | R68: =IF(COUNTIF($F$4:$F68,I68)<4,$F68," ") -> CCV Beaussais | T68: =IF(R68=$F68,#REF!,"") ->  | X68: =IF(V68=$F68,#REF!,"") ->  | Z68: T | AA68: 23 | AB68: 0 | AC68: 1000 | AD68: 1000 | AE68: 1000 | AF68: 1000 | AG68: 1000 | AH68: 1000
B69: 7 | C69: 74 | D69: =IF(C69>0,CONCATENATE((VLOOKUP($C69,Inscription!$A$12:$G$211,3,FALSE))," ",(VLOOKUP($C69,Inscription!$A$12:$G$211,4,FALSE)))," ") -> Jeuneu Gilles | F69: =IF(C69>0,(VLOOKUP($C69,Inscription!$A$12:$G$211,5,FALSE))," ") -> Accro Cycles | G69: =IF(C69>0,(VLOOKUP($C69,Inscription!$A$12:$G$211,7,FALSE))," ") -> 3 | H69: =LEFT(IF(C69>0,(VLOOKUP($C69,Inscription!$A$12:$G$211,6,FALSE))," "),8) -> 137390 | I69: =IF(COUNTIF($F$4:$F69,$F69)<2,$F69," ") ->  | K69: =IF(I69=F69,#REF!,"") ->  | L69: =IF(COUNTIF($F$4:$F69,$F69)<3,$F69," ") ->  | N69: =IF(L69=$F69,#REF!,"") ->  | P69: 1000 | Q69: =IF(O69=$F69,#REF!,1000) -> 1000 | R69: =IF(COUNTIF($F$4:$F69,I69)<4,$F69," ") ->  | T69: =IF(R69=$F69,#REF!,"") ->  | X69: =IF(V69=$F69,#REF!,"") ->  | Z69: T | AA69: 24 | AB69: 0 | AC69: 1000 | AD69: 1000 | AE69: 1000 | AF69: 1000 | AG69: 1000 | AH69: 1000
B70: 8 | C70: 65 | D70: =IF(C70>0,CONCATENATE((VLOOKUP($C70,Inscription!$A$12:$G$211,3,FALSE))," ",(VLOOKUP($C70,Inscription!$A$12:$G$211,4,FALSE)))," ") -> Colombier Michel | F70: =IF(C70>0,(VLOOKUP($C70,Inscription!$A$12:$G$211,5,FALSE))," ") -> CC Robert le Roux | G70: =IF(C70>0,(VLOOKUP($C70,Inscription!$A$12:$G$211,7,FALSE))," ") -> 3 | H70: =LEFT(IF(C70>0,(VLOOKUP($C70,Inscription!$A$12:$G$211,6,FALSE))," "),8) -> 286379 | I70: =IF(COUNTIF($F$4:$F70,$F70)<2,$F70," ") -> CC Robert le Roux | K70: =IF(I70=F70,#REF!,"") ->  | L70: =IF(COUNTIF($F$4:$F70,$F70)<3,$F70," ") -> CC Robert le Roux | M70: =IF(L70=$F70,$A70,"") ->  | N70: =IF(L70=$F70,#REF!,"") ->  | O70: =IF(L70=I70,"",L70) ->  | P70: =IF(O70=$F70,$A70,1000) -> 1000 | Q70: =IF(O70=$F70,#REF!,1000) -> 1000 | R70: =IF(COUNTIF($F$4:$F70,I70)<4,$F70," ") -> CC Robert le Roux | S70: =IF(R70=$F70,$A70,"") ->  | T70: =IF(R70=$F70,#REF!,"") ->  | U70: =IF(R70=I70,"",R70) ->  | V70: =IF(U70=O70,"",R70) ->  | W70: =IF(V70=$F70,$A70,"") ->  | X70: =IF(V70=$F70,#REF!,"") ->  | Z70: T | AA70: 25 | AB70: 0 | AC70: 1000 | AD70: 1000 | AE70: 1000 | AF70: 1000 | AG70: 1000 | AH70: 1000
B71: 9 | C71: 76 | D71: =IF(C71>0,CONCATENATE((VLOOKUP($C71,Inscription!$A$12:$G$211,3,FALSE))," ",(VLOOKUP($C71,Inscription!$A$12:$G$211,4,FALSE)))," ") -> Colas Roger | F71: =IF(C71>0,(VLOOKUP($C71,Inscription!$A$12:$G$211,5,FALSE))," ") -> EC Créhen | G71: =IF(C71>0,(VLOOKUP($C71,Inscription!$A$12:$G$211,7,FALSE))," ") -> 3 | H71: =LEFT(IF(C71>0,(VLOOKUP($C71,Inscription!$A$12:$G$211,6,FALSE))," "),8) -> 137514 | I71: =IF(COUNTIF($F$4:$F71,$F71)<2,$F71," ") -> EC Créhen | K71: =IF(I71=F71,#REF!,"") ->  | L71: =IF(COUNTIF($F$4:$F71,$F71)<3,$F71," ") -> EC Créhen | N71: =IF(L71=$F71,#REF!,"") ->  | P71: 1000 | Q71: =IF(O71=$F71,#REF!,1000) -> 1000 | R71: =IF(COUNTIF($F$4:$F71,I71)<4,$F71," ") -> EC Créhen | T71: =IF(R71=$F71,#REF!,"") ->  | X71: =IF(V71=$F71,#REF!,"") ->  | Z71: T | AA71: 26 | AB71: 0 | AC71: 1000 | AD71: 1000 | AE71: 1000 | AF71: 1000 | AG71: 1000 | AH71: 1000
B72: 10 | C72: 75 | D72: =IF(C72>0,CONCATENATE((VLOOKUP($C72,Inscription!$A$12:$G$211,3,FALSE))," ",(VLOOKUP($C72,Inscription!$A$12:$G$211,4,FALSE)))," ") -> Pezres Didier | F72: =IF(C72>0,(VLOOKUP($C72,Inscription!$A$12:$G$211,5,FALSE))," ") -> EC Créhen | G72: =IF(C72>0,(VLOOKUP($C72,Inscription!$A$12:$G$211,7,FALSE))," ") -> 3 | H72: =LEFT(IF(C72>0,(VLOOKUP($C72,Inscription!$A$12:$G$211,6,FALSE))," "),8) -> 137518 | I72: =IF(COUNTIF($F$4:$F72,$F72)<2,$F72," ") ->  | K72: =IF(I72=F72,#REF!,"") ->  | L72: =IF(COUNTIF($F$4:$F72,$F72)<3,$F72," ") -> EC Créhen | N72: =IF(L72=$F72,#REF!,"") ->  | O72: EC Créhen | Q72: =IF(O72=$F72,#REF!,1000) ->  | R72: =IF(COUNTIF($F$4:$F72,I72)<4,$F72," ") ->  | T72: =IF(R72=$F72,#REF!,"") ->  | X72: =IF(V72=$F72,#REF!,"") ->  | Z72: T | AA72: 27 | AB72: 0 | AC72: 1000 | AD72: 1000 | AE72: 1000 | AF72: 1000 | AG72: 1000 | AH72: 1000
B73: 11 | C73: 73 | D73: =IF(C73>0,CONCATENATE((VLOOKUP($C73,Inscription!$A$12:$G$211,3,FALSE))," ",(VLOOKUP($C73,Inscription!$A$12:$G$211,4,FALSE)))," ") -> Durand Francky | F73: =IF(C73>0,(VLOOKUP($C73,Inscription!$A$12:$G$211,5,FALSE))," ") -> CC Moncontour | G73: =IF(C73>0,(VLOOKUP($C73,Inscription!$A$12:$G$211,7,FALSE))," ") -> 3 | H73: =LEFT(IF(C73>0,(VLOOKUP($C73,Inscription!$A$12:$G$211,6,FALSE))," "),8) -> 480456 | I73: =IF(COUNTIF($F$4:$F73,$F73)<2,$F73," ") ->  | K73: =IF(I73=F73,#REF!,"") ->  | L73: =IF(COUNTIF($F$4:$F73,$F73)<3,$F73," ") -> CC Moncontour | N73: =IF(L73=$F73,#REF!,"") ->  | O73: CC Moncontour | Q73: =IF(O73=$F73,#REF!,1000) ->  | R73: =IF(COUNTIF($F$4:$F73,I73)<4,$F73," ") ->  | T73: =IF(R73=$F73,#REF!,"") ->  | X73: =IF(V73=$F73,#REF!,"") ->  | Z73: T | AA73: 28 | AB73: 0 | AC73: 1000 | AD73: 1000 | AE73: 1000 | AF73: 1000 | AG73: 1000 | AH73: 1000
B74: 12 | C74: 72 | D74: =IF(C74>0,CONCATENATE((VLOOKUP($C74,Inscription!$A$12:$G$211,3,FALSE))," ",(VLOOKUP($C74,Inscription!$A$12:$G$211,4,FALSE)))," ") -> Goupil Michel | F74: =IF(C74>0,(VLOOKUP($C74,Inscription!$A$12:$G$211,5,FALSE))," ") -> Team Mégrit | G74: =IF(C74>0,(VLOOKUP($C74,Inscription!$A$12:$G$211,7,FALSE))," ") -> 3 | H74: =LEFT(IF(C74>0,(VLOOKUP($C74,Inscription!$A$12:$G$211,6,FALSE))," "),8) ->  | I74: =IF(COUNTIF($F$4:$F74,$F74)<2,$F74," ") ->  | K74: =IF(I74=F74,#REF!,"") ->  | L74: =IF(COUNTIF($F$4:$F74,$F74)<3,$F74," ") -> Team Mégrit | N74: =IF(L74=$F74,#REF!,"") ->  | O74: Team Mégrit | Q74: =IF(O74=$F74,#REF!,1000) ->  | R74: =IF(COUNTIF($F$4:$F74,I74)<4,$F74," ") ->  | T74: =IF(R74=$F74,#REF!,"") ->  | X74: =IF(V74=$F74,#REF!,"") ->  | Z74: T | AA74: 29 | AB74: 0 | AC74: 1000 | AD74: 1000 | AE74: 1000 | AF74: 1000 | AG74: 1000 | AH74: 1000
A75: 13 | B75: 13 | C75: 67 | D75: =IF(C75>0,CONCATENATE((VLOOKUP($C75,Inscription!$A$12:$G$211,3,FALSE))," ",(VLOOKUP($C75,Inscription!$A$12:$G$211,4,FALSE)))," ") -> Croisier Ronan | F75: =IF(C75>0,(VLOOKUP($C75,Inscription!$A$12:$G$211,5,FALSE))," ") -> Team Pays de Dinan | G75: =IF(C75>0,(VLOOKUP($C75,Inscription!$A$12:$G$211,7,FALSE))," ") -> 3 | H75: =LEFT(IF(C75>0,(VLOOKUP($C75,Inscription!$A$12:$G$211,6,FALSE))," "),8) -> 136268 | I75: =IF(COUNTIF($F$4:$F75,$F75)<2,$F75," ") ->  | K75: =IF(I75=F75,#REF!,"") ->  | L75: =IF(COUNTIF($F$4:$F75,$F75)<3,$F75," ") ->  | N75: =IF(L75=$F75,#REF!,"") ->  | P75: 1000 | Q75: =IF(O75=$F75,#REF!,1000) -> 1000 | R75: =IF(COUNTIF($F$4:$F75,I75)<4,$F75," ") ->  | T75: =IF(R75=$F75,#REF!,"") ->  | X75: =IF(V75=$F75,#REF!,"") ->  | Z75: 13 | AA75: 30 | AB75: 0 | AC75: 1000 | AD75: 1000 | AE75: 1000 | AF75: 1000 | AG75: 1000 | AH75: 1000
A76: 14 | B76: 14 | C76: 63 | D76: =IF(C76>0,CONCATENATE((VLOOKUP($C76,Inscription!$A$12:$G$211,3,FALSE))," ",(VLOOKUP($C76,Inscription!$A$12:$G$211,4,FALSE)))," ") -> Georget Charles | F76: =IF(C76>0,(VLOOKUP($C76,Inscription!$A$12:$G$211,5,FALSE))," ") -> Lamball'breizh | G76: =IF(C76>0,(VLOOKUP($C76,Inscription!$A$12:$G$211,7,FALSE))," ") -> 3 | H76: =LEFT(IF(C76>0,(VLOOKUP($C76,Inscription!$A$12:$G$211,6,FALSE))," "),8) -> 136132 | I76: =IF(COUNTIF($F$4:$F76,$F76)<2,$F76," ") ->  | K76: =IF(I76=F76,#REF!,"") ->  | L76: =IF(COUNTIF($F$4:$F76,$F76)<3,$F76," ") ->  | N76: =IF(L76=$F76,#REF!,"") ->  | P76: 1000 | Q76: =IF(O76=$F76,#REF!,1000) -> 1000 | R76: =IF(COUNTIF($F$4:$F76,I76)<4,$F76," ") ->  | T76: =IF(R76=$F76,#REF!,"") ->  | X76: =IF(V76=$F76,#REF!,"") ->  | Z76: 14 | AA76: 31 | AB76: 0 | AC76: 1000 | AD76: 1000 | AE76: 1000 | AF76: 1000 | AG76: 1000 | AH76: 1000
A77: 15 | B77: 15 | C77: 64 | D77: =IF(C77>0,CONCATENATE((VLOOKUP($C77,Inscription!$A$12:$G$211,3,FALSE))," ",(VLOOKUP($C77,Inscription!$A$12:$G$211,4,FALSE)))," ") -> Bedel Michel | F77: =IF(C77>0,(VLOOKUP($C77,Inscription!$A$12:$G$211,5,FALSE))," ") -> Lamball'breizh | G77: =IF(C77>0,(VLOOKUP($C77,Inscription!$A$12:$G$211,7,FALSE))," ") -> 3 | H77: =LEFT(IF(C77>0,(VLOOKUP($C77,Inscription!$A$12:$G$211,6,FALSE))," "),8) -> 267277 | I77: =IF(COUNTIF($F$4:$F77,$F77)<2,$F77," ") ->  | K77: =IF(I77=F77,#REF!,"") ->  | L77: =IF(COUNTIF($F$4:$F77,$F77)<3,$F77," ") ->  | N77: =IF(L77=$F77,#REF!,"") ->  | P77: 1000 | Q77: =IF(O77=$F77,#REF!,1000) -> 1000 | R77: =IF(COUNTIF($F$4:$F77,I77)<4,$F77," ") ->  | T77: =IF(R77=$F77,#REF!,"") ->  | X77: =IF(V77=$F77,#REF!,"") ->  | Z77: 15 | AA77: 32 | AB77: 0 | AC77: 1000 | AD77: 1000 | AE77: 1000 | AF77: 1000 | AG77: 1000 | AH77: 1000
A78: 16 | B78: 16 | C78: 77 | D78: =IF(C78>0,CONCATENATE((VLOOKUP($C78,Inscription!$A$12:$G$211,3,FALSE))," ",(VLOOKUP($C78,Inscription!$A$12:$G$211,4,FALSE)))," ") -> Gouya Philippe | F78: =IF(C78>0,(VLOOKUP($C78,Inscription!$A$12:$G$211,5,FALSE))," ") -> EC Créhen | G78: =IF(C78>0,(VLOOKUP($C78,Inscription!$A$12:$G$211,7,FALSE))," ") -> 3 | H78: =LEFT(IF(C78>0,(VLOOKUP($C78,Inscription!$A$12:$G$211,6,FALSE))," "),8) -> 136134 | I78: =IF(COUNTIF($F$4:$F78,$F78)<2,$F78," ") ->  | K78: =IF(I78=F78,#REF!,"") ->  | L78: =IF(COUNTIF($F$4:$F78,$F78)<3,$F78," ") ->  | N78: =IF(L78=$F78,#REF!,"") ->  | P78: 1000 | Q78: =IF(O78=$F78,#REF!,1000) -> 1000 | R78: =IF(COUNTIF($F$4:$F78,I78)<4,$F78," ") ->  | T78: =IF(R78=$F78,#REF!,"") ->  | X78: =IF(V78=$F78,#REF!,"") ->  | Z78: 16 | AA78: 33 | AB78: 0 | AC78: 1000 | AD78: 1000 | AE78: 1000 | AF78: 1000 | AG78: 1000 | AH78: 1000
A79: 17 | B79: 17 | C79: 70 | D79: =IF(C79>0,CONCATENATE((VLOOKUP($C79,Inscription!$A$12:$G$211,3,FALSE))," ",(VLOOKUP($C79,Inscription!$A$12:$G$211,4,FALSE)))," ") -> Gaillard Marcel | F79: =IF(C79>0,(VLOOKUP($C79,Inscription!$A$12:$G$211,5,FALSE))," ") -> COS Kerentrech | G79: =IF(C79>0,(VLOOKUP($C79,Inscription!$A$12:$G$211,7,FALSE))," ") -> 3 | H79: =LEFT(IF(C79>0,(VLOOKUP($C79,Inscription!$A$12:$G$211,6,FALSE))," "),8) -> 153464 | I79: =IF(COUNTIF($F$4:$F79,$F79)<2,$F79," ") -> COS Kerentrech | J79: 17 | K79: =IF(I79=F79,#REF!,"") ->  | L79: =IF(COUNTIF($F$4:$F79,$F79)<3,$F79," ") -> COS Kerentrech | M79: 17 | N79: =IF(L79=$F79,#REF!,"") ->  | P79: 1000 | Q79: =IF(O79=$F79,#REF!,1000) -> 1000 | R79: =IF(COUNTIF($F$4:$F79,I79)<4,$F79," ") -> COS Kerentrech | S79: 17 | T79: =IF(R79=$F79,#REF!,"") ->  | X79: =IF(V79=$F79,#REF!,"") ->  | Z79: 17 | AA79: 34 | AB79: 0 | AC79: 1000 | AD79: 1000 | AE79: 1000 | AF79: 1000 | AG79: 1000 | AH79: 1000
A80: disqualifié | B80: disqualifié | C80: 68 | D80: =IF(C80>0,CONCATENATE((VLOOKUP($C80,Inscription!$A$12:$G$211,3,FALSE))," ",(VLOOKUP($C80,Inscription!$A$12:$G$211,4,FALSE)))," ") -> Durand Jacques | F80: =IF(C80>0,(VLOOKUP($C80,Inscription!$A$12:$G$211,5,FALSE))," ") -> Team Pays de Dinan | G80: =IF(C80>0,(VLOOKUP($C80,Inscription!$A$12:$G$211,7,FALSE))," ") -> 3 | H80: =LEFT(IF(C80>0,(VLOOKUP($C80,Inscription!$A$12:$G$211,6,FALSE))," "),8) -> 136617 | I80: =IF(COUNTIF($F$4:$F80,$F80)<2,$F80," ") ->  | K80: =IF(I80=F80,#REF!,"") ->  | L80: =IF(COUNTIF($F$4:$F80,$F80)<3,$F80," ") ->  | N80: =IF(L80=$F80,#REF!,"") ->  | P80: 1000 | Q80: =IF(O80=$F80,#REF!,1000) -> 1000 | R80: =IF(COUNTIF($F$4:$F80,I80)<4,$F80," ") ->  | T80: =IF(R80=$F80,#REF!,"") ->  | X80: =IF(V80=$F80,#REF!,"") ->  | Z80: disqualifié | AA80: 35 | AB80: 0 | AC80: 1000 | AD80: 1000 | AE80: 1000 | AF80: 1000 | AG80: 1000 | AH80: 1000
B81: absent | C81: 78 | D81: =IF(C81>0,CONCATENATE((VLOOKUP($C81,Inscription!$A$12:$G$211,3,FALSE))," ",(VLOOKUP($C81,Inscription!$A$12:$G$211,4,FALSE)))," ") -> Gilson Frédéric | F81: =IF(C81>0,(VLOOKUP($C81,Inscription!$A$12:$G$211,5,FALSE))," ") -> CC Moncontour | G81: =IF(C81>0,(VLOOKUP($C81,Inscription!$A$12:$G$211,7,FALSE))," ") -> 3 | H81: =LEFT(IF(C81>0,(VLOOKUP($C81,Inscription!$A$12:$G$211,6,FALSE))," "),8) -> 424247 | I81: =IF(COUNTIF($F$4:$F81,$F81)<2,$F81," ") ->  | K81: =IF(I81=F81,#REF!,"") ->  | L81: =IF(COUNTIF($F$4:$F81,$F81)<3,$F81," ") ->  | N81: =IF(L81=$F81,#REF!,"") ->  | P81: 1000 | Q81: =IF(O81=$F81,#REF!,1000) -> 1000 | R81: =IF(COUNTIF($F$4:$F81,I81)<4,$F81," ") ->  | T81: =IF(R81=$F81,#REF!,"") ->  | X81: =IF(V81=$F81,#REF!,"") ->  | Z81: T
A82: 1000 | D82: =IF(C82>0,CONCATENATE((VLOOKUP($C82,Inscription!$A$12:$G$211,3,FALSE))," ",(VLOOKUP($C82,Inscription!$A$12:$G$211,4,FALSE)))," ") ->  | F82: =IF(C82>0,(VLOOKUP($C82,Inscription!$A$12:$G$211,5,FALSE))," ") ->  | G82: =IF(C82>0,(VLOOKUP($C82,Inscription!$A$12:$G$211,7,FALSE))," ") ->  | H82: =LEFT(IF(C82>0,(VLOOKUP($C82,Inscription!$A$12:$G$211,6,FALSE))," "),8) ->  | I82: =IF(COUNTIF($F$4:$F82,$F82)<2,$F82," ") ->  | J82: 1000 | K82: =IF(I82=F82,#REF!,"") ->  | L82: =IF(COUNTIF($F$4:$F82,$F82)<3,$F82," ") ->  | M82: 1000 | N82: =IF(L82=$F82,#REF!,"") ->  | P82: 1000 | Q82: =IF(O82=$F82,#REF!,1000) -> 1000 | R82: =IF(COUNTIF($F$4:$F82,I82)<4,$F82," ") ->  | S82: 1000 | T82: =IF(R82=$F82,#REF!,"") ->  | X82: =IF(V82=$F82,#REF!,"") ->  | Z82: 0
A83: 1000 | D83: =IF(C83>0,CONCATENATE((VLOOKUP($C83,Inscription!$A$12:$G$211,3,FALSE))," ",(VLOOKUP($C83,Inscription!$A$12:$G$211,4,FALSE)))," ") ->  | F83: =IF(C83>0,(VLOOKUP($C83,Inscription!$A$12:$G$211,5,FALSE))," ") ->  | G83: =IF(C83>0,(VLOOKUP($C83,Inscription!$A$12:$G$211,7,FALSE))," ") ->  | H83: =LEFT(IF(C83>0,(VLOOKUP($C83,Inscription!$A$12:$G$211,6,FALSE))," "),8) ->  | I83: =IF(COUNTIF($F$4:$F83,$F83)<2,$F83," ") ->  | J83: 1000 | K83: =IF(I83=F83,#REF!,"") ->  | L83: =IF(COUNTIF($F$4:$F83,$F83)<3,$F83," ") ->  | M83: 1000 | N83: =IF(L83=$F83,#REF!,"") ->  | P83: 1000 | Q83: =IF(O83=$F83,#REF!,1000) -> 1000 | R83: =IF(COUNTIF($F$4:$F83,I83)<4,$F83," ") ->  | S83: 1000 | T83: =IF(R83=$F83,#REF!,"") ->  | X83: =IF(V83=$F83,#REF!,"") ->  | Z83: 0
B84: 1 | C84: 34 | D84: =IF(C84>0,CONCATENATE((VLOOKUP($C84,Inscription!$A$12:$G$211,3,FALSE))," ",(VLOOKUP($C84,Inscription!$A$12:$G$211,4,FALSE)))," ") -> Perrennou Claude | F84: =IF(C84>0,(VLOOKUP($C84,Inscription!$A$12:$G$211,5,FALSE))," ") -> COS Kerentrech | G84: =IF(C84>0,(VLOOKUP($C84,Inscription!$A$12:$G$211,7,FALSE))," ") -> 2 | H84: =LEFT(IF(C84>0,(VLOOKUP($C84,Inscription!$A$12:$G$211,6,FALSE))," "),8) ->  | I84: =IF(COUNTIF($F$4:$F84,$F84)<2,$F84," ") ->  | J84: =IF(I84=F84,A84,"") ->  | K84: =IF(I84=F84,#REF!,"") ->  | L84: =IF(COUNTIF($F$4:$F84,$F84)<3,$F84," ") -> COS Kerentrech | N84: =IF(L84=$F84,#REF!,"") ->  | O84: COS Kerentrech | Q84: =IF(O84=$F84,#REF!,1000) ->  | R84: =IF(COUNTIF($F$4:$F84,I84)<4,$F84," ") ->  | T84: =IF(R84=$F84,#REF!,"") ->  | X84: =IF(V84=$F84,#REF!,"") ->  | Z84: T
B85: 2 | C85: 31 | D85: =IF(C85>0,CONCATENATE((VLOOKUP($C85,Inscription!$A$12:$G$211,3,FALSE))," ",(VLOOKUP($C85,Inscription!$A$12:$G$211,4,FALSE)))," ") -> Prigent Benoit | F85: =IF(C85>0,(VLOOKUP($C85,Inscription!$A$12:$G$211,5,FALSE))," ") -> Lamball'breizh | G85: =IF(C85>0,(VLOOKUP($C85,Inscription!$A$12:$G$211,7,FALSE))," ") -> 2 | H85: =LEFT(IF(C85>0,(VLOOKUP($C85,Inscription!$A$12:$G$211,6,FALSE))," "),8) -> 468745 | I85: =IF(COUNTIF($F$4:$F85,$F85)<2,$F85," ") ->  | K85: =IF(I85=F85,#REF!,"") ->  | L85: =IF(COUNTIF($F$4:$F85,$F85)<3,$F85," ") ->  | N85: =IF(L85=$F85,#REF!,"") ->  | P85: 1000 | Q85: =IF(O85=$F85,#REF!,1000) -> 1000 | R85: =IF(COUNTIF($F$4:$F85,I85)<4,$F85," ") ->  | T85: =IF(R85=$F85,#REF!,"") ->  | X85: =IF(V85=$F85,#REF!,"") ->  | Z85: T
B86: 3 | C86: 41 | D86: =IF(C86>0,CONCATENATE((VLOOKUP($C86,Inscription!$A$12:$G$211,3,FALSE))," ",(VLOOKUP($C86,Inscription!$A$12:$G$211,4,FALSE)))," ") -> letaconnoux sylvain | F86: =IF(C86>0,(VLOOKUP($C86,Inscription!$A$12:$G$211,5,FALSE))," ") -> accro cycles | G86: =IF(C86>0,(VLOOKUP($C86,Inscription!$A$12:$G$211,7,FALSE))," ") -> 2 | H86: =LEFT(IF(C86>0,(VLOOKUP($C86,Inscription!$A$12:$G$211,6,FALSE))," "),8) ->  | I86: =IF(COUNTIF($F$4:$F86,$F86)<2,$F86," ") ->  | K86: =IF(I86=F86,#REF!,"") ->  | L86: =IF(COUNTIF($F$4:$F86,$F86)<3,$F86," ") ->  | N86: =IF(L86=$F86,#REF!,"") ->  | P86: 1000 | Q86: =IF(O86=$F86,#REF!,1000) -> 1000 | R86: =IF(COUNTIF($F$4:$F86,I86)<4,$F86," ") ->  | T86: =IF(R86=$F86,#REF!,"") ->  | X86: =IF(V86=$F86,#REF!,"") ->  | Z86: T
B87: 4 | C87: 30 | D87: =IF(C87>0,CONCATENATE((VLOOKUP($C87,Inscription!$A$12:$G$211,3,FALSE))," ",(VLOOKUP($C87,Inscription!$A$12:$G$211,4,FALSE)))," ") -> Huby Laurent | F87: =IF(C87>0,(VLOOKUP($C87,Inscription!$A$12:$G$211,5,FALSE))," ") -> CC d'Uzel | G87: =IF(C87>0,(VLOOKUP($C87,Inscription!$A$12:$G$211,7,FALSE))," ") -> 2 | H87: =LEFT(IF(C87>0,(VLOOKUP($C87,Inscription!$A$12:$G$211,6,FALSE))," "),8) -> 278430 | I87: =IF(COUNTIF($F$4:$F87,$F87)<2,$F87," ") -> CC d'Uzel | K87: =IF(I87=F87,#REF!,"") ->  | L87: =IF(COUNTIF($F$4:$F87,$F87)<3,$F87," ") -> CC d'Uzel | N87: =IF(L87=$F87,#REF!,"") ->  | P87: 1000 | Q87: =IF(O87=$F87,#REF!,1000) -> 1000 | R87: =IF(COUNTIF($F$4:$F87,I87)<4,$F87," ") -> CC d'Uzel | T87: =IF(R87=$F87,#REF!,"") ->  | X87: =IF(V87=$F87,#REF!,"") ->  | Z87: T
B88: 5 | C88: 33 | D88: =IF(C88>0,CONCATENATE((VLOOKUP($C88,Inscription!$A$12:$G$211,3,FALSE))," ",(VLOOKUP($C88,Inscription!$A$12:$G$211,4,FALSE)))," ") -> Nicolas Patrice | F88: =IF(C88>0,(VLOOKUP($C88,Inscription!$A$12:$G$211,5,FALSE))," ") -> COS Kerentrech | G88: =IF(C88>0,(VLOOKUP($C88,Inscription!$A$12:$G$211,7,FALSE))," ") -> 2 | H88: =LEFT(IF(C88>0,(VLOOKUP($C88,Inscription!$A$12:$G$211,6,FALSE))," "),8) -> 247939 | I88: =IF(COUNTIF($F$4:$F88,$F88)<2,$F88," ") ->  | K88: =IF(I88=F88,#REF!,"") ->  | L88: =IF(COUNTIF($F$4:$F88,$F88)<3,$F88," ") ->  | N88: =IF(L88=$F88,#REF!,"") ->  | P88: 1000 | Q88: =IF(O88=$F88,#REF!,1000) -> 1000 | R88: =IF(COUNTIF($F$4:$F88,I88)<4,$F88," ") ->  | T88: =IF(R88=$F88,#REF!,"") ->  | X88: =IF(V88=$F88,#REF!,"") ->  | Z88: T
B89: 6 | C89: 32 | D89: =IF(C89>0,CONCATENATE((VLOOKUP($C89,Inscription!$A$12:$G$211,3,FALSE))," ",(VLOOKUP($C89,Inscription!$A$12:$G$211,4,FALSE)))," ") -> Bedel Baptiste | F89: =IF(C89>0,(VLOOKUP($C89,Inscription!$A$12:$G$211,5,FALSE))," ") -> Lamball'breizh | G89: =IF(C89>0,(VLOOKUP($C89,Inscription!$A$12:$G$211,7,FALSE))," ") -> 2 | H89: =LEFT(IF(C89>0,(VLOOKUP($C89,Inscription!$A$12:$G$211,6,FALSE))," "),8) -> 136137 | I89: =IF(COUNTIF($F$4:$F89,$F89)<2,$F89," ") ->  | K89: =IF(I89=F89,#REF!,"") ->  | L89: =IF(COUNTIF($F$4:$F89,$F89)<3,$F89," ") ->  | N89: =IF(L89=$F89,#REF!,"") ->  | P89: 1000 | Q89: =IF(O89=$F89,#REF!,1000) -> 1000 | R89: =IF(COUNTIF($F$4:$F89,I89)<4,$F89," ") ->  | T89: =IF(R89=$F89,#REF!,"") ->  | X89: =IF(V89=$F89,#REF!,"") ->  | Z89: T
B90: 7 | C90: 37 | D90: =IF(C90>0,CONCATENATE((VLOOKUP($C90,Inscription!$A$12:$G$211,3,FALSE))," ",(VLOOKUP($C90,Inscription!$A$12:$G$211,4,FALSE)))," ") -> Besnard Jean-Jacques | F90: =IF(C90>0,(VLOOKUP($C90,Inscription!$A$12:$G$211,5,FALSE))," ") -> CC Moncontour | G90: =IF(C90>0,(VLOOKUP($C90,Inscription!$A$12:$G$211,7,FALSE))," ") -> 2 | H90: =LEFT(IF(C90>0,(VLOOKUP($C90,Inscription!$A$12:$G$211,6,FALSE))," "),8) -> 425505 | I90: =IF(COUNTIF($F$4:$F90,$F90)<2,$F90," ") ->  | K90: =IF(I90=F90,#REF!,"") ->  | L90: =IF(COUNTIF($F$4:$F90,$F90)<3,$F90," ") ->  | N90: =IF(L90=$F90,#REF!,"") ->  | P90: 1000 | Q90: =IF(O90=$F90,#REF!,1000) -> 1000 | R90: =IF(COUNTIF($F$4:$F90,I90)<4,$F90," ") ->  | T90: =IF(R90=$F90,#REF!,"") ->  | X90: =IF(V90=$F90,#REF!,"") ->  | Z90: T
B91: 8 | C91: 35 | D91: =IF(C91>0,CONCATENATE((VLOOKUP($C91,Inscription!$A$12:$G$211,3,FALSE))," ",(VLOOKUP($C91,Inscription!$A$12:$G$211,4,FALSE)))," ") -> Leroux Jérôme | F91: =IF(C91>0,(VLOOKUP($C91,Inscription!$A$12:$G$211,5,FALSE))," ") -> CCV Beaussais | G91: =IF(C91>0,(VLOOKUP($C91,Inscription!$A$12:$G$211,7,FALSE))," ") -> 2 | H91: =LEFT(IF(C91>0,(VLOOKUP($C91,Inscription!$A$12:$G$211,6,FALSE))," "),8) -> 349169 | I91: =IF(COUNTIF($F$4:$F91,$F91)<2,$F91," ") ->  | K91: =IF(I91=F91,#REF!,"") ->  | L91: =IF(COUNTIF($F$4:$F91,$F91)<3,$F91," ") -> CCV Beaussais | N91: =IF(L91=$F91,#REF!,"") ->  | O91: CCV Beaussais | Q91: =IF(O91=$F91,#REF!,1000) ->  | R91: =IF(COUNTIF($F$4:$F91,I91)<4,$F91," ") ->  | T91: =IF(R91=$F91,#REF!,"") ->  | X91: =IF(V91=$F91,#REF!,"") ->  | Z91: T
B92: abandon | C92: 36 | D92: =IF(C92>0,CONCATENATE((VLOOKUP($C92,Inscription!$A$12:$G$211,3,FALSE))," ",(VLOOKUP($C92,Inscription!$A$12:$G$211,4,FALSE)))," ") -> Bittoré Luca | F92: =IF(C92>0,(VLOOKUP($C92,Inscription!$A$12:$G$211,5,FALSE))," ") -> CCV Beaussais | G92: =IF(C92>0,(VLOOKUP($C92,Inscription!$A$12:$G$211,7,FALSE))," ") -> 2 | H92: =LEFT(IF(C92>0,(VLOOKUP($C92,Inscription!$A$12:$G$211,6,FALSE))," "),8) -> 465568 | I92: =IF(COUNTIF($F$4:$F92,$F92)<2,$F92," ") ->  | K92: =IF(I92=F92,#REF!,"") ->  | L92: =IF(COUNTIF($F$4:$F92,$F92)<3,$F92," ") ->  | N92: =IF(L92=$F92,#REF!,"") ->  | P92: 1000 | Q92: =IF(O92=$F92,#REF!,1000) -> 1000 | R92: =IF(COUNTIF($F$4:$F92,I92)<4,$F92," ") ->  | T92: =IF(R92=$F92,#REF!,"") ->  | X92: =IF(V92=$F92,#REF!,"") ->  | Z92: T
B93: absent | C93: 38 | D93: =IF(C93>0,CONCATENATE((VLOOKUP($C93,Inscription!$A$12:$G$211,3,FALSE))," ",(VLOOKUP($C93,Inscription!$A$12:$G$211,4,FALSE)))," ") -> Macé Jérome | F93: =IF(C93>0,(VLOOKUP($C93,Inscription!$A$12:$G$211,5,FALSE))," ") -> VC Evron | G93: =IF(C93>0,(VLOOKUP($C93,Inscription!$A$12:$G$211,7,FALSE))," ") -> 2 | H93: =LEFT(IF(C93>0,(VLOOKUP($C93,Inscription!$A$12:$G$211,6,FALSE))," "),8) -> 434904 | I93: =IF(COUNTIF($F$4:$F93,$F93)<2,$F93," ") ->  | K93: =IF(I93=F93,#REF!,"") ->  | L93: =IF(COUNTIF($F$4:$F93,$F93)<3,$F93," ") ->  | N93: =IF(L93=$F93,#REF!,"") ->  | P93: 1000 | Q93: =IF(O93=$F93,#REF!,1000) -> 1000 | R93: =IF(COUNTIF($F$4:$F93,I93)<4,$F93," ") ->  | T93: =IF(R93=$F93,#REF!,"") ->  | X93: =IF(V93=$F93,#REF!,"") ->  | Z93: T
B94: absent | C94: 39 | D94: =IF(C94>0,CONCATENATE((VLOOKUP($C94,Inscription!$A$12:$G$211,3,FALSE))," ",(VLOOKUP($C94,Inscription!$A$12:$G$211,4,FALSE)))," ") -> Henry Damien | F94: =IF(C94>0,(VLOOKUP($C94,Inscription!$A$12:$G$211,5,FALSE))," ") -> VC Dinan | G94: =IF(C94>0,(VLOOKUP($C94,Inscription!$A$12:$G$211,7,FALSE))," ") -> 2 | H94: =LEFT(IF(C94>0,(VLOOKUP($C94,Inscription!$A$12:$G$211,6,FALSE))," "),8) -> 474783 | I94: =IF(COUNTIF($F$4:$F94,$F94)<2,$F94," ") -> VC Dinan | K94: =IF(I94=F94,#REF!,"") ->  | L94: =IF(COUNTIF($F$4:$F94,$F94)<3,$F94," ") -> VC Dinan | N94: =IF(L94=$F94,#REF!,"") ->  | P94: 1000 | Q94: =IF(O94=$F94,#REF!,1000) -> 1000 | R94: =IF(COUNTIF($F$4:$F94,I94)<4,$F94," ") -> VC Dinan | T94: =IF(R94=$F94,#REF!,"") ->  | X94: =IF(V94=$F94,#REF!,"") ->  | Z94: T
A95: 1000 | D95: =IF(C95>0,CONCATENATE((VLOOKUP($C95,Inscription!$A$12:$G$211,3,FALSE))," ",(VLOOKUP($C95,Inscription!$A$12:$G$211,4,FALSE)))," ") ->  | F95: =IF(C95>0,(VLOOKUP($C95,Inscription!$A$12:$G$211,5,FALSE))," ") ->  | G95: =IF(C95>0,(VLOOKUP($C95,Inscription!$A$12:$G$211,7,FALSE))," ") ->  | H95: =LEFT(IF(C95>0,(VLOOKUP($C95,Inscription!$A$12:$G$211,6,FALSE))," "),8) ->  | I95: =IF(COUNTIF($F$4:$F95,$F95)<2,$F95," ") ->  | J95: 1000 | K95: =IF(I95=F95,#REF!,"") ->  | L95: =IF(COUNTIF($F$4:$F95,$F95)<3,$F95," ") ->  | M95: 1000 | N95: =IF(L95=$F95,#REF!,"") ->  | P95: 1000 | Q95: =IF(O95=$F95,#REF!,1000) -> 1000 | R95: =IF(COUNTIF($F$4:$F95,I95)<4,$F95," ") ->  | S95: 1000 | T95: =IF(R95=$F95,#REF!,"") ->  | X95: =IF(V95=$F95,#REF!,"") ->  | Z95: 0
A96: 1000 | D96: =IF(C96>0,CONCATENATE((VLOOKUP($C96,Inscription!$A$12:$G$211,3,FALSE))," ",(VLOOKUP($C96,Inscription!$A$12:$G$211,4,FALSE)))," ") ->  | F96: =IF(C96>0,(VLOOKUP($C96,Inscription!$A$12:$G$211,5,FALSE))," ") ->  | G96: =IF(C96>0,(VLOOKUP($C96,Inscription!$A$12:$G$211,7,FALSE))," ") ->  | H96: =LEFT(IF(C96>0,(VLOOKUP($C96,Inscription!$A$12:$G$211,6,FALSE))," "),8) ->  | I96: =IF(COUNTIF($F$4:$F96,$F96)<2,$F96," ") ->  | J96: 1000 | K96: =IF(I96=F96,#REF!,"") ->  | L96: =IF(COUNTIF($F$4:$F96,$F96)<3,$F96," ") ->  | M96: 1000 | N96: =IF(L96=$F96,#REF!,"") ->  | P96: 1000 | Q96: =IF(O96=$F96,#REF!,1000) -> 1000 | R96: =IF(COUNTIF($F$4:$F96,I96)<4,$F96," ") ->  | S96: 1000 | T96: =IF(R96=$F96,#REF!,"") ->  | X96: =IF(V96=$F96,#REF!,"") ->  | Z96: 0
A97: 1000 | D97: =IF(C97>0,CONCATENATE((VLOOKUP($C97,Inscription!$A$12:$G$211,3,FALSE))," ",(VLOOKUP($C97,Inscription!$A$12:$G$211,4,FALSE)))," ") ->  | F97: =IF(C97>0,(VLOOKUP($C97,Inscription!$A$12:$G$211,5,FALSE))," ") ->  | G97: =IF(C97>0,(VLOOKUP($C97,Inscription!$A$12:$G$211,7,FALSE))," ") ->  | H97: =LEFT(IF(C97>0,(VLOOKUP($C97,Inscription!$A$12:$G$211,6,FALSE))," "),8) ->  | I97: =IF(COUNTIF($F$4:$F97,$F97)<2,$F97," ") ->  | J97: 1000 | K97: =IF(I97=F97,#REF!,"") ->  | L97: =IF(COUNTIF($F$4:$F97,$F97)<3,$F97," ") ->  | M97: 1000 | N97: =IF(L97=$F97,#REF!,"") ->  | P97: 1000 | Q97: =IF(O97=$F97,#REF!,1000) -> 1000 | R97: =IF(COUNTIF($F$4:$F97,I97)<4,$F97," ") ->  | S97: 1000 | T97: =IF(R97=$F97,#REF!,"") ->  | X97: =IF(V97=$F97,#REF!,"") ->  | Z97: 0
A98: 1000 | D98: 1ère Catégorie | F98: =IF(C98>0,(VLOOKUP($C98,Inscription!$A$12:$G$211,5,FALSE))," ") ->  | G98: =IF(C98>0,(VLOOKUP($C98,Inscription!$A$12:$G$211,7,FALSE))," ") ->  | H98: =LEFT(IF(C98>0,(VLOOKUP($C98,Inscription!$A$12:$G$211,6,FALSE))," "),8) ->  | I98: =IF(COUNTIF($F$4:$F98,$F98)<2,$F98," ") ->  | J98: 1000 | K98: =IF(I98=F98,#REF!,"") ->  | L98: =IF(COUNTIF($F$4:$F98,$F98)<3,$F98," ") ->  | M98: 1000 | N98: =IF(L98=$F98,#REF!,"") ->  | P98: 1000 | Q98: =IF(O98=$F98,#REF!,1000) -> 1000 | R98: =IF(COUNTIF($F$4:$F98,I98)<4,$F98," ") ->  | S98: 1000 | T98: =IF(R98=$F98,#REF!,"") ->  | X98: =IF(V98=$F98,#REF!,"") ->  | Z98: 0
A99: =IF(B99<1,1000,(IF(Z99=B99,B99,(20100-SUM($Z$4:$Z$204))/(COUNTIF($Z$4:$Z$204,"T"))))) ->  | B99: 1 | C99: 4 | D99: =IF(C99>0,CONCATENATE((VLOOKUP($C99,Inscription!$A$12:$G$211,3,FALSE))," ",(VLOOKUP($C99,Inscription!$A$12:$G$211,4,FALSE)))," ") -> Allot Sébastien | F99: =IF(C99>0,(VLOOKUP($C99,Inscription!$A$12:$G$211,5,FALSE))," ") -> VS Ploumagoar | G99: =IF(C99>0,(VLOOKUP($C99,Inscription!$A$12:$G$211,7,FALSE))," ") -> 1 | H99: =LEFT(IF(C99>0,(VLOOKUP($C99,Inscription!$A$12:$G$211,6,FALSE))," "),8) ->  | I99: =IF(COUNTIF($F$4:$F99,$F99)<2,$F99," ") ->  | K99: =IF(I99=F99,#REF!,"") ->  | L99: =IF(COUNTIF($F$4:$F99,$F99)<3,$F99," ") -> VS Ploumagoar | N99: =IF(L99=$F99,#REF!,"") ->  | O99: VS Ploumagoar | Q99: =IF(O99=$F99,#REF!,1000) ->  | R99: =IF(COUNTIF($F$4:$F99,I99)<4,$F99," ") ->  | T99: =IF(R99=$F99,#REF!,"") ->  | X99: =IF(V99=$F99,#REF!,"") ->  | Y99: =IF(COUNTIF($C$4:$C$204,C99)>1,"X"," ") ->  | Z99: =IF(COUNTIF($B$4:$B$204,B99)>1,"T",B99) -> T
B100: 2 | C100: 8 | D100: =IF(C100>0,CONCATENATE((VLOOKUP($C100,Inscription!$A$12:$G$211,3,FALSE))," ",(VLOOKUP($C100,Inscription!$A$12:$G$211,4,FALSE)))," ") -> Le Ponner Christophe | F100: =IF(C100>0,(VLOOKUP($C100,Inscription!$A$12:$G$211,5,FALSE))," ") -> UC Plaudren | G100: =IF(C100>0,(VLOOKUP($C100,Inscription!$A$12:$G$211,7,FALSE))," ") -> 1 | H100: =LEFT(IF(C100>0,(VLOOKUP($C100,Inscription!$A$12:$G$211,6,FALSE))," "),8) ->  | I100: =IF(COUNTIF($F$4:$F100,$F100)<2,$F100," ") ->  | K100: =IF(I100=F100,#REF!,"") ->  | L100: =IF(COUNTIF($F$4:$F100,$F100)<3,$F100," ") ->  | N100: =IF(L100=$F100,#REF!,"") ->  | P100: 1000 | Q100: =IF(O100=$F100,#REF!,1000) -> 1000 | R100: =IF(COUNTIF($F$4:$F100,I100)<4,$F100," ") ->  | T100: =IF(R100=$F100,#REF!,"") ->  | X100: =IF(V100=$F100,#REF!,"") ->  | Z100: T
B101: 3 | C101: 2 | D101: =IF(C101>0,CONCATENATE((VLOOKUP($C101,Inscription!$A$12:$G$211,3,FALSE))," ",(VLOOKUP($C101,Inscription!$A$12:$G$211,4,FALSE)))," ") -> Coualan Jordan | F101: =IF(C101>0,(VLOOKUP($C101,Inscription!$A$12:$G$211,5,FALSE))," ") -> CC Pleven | G101: =IF(C101>0,(VLOOKUP($C101,Inscription!$A$12:$G$211,7,FALSE))," ") -> 1 | H101: =LEFT(IF(C101>0,(VLOOKUP($C101,Inscription!$A$12:$G$211,6,FALSE))," "),8) -> 511484 | I101: =IF(COUNTIF($F$4:$F101,$F101)<2,$F101," ") -> CC Pleven | K101: =IF(I101=F101,#REF!,"") ->  | L101: =IF(COUNTIF($F$4:$F101,$F101)<3,$F101," ") -> CC Pleven | N101: =IF(L101=$F101,#REF!,"") ->  | P101: 1000 | Q101: =IF(O101=$F101,#REF!,1000) -> 1000 | R101: =IF(COUNTIF($F$4:$F101,I101)<4,$F101," ") -> CC Pleven | T101: =IF(R101=$F101,#REF!,"") ->  | X101: =IF(V101=$F101,#REF!,"") ->  | Z101: T
B102: 4 | C102: 6 | D102: =IF(C102>0,CONCATENATE((VLOOKUP($C102,Inscription!$A$12:$G$211,3,FALSE))," ",(VLOOKUP($C102,Inscription!$A$12:$G$211,4,FALSE)))," ") -> Le Bellego Maxime | F102: =IF(C102>0,(VLOOKUP($C102,Inscription!$A$12:$G$211,5,FALSE))," ") -> VTT du Lié | G102: =IF(C102>0,(VLOOKUP($C102,Inscription!$A$12:$G$211,7,FALSE))," ") -> 1 | H102: =LEFT(IF(C102>0,(VLOOKUP($C102,Inscription!$A$12:$G$211,6,FALSE))," "),8) -> 480114 | I102: =IF(COUNTIF($F$4:$F102,$F102)<2,$F102," ") ->  | K102: =IF(I102=F102,#REF!,"") ->  | L102: =IF(COUNTIF($F$4:$F102,$F102)<3,$F102," ") ->  | N102: =IF(L102=$F102,#REF!,"") ->  | P102: 1000 | Q102: =IF(O102=$F102,#REF!,1000) -> 1000 | R102: =IF(COUNTIF($F$4:$F102,I102)<4,$F102," ") ->  | T102: =IF(R102=$F102,#REF!,"") ->  | X102: =IF(V102=$F102,#REF!,"") ->  | Z102: T
B103: 5 | C103: 3 | D103: =IF(C103>0,CONCATENATE((VLOOKUP($C103,Inscription!$A$12:$G$211,3,FALSE))," ",(VLOOKUP($C103,Inscription!$A$12:$G$211,4,FALSE)))," ") -> Sieurin Sébastien | F103: =IF(C103>0,(VLOOKUP($C103,Inscription!$A$12:$G$211,5,FALSE))," ") -> VC Evron | G103: =IF(C103>0,(VLOOKUP($C103,Inscription!$A$12:$G$211,7,FALSE))," ") -> 1 | H103: =LEFT(IF(C103>0,(VLOOKUP($C103,Inscription!$A$12:$G$211,6,FALSE))," "),8) ->  | I103: =IF(COUNTIF($F$4:$F103,$F103)<2,$F103," ") ->  | K103: =IF(I103=F103,#REF!,"") ->  | L103: =IF(COUNTIF($F$4:$F103,$F103)<3,$F103," ") ->  | N103: =IF(L103=$F103,#REF!,"") ->  | P103: 1000 | Q103: =IF(O103=$F103,#REF!,1000) -> 1000 | R103: =IF(COUNTIF($F$4:$F103,I103)<4,$F103," ") ->  | T103: =IF(R103=$F103,#REF!,"") ->  | X103: =IF(V103=$F103,#REF!,"") ->  | Z103: T
B104: 6 | C104: 7 | D104: =IF(C104>0,CONCATENATE((VLOOKUP($C104,Inscription!$A$12:$G$211,3,FALSE))," ",(VLOOKUP($C104,Inscription!$A$12:$G$211,4,FALSE)))," ") -> Flégeau David | F104: =IF(C104>0,(VLOOKUP($C104,Inscription!$A$12:$G$211,5,FALSE))," ") -> Team Bikers 22 | G104: =IF(C104>0,(VLOOKUP($C104,Inscription!$A$12:$G$211,7,FALSE))," ") -> 1 | H104: =LEFT(IF(C104>0,(VLOOKUP($C104,Inscription!$A$12:$G$211,6,FALSE))," "),8) -> 137996 | I104: =IF(COUNTIF($F$4:$F104,$F104)<2,$F104," ") ->  | K104: =IF(I104=F104,#REF!,"") ->  | L104: =IF(COUNTIF($F$4:$F104,$F104)<3,$F104," ") ->  | N104: =IF(L104=$F104,#REF!,"") ->  | P104: 1000 | Q104: =IF(O104=$F104,#REF!,1000) -> 1000 | R104: =IF(COUNTIF($F$4:$F104,I104)<4,$F104," ") ->  | T104: =IF(R104=$F104,#REF!,"") ->  | X104: =IF(V104=$F104,#REF!,"") ->  | Z104: T
B105: 7 | C105: 5 | D105: =IF(C105>0,CONCATENATE((VLOOKUP($C105,Inscription!$A$12:$G$211,3,FALSE))," ",(VLOOKUP($C105,Inscription!$A$12:$G$211,4,FALSE)))," ") -> Joannot Jérémy | F105: =IF(C105>0,(VLOOKUP($C105,Inscription!$A$12:$G$211,5,FALSE))," ") -> Team Broons | G105: =IF(C105>0,(VLOOKUP($C105,Inscription!$A$12:$G$211,7,FALSE))," ") -> 1 | H105: =LEFT(IF(C105>0,(VLOOKUP($C105,Inscription!$A$12:$G$211,6,FALSE))," "),8) -> 506026 | I105: =IF(COUNTIF($F$4:$F105,$F105)<2,$F105," ") ->  | K105: =IF(I105=F105,#REF!,"") ->  | L105: =IF(COUNTIF($F$4:$F105,$F105)<3,$F105," ") -> Team Broons | N105: =IF(L105=$F105,#REF!,"") ->  | O105: Team Broons | Q105: =IF(O105=$F105,#REF!,1000) ->  | R105: =IF(COUNTIF($F$4:$F105,I105)<4,$F105," ") ->  | T105: =IF(R105=$F105,#REF!,"") ->  | X105: =IF(V105=$F105,#REF!,"") ->  | Z105: T
B106: absent | C106: 1 | D106: =IF(C106>0,CONCATENATE((VLOOKUP($C106,Inscription!$A$12:$G$211,3,FALSE))," ",(VLOOKUP($C106,Inscription!$A$12:$G$211,4,FALSE)))," ") -> Saulnier Florentin | F106: =IF(C106>0,(VLOOKUP($C106,Inscription!$A$12:$G$211,5,FALSE))," ") -> CCV Beaussais | G106: =IF(C106>0,(VLOOKUP($C106,Inscription!$A$12:$G$211,7,FALSE))," ") -> 1 | H106: =LEFT(IF(C106>0,(VLOOKUP($C106,Inscription!$A$12:$G$211,6,FALSE))," "),8) -> 137523 | I106: =IF(COUNTIF($F$4:$F106,$F106)<2,$F106," ") ->  | K106: =IF(I106=F106,#REF!,"") ->  | L106: =IF(COUNTIF($F$4:$F106,$F106)<3,$F106," ") ->  | N106: =IF(L106=$F106,#REF!,"") ->  | P106: 1000 | Q106: =IF(O106=$F106,#REF!,1000) -> 1000 | R106: =IF(COUNTIF($F$4:$F106,I106)<4,$F106," ") ->  | T106: =IF(R106=$F106,#REF!,"") ->  | X106: =IF(V106=$F106,#REF!,"") ->  | Z106: T
A107: 1000 | D107: =IF(C107>0,CONCATENATE((VLOOKUP($C107,Inscription!$A$12:$G$211,3,FALSE))," ",(VLOOKUP($C107,Inscription!$A$12:$G$211,4,FALSE)))," ") ->  | F107: =IF(C107>0,(VLOOKUP($C107,Inscription!$A$12:$G$211,5,FALSE))," ") ->  | G107: =IF(C107>0,(VLOOKUP($C107,Inscription!$A$12:$G$211,7,FALSE))," ") ->  | H107: =LEFT(IF(C107>0,(VLOOKUP($C107,Inscription!$A$12:$G$211,6,FALSE))," "),8) ->  | I107: =IF(COUNTIF($F$4:$F107,$F107)<2,$F107," ") ->  | J107: 1000 | K107: =IF(I107=F107,#REF!,"") ->  | L107: =IF(COUNTIF($F$4:$F107,$F107)<3,$F107," ") ->  | M107: 1000 | N107: =IF(L107=$F107,#REF!,"") ->  | P107: 1000 | Q107: =IF(O107=$F107,#REF!,1000) -> 1000 | R107: =IF(COUNTIF($F$4:$F107,I107)<4,$F107," ") ->  | S107: 1000 | T107: =IF(R107=$F107,#REF!,"") ->  | X107: =IF(V107=$F107,#REF!,"") ->  | Z107: 0
A108: 1000 | D108: Junior | F108: =IF(C108>0,(VLOOKUP($C108,Inscription!$A$12:$G$211,5,FALSE))," ") ->  | G108: =IF(C108>0,(VLOOKUP($C108,Inscription!$A$12:$G$211,7,FALSE))," ") ->  | H108: =LEFT(IF(C108>0,(VLOOKUP($C108,Inscription!$A$12:$G$211,6,FALSE))," "),8) ->  | I108: =IF(COUNTIF($F$4:$F108,$F108)<2,$F108," ") ->  | J108: 1000 | K108: =IF(I108=F108,#REF!,"") ->  | L108: =IF(COUNTIF($F$4:$F108,$F108)<3,$F108," ") ->  | M108: 1000 | N108: =IF(L108=$F108,#REF!,"") ->  | P108: 1000 | Q108: =IF(O108=$F108,#REF!,1000) -> 1000 | R108: =IF(COUNTIF($F$4:$F108,I108)<4,$F108," ") ->  | S108: 1000 | T108: =IF(R108=$F108,#REF!,"") ->  | X108: =IF(V108=$F108,#REF!,"") ->  | Z108: 0
A109: 1000 | C109: 20 | D109: =IF(C109>0,CONCATENATE((VLOOKUP($C109,Inscription!$A$12:$G$211,3,FALSE))," ",(VLOOKUP($C109,Inscription!$A$12:$G$211,4,FALSE)))," ") -> Ruffet Titouan | F109: =IF(C109>0,(VLOOKUP($C109,Inscription!$A$12:$G$211,5,FALSE))," ") -> CC Moncontour | G109: =IF(C109>0,(VLOOKUP($C109,Inscription!$A$12:$G$211,7,FALSE))," ") -> junior | H109: =LEFT(IF(C109>0,(VLOOKUP($C109,Inscription!$A$12:$G$211,6,FALSE))," "),8) -> 457920 | I109: =IF(COUNTIF($F$4:$F109,$F109)<2,$F109," ") ->  | K109: =IF(I109=F109,#REF!,"") ->  | L109: =IF(COUNTIF($F$4:$F109,$F109)<3,$F109," ") ->  | N109: =IF(L109=$F109,#REF!,"") ->  | P109: 1000 | Q109: =IF(O109=$F109,#REF!,1000) -> 1000 | R109: =IF(COUNTIF($F$4:$F109,I109)<4,$F109," ") ->  | T109: =IF(R109=$F109,#REF!,"") ->  | X109: =IF(V109=$F109,#REF!,"") ->  | Z109: 0
B110: absent | C110: 21 | D110: =IF(C110>0,CONCATENATE((VLOOKUP($C110,Inscription!$A$12:$G$211,3,FALSE))," ",(VLOOKUP($C110,Inscription!$A$12:$G$211,4,FALSE)))," ") -> Le Masson Hugo | F110: =IF(C110>0,(VLOOKUP($C110,Inscription!$A$12:$G$211,5,FALSE))," ") -> VC Evron | G110: =IF(C110>0,(VLOOKUP($C110,Inscription!$A$12:$G$211,7,FALSE))," ") -> Junior | H110: =LEFT(IF(C110>0,(VLOOKUP($C110,Inscription!$A$12:$G$211,6,FALSE))," "),8) ->  | I110: =IF(COUNTIF($F$4:$F110,$F110)<2,$F110," ") ->  | K110: =IF(I110=F110,#REF!,"") ->  | L110: =IF(COUNTIF($F$4:$F110,$F110)<3,$F110," ") ->  | N110: =IF(L110=$F110,#REF!,"") ->  | P110: 1000 | Q110: =IF(O110=$F110,#REF!,1000) -> 1000 | R110: =IF(COUNTIF($F$4:$F110,I110)<4,$F110," ") ->  | T110: =IF(R110=$F110,#REF!,"") ->  | X110: =IF(V110=$F110,#REF!,"") ->  | Z110: T
A111: 1000 | D111: =IF(C111>0,CONCATENATE((VLOOKUP($C111,Inscription!$A$12:$G$211,3,FALSE))," ",(VLOOKUP($C111,Inscription!$A$12:$G$211,4,FALSE)))," ") ->  | F111: =IF(C111>0,(VLOOKUP($C111,Inscription!$A$12:$G$211,5,FALSE))," ") ->  | G111: =IF(C111>0,(VLOOKUP($C111,Inscription!$A$12:$G$211,7,FALSE))," ") ->  | H111: =LEFT(IF(C111>0,(VLOOKUP($C111,Inscription!$A$12:$G$211,6,FALSE))," "),8) ->  | I111: =IF(COUNTIF($F$4:$F111,$F111)<2,$F111," ") ->  | J111: 1000 | K111: =IF(I111=F111,#REF!,"") ->  | L111: =IF(COUNTIF($F$4:$F111,$F111)<3,$F111," ") ->  | M111: 1000 | N111: =IF(L111=$F111,#REF!,"") ->  | P111: 1000 | Q111: =IF(O111=$F111,#REF!,1000) -> 1000 | R111: =IF(COUNTIF($F$4:$F111,I111)<4,$F111," ") ->  | S111: 1000 | T111: =IF(R111=$F111,#REF!,"") ->  | X111: =IF(V111=$F111,#REF!,"") ->  | Z111: 0
A112: 1000 | D112: Féminine | F112: =IF(C112>0,(VLOOKUP($C112,Inscription!$A$12:$G$211,5,FALSE))," ") ->  | G112: =IF(C112>0,(VLOOKUP($C112,Inscription!$A$12:$G$211,7,FALSE))," ") ->  | H112: =LEFT(IF(C112>0,(VLOOKUP($C112,Inscription!$A$12:$G$211,6,FALSE))," "),8) ->  | I112: =IF(COUNTIF($F$4:$F112,$F112)<2,$F112," ") ->  | J112: 1000 | K112: =IF(I112=F112,#REF!,"") ->  | L112: =IF(COUNTIF($F$4:$F112,$F112)<3,$F112," ") ->  | M112: 1000 | N112: =IF(L112=$F112,#REF!,"") ->  | P112: 1000 | Q112: =IF(O112=$F112,#REF!,1000) -> 1000 | R112: =IF(COUNTIF($F$4:$F112,I112)<4,$F112," ") ->  | S112: 1000 | T112: =IF(R112=$F112,#REF!,"") ->  | X112: =IF(V112=$F112,#REF!,"") ->  | Z112: 0
B113: 1 | C113: 93 | D113: =IF(C113>0,CONCATENATE((VLOOKUP($C113,Inscription!$A$12:$G$211,3,FALSE))," ",(VLOOKUP($C113,Inscription!$A$12:$G$211,4,FALSE)))," ") -> Amice Florine | F113: =IF(C113>0,(VLOOKUP($C113,Inscription!$A$12:$G$211,5,FALSE))," ") -> Souffle d'espoir | G113: =IF(C113>0,(VLOOKUP($C113,Inscription!$A$12:$G$211,7,FALSE))," ") -> féminine | H113: =LEFT(IF(C113>0,(VLOOKUP($C113,Inscription!$A$12:$G$211,6,FALSE))," "),8) -> 137425 | I113: =IF(COUNTIF($F$4:$F113,$F113)<2,$F113," ") -> Souffle d'espoir | K113: =IF(I113=F113,#REF!,"") ->  | L113: =IF(COUNTIF($F$4:$F113,$F113)<3,$F113," ") -> Souffle d'espoir | N113: =IF(L113=$F113,#REF!,"") ->  | P113: 1000 | Q113: =IF(O113=$F113,#REF!,1000) -> 1000 | R113: =IF(COUNTIF($F$4:$F113,I113)<4,$F113," ") -> Souffle d'espoir | T113: =IF(R113=$F113,#REF!,"") ->  | X113: =IF(V113=$F113,#REF!,"") ->  | Z113: T
B114: 2 | C114: 91 | D114: =IF(C114>0,CONCATENATE((VLOOKUP($C114,Inscription!$A$12:$G$211,3,FALSE))," ",(VLOOKUP($C114,Inscription!$A$12:$G$211,4,FALSE)))," ") -> Rivolet Agnes | F114: =IF(C114>0,(VLOOKUP($C114,Inscription!$A$12:$G$211,5,FALSE))," ") -> VTT Côtes d'Armor Hillion | G114: =IF(C114>0,(VLOOKUP($C114,Inscription!$A$12:$G$211,7,FALSE))," ") -> féminine | H114: =LEFT(IF(C114>0,(VLOOKUP($C114,Inscription!$A$12:$G$211,6,FALSE))," "),8) -> 443442 | I114: =IF(COUNTIF($F$4:$F114,$F114)<2,$F114," ") ->  | K114: =IF(I114=F114,#REF!,"") ->  | L114: =IF(COUNTIF($F$4:$F114,$F114)<3,$F114," ") ->  | N114: =IF(L114=$F114,#REF!,"") ->  | P114: 1000 | Q114: =IF(O114=$F114,#REF!,1000) -> 1000 | R114: =IF(COUNTIF($F$4:$F114,I114)<4,$F114," ") ->  | T114: =IF(R114=$F114,#REF!,"") ->  | X114: =IF(V114=$F114,#REF!,"") ->  | Z114: T
B115: 3 | C115: 92 | D115: =IF(C115>0,CONCATENATE((VLOOKUP($C115,Inscription!$A$12:$G$211,3,FALSE))," ",(VLOOKUP($C115,Inscription!$A$12:$G$211,4,FALSE)))," ") -> Leray Gwladys | F115: =IF(C115>0,(VLOOKUP($C115,Inscription!$A$12:$G$211,5,FALSE))," ") -> Team XC du Léguer | G115: =IF(C115>0,(VLOOKUP($C115,Inscription!$A$12:$G$211,7,FALSE))," ") -> féminine | H115: =LEFT(IF(C115>0,(VLOOKUP($C115,Inscription!$A$12:$G$211,6,FALSE))," "),8) -> 359228 | I115: =IF(COUNTIF($F$4:$F115,$F115)<2,$F115," ") ->  | K115: =IF(I115=F115,#REF!,"") ->  | L115: =IF(COUNTIF($F$4:$F115,$F115)<3,$F115," ") ->  | N115: =IF(L115=$F115,#REF!,"") ->  | P115: 1000 | Q115: =IF(O115=$F115,#REF!,1000) -> 1000 | R115: =IF(COUNTIF($F$4:$F115,I115)<4,$F115," ") ->  | T115: =IF(R115=$F115,#REF!,"") ->  | X115: =IF(V115=$F115,#REF!,"") ->  | Z115: T
B116: abandon | C116: 90 | D116: =IF(C116>0,CONCATENATE((VLOOKUP($C116,Inscription!$A$12:$G$211,3,FALSE))," ",(VLOOKUP($C116,Inscription!$A$12:$G$211,4,FALSE)))," ") -> Camus Kristell | F116: =IF(C116>0,(VLOOKUP($C116,Inscription!$A$12:$G$211,5,FALSE))," ") -> VC Evron | G116: =IF(C116>0,(VLOOKUP($C116,Inscription!$A$12:$G$211,7,FALSE))," ") -> féminine | H116: =LEFT(IF(C116>0,(VLOOKUP($C116,Inscription!$A$12:$G$211,6,FALSE))," "),8) ->  | I116: =IF(COUNTIF($F$4:$F116,$F116)<2,$F116," ") ->  | J116: =IF(I116=F116,A116,"") ->  | K116: =IF(I116=F116,#REF!,"") ->  | L116: =IF(COUNTIF($F$4:$F116,$F116)<3,$F116," ") ->  | N116: =IF(L116=$F116,#REF!,"") ->  | P116: 1000 | Q116: =IF(O116=$F116,#REF!,1000) -> 1000 | R116: =IF(COUNTIF($F$4:$F116,I116)<4,$F116," ") ->  | T116: =IF(R116=$F116,#REF!,"") ->  | X116: =IF(V116=$F116,#REF!,"") ->  | Z116: T
A117: =IF(#REF!<1,1000,(IF(Z117=#REF!,#REF!,(20100-SUM($Z$4:$Z$204))/(COUNTIF($Z$4:$Z$204,"T"))))) ->  | D117: =IF(C117>0,CONCATENATE((VLOOKUP($C117,Inscription!$A$12:$G$211,3,FALSE))," ",(VLOOKUP($C117,Inscription!$A$12:$G$211,4,FALSE)))," ") ->  | F117: =IF(C117>0,(VLOOKUP($C117,Inscription!$A$12:$G$211,5,FALSE))," ") ->  | G117: =IF(C117>0,(VLOOKUP($C117,Inscription!$A$12:$G$211,7,FALSE))," ") ->  | H117: =LEFT(IF(C117>0,(VLOOKUP($C117,Inscription!$A$12:$G$211,6,FALSE))," "),8) ->  | I117: =IF(COUNTIF($F$4:$F117,$F117)<2,$F117," ") ->  | K117: =IF(I117=F117,#REF!,"") ->  | L117: =IF(COUNTIF($F$4:$F117,$F117)<3,$F117," ") ->  | N117: =IF(L117=$F117,#REF!,"") ->  | P117: 1000 | Q117: =IF(O117=$F117,#REF!,1000) -> 1000 | R117: =IF(COUNTIF($F$4:$F117,I117)<4,$F117," ") ->  | T117: =IF(R117=$F117,#REF!,"") ->  | X117: =IF(V117=$F117,#REF!,"") ->  | Y117: =IF(COUNTIF($C$4:$C$204,#REF!)>1,"X"," ") ->  | Z117: =IF(COUNTIF($B$4:$B$204,#REF!)>1,"T",#REF!) -> 
A118: =IF(#REF!<1,1000,(IF(Z118=#REF!,#REF!,(20100-SUM($Z$4:$Z$204))/(COUNTIF($Z$4:$Z$204,"T"))))) ->  | D118: =IF(C118>0,CONCATENATE((VLOOKUP($C118,Inscription!$A$12:$G$211,3,FALSE))," ",(VLOOKUP($C118,Inscription!$A$12:$G$211,4,FALSE)))," ") ->  | F118: =IF(C118>0,(VLOOKUP($C118,Inscription!$A$12:$G$211,5,FALSE))," ") ->  | G118: =IF(C118>0,(VLOOKUP($C118,Inscription!$A$12:$G$211,7,FALSE))," ") ->  | H118: =LEFT(IF(C118>0,(VLOOKUP($C118,Inscription!$A$12:$G$211,6,FALSE))," "),8) ->  | I118: =IF(COUNTIF($F$4:$F118,$F118)<2,$F118," ") ->  | K118: =IF(I118=F118,#REF!,"") ->  | L118: =IF(COUNTIF($F$4:$F118,$F118)<3,$F118," ") ->  | N118: =IF(L118=$F118,#REF!,"") ->  | P118: 1000 | Q118: =IF(O118=$F118,#REF!,1000) -> 1000 | R118: =IF(COUNTIF($F$4:$F118,I118)<4,$F118," ") ->  | T118: =IF(R118=$F118,#REF!,"") ->  | X118: =IF(V118=$F118,#REF!,"") ->  | Y118: =IF(COUNTIF($C$4:$C$204,#REF!)>1,"X"," ") ->  | Z118: =IF(COUNTIF($B$4:$B$204,#REF!)>1,"T",#REF!) -> 
A119: =IF(#REF!<1,1000,(IF(Z119=#REF!,#REF!,(20100-SUM($Z$4:$Z$204))/(COUNTIF($Z$4:$Z$204,"T"))))) ->  | D119: =IF(C119>0,CONCATENATE((VLOOKUP($C119,Inscription!$A$12:$G$211,3,FALSE))," ",(VLOOKUP($C119,Inscription!$A$12:$G$211,4,FALSE)))," ") ->  | F119: =IF(C119>0,(VLOOKUP($C119,Inscription!$A$12:$G$211,5,FALSE))," ") ->  | G119: =IF(C119>0,(VLOOKUP($C119,Inscription!$A$12:$G$211,7,FALSE))," ") ->  | H119: =LEFT(IF(C119>0,(VLOOKUP($C119,Inscription!$A$12:$G$211,6,FALSE))," "),8) ->  | I119: =IF(COUNTIF($F$4:$F119,$F119)<2,$F119," ") ->  | K119: =IF(I119=F119,#REF!,"") ->  | L119: =IF(COUNTIF($F$4:$F119,$F119)<3,$F119," ") ->  | N119: =IF(L119=$F119,#REF!,"") ->  | P119: 1000 | Q119: =IF(O119=$F119,#REF!,1000) -> 1000 | R119: =IF(COUNTIF($F$4:$F119,I119)<4,$F119," ") ->  | T119: =IF(R119=$F119,#REF!,"") ->  | X119: =IF(V119=$F119,#REF!,"") ->  | Y119: =IF(COUNTIF($C$4:$C$204,#REF!)>1,"X"," ") ->  | Z119: =IF(COUNTIF($B$4:$B$204,#REF!)>1,"T",#REF!) -> 
A120: =IF(#REF!<1,1000,(IF(Z120=#REF!,#REF!,(20100-SUM($Z$4:$Z$204))/(COUNTIF($Z$4:$Z$204,"T"))))) ->  | D120: =IF(C120>0,CONCATENATE((VLOOKUP($C120,Inscription!$A$12:$G$211,3,FALSE))," ",(VLOOKUP($C120,Inscription!$A$12:$G$211,4,FALSE)))," ") ->  | F120: =IF(C120>0,(VLOOKUP($C120,Inscription!$A$12:$G$211,5,FALSE))," ") ->  | G120: =IF(C120>0,(VLOOKUP($C120,Inscription!$A$12:$G$211,7,FALSE))," ") ->  | H120: =LEFT(IF(C120>0,(VLOOKUP($C120,Inscription!$A$12:$G$211,6,FALSE))," "),8) ->  | I120: =IF(COUNTIF($F$4:$F120,$F120)<2,$F120," ") ->  | K120: =IF(I120=F120,#REF!,"") ->  | L120: =IF(COUNTIF($F$4:$F120,$F120)<3,$F120," ") ->  | N120: =IF(L120=$F120,#REF!,"") ->  | P120: 1000 | Q120: =IF(O120=$F120,#REF!,1000) -> 1000 | R120: =IF(COUNTIF($F$4:$F120,I120)<4,$F120," ") ->  | T120: =IF(R120=$F120,#REF!,"") ->  | X120: =IF(V120=$F120,#REF!,"") ->  | Y120: =IF(COUNTIF($C$4:$C$204,#REF!)>1,"X"," ") ->  | Z120: =IF(COUNTIF($B$4:$B$204,#REF!)>1,"T",#REF!) -> 
A121: =IF(B121<1,1000,(IF(Z121=B121,B121,(20100-SUM($Z$4:$Z$204))/(COUNTIF($Z$4:$Z$204,"T"))))) -> 1000 | D121: =IF(C121>0,CONCATENATE((VLOOKUP($C121,Inscription!$A$12:$G$211,3,FALSE))," ",(VLOOKUP($C121,Inscription!$A$12:$G$211,4,FALSE)))," ") ->  | F121: =IF(C121>0,(VLOOKUP($C121,Inscription!$A$12:$G$211,5,FALSE))," ") ->  | G121: =IF(C121>0,(VLOOKUP($C121,Inscription!$A$12:$G$211,7,FALSE))," ") ->  | H121: =LEFT(IF(C121>0,(VLOOKUP($C121,Inscription!$A$12:$G$211,6,FALSE))," "),8) ->  | I121: =IF(COUNTIF($F$4:$F121,$F121)<2,$F121," ") ->  | J121: 1000 | K121: =IF(I121=F121,#REF!,"") ->  | L121: =IF(COUNTIF($F$4:$F121,$F121)<3,$F121," ") ->  | M121: 1000 | N121: =IF(L121=$F121,#REF!,"") ->  | P121: 1000 | Q121: =IF(O121=$F121,#REF!,1000) -> 1000 | R121: =IF(COUNTIF($F$4:$F121,I121)<4,$F121," ") ->  | S121: 1000 | T121: =IF(R121=$F121,#REF!,"") ->  | X121: =IF(V121=$F121,#REF!,"") ->  | Y121: =IF(COUNTIF($C$4:$C$204,C121)>1,"X"," ") ->  | Z121: =IF(COUNTIF($B$4:$B$204,B121)>1,"T",B121) -> 0
A122: 1000 | D122: =IF(C122>0,CONCATENATE((VLOOKUP($C122,Inscription!$A$12:$G$211,3,FALSE))," ",(VLOOKUP($C122,Inscription!$A$12:$G$211,4,FALSE)))," ") ->  | F122: =IF(C122>0,(VLOOKUP($C122,Inscription!$A$12:$G$211,5,FALSE))," ") ->  | G122: =IF(C122>0,(VLOOKUP($C122,Inscription!$A$12:$G$211,7,FALSE))," ") ->  | H122: =LEFT(IF(C122>0,(VLOOKUP($C122,Inscription!$A$12:$G$211,6,FALSE))," "),8) ->  | I122: =IF(COUNTIF($F$4:$F122,$F122)<2,$F122," ") ->  | J122: 1000 | K122: =IF(I122=F122,#REF!,"") ->  | L122: =IF(COUNTIF($F$4:$F122,$F122)<3,$F122," ") ->  | M122: 1000 | N122: =IF(L122=$F122,#REF!,"") ->  | P122: 1000 | Q122: =IF(O122=$F122,#REF!,1000) -> 1000 | R122: =IF(COUNTIF($F$4:$F122,I122)<4,$F122," ") ->  | S122: 1000 | T122: =IF(R122=$F122,#REF!,"") ->  | X122: =IF(V122=$F122,#REF!,"") ->  | Z122: 0
A123: 1000 | D123: =IF(C123>0,CONCATENATE((VLOOKUP($C123,Inscription!$A$12:$G$211,3,FALSE))," ",(VLOOKUP($C123,Inscription!$A$12:$G$211,4,FALSE)))," ") ->  | F123: =IF(C123>0,(VLOOKUP($C123,Inscription!$A$12:$G$211,5,FALSE))," ") ->  | G123: =IF(C123>0,(VLOOKUP($C123,Inscription!$A$12:$G$211,7,FALSE))," ") ->  | H123: =LEFT(IF(C123>0,(VLOOKUP($C123,Inscription!$A$12:$G$211,6,FALSE))," "),8) ->  | I123: =IF(COUNTIF($F$4:$F123,$F123)<2,$F123," ") ->  | J123: 1000 | K123: =IF(I123=F123,#REF!,"") ->  | L123: =IF(COUNTIF($F$4:$F123,$F123)<3,$F123," ") ->  | M123: 1000 | N123: =IF(L123=$F123,#REF!,"") ->  | P123: 1000 | Q123: =IF(O123=$F123,#REF!,1000) -> 1000 | R123: =IF(COUNTIF($F$4:$F123,I123)<4,$F123," ") ->  | S123: 1000 | T123: =IF(R123=$F123,#REF!,"") ->  | X123: =IF(V123=$F123,#REF!,"") ->  | Z123: 0
A124: 1000 | D124: =IF(C124>0,CONCATENATE((VLOOKUP($C124,Inscription!$A$12:$G$211,3,FALSE))," ",(VLOOKUP($C124,Inscription!$A$12:$G$211,4,FALSE)))," ") ->  | F124: =IF(C124>0,(VLOOKUP($C124,Inscription!$A$12:$G$211,5,FALSE))," ") ->  | G124: =IF(C124>0,(VLOOKUP($C124,Inscription!$A$12:$G$211,7,FALSE))," ") ->  | H124: =LEFT(IF(C124>0,(VLOOKUP($C124,Inscription!$A$12:$G$211,6,FALSE))," "),8) ->  | I124: =IF(COUNTIF($F$4:$F124,$F124)<2,$F124," ") ->  | J124: 1000 | K124: =IF(I124=F124,#REF!,"") ->  | L124: =IF(COUNTIF($F$4:$F124,$F124)<3,$F124," ") ->  | M124: 1000 | N124: =IF(L124=$F124,#REF!,"") ->  | P124: 1000 | Q124: =IF(O124=$F124,#REF!,1000) -> 1000 | R124: =IF(COUNTIF($F$4:$F124,I124)<4,$F124," ") ->  | S124: 1000 | T124: =IF(R124=$F124,#REF!,"") ->  | X124: =IF(V124=$F124,#REF!,"") ->  | Z124: 0
A125: 1000 | D125: =IF(C125>0,CONCATENATE((VLOOKUP($C125,Inscription!$A$12:$G$211,3,FALSE))," ",(VLOOKUP($C125,Inscription!$A$12:$G$211,4,FALSE)))," ") ->  | F125: =IF(C125>0,(VLOOKUP($C125,Inscription!$A$12:$G$211,5,FALSE))," ") ->  | G125: =IF(C125>0,(VLOOKUP($C125,Inscription!$A$12:$G$211,7,FALSE))," ") ->  | H125: =LEFT(IF(C125>0,(VLOOKUP($C125,Inscription!$A$12:$G$211,6,FALSE))," "),8) ->  | I125: =IF(COUNTIF($F$4:$F125,$F125)<2,$F125," ") ->  | J125: 1000 | K125: =IF(I125=F125,#REF!,"") ->  | L125: =IF(COUNTIF($F$4:$F125,$F125)<3,$F125," ") ->  | M125: 1000 | N125: =IF(L125=$F125,#REF!,"") ->  | P125: 1000 | Q125: =IF(O125=$F125,#REF!,1000) -> 1000 | R125: =IF(COUNTIF($F$4:$F125,I125)<4,$F125," ") ->  | S125: 1000 | T125: =IF(R125=$F125,#REF!,"") ->  | X125: =IF(V125=$F125,#REF!,"") ->  | Z125: 0
A126: 1000 | D126: =IF(C126>0,CONCATENATE((VLOOKUP($C126,Inscription!$A$12:$G$211,3,FALSE))," ",(VLOOKUP($C126,Inscription!$A$12:$G$211,4,FALSE)))," ") ->  | F126: =IF(C126>0,(VLOOKUP($C126,Inscription!$A$12:$G$211,5,FALSE))," ") ->  | G126: =IF(C126>0,(VLOOKUP($C126,Inscription!$A$12:$G$211,7,FALSE))," ") ->  | H126: =LEFT(IF(C126>0,(VLOOKUP($C126,Inscription!$A$12:$G$211,6,FALSE))," "),8) ->  | I126: =IF(COUNTIF($F$4:$F126,$F126)<2,$F126," ") ->  | J126: 1000 | K126: =IF(I126=F126,#REF!,"") ->  | L126: =IF(COUNTIF($F$4:$F126,$F126)<3,$F126," ") ->  | M126: 1000 | N126: =IF(L126=$F126,#REF!,"") ->  | P126: 1000 | Q126: =IF(O126=$F126,#REF!,1000) -> 1000 | R126: =IF(COUNTIF($F$4:$F126,I126)<4,$F126," ") ->  | S126: 1000 | T126: =IF(R126=$F126,#REF!,"") ->  | X126: =IF(V126=$F126,#REF!,"") ->  | Z126: 0
A127: 1000 | D127: =IF(C127>0,CONCATENATE((VLOOKUP($C127,Inscription!$A$12:$G$211,3,FALSE))," ",(VLOOKUP($C127,Inscription!$A$12:$G$211,4,FALSE)))," ") ->  | F127: =IF(C127>0,(VLOOKUP($C127,Inscription!$A$12:$G$211,5,FALSE))," ") ->  | G127: =IF(C127>0,(VLOOKUP($C127,Inscription!$A$12:$G$211,7,FALSE))," ") ->  | H127: =LEFT(IF(C127>0,(VLOOKUP($C127,Inscription!$A$12:$G$211,6,FALSE))," "),8) ->  | I127: =IF(COUNTIF($F$4:$F127,$F127)<2,$F127," ") ->  | J127: 1000 | K127: =IF(I127=F127,#REF!,"") ->  | L127: =IF(COUNTIF($F$4:$F127,$F127)<3,$F127," ") ->  | M127: 1000 | N127: =IF(L127=$F127,#REF!,"") ->  | P127: 1000 | Q127: =IF(O127=$F127,#REF!,1000) -> 1000 | R127: =IF(COUNTIF($F$4:$F127,I127)<4,$F127," ") ->  | S127: 1000 | T127: =IF(R127=$F127,#REF!,"") ->  | X127: =IF(V127=$F127,#REF!,"") ->  | Z127: 0
A128: 1000 | D128: =IF(C128>0,CONCATENATE((VLOOKUP($C128,Inscription!$A$12:$G$211,3,FALSE))," ",(VLOOKUP($C128,Inscription!$A$12:$G$211,4,FALSE)))," ") ->  | F128: =IF(C128>0,(VLOOKUP($C128,Inscription!$A$12:$G$211,5,FALSE))," ") ->  | G128: =IF(C128>0,(VLOOKUP($C128,Inscription!$A$12:$G$211,7,FALSE))," ") ->  | H128: =LEFT(IF(C128>0,(VLOOKUP($C128,Inscription!$A$12:$G$211,6,FALSE))," "),8) ->  | I128: =IF(COUNTIF($F$4:$F128,$F128)<2,$F128," ") ->  | J128: 1000 | K128: =IF(I128=F128,#REF!,"") ->  | L128: =IF(COUNTIF($F$4:$F128,$F128)<3,$F128," ") ->  | M128: 1000 | N128: =IF(L128=$F128,#REF!,"") ->  | P128: 1000 | Q128: =IF(O128=$F128,#REF!,1000) -> 1000 | R128: =IF(COUNTIF($F$4:$F128,I128)<4,$F128," ") ->  | S128: 1000 | T128: =IF(R128=$F128,#REF!,"") ->  | X128: =IF(V128=$F128,#REF!,"") ->  | Z128: 0
A129: 1000 | D129: =IF(C129>0,CONCATENATE((VLOOKUP($C129,Inscription!$A$12:$G$211,3,FALSE))," ",(VLOOKUP($C129,Inscription!$A$12:$G$211,4,FALSE)))," ") ->  | F129: =IF(C129>0,(VLOOKUP($C129,Inscription!$A$12:$G$211,5,FALSE))," ") ->  | G129: =IF(C129>0,(VLOOKUP($C129,Inscription!$A$12:$G$211,7,FALSE))," ") ->  | H129: =LEFT(IF(C129>0,(VLOOKUP($C129,Inscription!$A$12:$G$211,6,FALSE))," "),8) ->  | I129: =IF(COUNTIF($F$4:$F129,$F129)<2,$F129," ") ->  | J129: 1000 | K129: =IF(I129=F129,#REF!,"") ->  | L129: =IF(COUNTIF($F$4:$F129,$F129)<3,$F129," ") ->  | M129: 1000 | N129: =IF(L129=$F129,#REF!,"") ->  | P129: 1000 | Q129: =IF(O129=$F129,#REF!,1000) -> 1000 | R129: =IF(COUNTIF($F$4:$F129,I129)<4,$F129," ") ->  | S129: 1000 | T129: =IF(R129=$F129,#REF!,"") ->  | X129: =IF(V129=$F129,#REF!,"") ->  | Z129: 0
A130: 1000 | D130: =IF(C130>0,CONCATENATE((VLOOKUP($C130,Inscription!$A$12:$G$211,3,FALSE))," ",(VLOOKUP($C130,Inscription!$A$12:$G$211,4,FALSE)))," ") ->  | F130: =IF(C130>0,(VLOOKUP($C130,Inscription!$A$12:$G$211,5,FALSE))," ") ->  | G130: =IF(C130>0,(VLOOKUP($C130,Inscription!$A$12:$G$211,7,FALSE))," ") ->  | H130: =LEFT(IF(C130>0,(VLOOKUP($C130,Inscription!$A$12:$G$211,6,FALSE))," "),8) ->  | I130: =IF(COUNTIF($F$4:$F130,$F130)<2,$F130," ") ->  | J130: 1000 | K130: =IF(I130=F130,#REF!,"") ->  | L130: =IF(COUNTIF($F$4:$F130,$F130)<3,$F130," ") ->  | M130: 1000 | N130: =IF(L130=$F130,#REF!,"") ->  | P130: 1000 | Q130: =IF(O130=$F130,#REF!,1000) -> 1000 | R130: =IF(COUNTIF($F$4:$F130,I130)<4,$F130," ") ->  | S130: 1000 | T130: =IF(R130=$F130,#REF!,"") ->  | X130: =IF(V130=$F130,#REF!,"") ->  | Z130: 0
A131: 1000 | D131: =IF(C131>0,CONCATENATE((VLOOKUP($C131,Inscription!$A$12:$G$211,3,FALSE))," ",(VLOOKUP($C131,Inscription!$A$12:$G$211,4,FALSE)))," ") ->  | F131: =IF(C131>0,(VLOOKUP($C131,Inscription!$A$12:$G$211,5,FALSE))," ") ->  | G131: =IF(C131>0,(VLOOKUP($C131,Inscription!$A$12:$G$211,7,FALSE))," ") ->  | H131: =LEFT(IF(C131>0,(VLOOKUP($C131,Inscription!$A$12:$G$211,6,FALSE))," "),8) ->  | I131: =IF(COUNTIF($F$4:$F131,$F131)<2,$F131," ") ->  | J131: 1000 | K131: =IF(I131=F131,#REF!,"") ->  | L131: =IF(COUNTIF($F$4:$F131,$F131)<3,$F131," ") ->  | M131: 1000 | N131: =IF(L131=$F131,#REF!,"") ->  | P131: 1000 | Q131: =IF(O131=$F131,#REF!,1000) -> 1000 | R131: =IF(COUNTIF($F$4:$F131,I131)<4,$F131," ") ->  | S131: 1000 | T131: =IF(R131=$F131,#REF!,"") ->  | X131: =IF(V131=$F131,#REF!,"") ->  | Z131: 0
A132: 1000 | D132: =IF(C132>0,CONCATENATE((VLOOKUP($C132,Inscription!$A$12:$G$211,3,FALSE))," ",(VLOOKUP($C132,Inscription!$A$12:$G$211,4,FALSE)))," ") ->  | F132: =IF(C132>0,(VLOOKUP($C132,Inscription!$A$12:$G$211,5,FALSE))," ") ->  | G132: =IF(C132>0,(VLOOKUP($C132,Inscription!$A$12:$G$211,7,FALSE))," ") ->  | H132: =LEFT(IF(C132>0,(VLOOKUP($C132,Inscription!$A$12:$G$211,6,FALSE))," "),8) ->  | I132: =IF(COUNTIF($F$4:$F132,$F132)<2,$F132," ") ->  | J132: 1000 | K132: =IF(I132=F132,#REF!,"") ->  | L132: =IF(COUNTIF($F$4:$F132,$F132)<3,$F132," ") ->  | M132: 1000 | N132: =IF(L132=$F132,#REF!,"") ->  | P132: 1000 | Q132: =IF(O132=$F132,#REF!,1000) -> 1000 | R132: =IF(COUNTIF($F$4:$F132,I132)<4,$F132," ") ->  | S132: 1000 | T132: =IF(R132=$F132,#REF!,"") ->  | X132: =IF(V132=$F132,#REF!,"") ->  | Z132: 0
A133: 1000 | D133: =IF(C133>0,CONCATENATE((VLOOKUP($C133,Inscription!$A$12:$G$211,3,FALSE))," ",(VLOOKUP($C133,Inscription!$A$12:$G$211,4,FALSE)))," ") ->  | F133: =IF(C133>0,(VLOOKUP($C133,Inscription!$A$12:$G$211,5,FALSE))," ") ->  | G133: =IF(C133>0,(VLOOKUP($C133,Inscription!$A$12:$G$211,7,FALSE))," ") ->  | H133: =LEFT(IF(C133>0,(VLOOKUP($C133,Inscription!$A$12:$G$211,6,FALSE))," "),8) ->  | I133: =IF(COUNTIF($F$4:$F133,$F133)<2,$F133," ") ->  | J133: 1000 | K133: =IF(I133=F133,#REF!,"") ->  | L133: =IF(COUNTIF($F$4:$F133,$F133)<3,$F133," ") ->  | M133: 1000 | N133: =IF(L133=$F133,#REF!,"") ->  | P133: 1000 | Q133: =IF(O133=$F133,#REF!,1000) -> 1000 | R133: =IF(COUNTIF($F$4:$F133,I133)<4,$F133," ") ->  | S133: 1000 | T133: =IF(R133=$F133,#REF!,"") ->  | X133: =IF(V133=$F133,#REF!,"") ->  | Z133: 0
A134: 130 | B134: 130 | D134: =IF(C134>0,CONCATENATE((VLOOKUP($C134,Inscription!$A$12:$G$211,3,FALSE))," ",(VLOOKUP($C134,Inscription!$A$12:$G$211,4,FALSE)))," ") ->  | F134: =IF(C134>0,(VLOOKUP($C134,Inscription!$A$12:$G$211,5,FALSE))," ") ->  | G134: =IF(C134>0,(VLOOKUP($C134,Inscription!$A$12:$G$211,7,FALSE))," ") ->  | H134: =LEFT(IF(C134>0,(VLOOKUP($C134,Inscription!$A$12:$G$211,6,FALSE))," "),8) ->  | I134: =IF(COUNTIF($F$4:$F134,$F134)<2,$F134," ") ->  | J134: 130 | K134: =IF(I134=F134,#REF!,"") ->  | L134: =IF(COUNTIF($F$4:$F134,$F134)<3,$F134," ") ->  | M134: =IF(L134=$F134,$A134,"") -> 130 | N134: =IF(L134=$F134,#REF!,"") ->  | O134: =IF(L134=I134,"",L134) ->  | P134: =IF(O134=$F134,$A134,1000) -> 1000 | Q134: =IF(O134=$F134,#REF!,1000) -> 1000 | R134: =IF(COUNTIF($F$4:$F134,I134)<4,$F134," ") ->  | S134: =IF(R134=$F134,$A134,"") -> 130 | T134: =IF(R134=$F134,#REF!,"") ->  | U134: =IF(R134=I134,"",R134) ->  | V134: =IF(U134=O134,"",R134) ->  | W134: =IF(V134=$F134,$A134,"") ->  | X134: =IF(V134=$F134,#REF!,"") ->  | Z134: 130
A135: 131 | B135: 131 | D135: =IF(C135>0,CONCATENATE((VLOOKUP($C135,Inscription!$A$12:$G$211,3,FALSE))," ",(VLOOKUP($C135,Inscription!$A$12:$G$211,4,FALSE)))," ") ->  | F135: =IF(C135>0,(VLOOKUP($C135,Inscription!$A$12:$G$211,5,FALSE))," ") ->  | G135: =IF(C135>0,(VLOOKUP($C135,Inscription!$A$12:$G$211,7,FALSE))," ") ->  | H135: =LEFT(IF(C135>0,(VLOOKUP($C135,Inscription!$A$12:$G$211,6,FALSE))," "),8) ->  | I135: =IF(COUNTIF($F$4:$F135,$F135)<2,$F135," ") ->  | J135: 131 | K135: =IF(I135=F135,#REF!,"") ->  | L135: =IF(COUNTIF($F$4:$F135,$F135)<3,$F135," ") ->  | M135: 131 | N135: =IF(L135=$F135,#REF!,"") ->  | P135: 1000 | Q135: =IF(O135=$F135,#REF!,1000) -> 1000 | R135: =IF(COUNTIF($F$4:$F135,I135)<4,$F135," ") ->  | S135: 131 | T135: =IF(R135=$F135,#REF!,"") ->  | X135: =IF(V135=$F135,#REF!,"") ->  | Z135: 131
A136: 132 | B136: 132 | D136: =IF(C136>0,CONCATENATE((VLOOKUP($C136,Inscription!$A$12:$G$211,3,FALSE))," ",(VLOOKUP($C136,Inscription!$A$12:$G$211,4,FALSE)))," ") ->  | F136: =IF(C136>0,(VLOOKUP($C136,Inscription!$A$12:$G$211,5,FALSE))," ") ->  | G136: =IF(C136>0,(VLOOKUP($C136,Inscription!$A$12:$G$211,7,FALSE))," ") ->  | H136: =LEFT(IF(C136>0,(VLOOKUP($C136,Inscription!$A$12:$G$211,6,FALSE))," "),8) ->  | I136: =IF(COUNTIF($F$4:$F136,$F136)<2,$F136," ") ->  | J136: 132 | K136: =IF(I136=F136,#REF!,"") ->  | L136: =IF(COUNTIF($F$4:$F136,$F136)<3,$F136," ") ->  | M136: 132 | N136: =IF(L136=$F136,#REF!,"") ->  | P136: 1000 | Q136: =IF(O136=$F136,#REF!,1000) -> 1000 | R136: =IF(COUNTIF($F$4:$F136,I136)<4,$F136," ") ->  | S136: 132 | T136: =IF(R136=$F136,#REF!,"") ->  | X136: =IF(V136=$F136,#REF!,"") ->  | Z136: 132
A137: 133 | B137: 133 | D137: =IF(C137>0,CONCATENATE((VLOOKUP($C137,Inscription!$A$12:$G$211,3,FALSE))," ",(VLOOKUP($C137,Inscription!$A$12:$G$211,4,FALSE)))," ") ->  | F137: =IF(C137>0,(VLOOKUP($C137,Inscription!$A$12:$G$211,5,FALSE))," ") ->  | G137: =IF(C137>0,(VLOOKUP($C137,Inscription!$A$12:$G$211,7,FALSE))," ") ->  | H137: =LEFT(IF(C137>0,(VLOOKUP($C137,Inscription!$A$12:$G$211,6,FALSE))," "),8) ->  | I137: =IF(COUNTIF($F$4:$F137,$F137)<2,$F137," ") ->  | J137: 133 | K137: =IF(I137=F137,#REF!,"") ->  | L137: =IF(COUNTIF($F$4:$F137,$F137)<3,$F137," ") ->  | M137: 133 | N137: =IF(L137=$F137,#REF!,"") ->  | P137: 1000 | Q137: =IF(O137=$F137,#REF!,1000) -> 1000 | R137: =IF(COUNTIF($F$4:$F137,I137)<4,$F137," ") ->  | S137: 133 | T137: =IF(R137=$F137,#REF!,"") ->  | X137: =IF(V137=$F137,#REF!,"") ->  | Z137: 133
A138: 134 | B138: 134 | D138: =IF(C138>0,CONCATENATE((VLOOKUP($C138,Inscription!$A$12:$G$211,3,FALSE))," ",(VLOOKUP($C138,Inscription!$A$12:$G$211,4,FALSE)))," ") ->  | F138: =IF(C138>0,(VLOOKUP($C138,Inscription!$A$12:$G$211,5,FALSE))," ") ->  | G138: =IF(C138>0,(VLOOKUP($C138,Inscription!$A$12:$G$211,7,FALSE))," ") ->  | H138: =LEFT(IF(C138>0,(VLOOKUP($C138,Inscription!$A$12:$G$211,6,FALSE))," "),8) ->  | I138: =IF(COUNTIF($F$4:$F138,$F138)<2,$F138," ") ->  | J138: 134 | K138: =IF(I138=F138,#REF!,"") ->  | L138: =IF(COUNTIF($F$4:$F138,$F138)<3,$F138," ") ->  | M138: 134 | N138: =IF(L138=$F138,#REF!,"") ->  | P138: 1000 | Q138: =IF(O138=$F138,#REF!,1000) -> 1000 | R138: =IF(COUNTIF($F$4:$F138,I138)<4,$F138," ") ->  | S138: 134 | T138: =IF(R138=$F138,#REF!,"") ->  | X138: =IF(V138=$F138,#REF!,"") ->  | Z138: 134
A139: 135 | B139: 135 | D139: =IF(C139>0,CONCATENATE((VLOOKUP($C139,Inscription!$A$12:$G$211,3,FALSE))," ",(VLOOKUP($C139,Inscription!$A$12:$G$211,4,FALSE)))," ") ->  | F139: =IF(C139>0,(VLOOKUP($C139,Inscription!$A$12:$G$211,5,FALSE))," ") ->  | G139: =IF(C139>0,(VLOOKUP($C139,Inscription!$A$12:$G$211,7,FALSE))," ") ->  | H139: =LEFT(IF(C139>0,(VLOOKUP($C139,Inscription!$A$12:$G$211,6,FALSE))," "),8) ->  | I139: =IF(COUNTIF($F$4:$F139,$F139)<2,$F139," ") ->  | J139: 135 | K139: =IF(I139=F139,#REF!,"") ->  | L139: =IF(COUNTIF($F$4:$F139,$F139)<3,$F139," ") ->  | M139: 135 | N139: =IF(L139=$F139,#REF!,"") ->  | P139: 1000 | Q139: =IF(O139=$F139,#REF!,1000) -> 1000 | R139: =IF(COUNTIF($F$4:$F139,I139)<4,$F139," ") ->  | S139: 135 | T139: =IF(R139=$F139,#REF!,"") ->  | X139: =IF(V139=$F139,#REF!,"") ->  | Z139: 135
A140: 136 | B140: 136 | D140: =IF(C140>0,CONCATENATE((VLOOKUP($C140,Inscription!$A$12:$G$211,3,FALSE))," ",(VLOOKUP($C140,Inscription!$A$12:$G$211,4,FALSE)))," ") ->  | F140: =IF(C140>0,(VLOOKUP($C140,Inscription!$A$12:$G$211,5,FALSE))," ") ->  | G140: =IF(C140>0,(VLOOKUP($C140,Inscription!$A$12:$G$211,7,FALSE))," ") ->  | H140: =LEFT(IF(C140>0,(VLOOKUP($C140,Inscription!$A$12:$G$211,6,FALSE))," "),8) ->  | I140: =IF(COUNTIF($F$4:$F140,$F140)<2,$F140," ") ->  | J140: 136 | K140: =IF(I140=F140,#REF!,"") ->  | L140: =IF(COUNTIF($F$4:$F140,$F140)<3,$F140," ") ->  | M140: 136 | N140: =IF(L140=$F140,#REF!,"") ->  | P140: 1000 | Q140: =IF(O140=$F140,#REF!,1000) -> 1000 | R140: =IF(COUNTIF($F$4:$F140,I140)<4,$F140," ") ->  | S140: 136 | T140: =IF(R140=$F140,#REF!,"") ->  | X140: =IF(V140=$F140,#REF!,"") ->  | Z140: 136
A141: 137 | B141: 137 | D141: =IF(C141>0,CONCATENATE((VLOOKUP($C141,Inscription!$A$12:$G$211,3,FALSE))," ",(VLOOKUP($C141,Inscription!$A$12:$G$211,4,FALSE)))," ") ->  | F141: =IF(C141>0,(VLOOKUP($C141,Inscription!$A$12:$G$211,5,FALSE))," ") ->  | G141: =IF(C141>0,(VLOOKUP($C141,Inscription!$A$12:$G$211,7,FALSE))," ") ->  | H141: =LEFT(IF(C141>0,(VLOOKUP($C141,Inscription!$A$12:$G$211,6,FALSE))," "),8) ->  | I141: =IF(COUNTIF($F$4:$F141,$F141)<2,$F141," ") ->  | J141: 137 | K141: =IF(I141=F141,#REF!,"") ->  | L141: =IF(COUNTIF($F$4:$F141,$F141)<3,$F141," ") ->  | M141: 137 | N141: =IF(L141=$F141,#REF!,"") ->  | P141: 1000 | Q141: =IF(O141=$F141,#REF!,1000) -> 1000 | R141: =IF(COUNTIF($F$4:$F141,I141)<4,$F141," ") ->  | S141: 137 | T141: =IF(R141=$F141,#REF!,"") ->  | X141: =IF(V141=$F141,#REF!,"") ->  | Z141: 137
A142: 138 | B142: 138 | D142: =IF(C142>0,CONCATENATE((VLOOKUP($C142,Inscription!$A$12:$G$211,3,FALSE))," ",(VLOOKUP($C142,Inscription!$A$12:$G$211,4,FALSE)))," ") ->  | F142: =IF(C142>0,(VLOOKUP($C142,Inscription!$A$12:$G$211,5,FALSE))," ") ->  | G142: =IF(C142>0,(VLOOKUP($C142,Inscription!$A$12:$G$211,7,FALSE))," ") ->  | H142: =LEFT(IF(C142>0,(VLOOKUP($C142,Inscription!$A$12:$G$211,6,FALSE))," "),8) ->  | I142: =IF(COUNTIF($F$4:$F142,$F142)<2,$F142," ") ->  | J142: 138 | K142: =IF(I142=F142,#REF!,"") ->  | L142: =IF(COUNTIF($F$4:$F142,$F142)<3,$F142," ") ->  | M142: 138 | N142: =IF(L142=$F142,#REF!,"") ->  | P142: 1000 | Q142: =IF(O142=$F142,#REF!,1000) -> 1000 | R142: =IF(COUNTIF($F$4:$F142,I142)<4,$F142," ") ->  | S142: 138 | T142: =IF(R142=$F142,#REF!,"") ->  | X142: =IF(V142=$F142,#REF!,"") ->  | Z142: 138
A143: 139 | B143: 139 | D143: =IF(C143>0,CONCATENATE((VLOOKUP($C143,Inscription!$A$12:$G$211,3,FALSE))," ",(VLOOKUP($C143,Inscription!$A$12:$G$211,4,FALSE)))," ") ->  | F143: =IF(C143>0,(VLOOKUP($C143,Inscription!$A$12:$G$211,5,FALSE))," ") ->  | G143: =IF(C143>0,(VLOOKUP($C143,Inscription!$A$12:$G$211,7,FALSE))," ") ->  | H143: =LEFT(IF(C143>0,(VLOOKUP($C143,Inscription!$A$12:$G$211,6,FALSE))," "),8) ->  | I143: =IF(COUNTIF($F$4:$F143,$F143)<2,$F143," ") ->  | J143: 139 | K143: =IF(I143=F143,#REF!,"") ->  | L143: =IF(COUNTIF($F$4:$F143,$F143)<3,$F143," ") ->  | M143: 139 | N143: =IF(L143=$F143,#REF!,"") ->  | P143: 1000 | Q143: =IF(O143=$F143,#REF!,1000) -> 1000 | R143: =IF(COUNTIF($F$4:$F143,I143)<4,$F143," ") ->  | S143: 139 | T143: =IF(R143=$F143,#REF!,"") ->  | X143: =IF(V143=$F143,#REF!,"") ->  | Z143: 139
A144: 140 | B144: 140 | D144: =IF(C144>0,CONCATENATE((VLOOKUP($C144,Inscription!$A$12:$G$211,3,FALSE))," ",(VLOOKUP($C144,Inscription!$A$12:$G$211,4,FALSE)))," ") ->  | F144: =IF(C144>0,(VLOOKUP($C144,Inscription!$A$12:$G$211,5,FALSE))," ") ->  | G144: =IF(C144>0,(VLOOKUP($C144,Inscription!$A$12:$G$211,7,FALSE))," ") ->  | H144: =LEFT(IF(C144>0,(VLOOKUP($C144,Inscription!$A$12:$G$211,6,FALSE))," "),8) ->  | I144: =IF(COUNTIF($F$4:$F144,$F144)<2,$F144," ") ->  | J144: 140 | K144: =IF(I144=F144,#REF!,"") ->  | L144: =IF(COUNTIF($F$4:$F144,$F144)<3,$F144," ") ->  | M144: 140 | N144: =IF(L144=$F144,#REF!,"") ->  | P144: 1000 | Q144: =IF(O144=$F144,#REF!,1000) -> 1000 | R144: =IF(COUNTIF($F$4:$F144,I144)<4,$F144," ") ->  | S144: 140 | T144: =IF(R144=$F144,#REF!,"") ->  | X144: =IF(V144=$F144,#REF!,"") ->  | Z144: 140
A145: 141 | B145: 141 | D145: =IF(C145>0,CONCATENATE((VLOOKUP($C145,Inscription!$A$12:$G$211,3,FALSE))," ",(VLOOKUP($C145,Inscription!$A$12:$G$211,4,FALSE)))," ") ->  | F145: =IF(C145>0,(VLOOKUP($C145,Inscription!$A$12:$G$211,5,FALSE))," ") ->  | G145: =IF(C145>0,(VLOOKUP($C145,Inscription!$A$12:$G$211,7,FALSE))," ") ->  | H145: =LEFT(IF(C145>0,(VLOOKUP($C145,Inscription!$A$12:$G$211,6,FALSE))," "),8) ->  | I145: =IF(COUNTIF($F$4:$F145,$F145)<2,$F145," ") ->  | J145: 141 | K145: =IF(I145=F145,#REF!,"") ->  | L145: =IF(COUNTIF($F$4:$F145,$F145)<3,$F145," ") ->  | M145: 141 | N145: =IF(L145=$F145,#REF!,"") ->  | P145: 1000 | Q145: =IF(O145=$F145,#REF!,1000) -> 1000 | R145: =IF(COUNTIF($F$4:$F145,I145)<4,$F145," ") ->  | S145: 141 | T145: =IF(R145=$F145,#REF!,"") ->  | X145: =IF(V145=$F145,#REF!,"") ->  | Z145: 141
A146: 142 | B146: 142 | D146: =IF(C146>0,CONCATENATE((VLOOKUP($C146,Inscription!$A$12:$G$211,3,FALSE))," ",(VLOOKUP($C146,Inscription!$A$12:$G$211,4,FALSE)))," ") ->  | F146: =IF(C146>0,(VLOOKUP($C146,Inscription!$A$12:$G$211,5,FALSE))," ") ->  | G146: =IF(C146>0,(VLOOKUP($C146,Inscription!$A$12:$G$211,7,FALSE))," ") ->  | H146: =LEFT(IF(C146>0,(VLOOKUP($C146,Inscription!$A$12:$G$211,6,FALSE))," "),8) ->  | I146: =IF(COUNTIF($F$4:$F146,$F146)<2,$F146," ") ->  | J146: 142 | K146: =IF(I146=F146,#REF!,"") ->  | L146: =IF(COUNTIF($F$4:$F146,$F146)<3,$F146," ") ->  | M146: 142 | N146: =IF(L146=$F146,#REF!,"") ->  | P146: 1000 | Q146: =IF(O146=$F146,#REF!,1000) -> 1000 | R146: =IF(COUNTIF($F$4:$F146,I146)<4,$F146," ") ->  | S146: 142 | T146: =IF(R146=$F146,#REF!,"") ->  | X146: =IF(V146=$F146,#REF!,"") ->  | Z146: 142
A147: 143 | B147: 143 | D147: =IF(C147>0,CONCATENATE((VLOOKUP($C147,Inscription!$A$12:$G$211,3,FALSE))," ",(VLOOKUP($C147,Inscription!$A$12:$G$211,4,FALSE)))," ") ->  | F147: =IF(C147>0,(VLOOKUP($C147,Inscription!$A$12:$G$211,5,FALSE))," ") ->  | G147: =IF(C147>0,(VLOOKUP($C147,Inscription!$A$12:$G$211,7,FALSE))," ") ->  | H147: =LEFT(IF(C147>0,(VLOOKUP($C147,Inscription!$A$12:$G$211,6,FALSE))," "),8) ->  | I147: =IF(COUNTIF($F$4:$F147,$F147)<2,$F147," ") ->  | J147: 143 | K147: =IF(I147=F147,#REF!,"") ->  | L147: =IF(COUNTIF($F$4:$F147,$F147)<3,$F147," ") ->  | M147: 143 | N147: =IF(L147=$F147,#REF!,"") ->  | P147: 1000 | Q147: =IF(O147=$F147,#REF!,1000) -> 1000 | R147: =IF(COUNTIF($F$4:$F147,I147)<4,$F147," ") ->  | S147: 143 | T147: =IF(R147=$F147,#REF!,"") ->  | X147: =IF(V147=$F147,#REF!,"") ->  | Z147: 143
A148: 144 | B148: 144 | D148: =IF(C148>0,CONCATENATE((VLOOKUP($C148,Inscription!$A$12:$G$211,3,FALSE))," ",(VLOOKUP($C148,Inscription!$A$12:$G$211,4,FALSE)))," ") ->  | F148: =IF(C148>0,(VLOOKUP($C148,Inscription!$A$12:$G$211,5,FALSE))," ") ->  | G148: =IF(C148>0,(VLOOKUP($C148,Inscription!$A$12:$G$211,7,FALSE))," ") ->  | H148: =LEFT(IF(C148>0,(VLOOKUP($C148,Inscription!$A$12:$G$211,6,FALSE))," "),8) ->  | I148: =IF(COUNTIF($F$4:$F148,$F148)<2,$F148," ") ->  | J148: =IF(I148=F148,A148,"") -> 144 | K148: =IF(I148=F148,#REF!,"") ->  | L148: =IF(COUNTIF($F$4:$F148,$F148)<3,$F148," ") ->  | M148: 144 | N148: =IF(L148=$F148,#REF!,"") ->  | P148: 1000 | Q148: =IF(O148=$F148,#REF!,1000) -> 1000 | R148: =IF(COUNTIF($F$4:$F148,I148)<4,$F148," ") ->  | S148: 144 | T148: =IF(R148=$F148,#REF!,"") ->  | X148: =IF(V148=$F148,#REF!,"") ->  | Z148: 144
A149: 145 | B149: 145 | D149: =IF(C149>0,CONCATENATE((VLOOKUP($C149,Inscription!$A$12:$G$211,3,FALSE))," ",(VLOOKUP($C149,Inscription!$A$12:$G$211,4,FALSE)))," ") ->  | F149: =IF(C149>0,(VLOOKUP($C149,Inscription!$A$12:$G$211,5,FALSE))," ") ->  | G149: =IF(C149>0,(VLOOKUP($C149,Inscription!$A$12:$G$211,7,FALSE))," ") ->  | H149: =LEFT(IF(C149>0,(VLOOKUP($C149,Inscription!$A$12:$G$211,6,FALSE))," "),8) ->  | I149: =IF(COUNTIF($F$4:$F149,$F149)<2,$F149," ") ->  | J149: 145 | K149: =IF(I149=F149,#REF!,"") ->  | L149: =IF(COUNTIF($F$4:$F149,$F149)<3,$F149," ") ->  | M149: 145 | N149: =IF(L149=$F149,#REF!,"") ->  | P149: 1000 | Q149: =IF(O149=$F149,#REF!,1000) -> 1000 | R149: =IF(COUNTIF($F$4:$F149,I149)<4,$F149," ") ->  | S149: 145 | T149: =IF(R149=$F149,#REF!,"") ->  | X149: =IF(V149=$F149,#REF!,"") ->  | Z149: 145
A150: 146 | B150: 146 | D150: =IF(C150>0,CONCATENATE((VLOOKUP($C150,Inscription!$A$12:$G$211,3,FALSE))," ",(VLOOKUP($C150,Inscription!$A$12:$G$211,4,FALSE)))," ") ->  | F150: =IF(C150>0,(VLOOKUP($C150,Inscription!$A$12:$G$211,5,FALSE))," ") ->  | G150: =IF(C150>0,(VLOOKUP($C150,Inscription!$A$12:$G$211,7,FALSE))," ") ->  | H150: =LEFT(IF(C150>0,(VLOOKUP($C150,Inscription!$A$12:$G$211,6,FALSE))," "),8) ->  | I150: =IF(COUNTIF($F$4:$F150,$F150)<2,$F150," ") ->  | J150: 146 | K150: =IF(I150=F150,#REF!,"") ->  | L150: =IF(COUNTIF($F$4:$F150,$F150)<3,$F150," ") ->  | M150: 146 | N150: =IF(L150=$F150,#REF!,"") ->  | P150: 1000 | Q150: =IF(O150=$F150,#REF!,1000) -> 1000 | R150: =IF(COUNTIF($F$4:$F150,I150)<4,$F150," ") ->  | S150: 146 | T150: =IF(R150=$F150,#REF!,"") ->  | X150: =IF(V150=$F150,#REF!,"") ->  | Z150: 146
A151: 147 | B151: 147 | D151: =IF(C151>0,CONCATENATE((VLOOKUP($C151,Inscription!$A$12:$G$211,3,FALSE))," ",(VLOOKUP($C151,Inscription!$A$12:$G$211,4,FALSE)))," ") ->  | F151: =IF(C151>0,(VLOOKUP($C151,Inscription!$A$12:$G$211,5,FALSE))," ") ->  | G151: =IF(C151>0,(VLOOKUP($C151,Inscription!$A$12:$G$211,7,FALSE))," ") ->  | H151: =LEFT(IF(C151>0,(VLOOKUP($C151,Inscription!$A$12:$G$211,6,FALSE))," "),8) ->  | I151: =IF(COUNTIF($F$4:$F151,$F151)<2,$F151," ") ->  | J151: 147 | K151: =IF(I151=F151,#REF!,"") ->  | L151: =IF(COUNTIF($F$4:$F151,$F151)<3,$F151," ") ->  | M151: 147 | N151: =IF(L151=$F151,#REF!,"") ->  | P151: 1000 | Q151: =IF(O151=$F151,#REF!,1000) -> 1000 | R151: =IF(COUNTIF($F$4:$F151,I151)<4,$F151," ") ->  | S151: 147 | T151: =IF(R151=$F151,#REF!,"") ->  | X151: =IF(V151=$F151,#REF!,"") ->  | Z151: 147
A152: 148 | B152: 148 | D152: =IF(C152>0,CONCATENATE((VLOOKUP($C152,Inscription!$A$12:$G$211,3,FALSE))," ",(VLOOKUP($C152,Inscription!$A$12:$G$211,4,FALSE)))," ") ->  | F152: =IF(C152>0,(VLOOKUP($C152,Inscription!$A$12:$G$211,5,FALSE))," ") ->  | G152: =IF(C152>0,(VLOOKUP($C152,Inscription!$A$12:$G$211,7,FALSE))," ") ->  | H152: =LEFT(IF(C152>0,(VLOOKUP($C152,Inscription!$A$12:$G$211,6,FALSE))," "),8) ->  | I152: =IF(COUNTIF($F$4:$F152,$F152)<2,$F152," ") ->  | J152: 148 | K152: =IF(I152=F152,#REF!,"") ->  | L152: =IF(COUNTIF($F$4:$F152,$F152)<3,$F152," ") ->  | M152: 148 | N152: =IF(L152=$F152,#REF!,"") ->  | P152: 1000 | Q152: =IF(O152=$F152,#REF!,1000) -> 1000 | R152: =IF(COUNTIF($F$4:$F152,I152)<4,$F152," ") ->  | S152: 148 | T152: =IF(R152=$F152,#REF!,"") ->  | X152: =IF(V152=$F152,#REF!,"") ->  | Z152: 148
A153: =IF(B153<1,1000,(IF(Z153=B153,B153,(20100-SUM($Z$4:$Z$204))/(COUNTIF($Z$4:$Z$204,"T"))))) -> 149 | B153: 149 | D153: =IF(C153>0,CONCATENATE((VLOOKUP($C153,Inscription!$A$12:$G$211,3,FALSE))," ",(VLOOKUP($C153,Inscription!$A$12:$G$211,4,FALSE)))," ") ->  | F153: =IF(C153>0,(VLOOKUP($C153,Inscription!$A$12:$G$211,5,FALSE))," ") ->  | G153: =IF(C153>0,(VLOOKUP($C153,Inscription!$A$12:$G$211,7,FALSE))," ") ->  | H153: =LEFT(IF(C153>0,(VLOOKUP($C153,Inscription!$A$12:$G$211,6,FALSE))," "),8) ->  | I153: =IF(COUNTIF($F$4:$F153,$F153)<2,$F153," ") ->  | J153: 149 | K153: =IF(I153=F153,#REF!,"") ->  | L153: =IF(COUNTIF($F$4:$F153,$F153)<3,$F153," ") ->  | M153: 149 | N153: =IF(L153=$F153,#REF!,"") ->  | P153: 1000 | Q153: =IF(O153=$F153,#REF!,1000) -> 1000 | R153: =IF(COUNTIF($F$4:$F153,I153)<4,$F153," ") ->  | S153: 149 | T153: =IF(R153=$F153,#REF!,"") ->  | X153: =IF(V153=$F153,#REF!,"") ->  | Y153: =IF(COUNTIF($C$4:$C$204,C153)>1,"X"," ") ->  | Z153: =IF(COUNTIF($B$4:$B$204,B153)>1,"T",B153) -> 149
A154: 150 | B154: 150 | D154: =IF(C154>0,CONCATENATE((VLOOKUP($C154,Inscription!$A$12:$G$211,3,FALSE))," ",(VLOOKUP($C154,Inscription!$A$12:$G$211,4,FALSE)))," ") ->  | F154: =IF(C154>0,(VLOOKUP($C154,Inscription!$A$12:$G$211,5,FALSE))," ") ->  | G154: =IF(C154>0,(VLOOKUP($C154,Inscription!$A$12:$G$211,7,FALSE))," ") ->  | H154: =LEFT(IF(C154>0,(VLOOKUP($C154,Inscription!$A$12:$G$211,6,FALSE))," "),8) ->  | I154: =IF(COUNTIF($F$4:$F154,$F154)<2,$F154," ") ->  | J154: 150 | K154: =IF(I154=F154,#REF!,"") ->  | L154: =IF(COUNTIF($F$4:$F154,$F154)<3,$F154," ") ->  | M154: 150 | N154: =IF(L154=$F154,#REF!,"") ->  | P154: 1000 | Q154: =IF(O154=$F154,#REF!,1000) -> 1000 | R154: =IF(COUNTIF($F$4:$F154,I154)<4,$F154," ") ->  | S154: 150 | T154: =IF(R154=$F154,#REF!,"") ->  | X154: =IF(V154=$F154,#REF!,"") ->  | Z154: 150
A155: 151 | B155: 151 | D155: =IF(C155>0,CONCATENATE((VLOOKUP($C155,Inscription!$A$12:$G$211,3,FALSE))," ",(VLOOKUP($C155,Inscription!$A$12:$G$211,4,FALSE)))," ") ->  | F155: =IF(C155>0,(VLOOKUP($C155,Inscription!$A$12:$G$211,5,FALSE))," ") ->  | G155: =IF(C155>0,(VLOOKUP($C155,Inscription!$A$12:$G$211,7,FALSE))," ") ->  | H155: =LEFT(IF(C155>0,(VLOOKUP($C155,Inscription!$A$12:$G$211,6,FALSE))," "),8) ->  | I155: =IF(COUNTIF($F$4:$F155,$F155)<2,$F155," ") ->  | J155: 151 | K155: =IF(I155=F155,#REF!,"") ->  | L155: =IF(COUNTIF($F$4:$F155,$F155)<3,$F155," ") ->  | M155: 151 | N155: =IF(L155=$F155,#REF!,"") ->  | P155: 1000 | Q155: =IF(O155=$F155,#REF!,1000) -> 1000 | R155: =IF(COUNTIF($F$4:$F155,I155)<4,$F155," ") ->  | S155: 151 | T155: =IF(R155=$F155,#REF!,"") ->  | X155: =IF(V155=$F155,#REF!,"") ->  | Z155: 151
A156: 152 | B156: 152 | D156: =IF(C156>0,CONCATENATE((VLOOKUP($C156,Inscription!$A$12:$G$211,3,FALSE))," ",(VLOOKUP($C156,Inscription!$A$12:$G$211,4,FALSE)))," ") ->  | F156: =IF(C156>0,(VLOOKUP($C156,Inscription!$A$12:$G$211,5,FALSE))," ") ->  | G156: =IF(C156>0,(VLOOKUP($C156,Inscription!$A$12:$G$211,7,FALSE))," ") ->  | H156: =LEFT(IF(C156>0,(VLOOKUP($C156,Inscription!$A$12:$G$211,6,FALSE))," "),8) ->  | I156: =IF(COUNTIF($F$4:$F156,$F156)<2,$F156," ") ->  | J156: 152 | K156: =IF(I156=F156,#REF!,"") ->  | L156: =IF(COUNTIF($F$4:$F156,$F156)<3,$F156," ") ->  | M156: 152 | N156: =IF(L156=$F156,#REF!,"") ->  | P156: 1000 | Q156: =IF(O156=$F156,#REF!,1000) -> 1000 | R156: =IF(COUNTIF($F$4:$F156,I156)<4,$F156," ") ->  | S156: 152 | T156: =IF(R156=$F156,#REF!,"") ->  | X156: =IF(V156=$F156,#REF!,"") ->  | Z156: 152
A157: 153 | B157: 153 | D157: =IF(C157>0,CONCATENATE((VLOOKUP($C157,Inscription!$A$12:$G$211,3,FALSE))," ",(VLOOKUP($C157,Inscription!$A$12:$G$211,4,FALSE)))," ") ->  | F157: =IF(C157>0,(VLOOKUP($C157,Inscription!$A$12:$G$211,5,FALSE))," ") ->  | G157: =IF(C157>0,(VLOOKUP($C157,Inscription!$A$12:$G$211,7,FALSE))," ") ->  | H157: =LEFT(IF(C157>0,(VLOOKUP($C157,Inscription!$A$12:$G$211,6,FALSE))," "),8) ->  | I157: =IF(COUNTIF($F$4:$F157,$F157)<2,$F157," ") ->  | J157: 153 | K157: =IF(I157=F157,#REF!,"") ->  | L157: =IF(COUNTIF($F$4:$F157,$F157)<3,$F157," ") ->  | M157: 153 | N157: =IF(L157=$F157,#REF!,"") ->  | P157: 1000 | Q157: =IF(O157=$F157,#REF!,1000) -> 1000 | R157: =IF(COUNTIF($F$4:$F157,I157)<4,$F157," ") ->  | S157: 153 | T157: =IF(R157=$F157,#REF!,"") ->  | X157: =IF(V157=$F157,#REF!,"") ->  | Z157: 153
A158: 154 | B158: 154 | D158: =IF(C158>0,CONCATENATE((VLOOKUP($C158,Inscription!$A$12:$G$211,3,FALSE))," ",(VLOOKUP($C158,Inscription!$A$12:$G$211,4,FALSE)))," ") ->  | F158: =IF(C158>0,(VLOOKUP($C158,Inscription!$A$12:$G$211,5,FALSE))," ") ->  | G158: =IF(C158>0,(VLOOKUP($C158,Inscription!$A$12:$G$211,7,FALSE))," ") ->  | H158: =LEFT(IF(C158>0,(VLOOKUP($C158,Inscription!$A$12:$G$211,6,FALSE))," "),8) ->  | I158: =IF(COUNTIF($F$4:$F158,$F158)<2,$F158," ") ->  | J158: 154 | K158: =IF(I158=F158,#REF!,"") ->  | L158: =IF(COUNTIF($F$4:$F158,$F158)<3,$F158," ") ->  | M158: 154 | N158: =IF(L158=$F158,#REF!,"") ->  | P158: 1000 | Q158: =IF(O158=$F158,#REF!,1000) -> 1000 | R158: =IF(COUNTIF($F$4:$F158,I158)<4,$F158," ") ->  | S158: 154 | T158: =IF(R158=$F158,#REF!,"") ->  | X158: =IF(V158=$F158,#REF!,"") ->  | Z158: 154
A159: 155 | B159: 155 | D159: =IF(C159>0,CONCATENATE((VLOOKUP($C159,Inscription!$A$12:$G$211,3,FALSE))," ",(VLOOKUP($C159,Inscription!$A$12:$G$211,4,FALSE)))," ") ->  | F159: =IF(C159>0,(VLOOKUP($C159,Inscription!$A$12:$G$211,5,FALSE))," ") ->  | G159: =IF(C159>0,(VLOOKUP($C159,Inscription!$A$12:$G$211,7,FALSE))," ") ->  | H159: =LEFT(IF(C159>0,(VLOOKUP($C159,Inscription!$A$12:$G$211,6,FALSE))," "),8) ->  | I159: =IF(COUNTIF($F$4:$F159,$F159)<2,$F159," ") ->  | J159: 155 | K159: =IF(I159=F159,#REF!,"") ->  | L159: =IF(COUNTIF($F$4:$F159,$F159)<3,$F159," ") ->  | M159: 155 | N159: =IF(L159=$F159,#REF!,"") ->  | P159: 1000 | Q159: =IF(O159=$F159,#REF!,1000) -> 1000 | R159: =IF(COUNTIF($F$4:$F159,I159)<4,$F159," ") ->  | S159: 155 | T159: =IF(R159=$F159,#REF!,"") ->  | X159: =IF(V159=$F159,#REF!,"") ->  | Z159: 155
A160: 156 | B160: 156 | D160: =IF(C160>0,CONCATENATE((VLOOKUP($C160,Inscription!$A$12:$G$211,3,FALSE))," ",(VLOOKUP($C160,Inscription!$A$12:$G$211,4,FALSE)))," ") ->  | F160: =IF(C160>0,(VLOOKUP($C160,Inscription!$A$12:$G$211,5,FALSE))," ") ->  | G160: =IF(C160>0,(VLOOKUP($C160,Inscription!$A$12:$G$211,7,FALSE))," ") ->  | H160: =LEFT(IF(C160>0,(VLOOKUP($C160,Inscription!$A$12:$G$211,6,FALSE))," "),8) ->  | I160: =IF(COUNTIF($F$4:$F160,$F160)<2,$F160," ") ->  | J160: 156 | K160: =IF(I160=F160,#REF!,"") ->  | L160: =IF(COUNTIF($F$4:$F160,$F160)<3,$F160," ") ->  | M160: 156 | N160: =IF(L160=$F160,#REF!,"") ->  | P160: 1000 | Q160: =IF(O160=$F160,#REF!,1000) -> 1000 | R160: =IF(COUNTIF($F$4:$F160,I160)<4,$F160," ") ->  | S160: 156 | T160: =IF(R160=$F160,#REF!,"") ->  | X160: =IF(V160=$F160,#REF!,"") ->  | Z160: 156
A161: 157 | B161: 157 | D161: =IF(C161>0,CONCATENATE((VLOOKUP($C161,Inscription!$A$12:$G$211,3,FALSE))," ",(VLOOKUP($C161,Inscription!$A$12:$G$211,4,FALSE)))," ") ->  | F161: =IF(C161>0,(VLOOKUP($C161,Inscription!$A$12:$G$211,5,FALSE))," ") ->  | G161: =IF(C161>0,(VLOOKUP($C161,Inscription!$A$12:$G$211,7,FALSE))," ") ->  | H161: =LEFT(IF(C161>0,(VLOOKUP($C161,Inscription!$A$12:$G$211,6,FALSE))," "),8) ->  | I161: =IF(COUNTIF($F$4:$F161,$F161)<2,$F161," ") ->  | J161: 157 | K161: =IF(I161=F161,#REF!,"") ->  | L161: =IF(COUNTIF($F$4:$F161,$F161)<3,$F161," ") ->  | M161: 157 | N161: =IF(L161=$F161,#REF!,"") ->  | P161: 1000 | Q161: =IF(O161=$F161,#REF!,1000) -> 1000 | R161: =IF(COUNTIF($F$4:$F161,I161)<4,$F161," ") ->  | S161: 157 | T161: =IF(R161=$F161,#REF!,"") ->  | X161: =IF(V161=$F161,#REF!,"") ->  | Z161: 157
A162: 158 | B162: 158 | D162: =IF(C162>0,CONCATENATE((VLOOKUP($C162,Inscription!$A$12:$G$211,3,FALSE))," ",(VLOOKUP($C162,Inscription!$A$12:$G$211,4,FALSE)))," ") ->  | F162: =IF(C162>0,(VLOOKUP($C162,Inscription!$A$12:$G$211,5,FALSE))," ") ->  | G162: =IF(C162>0,(VLOOKUP($C162,Inscription!$A$12:$G$211,7,FALSE))," ") ->  | H162: =LEFT(IF(C162>0,(VLOOKUP($C162,Inscription!$A$12:$G$211,6,FALSE))," "),8) ->  | I162: =IF(COUNTIF($F$4:$F162,$F162)<2,$F162," ") ->  | J162: 158 | K162: =IF(I162=F162,#REF!,"") ->  | L162: =IF(COUNTIF($F$4:$F162,$F162)<3,$F162," ") ->  | M162: 158 | N162: =IF(L162=$F162,#REF!,"") ->  | P162: 1000 | Q162: =IF(O162=$F162,#REF!,1000) -> 1000 | R162: =IF(COUNTIF($F$4:$F162,I162)<4,$F162," ") ->  | S162: 158 | T162: =IF(R162=$F162,#REF!,"") ->  | X162: =IF(V162=$F162,#REF!,"") ->  | Z162: 158
A163: 159 | B163: 159 | D163: =IF(C163>0,CONCATENATE((VLOOKUP($C163,Inscription!$A$12:$G$211,3,FALSE))," ",(VLOOKUP($C163,Inscription!$A$12:$G$211,4,FALSE)))," ") ->  | F163: =IF(C163>0,(VLOOKUP($C163,Inscription!$A$12:$G$211,5,FALSE))," ") ->  | G163: =IF(C163>0,(VLOOKUP($C163,Inscription!$A$12:$G$211,7,FALSE))," ") ->  | H163: =LEFT(IF(C163>0,(VLOOKUP($C163,Inscription!$A$12:$G$211,6,FALSE))," "),8) ->  | I163: =IF(COUNTIF($F$4:$F163,$F163)<2,$F163," ") ->  | J163: 159 | K163: =IF(I163=F163,#REF!,"") ->  | L163: =IF(COUNTIF($F$4:$F163,$F163)<3,$F163," ") ->  | M163: 159 | N163: =IF(L163=$F163,#REF!,"") ->  | P163: 1000 | Q163: =IF(O163=$F163,#REF!,1000) -> 1000 | R163: =IF(COUNTIF($F$4:$F163,I163)<4,$F163," ") ->  | S163: 159 | T163: =IF(R163=$F163,#REF!,"") ->  | X163: =IF(V163=$F163,#REF!,"") ->  | Z163: 159
A164: 160 | B164: 160 | D164: =IF(C164>0,CONCATENATE((VLOOKUP($C164,Inscription!$A$12:$G$211,3,FALSE))," ",(VLOOKUP($C164,Inscription!$A$12:$G$211,4,FALSE)))," ") ->  | F164: =IF(C164>0,(VLOOKUP($C164,Inscription!$A$12:$G$211,5,FALSE))," ") ->  | G164: =IF(C164>0,(VLOOKUP($C164,Inscription!$A$12:$G$211,7,FALSE))," ") ->  | H164: =LEFT(IF(C164>0,(VLOOKUP($C164,Inscription!$A$12:$G$211,6,FALSE))," "),8) ->  | I164: =IF(COUNTIF($F$4:$F164,$F164)<2,$F164," ") ->  | J164: 160 | K164: =IF(I164=F164,#REF!,"") ->  | L164: =IF(COUNTIF($F$4:$F164,$F164)<3,$F164," ") ->  | M164: 160 | N164: =IF(L164=$F164,#REF!,"") ->  | P164: 1000 | Q164: =IF(O164=$F164,#REF!,1000) -> 1000 | R164: =IF(COUNTIF($F$4:$F164,I164)<4,$F164," ") ->  | S164: 160 | T164: =IF(R164=$F164,#REF!,"") ->  | X164: =IF(V164=$F164,#REF!,"") ->  | Z164: 160
A165: 161 | B165: 161 | D165: =IF(C165>0,CONCATENATE((VLOOKUP($C165,Inscription!$A$12:$G$211,3,FALSE))," ",(VLOOKUP($C165,Inscription!$A$12:$G$211,4,FALSE)))," ") ->  | F165: =IF(C165>0,(VLOOKUP($C165,Inscription!$A$12:$G$211,5,FALSE))," ") ->  | G165: =IF(C165>0,(VLOOKUP($C165,Inscription!$A$12:$G$211,7,FALSE))," ") ->  | H165: =LEFT(IF(C165>0,(VLOOKUP($C165,Inscription!$A$12:$G$211,6,FALSE))," "),8) ->  | I165: =IF(COUNTIF($F$4:$F165,$F165)<2,$F165," ") ->  | J165: 161 | K165: =IF(I165=F165,#REF!,"") ->  | L165: =IF(COUNTIF($F$4:$F165,$F165)<3,$F165," ") ->  | M165: 161 | N165: =IF(L165=$F165,#REF!,"") ->  | P165: 1000 | Q165: =IF(O165=$F165,#REF!,1000) -> 1000 | R165: =IF(COUNTIF($F$4:$F165,I165)<4,$F165," ") ->  | S165: 161 | T165: =IF(R165=$F165,#REF!,"") ->  | X165: =IF(V165=$F165,#REF!,"") ->  | Z165: 161
A166: 162 | B166: 162 | D166: =IF(C166>0,CONCATENATE((VLOOKUP($C166,Inscription!$A$12:$G$211,3,FALSE))," ",(VLOOKUP($C166,Inscription!$A$12:$G$211,4,FALSE)))," ") ->  | F166: =IF(C166>0,(VLOOKUP($C166,Inscription!$A$12:$G$211,5,FALSE))," ") ->  | G166: =IF(C166>0,(VLOOKUP($C166,Inscription!$A$12:$G$211,7,FALSE))," ") ->  | H166: =LEFT(IF(C166>0,(VLOOKUP($C166,Inscription!$A$12:$G$211,6,FALSE))," "),8) ->  | I166: =IF(COUNTIF($F$4:$F166,$F166)<2,$F166," ") ->  | J166: 162 | K166: =IF(I166=F166,#REF!,"") ->  | L166: =IF(COUNTIF($F$4:$F166,$F166)<3,$F166," ") ->  | M166: 162 | N166: =IF(L166=$F166,#REF!,"") ->  | P166: 1000 | Q166: =IF(O166=$F166,#REF!,1000) -> 1000 | R166: =IF(COUNTIF($F$4:$F166,I166)<4,$F166," ") ->  | S166: 162 | T166: =IF(R166=$F166,#REF!,"") ->  | X166: =IF(V166=$F166,#REF!,"") ->  | Z166: 162
A167: 163 | B167: 163 | D167: =IF(C167>0,CONCATENATE((VLOOKUP($C167,Inscription!$A$12:$G$211,3,FALSE))," ",(VLOOKUP($C167,Inscription!$A$12:$G$211,4,FALSE)))," ") ->  | F167: =IF(C167>0,(VLOOKUP($C167,Inscription!$A$12:$G$211,5,FALSE))," ") ->  | G167: =IF(C167>0,(VLOOKUP($C167,Inscription!$A$12:$G$211,7,FALSE))," ") ->  | H167: =LEFT(IF(C167>0,(VLOOKUP($C167,Inscription!$A$12:$G$211,6,FALSE))," "),8) ->  | I167: =IF(COUNTIF($F$4:$F167,$F167)<2,$F167," ") ->  | J167: 163 | K167: =IF(I167=F167,#REF!,"") ->  | L167: =IF(COUNTIF($F$4:$F167,$F167)<3,$F167," ") ->  | M167: 163 | N167: =IF(L167=$F167,#REF!,"") ->  | P167: 1000 | Q167: =IF(O167=$F167,#REF!,1000) -> 1000 | R167: =IF(COUNTIF($F$4:$F167,I167)<4,$F167," ") ->  | S167: 163 | T167: =IF(R167=$F167,#REF!,"") ->  | X167: =IF(V167=$F167,#REF!,"") ->  | Z167: 163
A168: 164 | B168: 164 | D168: =IF(C168>0,CONCATENATE((VLOOKUP($C168,Inscription!$A$12:$G$211,3,FALSE))," ",(VLOOKUP($C168,Inscription!$A$12:$G$211,4,FALSE)))," ") ->  | F168: =IF(C168>0,(VLOOKUP($C168,Inscription!$A$12:$G$211,5,FALSE))," ") ->  | G168: =IF(C168>0,(VLOOKUP($C168,Inscription!$A$12:$G$211,7,FALSE))," ") ->  | H168: =LEFT(IF(C168>0,(VLOOKUP($C168,Inscription!$A$12:$G$211,6,FALSE))," "),8) ->  | I168: =IF(COUNTIF($F$4:$F168,$F168)<2,$F168," ") ->  | J168: 164 | K168: =IF(I168=F168,#REF!,"") ->  | L168: =IF(COUNTIF($F$4:$F168,$F168)<3,$F168," ") ->  | M168: 164 | N168: =IF(L168=$F168,#REF!,"") ->  | P168: 1000 | Q168: =IF(O168=$F168,#REF!,1000) -> 1000 | R168: =IF(COUNTIF($F$4:$F168,I168)<4,$F168," ") ->  | S168: 164 | T168: =IF(R168=$F168,#REF!,"") ->  | X168: =IF(V168=$F168,#REF!,"") ->  | Z168: 164
A169: 165 | B169: 165 | D169: =IF(C169>0,CONCATENATE((VLOOKUP($C169,Inscription!$A$12:$G$211,3,FALSE))," ",(VLOOKUP($C169,Inscription!$A$12:$G$211,4,FALSE)))," ") ->  | F169: =IF(C169>0,(VLOOKUP($C169,Inscription!$A$12:$G$211,5,FALSE))," ") ->  | G169: =IF(C169>0,(VLOOKUP($C169,Inscription!$A$12:$G$211,7,FALSE))," ") ->  | H169: =LEFT(IF(C169>0,(VLOOKUP($C169,Inscription!$A$12:$G$211,6,FALSE))," "),8) ->  | I169: =IF(COUNTIF($F$4:$F169,$F169)<2,$F169," ") ->  | J169: 165 | K169: =IF(I169=F169,#REF!,"") ->  | L169: =IF(COUNTIF($F$4:$F169,$F169)<3,$F169," ") ->  | M169: 165 | N169: =IF(L169=$F169,#REF!,"") ->  | P169: 1000 | Q169: =IF(O169=$F169,#REF!,1000) -> 1000 | R169: =IF(COUNTIF($F$4:$F169,I169)<4,$F169," ") ->  | S169: 165 | T169: =IF(R169=$F169,#REF!,"") ->  | X169: =IF(V169=$F169,#REF!,"") ->  | Z169: 165
A170: 166 | B170: 166 | D170: =IF(C170>0,CONCATENATE((VLOOKUP($C170,Inscription!$A$12:$G$211,3,FALSE))," ",(VLOOKUP($C170,Inscription!$A$12:$G$211,4,FALSE)))," ") ->  | F170: =IF(C170>0,(VLOOKUP($C170,Inscription!$A$12:$G$211,5,FALSE))," ") ->  | G170: =IF(C170>0,(VLOOKUP($C170,Inscription!$A$12:$G$211,7,FALSE))," ") ->  | H170: =LEFT(IF(C170>0,(VLOOKUP($C170,Inscription!$A$12:$G$211,6,FALSE))," "),8) ->  | I170: =IF(COUNTIF($F$4:$F170,$F170)<2,$F170," ") ->  | J170: 166 | K170: =IF(I170=F170,#REF!,"") ->  | L170: =IF(COUNTIF($F$4:$F170,$F170)<3,$F170," ") ->  | M170: 166 | N170: =IF(L170=$F170,#REF!,"") ->  | P170: 1000 | Q170: =IF(O170=$F170,#REF!,1000) -> 1000 | R170: =IF(COUNTIF($F$4:$F170,I170)<4,$F170," ") ->  | S170: 166 | T170: =IF(R170=$F170,#REF!,"") ->  | X170: =IF(V170=$F170,#REF!,"") ->  | Z170: 166
A171: 167 | B171: 167 | D171: =IF(C171>0,CONCATENATE((VLOOKUP($C171,Inscription!$A$12:$G$211,3,FALSE))," ",(VLOOKUP($C171,Inscription!$A$12:$G$211,4,FALSE)))," ") ->  | F171: =IF(C171>0,(VLOOKUP($C171,Inscription!$A$12:$G$211,5,FALSE))," ") ->  | G171: =IF(C171>0,(VLOOKUP($C171,Inscription!$A$12:$G$211,7,FALSE))," ") ->  | H171: =LEFT(IF(C171>0,(VLOOKUP($C171,Inscription!$A$12:$G$211,6,FALSE))," "),8) ->  | I171: =IF(COUNTIF($F$4:$F171,$F171)<2,$F171," ") ->  | J171: 167 | K171: =IF(I171=F171,#REF!,"") ->  | L171: =IF(COUNTIF($F$4:$F171,$F171)<3,$F171," ") ->  | M171: 167 | N171: =IF(L171=$F171,#REF!,"") ->  | P171: 1000 | Q171: =IF(O171=$F171,#REF!,1000) -> 1000 | R171: =IF(COUNTIF($F$4:$F171,I171)<4,$F171," ") ->  | S171: 167 | T171: =IF(R171=$F171,#REF!,"") ->  | X171: =IF(V171=$F171,#REF!,"") ->  | Z171: 167
A172: 168 | B172: 168 | D172: =IF(C172>0,CONCATENATE((VLOOKUP($C172,Inscription!$A$12:$G$211,3,FALSE))," ",(VLOOKUP($C172,Inscription!$A$12:$G$211,4,FALSE)))," ") ->  | F172: =IF(C172>0,(VLOOKUP($C172,Inscription!$A$12:$G$211,5,FALSE))," ") ->  | G172: =IF(C172>0,(VLOOKUP($C172,Inscription!$A$12:$G$211,7,FALSE))," ") ->  | H172: =LEFT(IF(C172>0,(VLOOKUP($C172,Inscription!$A$12:$G$211,6,FALSE))," "),8) ->  | I172: =IF(COUNTIF($F$4:$F172,$F172)<2,$F172," ") ->  | J172: 168 | K172: =IF(I172=F172,#REF!,"") ->  | L172: =IF(COUNTIF($F$4:$F172,$F172)<3,$F172," ") ->  | M172: 168 | N172: =IF(L172=$F172,#REF!,"") ->  | P172: 1000 | Q172: =IF(O172=$F172,#REF!,1000) -> 1000 | R172: =IF(COUNTIF($F$4:$F172,I172)<4,$F172," ") ->  | S172: 168 | T172: =IF(R172=$F172,#REF!,"") ->  | X172: =IF(V172=$F172,#REF!,"") ->  | Z172: 168
A173: 169 | B173: 169 | D173: =IF(C173>0,CONCATENATE((VLOOKUP($C173,Inscription!$A$12:$G$211,3,FALSE))," ",(VLOOKUP($C173,Inscription!$A$12:$G$211,4,FALSE)))," ") ->  | F173: =IF(C173>0,(VLOOKUP($C173,Inscription!$A$12:$G$211,5,FALSE))," ") ->  | G173: =IF(C173>0,(VLOOKUP($C173,Inscription!$A$12:$G$211,7,FALSE))," ") ->  | H173: =LEFT(IF(C173>0,(VLOOKUP($C173,Inscription!$A$12:$G$211,6,FALSE))," "),8) ->  | I173: =IF(COUNTIF($F$4:$F173,$F173)<2,$F173," ") ->  | J173: 169 | K173: =IF(I173=F173,#REF!,"") ->  | L173: =IF(COUNTIF($F$4:$F173,$F173)<3,$F173," ") ->  | M173: 169 | N173: =IF(L173=$F173,#REF!,"") ->  | P173: 1000 | Q173: =IF(O173=$F173,#REF!,1000) -> 1000 | R173: =IF(COUNTIF($F$4:$F173,I173)<4,$F173," ") ->  | S173: 169 | T173: =IF(R173=$F173,#REF!,"") ->  | X173: =IF(V173=$F173,#REF!,"") ->  | Z173: 169
A174: 170 | B174: 170 | D174: =IF(C174>0,CONCATENATE((VLOOKUP($C174,Inscription!$A$12:$G$211,3,FALSE))," ",(VLOOKUP($C174,Inscription!$A$12:$G$211,4,FALSE)))," ") ->  | F174: =IF(C174>0,(VLOOKUP($C174,Inscription!$A$12:$G$211,5,FALSE))," ") ->  | G174: =IF(C174>0,(VLOOKUP($C174,Inscription!$A$12:$G$211,7,FALSE))," ") ->  | H174: =LEFT(IF(C174>0,(VLOOKUP($C174,Inscription!$A$12:$G$211,6,FALSE))," "),8) ->  | I174: =IF(COUNTIF($F$4:$F174,$F174)<2,$F174," ") ->  | J174: 170 | K174: =IF(I174=F174,#REF!,"") ->  | L174: =IF(COUNTIF($F$4:$F174,$F174)<3,$F174," ") ->  | M174: 170 | N174: =IF(L174=$F174,#REF!,"") ->  | P174: 1000 | Q174: =IF(O174=$F174,#REF!,1000) -> 1000 | R174: =IF(COUNTIF($F$4:$F174,I174)<4,$F174," ") ->  | S174: 170 | T174: =IF(R174=$F174,#REF!,"") ->  | X174: =IF(V174=$F174,#REF!,"") ->  | Z174: 170
A175: 171 | B175: 171 | D175: =IF(C175>0,CONCATENATE((VLOOKUP($C175,Inscription!$A$12:$G$211,3,FALSE))," ",(VLOOKUP($C175,Inscription!$A$12:$G$211,4,FALSE)))," ") ->  | F175: =IF(C175>0,(VLOOKUP($C175,Inscription!$A$12:$G$211,5,FALSE))," ") ->  | G175: =IF(C175>0,(VLOOKUP($C175,Inscription!$A$12:$G$211,7,FALSE))," ") ->  | H175: =LEFT(IF(C175>0,(VLOOKUP($C175,Inscription!$A$12:$G$211,6,FALSE))," "),8) ->  | I175: =IF(COUNTIF($F$4:$F175,$F175)<2,$F175," ") ->  | J175: 171 | K175: =IF(I175=F175,#REF!,"") ->  | L175: =IF(COUNTIF($F$4:$F175,$F175)<3,$F175," ") ->  | M175: 171 | N175: =IF(L175=$F175,#REF!,"") ->  | P175: 1000 | Q175: =IF(O175=$F175,#REF!,1000) -> 1000 | R175: =IF(COUNTIF($F$4:$F175,I175)<4,$F175," ") ->  | S175: 171 | T175: =IF(R175=$F175,#REF!,"") ->  | X175: =IF(V175=$F175,#REF!,"") ->  | Z175: 171
A176: 172 | B176: 172 | D176: =IF(C176>0,CONCATENATE((VLOOKUP($C176,Inscription!$A$12:$G$211,3,FALSE))," ",(VLOOKUP($C176,Inscription!$A$12:$G$211,4,FALSE)))," ") ->  | F176: =IF(C176>0,(VLOOKUP($C176,Inscription!$A$12:$G$211,5,FALSE))," ") ->  | G176: =IF(C176>0,(VLOOKUP($C176,Inscription!$A$12:$G$211,7,FALSE))," ") ->  | H176: =LEFT(IF(C176>0,(VLOOKUP($C176,Inscription!$A$12:$G$211,6,FALSE))," "),8) ->  | I176: =IF(COUNTIF($F$4:$F176,$F176)<2,$F176," ") ->  | J176: 172 | K176: =IF(I176=F176,#REF!,"") ->  | L176: =IF(COUNTIF($F$4:$F176,$F176)<3,$F176," ") ->  | M176: 172 | N176: =IF(L176=$F176,#REF!,"") ->  | P176: 1000 | Q176: =IF(O176=$F176,#REF!,1000) -> 1000 | R176: =IF(COUNTIF($F$4:$F176,I176)<4,$F176," ") ->  | S176: 172 | T176: =IF(R176=$F176,#REF!,"") ->  | X176: =IF(V176=$F176,#REF!,"") ->  | Z176: 172
A177: 173 | B177: 173 | D177: =IF(C177>0,CONCATENATE((VLOOKUP($C177,Inscription!$A$12:$G$211,3,FALSE))," ",(VLOOKUP($C177,Inscription!$A$12:$G$211,4,FALSE)))," ") ->  | F177: =IF(C177>0,(VLOOKUP($C177,Inscription!$A$12:$G$211,5,FALSE))," ") ->  | G177: =IF(C177>0,(VLOOKUP($C177,Inscription!$A$12:$G$211,7,FALSE))," ") ->  | H177: =LEFT(IF(C177>0,(VLOOKUP($C177,Inscription!$A$12:$G$211,6,FALSE))," "),8) ->  | I177: =IF(COUNTIF($F$4:$F177,$F177)<2,$F177," ") ->  | J177: 173 | K177: =IF(I177=F177,#REF!,"") ->  | L177: =IF(COUNTIF($F$4:$F177,$F177)<3,$F177," ") ->  | M177: 173 | N177: =IF(L177=$F177,#REF!,"") ->  | P177: 1000 | Q177: =IF(O177=$F177,#REF!,1000) -> 1000 | R177: =IF(COUNTIF($F$4:$F177,I177)<4,$F177," ") ->  | S177: 173 | T177: =IF(R177=$F177,#REF!,"") ->  | X177: =IF(V177=$F177,#REF!,"") ->  | Z177: 173
A178: 174 | B178: 174 | D178: =IF(C178>0,CONCATENATE((VLOOKUP($C178,Inscription!$A$12:$G$211,3,FALSE))," ",(VLOOKUP($C178,Inscription!$A$12:$G$211,4,FALSE)))," ") ->  | F178: =IF(C178>0,(VLOOKUP($C178,Inscription!$A$12:$G$211,5,FALSE))," ") ->  | G178: =IF(C178>0,(VLOOKUP($C178,Inscription!$A$12:$G$211,7,FALSE))," ") ->  | H178: =LEFT(IF(C178>0,(VLOOKUP($C178,Inscription!$A$12:$G$211,6,FALSE))," "),8) ->  | I178: =IF(COUNTIF($F$4:$F178,$F178)<2,$F178," ") ->  | J178: 174 | K178: =IF(I178=F178,#REF!,"") ->  | L178: =IF(COUNTIF($F$4:$F178,$F178)<3,$F178," ") ->  | M178: 174 | N178: =IF(L178=$F178,#REF!,"") ->  | P178: 1000 | Q178: =IF(O178=$F178,#REF!,1000) -> 1000 | R178: =IF(COUNTIF($F$4:$F178,I178)<4,$F178," ") ->  | S178: 174 | T178: =IF(R178=$F178,#REF!,"") ->  | X178: =IF(V178=$F178,#REF!,"") ->  | Z178: 174
A179: 175 | B179: 175 | D179: =IF(C179>0,CONCATENATE((VLOOKUP($C179,Inscription!$A$12:$G$211,3,FALSE))," ",(VLOOKUP($C179,Inscription!$A$12:$G$211,4,FALSE)))," ") ->  | F179: =IF(C179>0,(VLOOKUP($C179,Inscription!$A$12:$G$211,5,FALSE))," ") ->  | G179: =IF(C179>0,(VLOOKUP($C179,Inscription!$A$12:$G$211,7,FALSE))," ") ->  | H179: =LEFT(IF(C179>0,(VLOOKUP($C179,Inscription!$A$12:$G$211,6,FALSE))," "),8) ->  | I179: =IF(COUNTIF($F$4:$F179,$F179)<2,$F179," ") ->  | J179: 175 | K179: =IF(I179=F179,#REF!,"") ->  | L179: =IF(COUNTIF($F$4:$F179,$F179)<3,$F179," ") ->  | M179: 175 | N179: =IF(L179=$F179,#REF!,"") ->  | P179: 1000 | Q179: =IF(O179=$F179,#REF!,1000) -> 1000 | R179: =IF(COUNTIF($F$4:$F179,I179)<4,$F179," ") ->  | S179: 175 | T179: =IF(R179=$F179,#REF!,"") ->  | X179: =IF(V179=$F179,#REF!,"") ->  | Z179: 175
A180: 176 | B180: 176 | D180: =IF(C180>0,CONCATENATE((VLOOKUP($C180,Inscription!$A$12:$G$211,3,FALSE))," ",(VLOOKUP($C180,Inscription!$A$12:$G$211,4,FALSE)))," ") ->  | F180: =IF(C180>0,(VLOOKUP($C180,Inscription!$A$12:$G$211,5,FALSE))," ") ->  | G180: =IF(C180>0,(VLOOKUP($C180,Inscription!$A$12:$G$211,7,FALSE))," ") ->  | H180: =LEFT(IF(C180>0,(VLOOKUP($C180,Inscription!$A$12:$G$211,6,FALSE))," "),8) ->  | I180: =IF(COUNTIF($F$4:$F180,$F180)<2,$F180," ") ->  | J180: =IF(I180=F180,A180,"") -> 176 | K180: =IF(I180=F180,#REF!,"") ->  | L180: =IF(COUNTIF($F$4:$F180,$F180)<3,$F180," ") ->  | M180: 176 | N180: =IF(L180=$F180,#REF!,"") ->  | P180: 1000 | Q180: =IF(O180=$F180,#REF!,1000) -> 1000 | R180: =IF(COUNTIF($F$4:$F180,I180)<4,$F180," ") ->  | S180: 176 | T180: =IF(R180=$F180,#REF!,"") ->  | X180: =IF(V180=$F180,#REF!,"") ->  | Z180: 176
A181: 177 | B181: 177 | D181: =IF(C181>0,CONCATENATE((VLOOKUP($C181,Inscription!$A$12:$G$211,3,FALSE))," ",(VLOOKUP($C181,Inscription!$A$12:$G$211,4,FALSE)))," ") ->  | F181: =IF(C181>0,(VLOOKUP($C181,Inscription!$A$12:$G$211,5,FALSE))," ") ->  | G181: =IF(C181>0,(VLOOKUP($C181,Inscription!$A$12:$G$211,7,FALSE))," ") ->  | H181: =LEFT(IF(C181>0,(VLOOKUP($C181,Inscription!$A$12:$G$211,6,FALSE))," "),8) ->  | I181: =IF(COUNTIF($F$4:$F181,$F181)<2,$F181," ") ->  | J181: 177 | K181: =IF(I181=F181,#REF!,"") ->  | L181: =IF(COUNTIF($F$4:$F181,$F181)<3,$F181," ") ->  | M181: 177 | N181: =IF(L181=$F181,#REF!,"") ->  | P181: 1000 | Q181: =IF(O181=$F181,#REF!,1000) -> 1000 | R181: =IF(COUNTIF($F$4:$F181,I181)<4,$F181," ") ->  | S181: 177 | T181: =IF(R181=$F181,#REF!,"") ->  | X181: =IF(V181=$F181,#REF!,"") ->  | Z181: 177
A182: 178 | B182: 178 | D182: =IF(C182>0,CONCATENATE((VLOOKUP($C182,Inscription!$A$12:$G$211,3,FALSE))," ",(VLOOKUP($C182,Inscription!$A$12:$G$211,4,FALSE)))," ") ->  | F182: =IF(C182>0,(VLOOKUP($C182,Inscription!$A$12:$G$211,5,FALSE))," ") ->  | G182: =IF(C182>0,(VLOOKUP($C182,Inscription!$A$12:$G$211,7,FALSE))," ") ->  | H182: =LEFT(IF(C182>0,(VLOOKUP($C182,Inscription!$A$12:$G$211,6,FALSE))," "),8) ->  | I182: =IF(COUNTIF($F$4:$F182,$F182)<2,$F182," ") ->  | J182: 178 | K182: =IF(I182=F182,#REF!,"") ->  | L182: =IF(COUNTIF($F$4:$F182,$F182)<3,$F182," ") ->  | M182: 178 | N182: =IF(L182=$F182,#REF!,"") ->  | P182: 1000 | Q182: =IF(O182=$F182,#REF!,1000) -> 1000 | R182: =IF(COUNTIF($F$4:$F182,I182)<4,$F182," ") ->  | S182: 178 | T182: =IF(R182=$F182,#REF!,"") ->  | X182: =IF(V182=$F182,#REF!,"") ->  | Z182: 178
A183: 179 | B183: 179 | D183: =IF(C183>0,CONCATENATE((VLOOKUP($C183,Inscription!$A$12:$G$211,3,FALSE))," ",(VLOOKUP($C183,Inscription!$A$12:$G$211,4,FALSE)))," ") ->  | F183: =IF(C183>0,(VLOOKUP($C183,Inscription!$A$12:$G$211,5,FALSE))," ") ->  | G183: =IF(C183>0,(VLOOKUP($C183,Inscription!$A$12:$G$211,7,FALSE))," ") ->  | H183: =LEFT(IF(C183>0,(VLOOKUP($C183,Inscription!$A$12:$G$211,6,FALSE))," "),8) ->  | I183: =IF(COUNTIF($F$4:$F183,$F183)<2,$F183," ") ->  | J183: 179 | K183: =IF(I183=F183,#REF!,"") ->  | L183: =IF(COUNTIF($F$4:$F183,$F183)<3,$F183," ") ->  | M183: 179 | N183: =IF(L183=$F183,#REF!,"") ->  | P183: 1000 | Q183: =IF(O183=$F183,#REF!,1000) -> 1000 | R183: =IF(COUNTIF($F$4:$F183,I183)<4,$F183," ") ->  | S183: 179 | T183: =IF(R183=$F183,#REF!,"") ->  | X183: =IF(V183=$F183,#REF!,"") ->  | Z183: 179
A184: 180 | B184: 180 | D184: =IF(C184>0,CONCATENATE((VLOOKUP($C184,Inscription!$A$12:$G$211,3,FALSE))," ",(VLOOKUP($C184,Inscription!$A$12:$G$211,4,FALSE)))," ") ->  | F184: =IF(C184>0,(VLOOKUP($C184,Inscription!$A$12:$G$211,5,FALSE))," ") ->  | G184: =IF(C184>0,(VLOOKUP($C184,Inscription!$A$12:$G$211,7,FALSE))," ") ->  | H184: =LEFT(IF(C184>0,(VLOOKUP($C184,Inscription!$A$12:$G$211,6,FALSE))," "),8) ->  | I184: =IF(COUNTIF($F$4:$F184,$F184)<2,$F184," ") ->  | J184: 180 | K184: =IF(I184=F184,#REF!,"") ->  | L184: =IF(COUNTIF($F$4:$F184,$F184)<3,$F184," ") ->  | M184: 180 | N184: =IF(L184=$F184,#REF!,"") ->  | P184: 1000 | Q184: =IF(O184=$F184,#REF!,1000) -> 1000 | R184: =IF(COUNTIF($F$4:$F184,I184)<4,$F184," ") ->  | S184: 180 | T184: =IF(R184=$F184,#REF!,"") ->  | X184: =IF(V184=$F184,#REF!,"") ->  | Z184: 180
A185: =IF(B185<1,1000,(IF(Z185=B185,B185,(20100-SUM($Z$4:$Z$204))/(COUNTIF($Z$4:$Z$204,"T"))))) -> 181 | B185: 181 | D185: =IF(C185>0,CONCATENATE((VLOOKUP($C185,Inscription!$A$12:$G$211,3,FALSE))," ",(VLOOKUP($C185,Inscription!$A$12:$G$211,4,FALSE)))," ") ->  | F185: =IF(C185>0,(VLOOKUP($C185,Inscription!$A$12:$G$211,5,FALSE))," ") ->  | G185: =IF(C185>0,(VLOOKUP($C185,Inscription!$A$12:$G$211,7,FALSE))," ") ->  | H185: =LEFT(IF(C185>0,(VLOOKUP($C185,Inscription!$A$12:$G$211,6,FALSE))," "),8) ->  | I185: =IF(COUNTIF($F$4:$F185,$F185)<2,$F185," ") ->  | J185: 181 | K185: =IF(I185=F185,#REF!,"") ->  | L185: =IF(COUNTIF($F$4:$F185,$F185)<3,$F185," ") ->  | M185: 181 | N185: =IF(L185=$F185,#REF!,"") ->  | P185: 1000 | Q185: =IF(O185=$F185,#REF!,1000) -> 1000 | R185: =IF(COUNTIF($F$4:$F185,I185)<4,$F185," ") ->  | S185: 181 | T185: =IF(R185=$F185,#REF!,"") ->  | X185: =IF(V185=$F185,#REF!,"") ->  | Y185: =IF(COUNTIF($C$4:$C$204,C185)>1,"X"," ") ->  | Z185: =IF(COUNTIF($B$4:$B$204,B185)>1,"T",B185) -> 181
A186: 182 | B186: 182 | D186: =IF(C186>0,CONCATENATE((VLOOKUP($C186,Inscription!$A$12:$G$211,3,FALSE))," ",(VLOOKUP($C186,Inscription!$A$12:$G$211,4,FALSE)))," ") ->  | F186: =IF(C186>0,(VLOOKUP($C186,Inscription!$A$12:$G$211,5,FALSE))," ") ->  | G186: =IF(C186>0,(VLOOKUP($C186,Inscription!$A$12:$G$211,7,FALSE))," ") ->  | H186: =LEFT(IF(C186>0,(VLOOKUP($C186,Inscription!$A$12:$G$211,6,FALSE))," "),8) ->  | I186: =IF(COUNTIF($F$4:$F186,$F186)<2,$F186," ") ->  | J186: 182 | K186: =IF(I186=F186,#REF!,"") ->  | L186: =IF(COUNTIF($F$4:$F186,$F186)<3,$F186," ") ->  | M186: 182 | N186: =IF(L186=$F186,#REF!,"") ->  | P186: 1000 | Q186: =IF(O186=$F186,#REF!,1000) -> 1000 | R186: =IF(COUNTIF($F$4:$F186,I186)<4,$F186," ") ->  | S186: 182 | T186: =IF(R186=$F186,#REF!,"") ->  | X186: =IF(V186=$F186,#REF!,"") ->  | Z186: 182
A187: 183 | B187: 183 | D187: =IF(C187>0,CONCATENATE((VLOOKUP($C187,Inscription!$A$12:$G$211,3,FALSE))," ",(VLOOKUP($C187,Inscription!$A$12:$G$211,4,FALSE)))," ") ->  | F187: =IF(C187>0,(VLOOKUP($C187,Inscription!$A$12:$G$211,5,FALSE))," ") ->  | G187: =IF(C187>0,(VLOOKUP($C187,Inscription!$A$12:$G$211,7,FALSE))," ") ->  | H187: =LEFT(IF(C187>0,(VLOOKUP($C187,Inscription!$A$12:$G$211,6,FALSE))," "),8) ->  | I187: =IF(COUNTIF($F$4:$F187,$F187)<2,$F187," ") ->  | J187: 183 | K187: =IF(I187=F187,#REF!,"") ->  | L187: =IF(COUNTIF($F$4:$F187,$F187)<3,$F187," ") ->  | M187: 183 | N187: =IF(L187=$F187,#REF!,"") ->  | P187: 1000 | Q187: =IF(O187=$F187,#REF!,1000) -> 1000 | R187: =IF(COUNTIF($F$4:$F187,I187)<4,$F187," ") ->  | S187: 183 | T187: =IF(R187=$F187,#REF!,"") ->  | X187: =IF(V187=$F187,#REF!,"") ->  | Z187: 183
A188: 184 | B188: 184 | D188: =IF(C188>0,CONCATENATE((VLOOKUP($C188,Inscription!$A$12:$G$211,3,FALSE))," ",(VLOOKUP($C188,Inscription!$A$12:$G$211,4,FALSE)))," ") ->  | F188: =IF(C188>0,(VLOOKUP($C188,Inscription!$A$12:$G$211,5,FALSE))," ") ->  | G188: =IF(C188>0,(VLOOKUP($C188,Inscription!$A$12:$G$211,7,FALSE))," ") ->  | H188: =LEFT(IF(C188>0,(VLOOKUP($C188,Inscription!$A$12:$G$211,6,FALSE))," "),8) ->  | I188: =IF(COUNTIF($F$4:$F188,$F188)<2,$F188," ") ->  | J188: 184 | K188: =IF(I188=F188,#REF!,"") ->  | L188: =IF(COUNTIF($F$4:$F188,$F188)<3,$F188," ") ->  | M188: 184 | N188: =IF(L188=$F188,#REF!,"") ->  | P188: 1000 | Q188: =IF(O188=$F188,#REF!,1000) -> 1000 | R188: =IF(COUNTIF($F$4:$F188,I188)<4,$F188," ") ->  | S188: 184 | T188: =IF(R188=$F188,#REF!,"") ->  | X188: =IF(V188=$F188,#REF!,"") ->  | Z188: 184
A189: 185 | B189: 185 | D189: =IF(C189>0,CONCATENATE((VLOOKUP($C189,Inscription!$A$12:$G$211,3,FALSE))," ",(VLOOKUP($C189,Inscription!$A$12:$G$211,4,FALSE)))," ") ->  | F189: =IF(C189>0,(VLOOKUP($C189,Inscription!$A$12:$G$211,5,FALSE))," ") ->  | G189: =IF(C189>0,(VLOOKUP($C189,Inscription!$A$12:$G$211,7,FALSE))," ") ->  | H189: =LEFT(IF(C189>0,(VLOOKUP($C189,Inscription!$A$12:$G$211,6,FALSE))," "),8) ->  | I189: =IF(COUNTIF($F$4:$F189,$F189)<2,$F189," ") ->  | J189: 185 | K189: =IF(I189=F189,#REF!,"") ->  | L189: =IF(COUNTIF($F$4:$F189,$F189)<3,$F189," ") ->  | M189: 185 | N189: =IF(L189=$F189,#REF!,"") ->  | P189: 1000 | Q189: =IF(O189=$F189,#REF!,1000) -> 1000 | R189: =IF(COUNTIF($F$4:$F189,I189)<4,$F189," ") ->  | S189: 185 | T189: =IF(R189=$F189,#REF!,"") ->  | X189: =IF(V189=$F189,#REF!,"") ->  | Z189: 185
A190: 186 | B190: 186 | D190: =IF(C190>0,CONCATENATE((VLOOKUP($C190,Inscription!$A$12:$G$211,3,FALSE))," ",(VLOOKUP($C190,Inscription!$A$12:$G$211,4,FALSE)))," ") ->  | F190: =IF(C190>0,(VLOOKUP($C190,Inscription!$A$12:$G$211,5,FALSE))," ") ->  | G190: =IF(C190>0,(VLOOKUP($C190,Inscription!$A$12:$G$211,7,FALSE))," ") ->  | H190: =LEFT(IF(C190>0,(VLOOKUP($C190,Inscription!$A$12:$G$211,6,FALSE))," "),8) ->  | I190: =IF(COUNTIF($F$4:$F190,$F190)<2,$F190," ") ->  | J190: 186 | K190: =IF(I190=F190,#REF!,"") ->  | L190: =IF(COUNTIF($F$4:$F190,$F190)<3,$F190," ") ->  | M190: 186 | N190: =IF(L190=$F190,#REF!,"") ->  | P190: 1000 | Q190: =IF(O190=$F190,#REF!,1000) -> 1000 | R190: =IF(COUNTIF($F$4:$F190,I190)<4,$F190," ") ->  | S190: 186 | T190: =IF(R190=$F190,#REF!,"") ->  | X190: =IF(V190=$F190,#REF!,"") ->  | Z190: 186
A191: 187 | B191: 187 | D191: =IF(C191>0,CONCATENATE((VLOOKUP($C191,Inscription!$A$12:$G$211,3,FALSE))," ",(VLOOKUP($C191,Inscription!$A$12:$G$211,4,FALSE)))," ") ->  | F191: =IF(C191>0,(VLOOKUP($C191,Inscription!$A$12:$G$211,5,FALSE))," ") ->  | G191: =IF(C191>0,(VLOOKUP($C191,Inscription!$A$12:$G$211,7,FALSE))," ") ->  | H191: =LEFT(IF(C191>0,(VLOOKUP($C191,Inscription!$A$12:$G$211,6,FALSE))," "),8) ->  | I191: =IF(COUNTIF($F$4:$F191,$F191)<2,$F191," ") ->  | J191: 187 | K191: =IF(I191=F191,#REF!,"") ->  | L191: =IF(COUNTIF($F$4:$F191,$F191)<3,$F191," ") ->  | M191: 187 | N191: =IF(L191=$F191,#REF!,"") ->  | P191: 1000 | Q191: =IF(O191=$F191,#REF!,1000) -> 1000 | R191: =IF(COUNTIF($F$4:$F191,I191)<4,$F191," ") ->  | S191: 187 | T191: =IF(R191=$F191,#REF!,"") ->  | X191: =IF(V191=$F191,#REF!,"") ->  | Z191: 187
A192: 188 | B192: 188 | D192: =IF(C192>0,CONCATENATE((VLOOKUP($C192,Inscription!$A$12:$G$211,3,FALSE))," ",(VLOOKUP($C192,Inscription!$A$12:$G$211,4,FALSE)))," ") ->  | F192: =IF(C192>0,(VLOOKUP($C192,Inscription!$A$12:$G$211,5,FALSE))," ") ->  | G192: =IF(C192>0,(VLOOKUP($C192,Inscription!$A$12:$G$211,7,FALSE))," ") ->  | H192: =LEFT(IF(C192>0,(VLOOKUP($C192,Inscription!$A$12:$G$211,6,FALSE))," "),8) ->  | I192: =IF(COUNTIF($F$4:$F192,$F192)<2,$F192," ") ->  | J192: 188 | K192: =IF(I192=F192,#REF!,"") ->  | L192: =IF(COUNTIF($F$4:$F192,$F192)<3,$F192," ") ->  | M192: 188 | N192: =IF(L192=$F192,#REF!,"") ->  | P192: 1000 | Q192: =IF(O192=$F192,#REF!,1000) -> 1000 | R192: =IF(COUNTIF($F$4:$F192,I192)<4,$F192," ") ->  | S192: 188 | T192: =IF(R192=$F192,#REF!,"") ->  | X192: =IF(V192=$F192,#REF!,"") ->  | Z192: 188
A193: 189 | B193: 189 | D193: =IF(C193>0,CONCATENATE((VLOOKUP($C193,Inscription!$A$12:$G$211,3,FALSE))," ",(VLOOKUP($C193,Inscription!$A$12:$G$211,4,FALSE)))," ") ->  | F193: =IF(C193>0,(VLOOKUP($C193,Inscription!$A$12:$G$211,5,FALSE))," ") ->  | G193: =IF(C193>0,(VLOOKUP($C193,Inscription!$A$12:$G$211,7,FALSE))," ") ->  | H193: =LEFT(IF(C193>0,(VLOOKUP($C193,Inscription!$A$12:$G$211,6,FALSE))," "),8) ->  | I193: =IF(COUNTIF($F$4:$F193,$F193)<2,$F193," ") ->  | J193: 189 | K193: =IF(I193=F193,#REF!,"") ->  | L193: =IF(COUNTIF($F$4:$F193,$F193)<3,$F193," ") ->  | M193: 189 | N193: =IF(L193=$F193,#REF!,"") ->  | P193: 1000 | Q193: =IF(O193=$F193,#REF!,1000) -> 1000 | R193: =IF(COUNTIF($F$4:$F193,I193)<4,$F193," ") ->  | S193: 189 | T193: =IF(R193=$F193,#REF!,"") ->  | X193: =IF(V193=$F193,#REF!,"") ->  | Z193: 189
A194: 190 | B194: 190 | D194: =IF(C194>0,CONCATENATE((VLOOKUP($C194,Inscription!$A$12:$G$211,3,FALSE))," ",(VLOOKUP($C194,Inscription!$A$12:$G$211,4,FALSE)))," ") ->  | F194: =IF(C194>0,(VLOOKUP($C194,Inscription!$A$12:$G$211,5,FALSE))," ") ->  | G194: =IF(C194>0,(VLOOKUP($C194,Inscription!$A$12:$G$211,7,FALSE))," ") ->  | H194: =LEFT(IF(C194>0,(VLOOKUP($C194,Inscription!$A$12:$G$211,6,FALSE))," "),8) ->  | I194: =IF(COUNTIF($F$4:$F194,$F194)<2,$F194," ") ->  | J194: 190 | K194: =IF(I194=F194,#REF!,"") ->  | L194: =IF(COUNTIF($F$4:$F194,$F194)<3,$F194," ") ->  | M194: 190 | N194: =IF(L194=$F194,#REF!,"") ->  | P194: 1000 | Q194: =IF(O194=$F194,#REF!,1000) -> 1000 | R194: =IF(COUNTIF($F$4:$F194,I194)<4,$F194," ") ->  | S194: 190 | T194: =IF(R194=$F194,#REF!,"") ->  | X194: =IF(V194=$F194,#REF!,"") ->  | Z194: 190
A195: 191 | B195: 191 | D195: =IF(C195>0,CONCATENATE((VLOOKUP($C195,Inscription!$A$12:$G$211,3,FALSE))," ",(VLOOKUP($C195,Inscription!$A$12:$G$211,4,FALSE)))," ") ->  | F195: =IF(C195>0,(VLOOKUP($C195,Inscription!$A$12:$G$211,5,FALSE))," ") ->  | G195: =IF(C195>0,(VLOOKUP($C195,Inscription!$A$12:$G$211,7,FALSE))," ") ->  | H195: =LEFT(IF(C195>0,(VLOOKUP($C195,Inscription!$A$12:$G$211,6,FALSE))," "),8) ->  | I195: =IF(COUNTIF($F$4:$F195,$F195)<2,$F195," ") ->  | J195: 191 | K195: =IF(I195=F195,#REF!,"") ->  | L195: =IF(COUNTIF($F$4:$F195,$F195)<3,$F195," ") ->  | M195: 191 | N195: =IF(L195=$F195,#REF!,"") ->  | P195: 1000 | Q195: =IF(O195=$F195,#REF!,1000) -> 1000 | R195: =IF(COUNTIF($F$4:$F195,I195)<4,$F195," ") ->  | S195: 191 | T195: =IF(R195=$F195,#REF!,"") ->  | X195: =IF(V195=$F195,#REF!,"") ->  | Z195: 191
A196: 192 | B196: 192 | D196: =IF(C196>0,CONCATENATE((VLOOKUP($C196,Inscription!$A$12:$G$211,3,FALSE))," ",(VLOOKUP($C196,Inscription!$A$12:$G$211,4,FALSE)))," ") ->  | F196: =IF(C196>0,(VLOOKUP($C196,Inscription!$A$12:$G$211,5,FALSE))," ") ->  | G196: =IF(C196>0,(VLOOKUP($C196,Inscription!$A$12:$G$211,7,FALSE))," ") ->  | H196: =LEFT(IF(C196>0,(VLOOKUP($C196,Inscription!$A$12:$G$211,6,FALSE))," "),8) ->  | I196: =IF(COUNTIF($F$4:$F196,$F196)<2,$F196," ") ->  | J196: 192 | K196: =IF(I196=F196,#REF!,"") ->  | L196: =IF(COUNTIF($F$4:$F196,$F196)<3,$F196," ") ->  | M196: 192 | N196: =IF(L196=$F196,#REF!,"") ->  | P196: 1000 | Q196: =IF(O196=$F196,#REF!,1000) -> 1000 | R196: =IF(COUNTIF($F$4:$F196,I196)<4,$F196," ") ->  | S196: 192 | T196: =IF(R196=$F196,#REF!,"") ->  | X196: =IF(V196=$F196,#REF!,"") ->  | Z196: 192
A197: 193 | B197: 193 | D197: =IF(C197>0,CONCATENATE((VLOOKUP($C197,Inscription!$A$12:$G$211,3,FALSE))," ",(VLOOKUP($C197,Inscription!$A$12:$G$211,4,FALSE)))," ") ->  | F197: =IF(C197>0,(VLOOKUP($C197,Inscription!$A$12:$G$211,5,FALSE))," ") ->  | G197: =IF(C197>0,(VLOOKUP($C197,Inscription!$A$12:$G$211,7,FALSE))," ") ->  | H197: =LEFT(IF(C197>0,(VLOOKUP($C197,Inscription!$A$12:$G$211,6,FALSE))," "),8) ->  | I197: =IF(COUNTIF($F$4:$F197,$F197)<2,$F197," ") ->  | J197: 193 | K197: =IF(I197=F197,#REF!,"") ->  | L197: =IF(COUNTIF($F$4:$F197,$F197)<3,$F197," ") ->  | M197: 193 | N197: =IF(L197=$F197,#REF!,"") ->  | P197: 1000 | Q197: =IF(O197=$F197,#REF!,1000) -> 1000 | R197: =IF(COUNTIF($F$4:$F197,I197)<4,$F197," ") ->  | S197: 193 | T197: =IF(R197=$F197,#REF!,"") ->  | X197: =IF(V197=$F197,#REF!,"") ->  | Z197: 193
A198: 194 | B198: 194 | D198: =IF(C198>0,CONCATENATE((VLOOKUP($C198,Inscription!$A$12:$G$211,3,FALSE))," ",(VLOOKUP($C198,Inscription!$A$12:$G$211,4,FALSE)))," ") ->  | F198: =IF(C198>0,(VLOOKUP($C198,Inscription!$A$12:$G$211,5,FALSE))," ") ->  | G198: =IF(C198>0,(VLOOKUP($C198,Inscription!$A$12:$G$211,7,FALSE))," ") ->  | H198: =LEFT(IF(C198>0,(VLOOKUP($C198,Inscription!$A$12:$G$211,6,FALSE))," "),8) ->  | I198: =IF(COUNTIF($F$4:$F198,$F198)<2,$F198," ") ->  | J198: 194 | K198: =IF(I198=F198,#REF!,"") ->  | L198: =IF(COUNTIF($F$4:$F198,$F198)<3,$F198," ") ->  | M198: =IF(L198=$F198,$A198,"") -> 194 | N198: =IF(L198=$F198,#REF!,"") ->  | O198: =IF(L198=I198,"",L198) ->  | P198: =IF(O198=$F198,$A198,1000) -> 1000 | Q198: =IF(O198=$F198,#REF!,1000) -> 1000 | R198: =IF(COUNTIF($F$4:$F198,I198)<4,$F198," ") ->  | S198: =IF(R198=$F198,$A198,"") -> 194 | T198: =IF(R198=$F198,#REF!,"") ->  | U198: =IF(R198=I198,"",R198) ->  | V198: =IF(U198=O198,"",R198) ->  | W198: =IF(V198=$F198,$A198,"") ->  | X198: =IF(V198=$F198,#REF!,"") ->  | Z198: 194
A199: 195 | B199: 195 | D199: =IF(C199>0,CONCATENATE((VLOOKUP($C199,Inscription!$A$12:$G$211,3,FALSE))," ",(VLOOKUP($C199,Inscription!$A$12:$G$211,4,FALSE)))," ") ->  | F199: =IF(C199>0,(VLOOKUP($C199,Inscription!$A$12:$G$211,5,FALSE))," ") ->  | G199: =IF(C199>0,(VLOOKUP($C199,Inscription!$A$12:$G$211,7,FALSE))," ") ->  | H199: =LEFT(IF(C199>0,(VLOOKUP($C199,Inscription!$A$12:$G$211,6,FALSE))," "),8) ->  | I199: =IF(COUNTIF($F$4:$F199,$F199)<2,$F199," ") ->  | J199: 195 | K199: =IF(I199=F199,#REF!,"") ->  | L199: =IF(COUNTIF($F$4:$F199,$F199)<3,$F199," ") ->  | M199: 195 | N199: =IF(L199=$F199,#REF!,"") ->  | P199: 1000 | Q199: =IF(O199=$F199,#REF!,1000) -> 1000 | R199: =IF(COUNTIF($F$4:$F199,I199)<4,$F199," ") ->  | S199: 195 | T199: =IF(R199=$F199,#REF!,"") ->  | X199: =IF(V199=$F199,#REF!,"") ->  | Z199: 195
A200: 196 | B200: 196 | D200: =IF(C200>0,CONCATENATE((VLOOKUP($C200,Inscription!$A$12:$G$211,3,FALSE))," ",(VLOOKUP($C200,Inscription!$A$12:$G$211,4,FALSE)))," ") ->  | F200: =IF(C200>0,(VLOOKUP($C200,Inscription!$A$12:$G$211,5,FALSE))," ") ->  | G200: =IF(C200>0,(VLOOKUP($C200,Inscription!$A$12:$G$211,7,FALSE))," ") ->  | H200: =LEFT(IF(C200>0,(VLOOKUP($C200,Inscription!$A$12:$G$211,6,FALSE))," "),8) ->  | I200: =IF(COUNTIF($F$4:$F200,$F200)<2,$F200," ") ->  | J200: 196 | K200: =IF(I200=F200,#REF!,"") ->  | L200: =IF(COUNTIF($F$4:$F200,$F200)<3,$F200," ") ->  | M200: 196 | N200: =IF(L200=$F200,#REF!,"") ->  | P200: 1000 | Q200: =IF(O200=$F200,#REF!,1000) -> 1000 | R200: =IF(COUNTIF($F$4:$F200,I200)<4,$F200," ") ->  | S200: 196 | T200: =IF(R200=$F200,#REF!,"") ->  | X200: =IF(V200=$F200,#REF!,"") ->  | Z200: 196
A201: 197 | B201: 197 | D201: =IF(C201>0,CONCATENATE((VLOOKUP($C201,Inscription!$A$12:$G$211,3,FALSE))," ",(VLOOKUP($C201,Inscription!$A$12:$G$211,4,FALSE)))," ") ->  | F201: =IF(C201>0,(VLOOKUP($C201,Inscription!$A$12:$G$211,5,FALSE))," ") ->  | G201: =IF(C201>0,(VLOOKUP($C201,Inscription!$A$12:$G$211,7,FALSE))," ") ->  | H201: =LEFT(IF(C201>0,(VLOOKUP($C201,Inscription!$A$12:$G$211,6,FALSE))," "),8) ->  | I201: =IF(COUNTIF($F$4:$F201,$F201)<2,$F201," ") ->  | J201: 197 | K201: =IF(I201=F201,#REF!,"") ->  | L201: =IF(COUNTIF($F$4:$F201,$F201)<3,$F201," ") ->  | M201: 197 | N201: =IF(L201=$F201,#REF!,"") ->  | P201: 1000 | Q201: =IF(O201=$F201,#REF!,1000) -> 1000 | R201: =IF(COUNTIF($F$4:$F201,I201)<4,$F201," ") ->  | S201: 197 | T201: =IF(R201=$F201,#REF!,"") ->  | X201: =IF(V201=$F201,#REF!,"") ->  | Z201: 197
A202: 198 | B202: 198 | D202: =IF(C202>0,CONCATENATE((VLOOKUP($C202,Inscription!$A$12:$G$211,3,FALSE))," ",(VLOOKUP($C202,Inscription!$A$12:$G$211,4,FALSE)))," ") ->  | F202: =IF(C202>0,(VLOOKUP($C202,Inscription!$A$12:$G$211,5,FALSE))," ") ->  | G202: =IF(C202>0,(VLOOKUP($C202,Inscription!$A$12:$G$211,7,FALSE))," ") ->  | H202: =LEFT(IF(C202>0,(VLOOKUP($C202,Inscription!$A$12:$G$211,6,FALSE))," "),8) ->  | I202: =IF(COUNTIF($F$4:$F202,$F202)<2,$F202," ") ->  | J202: 198 | K202: =IF(I202=F202,#REF!,"") ->  | L202: =IF(COUNTIF($F$4:$F202,$F202)<3,$F202," ") ->  | M202: 198 | N202: =IF(L202=$F202,#REF!,"") ->  | P202: 1000 | Q202: =IF(O202=$F202,#REF!,1000) -> 1000 | R202: =IF(COUNTIF($F$4:$F202,I202)<4,$F202," ") ->  | S202: 198 | T202: =IF(R202=$F202,#REF!,"") ->  | X202: =IF(V202=$F202,#REF!,"") ->  | Z202: 198
A203: 199 | B203: 199 | D203: =IF(C203>0,CONCATENATE((VLOOKUP($C203,Inscription!$A$12:$G$211,3,FALSE))," ",(VLOOKUP($C203,Inscription!$A$12:$G$211,4,FALSE)))," ") ->  | F203: =IF(C203>0,(VLOOKUP($C203,Inscription!$A$12:$G$211,5,FALSE))," ") ->  | G203: =IF(C203>0,(VLOOKUP($C203,Inscription!$A$12:$G$211,7,FALSE))," ") ->  | H203: =LEFT(IF(C203>0,(VLOOKUP($C203,Inscription!$A$12:$G$211,6,FALSE))," "),8) ->  | I203: =IF(COUNTIF($F$4:$F203,$F203)<2,$F203," ") ->  | J203: 199 | K203: =IF(I203=F203,#REF!,"") ->  | L203: =IF(COUNTIF($F$4:$F203,$F203)<3,$F203," ") ->  | M203: 199 | N203: =IF(L203=$F203,#REF!,"") ->  | P203: 1000 | Q203: =IF(O203=$F203,#REF!,1000) -> 1000 | R203: =IF(COUNTIF($F$4:$F203,I203)<4,$F203," ") ->  | S203: 199 | T203: =IF(R203=$F203,#REF!,"") ->  | X203: =IF(V203=$F203,#REF!,"") ->  | Z203: 199
... 1 more rows

Sheet CLASS INTERNET
G4: Commissaires :
G5: Nicole JEUNEU, Sandra GUILLAUME,
G6: Maryvonne GOUYA, Baptiste BEDEL,
G7: Alain RICHEUX, Gwaldys LERAY, Stéphanie GOUYA
A9: COURSE | C9: =CLASSEMENT!C1 -> cyclo cross de Créhen | F9: =IF(Inscription!$D$4>0,"DATE : "&TEXT(Inscription!D$4,"jj mmmm aaaa"),"") -> DATE : 30 novembre 2024
C10: =Inscription!D5 -> 0 | F10: =CLASSEMENT!G2 -> 0
A11: Place | B11: Doss | C11: NOM et PRENOM | E11: CLUB | F11: LICENCE | G11: CAT.
A12: =CLASSEMENT!$B4 -> 0 | B12: =CLASSEMENT!C4 -> 0 | C12: Moustique | E12: =CLASSEMENT!F4 ->  | F12: =CLASSEMENT!G4 ->  | G12: =CLASSEMENT!H4 -> 
A13: =CLASSEMENT!$B5 -> 1 | B13: =CLASSEMENT!C5 -> 170 | C13: =CLASSEMENT!D5 -> Brueziere Eden | E13: =CLASSEMENT!F5 -> Team Bikers 22 | F13: =CLASSEMENT!G5 -> moustique | G13: =CLASSEMENT!H5 -> 491634
A14: =CLASSEMENT!$B6 -> 0 | B14: =CLASSEMENT!C6 -> 0 | C14: =CLASSEMENT!D6 ->  | E14: =CLASSEMENT!F6 ->  | F14: =CLASSEMENT!G6 ->  | G14: =CLASSEMENT!H6 -> 
A15: =CLASSEMENT!$B7 -> 0 | B15: =CLASSEMENT!C7 -> 0 | C15: Poussins | E15: =CLASSEMENT!F7 ->  | F15: =CLASSEMENT!G7 ->  | G15: =CLASSEMENT!H7 -> 
A16: =CLASSEMENT!$B8 -> 1 | B16: =CLASSEMENT!C8 -> 160 | C16: =CLASSEMENT!D8 -> Macé Loukas | E16: =CLASSEMENT!F8 -> VC Evron | F16: =CLASSEMENT!G8 -> poussin | G16: =CLASSEMENT!H8 -> 396776
A17: =CLASSEMENT!$B9 -> 2 | B17: =CLASSEMENT!C9 -> 161 | C17: =CLASSEMENT!D9 -> Leveque Nathan | E17: =CLASSEMENT!F9 -> Lamball'breizh | F17: =CLASSEMENT!G9 -> poussin | G17: =CLASSEMENT!H9 -> 435105
A18: 3 | B18: =CLASSEMENT!C10 -> 162 | C18: =CLASSEMENT!D10 -> Lévèque Clément | E18: =CLASSEMENT!F10 -> Accro Cycles | F18: =CLASSEMENT!G10 -> poussin | G18: =CLASSEMENT!H10 -> 377265
A19: 4 | B19: =CLASSEMENT!C11 -> 164 | C19: =CLASSEMENT!D11 -> Gouret Louison | E19: =CLASSEMENT!F11 -> VC Evron | F19: =CLASSEMENT!G11 -> poussin | G19: =CLASSEMENT!H11 -> 
A20: 5 | B20: =CLASSEMENT!C12 -> 163 | C20: =CLASSEMENT!D12 -> Vitel Manoë | E20: =CLASSEMENT!F12 -> Team Bikers 22 | F20: =CLASSEMENT!G12 -> Poussin | G20: =CLASSEMENT!H12 -> 
A21: 6 | B21: =CLASSEMENT!C13 -> 165 | C21: =CLASSEMENT!D13 -> Raoult Léon | E21: =CLASSEMENT!F13 -> VC Evron | F21: =CLASSEMENT!G13 -> poussin | G21: =CLASSEMENT!H13 -> 
A22: =CLASSEMENT!$B14 -> 7 | B22: =CLASSEMENT!C14 -> 166 | C22: =CLASSEMENT!D14 -> Boilet Malo | E22: =CLASSEMENT!F14 -> Lamball'breizh | F22: =CLASSEMENT!G14 -> poussin | G22: =CLASSEMENT!H14 -> 520459
A23: =CLASSEMENT!$B15 -> 0 | B23: =CLASSEMENT!C15 -> 0 | C23: =CLASSEMENT!D15 ->  | E23: =CLASSEMENT!F15 ->  | F23: =CLASSEMENT!G15 ->  | G23: =CLASSEMENT!H15 -> 
A24: =CLASSEMENT!$B16 -> 0 | B24: =CLASSEMENT!C16 -> 0 | C24: Pupille fille | E24: =CLASSEMENT!F16 ->  | F24: =CLASSEMENT!G16 ->  | G24: =CLASSEMENT!H16 -> 
A25: =CLASSEMENT!$B17 -> 1 | B25: =CLASSEMENT!C17 -> 140 | C25: =CLASSEMENT!D17 -> Meunier Le Breton Lilwena | E25: =CLASSEMENT!F17 -> VTT Côtes D'Armor Hillion | F25: =CLASSEMENT!G17 -> pupille | G25: =CLASSEMENT!H17 -> 369755
A26: =CLASSEMENT!$B18 -> 0 | B26: =CLASSEMENT!C18 -> 0 | C26: =CLASSEMENT!D18 ->  | E26: =CLASSEMENT!F18 ->  | F26: =CLASSEMENT!G18 ->  | G26: =CLASSEMENT!H18 -> 
A27: =CLASSEMENT!$B19 -> 0 | B27: =CLASSEMENT!C19 -> 0 | C27: Pupille garçon | E27: =CLASSEMENT!F19 ->  | F27: =CLASSEMENT!G19 ->  | G27: =CLASSEMENT!H19 -> 
A28: =CLASSEMENT!$B20 -> 1 | B28: =CLASSEMENT!C20 -> 142 | C28: =CLASSEMENT!D20 -> Rouillé Biard Manech | E28: =CLASSEMENT!F20 -> VTT Côtes D'Armor Hillion | F28: =CLASSEMENT!G20 -> pupille | G28: =CLASSEMENT!H20 -> 451260
A29: =CLASSEMENT!$B21 -> 2 | B29: =CLASSEMENT!C21 -> 143 | C29: =CLASSEMENT!D21 -> Kowalski Paul | E29: =CLASSEMENT!F21 -> Team Bikers 22 | F29: =CLASSEMENT!G21 -> pupille | G29: =CLASSEMENT!H21 -> 460607
A30: =CLASSEMENT!$B22 -> 3 | B30: =CLASSEMENT!C22 -> 141 | C30: =CLASSEMENT!D22 -> Bruezière Enzo | E30: =CLASSEMENT!F22 -> Team Bikers 22 | F30: =CLASSEMENT!G22 -> pupille | G30: =CLASSEMENT!H22 -> 459065
A31: =CLASSEMENT!$B23 -> 4 | B31: =CLASSEMENT!C23 -> 144 | C31: =CLASSEMENT!D23 -> Devaux Naël | E31: =CLASSEMENT!F23 -> Team Bikers 22 | F31: =CLASSEMENT!G23 -> Pupille | G31: =CLASSEMENT!H23 -> 
A32: =CLASSEMENT!$B24 -> 0 | B32: =CLASSEMENT!C24 -> 0 | C32: =CLASSEMENT!D24 ->  | E32: =CLASSEMENT!F24 ->  | F32: =CLASSEMENT!G24 ->  | G32: =CLASSEMENT!H24 -> 
A33: =CLASSEMENT!$B25 -> 0 | B33: =CLASSEMENT!C25 -> 0 | C33: Benjamine | E33: =CLASSEMENT!F25 ->  | F33: =CLASSEMENT!G25 ->  | G33: =CLASSEMENT!H25 -> 
A34: =CLASSEMENT!$B26 -> 1 | B34: =CLASSEMENT!C26 -> 124 | C34: =CLASSEMENT!D26 -> Callennec Lucy | E34: =CLASSEMENT!F26 -> Bégard VTT Gwerun | F34: =CLASSEMENT!G26 -> Benjamin | G34: =CLASSEMENT!H26 -> 509013
A35: =CLASSEMENT!$B27 -> absent | B35: =CLASSEMENT!C27 -> 121 | C35: =CLASSEMENT!D27 -> Croisier Léa | E35: =CLASSEMENT!F27 -> Team Pays de Dinan | F35: =CLASSEMENT!G27 -> Benjamin | G35: =CLASSEMENT!H27 -> 263040
A36: =CLASSEMENT!$B28 -> 0 | B36: =CLASSEMENT!C28 -> 0 | C36: =CLASSEMENT!D28 ->  | E36: =CLASSEMENT!F28 ->  | F36: =CLASSEMENT!G28 ->  | G36: =CLASSEMENT!H28 -> 
A37: =CLASSEMENT!$B29 -> 0 | B37: =CLASSEMENT!C29 -> 0 | C37: Benjamin | E37: =CLASSEMENT!F29 ->  | F37: =CLASSEMENT!G29 ->  | G37: =CLASSEMENT!H29 -> 
A38: =CLASSEMENT!$B30 -> 1 | B38: =CLASSEMENT!C30 -> 133 | C38: =CLASSEMENT!D30 -> Cadieu Gabriel | E38: =CLASSEMENT!F30 -> VTT du Lié | F38: =CLASSEMENT!G30 -> benjamin | G38: =CLASSEMENT!H30 -> 
A39: =CLASSEMENT!$B31 -> 2 | B39: =CLASSEMENT!C31 -> 120 | C39: =CLASSEMENT!D31 -> Briand Axel | E39: =CLASSEMENT!F31 -> VC Evron | F39: =CLASSEMENT!G31 -> Benjamin | G39: =CLASSEMENT!H31 -> 429219
A40: =CLASSEMENT!$B32 -> 3 | B40: =CLASSEMENT!C32 -> 122 | C40: =CLASSEMENT!D32 -> Huguet Mathis | E40: =CLASSEMENT!F32 -> Team Bikers 22 | F40: =CLASSEMENT!G32 -> Benjamin | G40: =CLASSEMENT!H32 -> 390457
A41: =CLASSEMENT!$B33 -> 4 | B41: =CLASSEMENT!C33 -> 126 | C41: =CLASSEMENT!D33 -> Lanoé Hugo | E41: =CLASSEMENT!F33 -> VC Evron | F41: =CLASSEMENT!G33 -> Benjamin | G41: =CLASSEMENT!H33 -> 382435
A42: =CLASSEMENT!$B34 -> 5 | B42: =CLASSEMENT!C34 -> 123 | C42: =CLASSEMENT!D34 -> Macé Tom | E42: =CLASSEMENT!F34 -> Team Broons | F42: =CLASSEMENT!G34 -> Benjamin | G42: =CLASSEMENT!H34 -> 256614
A43: =CLASSEMENT!$B35 -> 6 | B43: =CLASSEMENT!C35 -> 125 | C43: =CLASSEMENT!D35 -> Lebret Sacha | E43: =CLASSEMENT!F35 -> Team Bikers 22 | F43: =CLASSEMENT!G35 -> Benjamin | G43: =CLASSEMENT!H35 -> 390946
A44: =CLASSEMENT!$B36 -> 7 | B44: =CLASSEMENT!C36 -> 128 | C44: =CLASSEMENT!D36 -> Lévéque Noé | E44: =CLASSEMENT!F36 -> Accro Cycles | F44: =CLASSEMENT!G36 -> Benjamin | G44: =CLASSEMENT!H36 -> 337516
A45: =CLASSEMENT!$B37 -> 8 | B45: =CLASSEMENT!C37 -> 132 | C45: =CLASSEMENT!D37 -> Gerard Jules | E45: =CLASSEMENT!F37 -> Team Bikers 22 | F45: =CLASSEMENT!G37 -> Benjamin | G45: =CLASSEMENT!H37 -> 491636
A46: =CLASSEMENT!$B38 -> 9 | B46: =CLASSEMENT!C38 -> 127 | C46: =CLASSEMENT!D38 -> Creseveur Gwenvael | E46: =CLASSEMENT!F38 -> Team XC du Léguer | F46: =CLASSEMENT!G38 -> Benjamin | G46: =CLASSEMENT!H38 -> 330214
A47: =CLASSEMENT!$B39 -> 10 | B47: =CLASSEMENT!C39 -> 131 | C47: =CLASSEMENT!D39 -> Auffret Siméon | E47: =CLASSEMENT!F39 -> VC Plurien | F47: =CLASSEMENT!G39 -> benjamin | G47: =CLASSEMENT!H39 -> 459988
A48: =CLASSEMENT!$B40 -> 11 | B48: =CLASSEMENT!C40 -> 130 | C48: =CLASSEMENT!D40 -> Remond Malo | E48: =CLASSEMENT!F40 -> Team XC du Léguer | F48: =CLASSEMENT!G40 -> benjamin | G48: =CLASSEMENT!H40 -> 395912
A49: =CLASSEMENT!$B41 -> 12 | B49: =CLASSEMENT!C41 -> 129 | C49: =CLASSEMENT!D41 -> Colas Thibault | E49: =CLASSEMENT!F41 -> Team XC du Léguer | F49: =CLASSEMENT!G41 -> Benjamin | G49: =CLASSEMENT!H41 -> 330206
A53: =CLASSEMENT!$B45 -> 0 | B53: =CLASSEMENT!C45 -> 0 | C53: Minime | E53: =CLASSEMENT!F45 ->  | G53: =CLASSEMENT!H45 -> 
A54: =CLASSEMENT!$B46 -> 1 | B54: =CLASSEMENT!C46 -> 110 | C54: =CLASSEMENT!D46 -> Le Bihan Clément | E54: =CLASSEMENT!F46 -> UC Plaudren | F54: =CLASSEMENT!G46 -> minime | G54: =CLASSEMENT!H46 -> 136145
A55: =CLASSEMENT!$B47 -> 2 | B55: =CLASSEMENT!C47 -> 112 | C55: =CLASSEMENT!D47 -> Le Bihan Evann | E55: =CLASSEMENT!F47 -> UC Plaudren | F55: =CLASSEMENT!G47 -> minime | G55: =CLASSEMENT!H47 -> 379622
A56: =CLASSEMENT!$B48 -> 3 | B56: =CLASSEMENT!C48 -> 111 | C56: =CLASSEMENT!D48 -> Besnard colas Ismaël | E56: =CLASSEMENT!F48 -> CC Moncontour | F56: =CLASSEMENT!G48 -> minime | G56: =CLASSEMENT!H48 -> 400382
A57: =CLASSEMENT!$B49 -> 4 | B57: =CLASSEMENT!C49 -> 115 | C57: =CLASSEMENT!D49 -> le Corguille Brieuc | E57: =CLASSEMENT!F49 -> VC Plurien | F57: =CLASSEMENT!G49 -> minime | G57: =CLASSEMENT!H49 -> 434773
A58: =CLASSEMENT!$B50 -> 5 | B58: =CLASSEMENT!C50 -> 114 | C58: =CLASSEMENT!D50 -> Briand Mathis | E58: =CLASSEMENT!F50 -> VC Evron | F58: =CLASSEMENT!G50 -> minime | G58: =CLASSEMENT!H50 -> 431995
A60: =CLASSEMENT!$B54 -> 0 | B60: =CLASSEMENT!C54 -> 0 | C60: Cadet | E60: =CLASSEMENT!F54 ->  | F60: =CLASSEMENT!G54 ->  | G60: =CLASSEMENT!H54 -> 
A61: 1 | B61: =CLASSEMENT!C55 -> 101 | C61: =CLASSEMENT!D55 -> Flégeau Gaël | E61: =CLASSEMENT!F55 -> Team Bikers 22 | F61: =CLASSEMENT!G55 -> cadet | G61: =CLASSEMENT!H55 -> 269847
A62: 2 | B62: =CLASSEMENT!C56 -> 104 | C62: =CLASSEMENT!D56 -> Durand Joan | E62: =CLASSEMENT!F56 -> Lamball'breizh | F62: =CLASSEMENT!G56 -> cadet | G62: =CLASSEMENT!H56 -> 383110
A63: 3 | B63: =CLASSEMENT!C57 -> 100 | C63: =CLASSEMENT!D57 -> Creseveur Gurwan | E63: =CLASSEMENT!F57 -> Team XC du Léguer | F63: =CLASSEMENT!G57 -> Cadet | G63: =CLASSEMENT!H57 -> 330214
A64: 4 | B64: =CLASSEMENT!C58 -> 105 | C64: =CLASSEMENT!D58 -> Cadieu Martin | E64: =CLASSEMENT!F58 -> VTT du Lié | F64: =CLASSEMENT!G58 -> Cadet | G64: =CLASSEMENT!H58 -> 
A65: 5 | B65: =CLASSEMENT!C59 -> 102 | C65: =CLASSEMENT!D59 -> Rouille Robin | E65: =CLASSEMENT!F59 -> Team Bikers 22 | F65: =CLASSEMENT!G59 -> cadet | G65: =CLASSEMENT!H59 -> 390947
A66: 6 | B66: =CLASSEMENT!C60 -> 103 | C66: =CLASSEMENT!D60 -> Madec Rafael | E66: =CLASSEMENT!F60 -> VS Ploumagoar | F66: =CLASSEMENT!G60 -> cadet | G66: =CLASSEMENT!H60 -> 
A67: =CLASSEMENT!$B61 -> 0 | B67: =CLASSEMENT!C61 -> 0 | C67: =CLASSEMENT!D61 ->  | E67: =CLASSEMENT!F61 ->  | F67: =CLASSEMENT!G61 ->  | G67: =CLASSEMENT!H61 -> 
A68: =CLASSEMENT!$B62 -> 0 | B68: =CLASSEMENT!C62 -> 0 | C68: 3ème Catégorie | E68: =CLASSEMENT!F62 ->  | F68: =CLASSEMENT!G62 ->  | G68: =CLASSEMENT!H62 -> 
A69: 1 | B69: =CLASSEMENT!C63 -> 62 | C69: =CLASSEMENT!D63 -> Lecellier Raymond | E69: =CLASSEMENT!F63 -> Team Mégrit | F69: =CLASSEMENT!G63 -> 3 | G69: =CLASSEMENT!H63 -> 143624
A70: 2 | B70: =CLASSEMENT!C64 -> 60 | C70: =CLASSEMENT!D64 -> Nicolas Jean-Charles | E70: =CLASSEMENT!F64 -> AC Vildé-Guingalan | F70: =CLASSEMENT!G64 -> 3 | G70: =CLASSEMENT!H64 -> 137756
A71: 3 | B71: =CLASSEMENT!C65 -> 69 | C71: =CLASSEMENT!D65 -> Guillot Denis | E71: =CLASSEMENT!F65 -> Team Pays de Dinan | F71: =CLASSEMENT!G65 -> 3 | G71: =CLASSEMENT!H65 -> 
A72: 4 | B72: =CLASSEMENT!C66 -> 66 | C72: =CLASSEMENT!D66 -> Gouya Noël | E72: =CLASSEMENT!F66 -> Team Pays de Dinan | F72: =CLASSEMENT!G66 -> 3 | G72: =CLASSEMENT!H66 -> 136620
A73: =CLASSEMENT!$B67 -> 5 | B73: =CLASSEMENT!C67 -> 61 | C73: =CLASSEMENT!D67 -> Lemaitre Alain | E73: =CLASSEMENT!F67 -> AC Vildé-Guingalan | F73: =CLASSEMENT!G67 -> 3 | G73: =CLASSEMENT!H67 -> 136151
A74: =CLASSEMENT!$B68 -> 6 | B74: =CLASSEMENT!C68 -> 71 | C74: =CLASSEMENT!D68 -> Colleu Pascal | E74: =CLASSEMENT!F68 -> CCV Beaussais | F74: =CLASSEMENT!G68 -> 3 | G74: =CLASSEMENT!H68 -> 137558
A75: =CLASSEMENT!$B69 -> 7 | B75: =CLASSEMENT!C69 -> 74 | C75: =CLASSEMENT!D69 -> Jeuneu Gilles | E75: =CLASSEMENT!F69 -> Accro Cycles | F75: =CLASSEMENT!G69 -> 3 | G75: =CLASSEMENT!H69 -> 137390
A76: =CLASSEMENT!$B70 -> 8 | B76: =CLASSEMENT!C70 -> 65 | C76: =CLASSEMENT!D70 -> Colombier Michel | E76: =CLASSEMENT!F70 -> CC Robert le Roux | F76: =CLASSEMENT!G70 -> 3 | G76: =CLASSEMENT!H70 -> 286379
A77: =CLASSEMENT!$B71 -> 9 | B77: =CLASSEMENT!C71 -> 76 | C77: =CLASSEMENT!D71 -> Colas Roger | E77: =CLASSEMENT!F71 -> EC Créhen | F77: =CLASSEMENT!G71 -> 3 | G77: =CLASSEMENT!H71 -> 137514
A78: =CLASSEMENT!$B72 -> 10 | B78: =CLASSEMENT!C72 -> 75 | C78: =CLASSEMENT!D72 -> Pezres Didier | E78: =CLASSEMENT!F72 -> EC Créhen | F78: =CLASSEMENT!G72 -> 3 | G78: =CLASSEMENT!H72 -> 137518
A79: =CLASSEMENT!$B73 -> 11 | B79: =CLASSEMENT!C73 -> 73 | C79: =CLASSEMENT!D73 -> Durand Francky | E79: =CLASSEMENT!F73 -> CC Moncontour | F79: =CLASSEMENT!G73 -> 3 | G79: =CLASSEMENT!H73 -> 480456
A80: =CLASSEMENT!$B74 -> 12 | B80: =CLASSEMENT!C74 -> 72 | C80: =CLASSEMENT!D74 -> Goupil Michel | E80: =CLASSEMENT!F74 -> Team Mégrit | F80: =CLASSEMENT!G74 -> 3 | G80: =CLASSEMENT!H74 -> 
A81: =CLASSEMENT!$B75 -> 13 | B81: =CLASSEMENT!C75 -> 67 | C81: =CLASSEMENT!D75 -> Croisier Ronan | E81: =CLASSEMENT!F75 -> Team Pays de Dinan | F81: =CLASSEMENT!G75 -> 3 | G81: =CLASSEMENT!H75 -> 136268
A82: =CLASSEMENT!$B76 -> 14 | B82: =CLASSEMENT!C76 -> 63 | C82: =CLASSEMENT!D76 -> Georget Charles | E82: =CLASSEMENT!F76 -> Lamball'breizh | F82: =CLASSEMENT!G76 -> 3 | G82: =CLASSEMENT!H76 -> 136132
A83: =CLASSEMENT!$B77 -> 15 | B83: =CLASSEMENT!C77 -> 64 | C83: =CLASSEMENT!D77 -> Bedel Michel | E83: =CLASSEMENT!F77 -> Lamball'breizh | F83: =CLASSEMENT!G77 -> 3 | G83: =CLASSEMENT!H77 -> 267277
A84: =CLASSEMENT!$B78 -> 16 | B84: =CLASSEMENT!C78 -> 77 | C84: =CLASSEMENT!D78 -> Gouya Philippe | E84: =CLASSEMENT!F78 -> EC Créhen | F84: =CLASSEMENT!G78 -> 3 | G84: =CLASSEMENT!H78 -> 136134
A85: =CLASSEMENT!$B79 -> 17 | B85: =CLASSEMENT!C79 -> 70 | C85: =CLASSEMENT!D79 -> Gaillard Marcel | E85: =CLASSEMENT!F79 -> COS Kerentrech | F85: =CLASSEMENT!G79 -> 3 | G85: =CLASSEMENT!H79 -> 153464
A86: 18 | B86: =CLASSEMENT!C80 -> 68 | C86: =CLASSEMENT!D80 -> Durand Jacques | E86: =CLASSEMENT!F80 -> Team Pays de Dinan | F86: =CLASSEMENT!G80 -> 3 | G86: =CLASSEMENT!H80 -> 136617
A87: =CLASSEMENT!$B81 -> absent | B87: =CLASSEMENT!C81 -> 78 | C87: =CLASSEMENT!D81 -> Gilson Frédéric | E87: =CLASSEMENT!F81 -> CC Moncontour | F87: =CLASSEMENT!G81 -> 3 | G87: =CLASSEMENT!H81 -> 424247
A88: =CLASSEMENT!$B82 -> 0 | B88: =CLASSEMENT!C82 -> 0 | C88: =CLASSEMENT!D82 ->  | E88: =CLASSEMENT!F82 ->  | F88: =CLASSEMENT!G82 ->  | G88: =CLASSEMENT!H82 -> 
A89: =CLASSEMENT!$B83 -> 0 | B89: =CLASSEMENT!C83 -> 0 | C89: 2ème Catégorie | E89: =CLASSEMENT!F83 ->  | F89: =CLASSEMENT!G83 ->  | G89: =CLASSEMENT!H83 -> 
A90: =CLASSEMENT!$B84 -> 1 | B90: =CLASSEMENT!C84 -> 34 | C90: =CLASSEMENT!D84 -> Perrennou Claude | E90: =CLASSEMENT!F84 -> COS Kerentrech | F90: =CLASSEMENT!G84 -> 2 | G90: =CLASSEMENT!H84 -> 
A91: =CLASSEMENT!$B85 -> 2 | B91: =CLASSEMENT!C85 -> 31 | C91: =CLASSEMENT!D85 -> Prigent Benoit | E91: =CLASSEMENT!F85 -> Lamball'breizh | F91: =CLASSEMENT!G85 -> 2 | G91: =CLASSEMENT!H85 -> 468745
A92: =CLASSEMENT!$B86 -> 3 | B92: =CLASSEMENT!C86 -> 41 | C92: =CLASSEMENT!D86 -> letaconnoux sylvain | E92: =CLASSEMENT!F86 -> accro cycles | F92: =CLASSEMENT!G86 -> 2 | G92: =CLASSEMENT!H86 -> 
A93: =CLASSEMENT!$B87 -> 4 | B93: =CLASSEMENT!C87 -> 30 | C93: =CLASSEMENT!D87 -> Huby Laurent | E93: =CLASSEMENT!F87 -> CC d'Uzel | F93: =CLASSEMENT!G87 -> 2 | G93: =CLASSEMENT!H87 -> 278430
A94: =CLASSEMENT!$B88 -> 5 | B94: =CLASSEMENT!C88 -> 33 | C94: =CLASSEMENT!D88 -> Nicolas Patrice | E94: =CLASSEMENT!F88 -> COS Kerentrech | F94: =CLASSEMENT!G88 -> 2 | G94: =CLASSEMENT!H88 -> 247939
A95: =CLASSEMENT!$B89 -> 6 | B95: =CLASSEMENT!C89 -> 32 | C95: Bedel Baptiste | E95: =CLASSEMENT!F89 -> Lamball'breizh | F95: =CLASSEMENT!G89 -> 2 | G95: =CLASSEMENT!H89 -> 136137
A96: =CLASSEMENT!$B90 -> 7 | B96: =CLASSEMENT!C90 -> 37 | C96: =CLASSEMENT!D90 -> Besnard Jean-Jacques | E96: =CLASSEMENT!F90 -> CC Moncontour | F96: =CLASSEMENT!G90 -> 2 | G96: =CLASSEMENT!H90 -> 425505
A97: =CLASSEMENT!$B91 -> 8 | B97: =CLASSEMENT!C91 -> 35 | C97: =CLASSEMENT!D91 -> Leroux Jérôme | E97: =CLASSEMENT!F91 -> CCV Beaussais | F97: =CLASSEMENT!G91 -> 2 | G97: =CLASSEMENT!H91 -> 349169
A98: =CLASSEMENT!$B92 -> abandon | B98: =CLASSEMENT!C92 -> 36 | C98: =CLASSEMENT!D92 -> Bittoré Luca | E98: =CLASSEMENT!F92 -> CCV Beaussais | F98: =CLASSEMENT!G92 -> 2 | G98: =CLASSEMENT!H92 -> 465568
A99: =CLASSEMENT!$B93 -> absent | B99: =CLASSEMENT!C93 -> 38 | C99: =CLASSEMENT!D93 -> Macé Jérome | E99: =CLASSEMENT!F93 -> VC Evron | F99: =CLASSEMENT!G93 -> 2 | G99: =CLASSEMENT!H93 -> 434904
A100: =CLASSEMENT!$B94 -> absent | B100: =CLASSEMENT!C94 -> 39 | C100: =CLASSEMENT!D94 -> Henry Damien | E100: =CLASSEMENT!F94 -> VC Dinan | F100: =CLASSEMENT!G94 -> 2 | G100: =CLASSEMENT!H94 -> 474783
A101: =CLASSEMENT!$B95 -> 0 | B101: =CLASSEMENT!C95 -> 0 | C101: =CLASSEMENT!D95 ->  | E101: =CLASSEMENT!F95 ->  | F101: =CLASSEMENT!G95 ->  | G101: =CLASSEMENT!H95 -> 
A102: =CLASSEMENT!$B96 -> 0 | B102: =CLASSEMENT!C96 -> 0 | C102: =CLASSEMENT!D96 ->  | E102: =CLASSEMENT!F96 ->  | F102: =CLASSEMENT!G96 ->  | G102: =CLASSEMENT!H96 -> 
A103: =CLASSEMENT!$B97 -> 0 | B103: =CLASSEMENT!C97 -> 0 | C103: =CLASSEMENT!D97 ->  | E103: =CLASSEMENT!F97 ->  | F103: =CLASSEMENT!G97 ->  | G103: =CLASSEMENT!H97 -> 
A104: =CLASSEMENT!$B98 -> 0 | B104: =CLASSEMENT!C98 -> 0 | C104: =CLASSEMENT!D98 -> 1ère Catégorie | E104: =CLASSEMENT!F98 ->  | F104: =CLASSEMENT!G98 ->  | G104: =CLASSEMENT!H98 -> 
A105: =CLASSEMENT!$B99 -> 1 | B105: =CLASSEMENT!C99 -> 4 | C105: =CLASSEMENT!D99 -> Allot Sébastien | E105: =CLASSEMENT!F99 -> VS Ploumagoar | F105: =CLASSEMENT!G99 -> 1 | G105: =CLASSEMENT!H99 -> 
A106: =CLASSEMENT!$B100 -> 2 | B106: =CLASSEMENT!C100 -> 8 | C106: =CLASSEMENT!D100 -> Le Ponner Christophe | E106: =CLASSEMENT!F100 -> UC Plaudren | F106: =CLASSEMENT!G100 -> 1 | G106: =CLASSEMENT!H100 -> 
A107: =CLASSEMENT!$B101 -> 3 | B107: =CLASSEMENT!C101 -> 2 | C107: =CLASSEMENT!D101 -> Coualan Jordan | E107: =CLASSEMENT!F101 -> CC Pleven | F107: =CLASSEMENT!G101 -> 1 | G107: =CLASSEMENT!H101 -> 511484
A108: =CLASSEMENT!$B102 -> 4 | B108: =CLASSEMENT!C102 -> 6 | C108: =CLASSEMENT!D102 -> Le Bellego Maxime | E108: =CLASSEMENT!F102 -> VTT du Lié | F108: =CLASSEMENT!G102 -> 1 | G108: =CLASSEMENT!H102 -> 480114
A109: =CLASSEMENT!$B103 -> 5 | B109: =CLASSEMENT!C103 -> 3 | C109: =CLASSEMENT!D103 -> Sieurin Sébastien | E109: =CLASSEMENT!F103 -> VC Evron | F109: =CLASSEMENT!G103 -> 1 | G109: =CLASSEMENT!H103 -> 
A110: =CLASSEMENT!$B104 -> 6 | B110: =CLASSEMENT!C104 -> 7 | C110: =CLASSEMENT!D104 -> Flégeau David | E110: =CLASSEMENT!F104 -> Team Bikers 22 | F110: =CLASSEMENT!G104 -> 1 | G110: =CLASSEMENT!H104 -> 137996
A111: =CLASSEMENT!$B105 -> 7 | B111: =CLASSEMENT!C105 -> 5 | C111: =CLASSEMENT!D105 -> Joannot Jérémy | E111: =CLASSEMENT!F105 -> Team Broons | F111: =CLASSEMENT!G105 -> 1 | G111: =CLASSEMENT!H105 -> 506026
A112: =CLASSEMENT!$B106 -> absent | B112: =CLASSEMENT!C106 -> 1 | C112: =CLASSEMENT!D106 -> Saulnier Florentin | E112: =CLASSEMENT!F106 -> CCV Beaussais | F112: =CLASSEMENT!G106 -> 1 | G112: =CLASSEMENT!H106 -> 137523
A113: =CLASSEMENT!$B107 -> 0 | B113: =CLASSEMENT!C107 -> 0 | C113: =CLASSEMENT!D107 ->  | E113: =CLASSEMENT!F107 ->  | F113: =CLASSEMENT!G107 ->  | G113: =CLASSEMENT!H107 -> 
A114: =CLASSEMENT!$B108 -> 0 | B114: =CLASSEMENT!C108 -> 0 | C114: =CLASSEMENT!D108 -> Junior | E114: =CLASSEMENT!F108 ->  | F114: =CLASSEMENT!G108 ->  | G114: =CLASSEMENT!H108 -> 
A115: =CLASSEMENT!$B109 -> 0 | B115: =CLASSEMENT!C109 -> 20 | C115: =CLASSEMENT!D109 -> Ruffet Titouan | E115: =CLASSEMENT!F109 -> CC Moncontour | F115: =CLASSEMENT!G109 -> junior | G115: =CLASSEMENT!H109 -> 457920
A116: =CLASSEMENT!$B110 -> absent | B116: =CLASSEMENT!C110 -> 21 | C116: =CLASSEMENT!D110 -> Le Masson Hugo | E116: =CLASSEMENT!F110 -> VC Evron | F116: =CLASSEMENT!G110 -> Junior | G116: =CLASSEMENT!H110 -> 
A117: =CLASSEMENT!$B111 -> 0 | B117: =CLASSEMENT!C111 -> 0 | C117: =CLASSEMENT!D111 ->  | E117: =CLASSEMENT!F111 ->  | F117: =CLASSEMENT!G111 ->  | G117: =CLASSEMENT!H111 -> 
A118: =CLASSEMENT!$B112 -> 0 | B118: =CLASSEMENT!C112 -> 0 | C118: =CLASSEMENT!D112 -> Féminine | E118: =CLASSEMENT!F112 ->  | F118: =CLASSEMENT!G112 ->  | G118: =CLASSEMENT!H112 -> 
A119: =CLASSEMENT!$B113 -> 1 | B119: =CLASSEMENT!C113 -> 93 | C119: =CLASSEMENT!D113 -> Amice Florine | E119: Team Pays de Dinan | F119: =CLASSEMENT!G113 -> féminine | G119: =CLASSEMENT!H113 -> 137425
A120: =CLASSEMENT!$B114 -> 2 | B120: =CLASSEMENT!C114 -> 91 | C120: =CLASSEMENT!D114 -> Rivolet Agnes | E120: =CLASSEMENT!F114 -> VTT Côtes d'Armor Hillion | F120: =CLASSEMENT!G114 -> féminine | G120: =CLASSEMENT!H114 -> 443442
A121: =CLASSEMENT!$B115 -> 3 | B121: =CLASSEMENT!C115 -> 92 | C121: =CLASSEMENT!D115 -> Leray Gwladys | E121: =CLASSEMENT!F115 -> Team XC du Léguer | F121: =CLASSEMENT!G115 -> féminine | G121: =CLASSEMENT!H115 -> 359228
A122: =CLASSEMENT!$B116 -> abandon | B122: =CLASSEMENT!C116 -> 90 | C122: =CLASSEMENT!D116 -> Camus Kristell | E122: =CLASSEMENT!F116 -> VC Evron | F122: =CLASSEMENT!G116 -> féminine | G122: =CLASSEMENT!H116 -> 

Sheet FEUILLE RESULTATS
Q1: 01:00:00
A2: NOM DE L'EPREUVE : | D2: =Inscription!D1 -> 0 | K2: =IF(Inscription!$D$4>0,"DATE : "&TEXT(Inscription!D$4,"jj mmmm aaaa"),"") -> DATE : 30 novembre 2024
A3: ORGANISATEUR : | D3: =Inscription!D3 -> EC Créhen
A4: SERIES / CATEGORIES : | D4: =Inscription!D5 -> 0
A5: VILLE DE DEPART : | D5: =Inscription!D2 -> cyclo cross de Créhen | I5: DEPARTEMENT : | L5: =Inscription!G2 -> 0
A6: ENGAGES : | C6: =Inscription!D8 -> 0 | F6: PARTANTS : | H6: =Inscription!F8 -> 0 | K6: CLASSES : | M6: =COUNTIF(A10:A39,">0")+COUNTIF(C40:N40,">0")+COUNTIF(A41:N47,">0") -> 78
A7: TABLEAU DE CLASSEMENT
G8: MOYENNE | I8: =IF(N10>0,$M$8/$N$10*$Q$1,"") ->  | K8: DISTANCE : | M8: =Inscription!F7 -> 0
A9: DOSS | B9: Place | C9: NOM et PRENOM | H9: CLUB | K9: N° LICENCE | M9: CAT. | N9: TEMPS
A10: =CLASSEMENT!C4 -> 0 | B10: =CLASSEMENT!$B4 -> 0 | C10: =IF(A10>0,CONCATENATE((VLOOKUP($A10,Inscription!$A$12:$G$211,3,FALSE))," ",(VLOOKUP($A10,Inscription!$A$12:$G$211,4,FALSE)))," ") ->  | H10: =IF(A10>0,(VLOOKUP($A10,Inscription!$A$12:$G$211,5,FALSE))," ") ->  | K10: =IF(A10>0,(VLOOKUP($A10,Inscription!$A$12:$G$211,7,FALSE))," ") ->  | M10: =IF(A10>0,(VLOOKUP($A10,Inscription!$A$12:$G$211,6,FALSE))," ") ->  | N10: =CLASSEMENT!#REF! ->  | O10: =SUM(A10:M10) -> 0 | P10: =CLASSEMENT!C4 -> 0
A11: =CLASSEMENT!C5 -> 170 | B11: =CLASSEMENT!$B5 -> 1 | C11: =IF(A11>0,CONCATENATE((VLOOKUP($A11,Inscription!$A$12:$G$211,3,FALSE))," ",(VLOOKUP($A11,Inscription!$A$12:$G$211,4,FALSE)))," ") -> Brueziere Eden | H11: =IF(A11>0,(VLOOKUP($A11,Inscription!$A$12:$G$211,5,FALSE))," ") -> Team Bikers 22 | K11: =IF(A11>0,(VLOOKUP($A11,Inscription!$A$12:$G$211,7,FALSE))," ") -> moustique | M11: =IF(A11>0,(VLOOKUP($A11,Inscription!$A$12:$G$211,6,FALSE))," ") -> 491634 | N11: =IF(CLASSEMENT!#REF!=CLASSEMENT!#REF!,0,CLASSEMENT!#REF!-CLASSEMENT!#REF!) ->  | O11: 491805 | P11: =CLASSEMENT!C5 -> 170
A12: =CLASSEMENT!C6 -> 0 | B12: =CLASSEMENT!$B6 -> 0 | C12: =IF(A12>0,CONCATENATE((VLOOKUP($A12,Inscription!$A$12:$G$211,3,FALSE))," ",(VLOOKUP($A12,Inscription!$A$12:$G$211,4,FALSE)))," ") ->  | H12: =IF(A12>0,(VLOOKUP($A12,Inscription!$A$12:$G$211,5,FALSE))," ") ->  | K12: =IF(A12>0,(VLOOKUP($A12,Inscription!$A$12:$G$211,7,FALSE))," ") ->  | M12: =IF(A12>0,(VLOOKUP($A12,Inscription!$A$12:$G$211,6,FALSE))," ") ->  | N12: =IF(CLASSEMENT!#REF!=CLASSEMENT!#REF!,0,CLASSEMENT!#REF!-CLASSEMENT!#REF!) ->  | O12: 0 | P12: =CLASSEMENT!C6 -> 0
A13: =CLASSEMENT!C7 -> 0 | B13: =CLASSEMENT!$B7 -> 0 | C13: =IF(A13>0,CONCATENATE((VLOOKUP($A13,Inscription!$A$12:$G$211,3,FALSE))," ",(VLOOKUP($A13,Inscription!$A$12:$G$211,4,FALSE)))," ") ->  | H13: =IF(A13>0,(VLOOKUP($A13,Inscription!$A$12:$G$211,5,FALSE))," ") ->  | K13: =IF(A13>0,(VLOOKUP($A13,Inscription!$A$12:$G$211,7,FALSE))," ") ->  | M13: =IF(A13>0,(VLOOKUP($A13,Inscription!$A$12:$G$211,6,FALSE))," ") ->  | N13: =IF(CLASSEMENT!#REF!=CLASSEMENT!#REF!,0,CLASSEMENT!#REF!-CLASSEMENT!#REF!) ->  | O13: 0 | P13: =CLASSEMENT!C7 -> 0
A14: =CLASSEMENT!C8 -> 160 | B14: =CLASSEMENT!$B8 -> 1 | C14: =IF(A14>0,CONCATENATE((VLOOKUP($A14,Inscription!$A$12:$G$211,3,FALSE))," ",(VLOOKUP($A14,Inscription!$A$12:$G$211,4,FALSE)))," ") -> Macé Loukas | H14: =IF(A14>0,(VLOOKUP($A14,Inscription!$A$12:$G$211,5,FALSE))," ") -> VC Evron | K14: =IF(A14>0,(VLOOKUP($A14,Inscription!$A$12:$G$211,7,FALSE))," ") -> poussin | M14: =IF(A14>0,(VLOOKUP($A14,Inscription!$A$12:$G$211,6,FALSE))," ") -> 396776 | N14: =IF(CLASSEMENT!#REF!=CLASSEMENT!#REF!,0,CLASSEMENT!#REF!-CLASSEMENT!#REF!) ->  | O14: 396937 | P14: =CLASSEMENT!C8 -> 160
A15: =CLASSEMENT!C9 -> 161 | B15: =CLASSEMENT!$B9 -> 2 | C15: =IF(A15>0,CONCATENATE((VLOOKUP($A15,Inscription!$A$12:$G$211,3,FALSE))," ",(VLOOKUP($A15,Inscription!$A$12:$G$211,4,FALSE)))," ") -> Leveque Nathan | H15: =IF(A15>0,(VLOOKUP($A15,Inscription!$A$12:$G$211,5,FALSE))," ") -> Lamball'breizh | K15: =IF(A15>0,(VLOOKUP($A15,Inscription!$A$12:$G$211,7,FALSE))," ") -> poussin | M15: =IF(A15>0,(VLOOKUP($A15,Inscription!$A$12:$G$211,6,FALSE))," ") -> 435105 | N15: =IF(CLASSEMENT!#REF!=CLASSEMENT!#REF!,0,CLASSEMENT!#REF!-CLASSEMENT!#REF!) ->  | O15: 435268 | P15: =CLASSEMENT!C9 -> 161
A16: =CLASSEMENT!C10 -> 162 | B16: =CLASSEMENT!$B10 -> 3 | C16: =IF(A16>0,CONCATENATE((VLOOKUP($A16,Inscription!$A$12:$G$211,3,FALSE))," ",(VLOOKUP($A16,Inscription!$A$12:$G$211,4,FALSE)))," ") -> Lévèque Clément | H16: =IF(A16>0,(VLOOKUP($A16,Inscription!$A$12:$G$211,5,FALSE))," ") -> Accro Cycles | K16: =IF(A16>0,(VLOOKUP($A16,Inscription!$A$12:$G$211,7,FALSE))," ") -> poussin | M16: =IF(A16>0,(VLOOKUP($A16,Inscription!$A$12:$G$211,6,FALSE))," ") -> 377265 | N16: =IF(CLASSEMENT!#REF!=CLASSEMENT!#REF!,0,CLASSEMENT!#REF!-CLASSEMENT!#REF!) ->  | O16: 377430 | P16: =CLASSEMENT!C10 -> 162
A17: =CLASSEMENT!C11 -> 164 | B17: =CLASSEMENT!$B11 -> 4 | C17: =IF(A17>0,CONCATENATE((VLOOKUP($A17,Inscription!$A$12:$G$211,3,FALSE))," ",(VLOOKUP($A17,Inscription!$A$12:$G$211,4,FALSE)))," ") -> Gouret Louison | H17: =IF(A17>0,(VLOOKUP($A17,Inscription!$A$12:$G$211,5,FALSE))," ") -> VC Evron | K17: =IF(A17>0,(VLOOKUP($A17,Inscription!$A$12:$G$211,7,FALSE))," ") -> poussin | M17: =IF(A17>0,(VLOOKUP($A17,Inscription!$A$12:$G$211,6,FALSE))," ") -> 0 | N17: =IF(CLASSEMENT!#REF!=CLASSEMENT!#REF!,0,CLASSEMENT!#REF!-CLASSEMENT!#REF!) ->  | O17: 168 | P17: =CLASSEMENT!C11 -> 164
A18: =CLASSEMENT!C12 -> 163 | B18: =CLASSEMENT!$B12 -> 5 | C18: =IF(A18>0,CONCATENATE((VLOOKUP($A18,Inscription!$A$12:$G$211,3,FALSE))," ",(VLOOKUP($A18,Inscription!$A$12:$G$211,4,FALSE)))," ") -> Vitel Manoë | H18: =IF(A18>0,(VLOOKUP($A18,Inscription!$A$12:$G$211,5,FALSE))," ") -> Team Bikers 22 | K18: =IF(A18>0,(VLOOKUP($A18,Inscription!$A$12:$G$211,7,FALSE))," ") -> Poussin | M18: =IF(A18>0,(VLOOKUP($A18,Inscription!$A$12:$G$211,6,FALSE))," ") -> 0 | N18: =IF(CLASSEMENT!#REF!=CLASSEMENT!#REF!,0,CLASSEMENT!#REF!-CLASSEMENT!#REF!) ->  | O18: 168 | P18: =CLASSEMENT!C12 -> 163
A19: =CLASSEMENT!C13 -> 165 | B19: =CLASSEMENT!$B13 -> 6 | C19: =IF(A19>0,CONCATENATE((VLOOKUP($A19,Inscription!$A$12:$G$211,3,FALSE))," ",(VLOOKUP($A19,Inscription!$A$12:$G$211,4,FALSE)))," ") -> Raoult Léon | H19: =IF(A19>0,(VLOOKUP($A19,Inscription!$A$12:$G$211,5,FALSE))," ") -> VC Evron | K19: =IF(A19>0,(VLOOKUP($A19,Inscription!$A$12:$G$211,7,FALSE))," ") -> poussin | M19: =IF(A19>0,(VLOOKUP($A19,Inscription!$A$12:$G$211,6,FALSE))," ") -> 0 | N19: =IF(CLASSEMENT!#REF!=CLASSEMENT!#REF!,0,CLASSEMENT!#REF!-CLASSEMENT!#REF!) ->  | O19: 171 | P19: =CLASSEMENT!C13 -> 165
A20: =CLASSEMENT!C14 -> 166 | B20: =CLASSEMENT!$B14 -> 7 | C20: =IF(A20>0,CONCATENATE((VLOOKUP($A20,Inscription!$A$12:$G$211,3,FALSE))," ",(VLOOKUP($A20,Inscription!$A$12:$G$211,4,FALSE)))," ") -> Boilet Malo | H20: =IF(A20>0,(VLOOKUP($A20,Inscription!$A$12:$G$211,5,FALSE))," ") -> Lamball'breizh | K20: =IF(A20>0,(VLOOKUP($A20,Inscription!$A$12:$G$211,7,FALSE))," ") -> poussin | M20: =IF(A20>0,(VLOOKUP($A20,Inscription!$A$12:$G$211,6,FALSE))," ") -> 520459 | N20: =IF(CLASSEMENT!#REF!=CLASSEMENT!#REF!,0,CLASSEMENT!#REF!-CLASSEMENT!#REF!) ->  | P20: =CLASSEMENT!C14 -> 166
A21: =CLASSEMENT!C15 -> 0 | B21: =CLASSEMENT!$B15 -> 0 | C21: =IF(A21>0,CONCATENATE((VLOOKUP($A21,Inscription!$A$12:$G$211,3,FALSE))," ",(VLOOKUP($A21,Inscription!$A$12:$G$211,4,FALSE)))," ") ->  | H21: =IF(A21>0,(VLOOKUP($A21,Inscription!$A$12:$G$211,5,FALSE))," ") ->  | K21: =IF(A21>0,(VLOOKUP($A21,Inscription!$A$12:$G$211,7,FALSE))," ") ->  | M21: =IF(A21>0,(VLOOKUP($A21,Inscription!$A$12:$G$211,6,FALSE))," ") ->  | N21: =IF(CLASSEMENT!#REF!=CLASSEMENT!#REF!,0,CLASSEMENT!#REF!-CLASSEMENT!#REF!) ->  | P21: =CLASSEMENT!C15 -> 0
A22: =CLASSEMENT!C16 -> 0 | B22: =CLASSEMENT!$B16 -> 0 | C22: =IF(A22>0,CONCATENATE((VLOOKUP($A22,Inscription!$A$12:$G$211,3,FALSE))," ",(VLOOKUP($A22,Inscription!$A$12:$G$211,4,FALSE)))," ") ->  | H22: =IF(A22>0,(VLOOKUP($A22,Inscription!$A$12:$G$211,5,FALSE))," ") ->  | K22: =IF(A22>0,(VLOOKUP($A22,Inscription!$A$12:$G$211,7,FALSE))," ") ->  | M22: =IF(A22>0,(VLOOKUP($A22,Inscription!$A$12:$G$211,6,FALSE))," ") ->  | N22: =IF(CLASSEMENT!#REF!=CLASSEMENT!#REF!,0,CLASSEMENT!#REF!-CLASSEMENT!#REF!) ->  | P22: =CLASSEMENT!C16 -> 0
A23: =CLASSEMENT!C17 -> 140 | B23: =CLASSEMENT!$B17 -> 1 | C23: =IF(A23>0,CONCATENATE((VLOOKUP($A23,Inscription!$A$12:$G$211,3,FALSE))," ",(VLOOKUP($A23,Inscription!$A$12:$G$211,4,FALSE)))," ") -> Meunier Le Breton Lilwena | H23: =IF(A23>0,(VLOOKUP($A23,Inscription!$A$12:$G$211,5,FALSE))," ") -> VTT Côtes D'Armor Hillion | K23: =IF(A23>0,(VLOOKUP($A23,Inscription!$A$12:$G$211,7,FALSE))," ") -> pupille | M23: =IF(A23>0,(VLOOKUP($A23,Inscription!$A$12:$G$211,6,FALSE))," ") -> 369755 | N23: =IF(CLASSEMENT!#REF!=CLASSEMENT!#REF!,0,CLASSEMENT!#REF!-CLASSEMENT!#REF!) ->  | P23: =CLASSEMENT!C17 -> 140
A24: =CLASSEMENT!C18 -> 0 | B24: =CLASSEMENT!$B18 -> 0 | C24: =IF(A24>0,CONCATENATE((VLOOKUP($A24,Inscription!$A$12:$G$211,3,FALSE))," ",(VLOOKUP($A24,Inscription!$A$12:$G$211,4,FALSE)))," ") ->  | H24: =IF(A24>0,(VLOOKUP($A24,Inscription!$A$12:$G$211,5,FALSE))," ") ->  | K24: =IF(A24>0,(VLOOKUP($A24,Inscription!$A$12:$G$211,7,FALSE))," ") ->  | M24: =IF(A24>0,(VLOOKUP($A24,Inscription!$A$12:$G$211,6,FALSE))," ") ->  | N24: =IF(CLASSEMENT!#REF!=CLASSEMENT!#REF!,0,CLASSEMENT!#REF!-CLASSEMENT!#REF!) ->  | P24: =CLASSEMENT!C18 -> 0
A25: =CLASSEMENT!C19 -> 0 | B25: =CLASSEMENT!$B19 -> 0 | C25: =IF(A25>0,CONCATENATE((VLOOKUP($A25,Inscription!$A$12:$G$211,3,FALSE))," ",(VLOOKUP($A25,Inscription!$A$12:$G$211,4,FALSE)))," ") ->  | H25: =IF(A25>0,(VLOOKUP($A25,Inscription!$A$12:$G$211,5,FALSE))," ") ->  | K25: =IF(A25>0,(VLOOKUP($A25,Inscription!$A$12:$G$211,7,FALSE))," ") ->  | M25: =IF(A25>0,(VLOOKUP($A25,Inscription!$A$12:$G$211,6,FALSE))," ") ->  | N25: =IF(CLASSEMENT!#REF!=CLASSEMENT!#REF!,0,CLASSEMENT!#REF!-CLASSEMENT!#REF!) ->  | P25: =CLASSEMENT!C19 -> 0
A26: =CLASSEMENT!C20 -> 142 | B26: =CLASSEMENT!$B20 -> 1 | C26: =IF(A26>0,CONCATENATE((VLOOKUP($A26,Inscription!$A$12:$G$211,3,FALSE))," ",(VLOOKUP($A26,Inscription!$A$12:$G$211,4,FALSE)))," ") -> Rouillé Biard Manech | H26: =IF(A26>0,(VLOOKUP($A26,Inscription!$A$12:$G$211,5,FALSE))," ") -> VTT Côtes D'Armor Hillion | K26: =IF(A26>0,(VLOOKUP($A26,Inscription!$A$12:$G$211,7,FALSE))," ") -> pupille | M26: =IF(A26>0,(VLOOKUP($A26,Inscription!$A$12:$G$211,6,FALSE))," ") -> 451260 | N26: =IF(CLASSEMENT!#REF!=CLASSEMENT!#REF!,0,CLASSEMENT!#REF!-CLASSEMENT!#REF!) ->  | P26: =CLASSEMENT!C20 -> 142
A27: =CLASSEMENT!C21 -> 143 | B27: =CLASSEMENT!$B21 -> 2 | C27: =IF(A27>0,CONCATENATE((VLOOKUP($A27,Inscription!$A$12:$G$211,3,FALSE))," ",(VLOOKUP($A27,Inscription!$A$12:$G$211,4,FALSE)))," ") -> Kowalski Paul | H27: =IF(A27>0,(VLOOKUP($A27,Inscription!$A$12:$G$211,5,FALSE))," ") -> Team Bikers 22 | K27: =IF(A27>0,(VLOOKUP($A27,Inscription!$A$12:$G$211,7,FALSE))," ") -> pupille | M27: =IF(A27>0,(VLOOKUP($A27,Inscription!$A$12:$G$211,6,FALSE))," ") -> 460607 | N27: =IF(CLASSEMENT!#REF!=CLASSEMENT!#REF!,0,CLASSEMENT!#REF!-CLASSEMENT!#REF!) ->  | P27: =CLASSEMENT!C21 -> 143
A28: =CLASSEMENT!C22 -> 141 | B28: =CLASSEMENT!$B22 -> 3 | C28: =IF(A28>0,CONCATENATE((VLOOKUP($A28,Inscription!$A$12:$G$211,3,FALSE))," ",(VLOOKUP($A28,Inscription!$A$12:$G$211,4,FALSE)))," ") -> Bruezière Enzo | H28: =IF(A28>0,(VLOOKUP($A28,Inscription!$A$12:$G$211,5,FALSE))," ") -> Team Bikers 22 | K28: =IF(A28>0,(VLOOKUP($A28,Inscription!$A$12:$G$211,7,FALSE))," ") -> pupille | M28: =IF(A28>0,(VLOOKUP($A28,Inscription!$A$12:$G$211,6,FALSE))," ") -> 459065 | N28: =IF(CLASSEMENT!#REF!=CLASSEMENT!#REF!,0,CLASSEMENT!#REF!-CLASSEMENT!#REF!) ->  | P28: =CLASSEMENT!C22 -> 141
A29: =CLASSEMENT!C23 -> 144 | B29: =CLASSEMENT!$B23 -> 4 | C29: =IF(A29>0,CONCATENATE((VLOOKUP($A29,Inscription!$A$12:$G$211,3,FALSE))," ",(VLOOKUP($A29,Inscription!$A$12:$G$211,4,FALSE)))," ") -> Devaux Naël | H29: =IF(A29>0,(VLOOKUP($A29,Inscription!$A$12:$G$211,5,FALSE))," ") -> Team Bikers 22 | K29: =IF(A29>0,(VLOOKUP($A29,Inscription!$A$12:$G$211,7,FALSE))," ") -> Pupille | M29: =IF(A29>0,(VLOOKUP($A29,Inscription!$A$12:$G$211,6,FALSE))," ") -> 0 | N29: =IF(CLASSEMENT!#REF!=CLASSEMENT!#REF!,0,CLASSEMENT!#REF!-CLASSEMENT!#REF!) ->  | P29: =CLASSEMENT!C23 -> 144
A30: =CLASSEMENT!C24 -> 0 | B30: =CLASSEMENT!$B24 -> 0 | C30: =IF(A30>0,CONCATENATE((VLOOKUP($A30,Inscription!$A$12:$G$211,3,FALSE))," ",(VLOOKUP($A30,Inscription!$A$12:$G$211,4,FALSE)))," ") ->  | H30: =IF(A30>0,(VLOOKUP($A30,Inscription!$A$12:$G$211,5,FALSE))," ") ->  | K30: =IF(A30>0,(VLOOKUP($A30,Inscription!$A$12:$G$211,7,FALSE))," ") ->  | M30: =IF(A30>0,(VLOOKUP($A30,Inscription!$A$12:$G$211,6,FALSE))," ") ->  | N30: =IF(CLASSEMENT!#REF!=CLASSEMENT!#REF!,0,CLASSEMENT!#REF!-CLASSEMENT!#REF!) ->  | P30: =CLASSEMENT!C24 -> 0
A31: =CLASSEMENT!C25 -> 0 | B31: =CLASSEMENT!$B25 -> 0 | C31: =IF(A31>0,CONCATENATE((VLOOKUP($A31,Inscription!$A$12:$G$211,3,FALSE))," ",(VLOOKUP($A31,Inscription!$A$12:$G$211,4,FALSE)))," ") ->  | H31: =IF(A31>0,(VLOOKUP($A31,Inscription!$A$12:$G$211,5,FALSE))," ") ->  | K31: =IF(A31>0,(VLOOKUP($A31,Inscription!$A$12:$G$211,7,FALSE))," ") ->  | M31: =IF(A31>0,(VLOOKUP($A31,Inscription!$A$12:$G$211,6,FALSE))," ") ->  | N31: =IF(CLASSEMENT!#REF!=CLASSEMENT!#REF!,0,CLASSEMENT!#REF!-CLASSEMENT!#REF!) ->  | P31: =CLASSEMENT!C25 -> 0
A32: =CLASSEMENT!C26 -> 124 | B32: =CLASSEMENT!$B26 -> 1 | C32: =IF(A32>0,CONCATENATE((VLOOKUP($A32,Inscription!$A$12:$G$211,3,FALSE))," ",(VLOOKUP($A32,Inscription!$A$12:$G$211,4,FALSE)))," ") -> Callennec Lucy | H32: =IF(A32>0,(VLOOKUP($A32,Inscription!$A$12:$G$211,5,FALSE))," ") -> Bégard VTT Gwerun | K32: =IF(A32>0,(VLOOKUP($A32,Inscription!$A$12:$G$211,7,FALSE))," ") -> Benjamin | M32: =IF(A32>0,(VLOOKUP($A32,Inscription!$A$12:$G$211,6,FALSE))," ") -> 509013 | N32: =IF(CLASSEMENT!#REF!=CLASSEMENT!#REF!,0,CLASSEMENT!#REF!-CLASSEMENT!#REF!) ->  | P32: =CLASSEMENT!C26 -> 124
A33: =CLASSEMENT!C27 -> 121 | B33: =CLASSEMENT!$B27 -> absent | C33: =IF(A33>0,CONCATENATE((VLOOKUP($A33,Inscription!$A$12:$G$211,3,FALSE))," ",(VLOOKUP($A33,Inscription!$A$12:$G$211,4,FALSE)))," ") -> Croisier Léa | H33: =IF(A33>0,(VLOOKUP($A33,Inscription!$A$12:$G$211,5,FALSE))," ") -> Team Pays de Dinan | K33: =IF(A33>0,(VLOOKUP($A33,Inscription!$A$12:$G$211,7,FALSE))," ") -> Benjamin | M33: =IF(A33>0,(VLOOKUP($A33,Inscription!$A$12:$G$211,6,FALSE))," ") -> 263040 | N33: =IF(CLASSEMENT!#REF!=CLASSEMENT!#REF!,0,CLASSEMENT!#REF!-CLASSEMENT!#REF!) ->  | P33: =CLASSEMENT!C27 -> 121
A34: =CLASSEMENT!C28 -> 0 | B34: =CLASSEMENT!$B28 -> 0 | C34: =IF(A34>0,CONCATENATE((VLOOKUP($A34,Inscription!$A$12:$G$211,3,FALSE))," ",(VLOOKUP($A34,Inscription!$A$12:$G$211,4,FALSE)))," ") ->  | H34: =IF(A34>0,(VLOOKUP($A34,Inscription!$A$12:$G$211,5,FALSE))," ") ->  | K34: =IF(A34>0,(VLOOKUP($A34,Inscription!$A$12:$G$211,7,FALSE))," ") ->  | M34: =IF(A34>0,(VLOOKUP($A34,Inscription!$A$12:$G$211,6,FALSE))," ") ->  | N34: =IF(CLASSEMENT!#REF!=CLASSEMENT!#REF!,0,CLASSEMENT!#REF!-CLASSEMENT!#REF!) ->  | P34: =CLASSEMENT!C28 -> 0
A35: =CLASSEMENT!C29 -> 0 | B35: =CLASSEMENT!$B29 -> 0 | C35: =IF(A35>0,CONCATENATE((VLOOKUP($A35,Inscription!$A$12:$G$211,3,FALSE))," ",(VLOOKUP($A35,Inscription!$A$12:$G$211,4,FALSE)))," ") ->  | H35: =IF(A35>0,(VLOOKUP($A35,Inscription!$A$12:$G$211,5,FALSE))," ") ->  | K35: =IF(A35>0,(VLOOKUP($A35,Inscription!$A$12:$G$211,7,FALSE))," ") ->  | M35: =IF(A35>0,(VLOOKUP($A35,Inscription!$A$12:$G$211,6,FALSE))," ") ->  | N35: =IF(CLASSEMENT!#REF!=CLASSEMENT!#REF!,0,CLASSEMENT!#REF!-CLASSEMENT!#REF!) ->  | P35: =CLASSEMENT!C29 -> 0
A36: =CLASSEMENT!C30 -> 133 | B36: =CLASSEMENT!$B30 -> 1 | C36: =IF(A36>0,CONCATENATE((VLOOKUP($A36,Inscription!$A$12:$G$211,3,FALSE))," ",(VLOOKUP($A36,Inscription!$A$12:$G$211,4,FALSE)))," ") -> Cadieu Gabriel | H36: =IF(A36>0,(VLOOKUP($A36,Inscription!$A$12:$G$211,5,FALSE))," ") -> VTT du Lié | K36: =IF(A36>0,(VLOOKUP($A36,Inscription!$A$12:$G$211,7,FALSE))," ") -> benjamin | M36: =IF(A36>0,(VLOOKUP($A36,Inscription!$A$12:$G$211,6,FALSE))," ") -> 0 | N36: =IF(CLASSEMENT!#REF!=CLASSEMENT!#REF!,0,CLASSEMENT!#REF!-CLASSEMENT!#REF!) ->  | P36: =CLASSEMENT!C30 -> 133
A37: =CLASSEMENT!C31 -> 120 | B37: =CLASSEMENT!$B31 -> 2 | C37: =IF(A37>0,CONCATENATE((VLOOKUP($A37,Inscription!$A$12:$G$211,3,FALSE))," ",(VLOOKUP($A37,Inscription!$A$12:$G$211,4,FALSE)))," ") -> Briand Axel | H37: =IF(A37>0,(VLOOKUP($A37,Inscription!$A$12:$G$211,5,FALSE))," ") -> VC Evron | K37: =IF(A37>0,(VLOOKUP($A37,Inscription!$A$12:$G$211,7,FALSE))," ") -> Benjamin | M37: =IF(A37>0,(VLOOKUP($A37,Inscription!$A$12:$G$211,6,FALSE))," ") -> 429219 | N37: =IF(CLASSEMENT!#REF!=CLASSEMENT!#REF!,0,CLASSEMENT!#REF!-CLASSEMENT!#REF!) ->  | P37: =CLASSEMENT!C31 -> 120
A38: =CLASSEMENT!C32 -> 122 | B38: =CLASSEMENT!$B32 -> 3 | C38: =IF(A38>0,CONCATENATE((VLOOKUP($A38,Inscription!$A$12:$G$211,3,FALSE))," ",(VLOOKUP($A38,Inscription!$A$12:$G$211,4,FALSE)))," ") -> Huguet Mathis | H38: =IF(A38>0,(VLOOKUP($A38,Inscription!$A$12:$G$211,5,FALSE))," ") -> Team Bikers 22 | K38: =IF(A38>0,(VLOOKUP($A38,Inscription!$A$12:$G$211,7,FALSE))," ") -> Benjamin | M38: =IF(A38>0,(VLOOKUP($A38,Inscription!$A$12:$G$211,6,FALSE))," ") -> 390457 | N38: =IF(CLASSEMENT!#REF!=CLASSEMENT!#REF!,0,CLASSEMENT!#REF!-CLASSEMENT!#REF!) ->  | P38: =CLASSEMENT!C32 -> 122
A39: =CLASSEMENT!C33 -> 126 | B39: =CLASSEMENT!$B33 -> 4 | C39: =IF(A39>0,CONCATENATE((VLOOKUP($A39,Inscription!$A$12:$G$211,3,FALSE))," ",(VLOOKUP($A39,Inscription!$A$12:$G$211,4,FALSE)))," ") -> Lanoé Hugo | H39: =IF(A39>0,(VLOOKUP($A39,Inscription!$A$12:$G$211,5,FALSE))," ") -> VC Evron | K39: =IF(A39>0,(VLOOKUP($A39,Inscription!$A$12:$G$211,7,FALSE))," ") -> Benjamin | M39: =IF(A39>0,(VLOOKUP($A39,Inscription!$A$12:$G$211,6,FALSE))," ") -> 382435 | N39: =IF(CLASSEMENT!#REF!=CLASSEMENT!#REF!,0,CLASSEMENT!#REF!-CLASSEMENT!#REF!) ->  | P39: =CLASSEMENT!C33 -> 126
A40: SUITE : | C40: =$P40 -> 123 | D40: =$P41 -> 125 | E40: =P42 -> 128 | F40: =P43 -> 132 | G40: =P44 -> 127 | H40: =P45 -> 131 | I40: =P46 -> 130 | J40: =P47 -> 129 | K40: =P48 ->  | L40: =P49 ->  | M40: =P50 ->  | N40: =P51 -> 0 | P40: =CLASSEMENT!C34 -> 123
A41: =P52 -> 110 | B41: =P53 -> 112 | C41: =$P54 -> 111 | D41: =P55 -> 115 | E41: =P56 -> 114 | F41: =P57 -> 0 | G41: =P58 -> 0 | H41: =P59 -> 0 | I41: =P60 -> 101 | J41: =$P$61 -> 104 | K41: =$P$62 -> 100 | L41: =$P$63 -> 105 | M41: =$P$64 -> 102 | N41: =$P$65 -> 103 | P41: =CLASSEMENT!C35 -> 125
A42: =$P$66 -> 0 | B42: =$P$67 -> 0 | C42: =$P68 -> 0 | D42: =$P$69 -> 0 | E42: =$P$70 -> 0 | F42: =$P$71 -> 0 | G42: =$P$72 -> 61 | H42: =$P$73 -> 71 | I42: =$P$74 -> 74 | J42: =$P$75 -> 65 | K42: =$P$76 -> 76 | L42: =$P$77 -> 75 | M42: =$P$78 -> 73 | N42: =$P$79 -> 72 | P42: =CLASSEMENT!C36 -> 128
A43: =$P$80 -> 67 | B43: =$P$81 -> 63 | C43: =$P82 -> 64 | D43: =$P$83 -> 77 | E43: =$P$84 -> 70 | F43: =$P$85 -> 68 | G43: =$P$86 -> 78 | H43: =$P$87 -> 0 | I43: =$P$88 -> 0 | J43: =$P$89 -> 34 | K43: =$P$90 -> 31 | L43: =$P$91 -> 41 | M43: =$P$92 -> 30 | N43: =$P$93 -> 33 | P43: =CLASSEMENT!C37 -> 132
A44: =$P$94 -> 32 | B44: =$P$95 -> 37 | C44: =$P96 -> 35 | D44: =$P$97 -> 36 | E44: =$P$98 -> 38 | F44: =$P$99 -> 39 | G44: =$P$100 -> 0 | H44: =$P$101 -> 0 | I44: =$P$102 -> 0 | J44: =$P$103 -> 0 | K44: =$P$104 -> 4 | L44: =$P$105 -> 8 | M44: =$P$106 -> 2 | N44: =$P$107 -> 6 | P44: =CLASSEMENT!C38 -> 127
A45: =$P$108 -> 3 | B45: =$P$109 -> 7 | C45: =$P110 -> 5 | D45: =$P$111 -> 1 | E45: =$P$112 -> 0 | F45: =$P$113 -> 0 | G45: =$P$114 -> 20 | H45: =$P$115 -> 21 | I45: =$P$116 -> 0 | J45: =$P$117 -> 0 | K45: =$P$118 -> 93 | L45: =$P$119 -> 91 | M45: =$P$120 -> 92 | N45: =$P$121 -> 90 | P45: =CLASSEMENT!C39 -> 131
A46: =$P$122 ->  | B46: =$P$123 ->  | C46: =$P124 ->  | D46: =$P$125 ->  | E46: =$P$126 -> 0 | F46: =$P$127 -> 0 | G46: =$P$128 -> 0 | H46: =$P$129 -> 0 | I46: =$P$130 -> 0 | J46: =$P$131 -> 0 | K46: =$P$132 -> 0 | L46: =$P$133 -> 0 | M46: =$P$134 -> 0 | N46: =$P$135 -> 0 | P46: =CLASSEMENT!C40 -> 130
A47: =$P$136 -> 0 | B47: =$P$137 -> 0 | C47: =$P138 -> 0 | D47: =$P$139 -> 0 | E47: =$P$140 -> 0 | F47: =$P$141 -> 0 | G47: =$P$142 -> 0 | H47: =$P$143 -> 0 | I47: =$P$144 -> 0 | J47: =$P$145 -> 0 | K47: =$P$146 -> 0 | L47: =$P$147 -> 0 | M47: =$P$148 -> 0 | N47: =$P$149 -> 0 | P47: =CLASSEMENT!C41 -> 129
A48: =IF(Inscription!G6="oui","CHALLENGE","Meilleurs Animateurs") -> Meilleurs Animateurs | B48: =IF(Inscription!G4="oui","CHALLENGE","PRIX D EQUIPE") -> PRIX D EQUIPE | C48: =IF(Inscription!#REF!="oui","CHALLENGE","PRIX D EQUIPE") ->  | D48: =IF(Inscription!#REF!="oui","CHALLENGE","PRIX D EQUIPE") ->  | E48: =IF(Inscription!H4="oui","CHALLENGE","PRIX D EQUIPE") -> PRIX D EQUIPE | F48: =IF(Inscription!I4="oui","CHALLENGE","PRIX D EQUIPE") -> PRIX D EQUIPE | G48: =IF(Inscription!J4="oui","CHALLENGE","PRIX D EQUIPE") -> PRIX D EQUIPE | J48: Nombre de clubs engagés | N48: =COUNTA('PRIX D EQUIPE'!B5:B39) -> 0 | P48: =CLASSEMENT!#REF! -> 
B49: 1er | C49: =IF(CLASSEMENT!AB45>0,CLASSEMENT!AB45," ") ->  | G49: =CLASSEMENT!AD45 -> 1000 | H49: + | I49: =CLASSEMENT!AF45 -> 1000 | J49: + | K49: =CLASSEMENT!AH45 -> 1000 | L49: = | M49: =IF(C49=" "," ",IF(I49>200,G49,IF(K49>200,SUM(G49+I49),IF($C49>0,SUM(G49+I49+K49)," ")))) ->  | N49: =IF(C49=" "," ",IF(I49>200,"(1H.)",IF(K49>200,"(2 H.)"," "))) ->  | P49: =CLASSEMENT!#REF! -> 
B50: 2e | C50: =IF(CLASSEMENT!AB46>0,CLASSEMENT!AB46," ") ->  | G50: =CLASSEMENT!AD46 -> 1000 | H50: + | I50: =CLASSEMENT!AF46 -> 1000 | J50: + | K50: =CLASSEMENT!AH46 -> 1000 | L50: = | M50: =IF(C50=" "," ",IF(I50>200,G50,IF(K50>200,SUM(G50+I50),IF($C50>0,SUM(G50+I50+K50)," ")))) ->  | N50: =IF(C50=" "," ",IF(I50>200,"(1H.)",IF(K50>200,"(2 H.)"," "))) ->  | P50: =CLASSEMENT!#REF! -> 
B51: 3e | C51: =IF(CLASSEMENT!AB47>0,CLASSEMENT!AB47," ") ->  | G51: =CLASSEMENT!AD47 -> 1000 | H51: + | I51: =CLASSEMENT!AF47 -> 1000 | J51: + | K51: =CLASSEMENT!AH47 -> 1000 | L51: = | M51: =IF(C51=" "," ",IF(I51>200,G51,IF(K51>200,SUM(G51+I51),IF($C51>0,SUM(G51+I51+K51)," ")))) ->  | N51: =IF(C51=" "," ",IF(I51>200,"(1H.)",IF(K51>200,"(2 H.)"," "))) ->  | P51: =CLASSEMENT!C45 -> 0
B52: 4e | C52: =IF(CLASSEMENT!AB48>0,CLASSEMENT!AB48," ") ->  | G52: =CLASSEMENT!AD48 -> 1000 | H52: + | I52: =CLASSEMENT!AF48 -> 1000 | J52: + | K52: =CLASSEMENT!AH48 -> 1000 | L52: = | M52: =IF(C52=" "," ",IF(I52>200,G52,IF(K52>200,SUM(G52+I52),IF($C52>0,SUM(G52+I52+K52)," ")))) ->  | N52: =IF(C52=" "," ",IF(I52>200,"(1H.)",IF(K52>200,"(2 H.)"," "))) ->  | P52: =CLASSEMENT!C46 -> 110
B53: 5e | C53: =IF(CLASSEMENT!AB49>0,CLASSEMENT!AB49," ") ->  | G53: =CLASSEMENT!AD49 -> 1000 | H53: + | I53: =CLASSEMENT!AF49 -> 1000 | J53: + | K53: =CLASSEMENT!AH49 -> 1000 | L53: = | M53: =IF(C53=" "," ",IF(I53>200,G53,IF(K53>200,SUM(G53+I53),IF($C53>0,SUM(G53+I53+K53)," ")))) ->  | N53: =IF(C53=" "," ",IF(I53>200,"(1H.)",IF(K53>200,"(2 H.)"," "))) ->  | P53: =CLASSEMENT!C47 -> 112
P54: =CLASSEMENT!C48 -> 111
P55: =CLASSEMENT!C49 -> 115
P56: =CLASSEMENT!C50 -> 114
P57: =CLASSEMENT!C52 -> 0
P58: =CLASSEMENT!C53 -> 0
P59: =CLASSEMENT!C54 -> 0
P60: =CLASSEMENT!C55 -> 101
P61: =CLASSEMENT!C56 -> 104
P62: =CLASSEMENT!C57 -> 100
P63: =CLASSEMENT!C58 -> 105
P64: =CLASSEMENT!C59 -> 102
P65: =CLASSEMENT!C60 -> 103
P66: =CLASSEMENT!C61 -> 0
P67: =CLASSEMENT!C62 -> 0
P68: =CLASSEMENT!C117 -> 0
P69: =CLASSEMENT!C118 -> 0
P70: =CLASSEMENT!C119 -> 0
P71: =CLASSEMENT!C120 -> 0
P72: =CLASSEMENT!C67 -> 61
P73: =CLASSEMENT!C68 -> 71
P74: =CLASSEMENT!C69 -> 74
P75: =CLASSEMENT!C70 -> 65
P76: =CLASSEMENT!C71 -> 76
P77: =CLASSEMENT!C72 -> 75
P78: =CLASSEMENT!C73 -> 73
P79: =CLASSEMENT!C74 -> 72
P80: =CLASSEMENT!C75 -> 67
P81: =CLASSEMENT!C76 -> 63
P82: =CLASSEMENT!C77 -> 64
P83: =CLASSEMENT!C78 -> 77
P84: =CLASSEMENT!C79 -> 70
P85: =CLASSEMENT!C80 -> 68
P86: =CLASSEMENT!C81 -> 78
P87: =CLASSEMENT!C82 -> 0
P88: =CLASSEMENT!C83 -> 0
P89: =CLASSEMENT!C84 -> 34
P90: =CLASSEMENT!C85 -> 31
P91: =CLASSEMENT!C86 -> 41
P92: =CLASSEMENT!C87 -> 30
P93: =CLASSEMENT!C88 -> 33
P94: =CLASSEMENT!C89 -> 32
P95: =CLASSEMENT!C90 -> 37
P96: =CLASSEMENT!C91 -> 35
P97: =CLASSEMENT!C92 -> 36
P98: =CLASSEMENT!C93 -> 38
P99: =CLASSEMENT!C94 -> 39
P100: =CLASSEMENT!C95 -> 0
P101: =CLASSEMENT!C96 -> 0
P102: =CLASSEMENT!C97 -> 0
P103: =CLASSEMENT!C98 -> 0
P104: =CLASSEMENT!C99 -> 4
P105: =CLASSEMENT!C100 -> 8
P106: =CLASSEMENT!C101 -> 2
P107: =CLASSEMENT!C102 -> 6
P108: =CLASSEMENT!C103 -> 3
P109: =CLASSEMENT!C104 -> 7
P110: =CLASSEMENT!C105 -> 5
P111: =CLASSEMENT!C106 -> 1
P112: =CLASSEMENT!C107 -> 0
P113: =CLASSEMENT!C108 -> 0
P114: =CLASSEMENT!C109 -> 20
P115: =CLASSEMENT!C110 -> 21
P116: =CLASSEMENT!C111 -> 0
P117: =CLASSEMENT!C112 -> 0
P118: =CLASSEMENT!C113 -> 93
P119: =CLASSEMENT!C114 -> 91
P120: =CLASSEMENT!C115 -> 92
P121: =CLASSEMENT!C116 -> 90
P122: =CLASSEMENT!#REF! -> 
P123: =CLASSEMENT!#REF! -> 
P124: =CLASSEMENT!#REF! -> 
P125: =CLASSEMENT!#REF! -> 
P126: =CLASSEMENT!C121 -> 0
P127: =CLASSEMENT!C122 -> 0
P128: =CLASSEMENT!C123 -> 0
P129: =CLASSEMENT!C124 -> 0
P130: =CLASSEMENT!C125 -> 0
P131: =CLASSEMENT!C126 -> 0
P132: =CLASSEMENT!C127 -> 0
P133: =CLASSEMENT!C128 -> 0
P134: =CLASSEMENT!C129 -> 0
P135: =CLASSEMENT!C130 -> 0
P136: =CLASSEMENT!C131 -> 0
P137: =CLASSEMENT!C132 -> 0
P138: =CLASSEMENT!C133 -> 0
P139: =CLASSEMENT!C134 -> 0
P140: =CLASSEMENT!C135 -> 0
P141: =CLASSEMENT!C136 -> 0
P142: =CLASSEMENT!C137 -> 0
P143: =CLASSEMENT!C138 -> 0
P144: =CLASSEMENT!C139 -> 0
P145: =CLASSEMENT!C140 -> 0
P146: =CLASSEMENT!C141 -> 0
P147: =CLASSEMENT!C142 -> 0
P148: =CLASSEMENT!C143 -> 0
P149: =CLASSEMENT!C144 -> 0
P150: =CLASSEMENT!C145 -> 0
P151: =CLASSEMENT!C146 -> 0
P152: =CLASSEMENT!C147 -> 0
P153: =CLASSEMENT!C148 -> 0
P154: =CLASSEMENT!C149 -> 0
P155: =CLASSEMENT!C150 -> 0
P156: =CLASSEMENT!C151 -> 0
P157: =CLASSEMENT!C152 -> 0
P158: =CLASSEMENT!C153 -> 0
P159: =CLASSEMENT!C154 -> 0
P160: =CLASSEMENT!C155 -> 0
P161: =CLASSEMENT!C156 -> 0
P162: =CLASSEMENT!C157 -> 0
P163: =CLASSEMENT!C158 -> 0
P164: =CLASSEMENT!C159 -> 0
P165: =CLASSEMENT!C160 -> 0
P166: =CLASSEMENT!C161 -> 0
P167: =CLASSEMENT!C162 -> 0
P168: =CLASSEMENT!C163 -> 0
P169: =CLASSEMENT!C164 -> 0
P170: =CLASSEMENT!C165 -> 0
P171: =CLASSEMENT!C166 -> 0
P172: =CLASSEMENT!C167 -> 0
P173: =CLASSEMENT!C168 -> 0
P174: =CLASSEMENT!C169 -> 0
P175: =CLASSEMENT!C170 -> 0
P176: =CLASSEMENT!C171 -> 0
P177: =CLASSEMENT!C172 -> 0
P178: =CLASSEMENT!C173 -> 0
P179: =CLASSEMENT!C174 -> 0
P180: =CLASSEMENT!C175 -> 0
P181: =CLASSEMENT!C176 -> 0
P182: =CLASSEMENT!C177 -> 0
P183: =CLASSEMENT!C178 -> 0
P184: =CLASSEMENT!C179 -> 0
P185: =CLASSEMENT!C180 -> 0
P186: =CLASSEMENT!C181 -> 0
P187: =CLASSEMENT!C182 -> 0
P188: =CLASSEMENT!C183 -> 0
P189: =CLASSEMENT!C184 -> 0
P190: =CLASSEMENT!C185 -> 0
P191: =CLASSEMENT!C186 -> 0
P192: =CLASSEMENT!C187 -> 0
P193: =CLASSEMENT!C188 -> 0
P194: =CLASSEMENT!C189 -> 0
P195: =CLASSEMENT!C190 -> 0
P196: =CLASSEMENT!C191 -> 0
P197: =CLASSEMENT!C192 -> 0
P198: =CLASSEMENT!C193 -> 0
P199: =CLASSEMENT!C204 -> 0

Sheet ETAT RESULT
A1: FEDERATION SPORTIVE ET GYMNIQUE DU TRAVAIL
A2: F.S.G.T 29
A7: Etat de Résultats
A9: à transmettre dans les 48 heures qui suivent l'épreuve,
A10: pour HOMOLOGATION à la Commission Cyclisme 29
A12: CONTRÔLE ANTIDOPAGE | E12: OUI | G12: NON
E13: (Rayer la mention inutile)
D14: DATE :
A16: Titre de l'épreuve :
A17: Lieu de l'épreuve :
A18: Association organisatrice :
A19: Séries ou Catégories :
A20: Distance : | D20: kms | E20: TEMPS : | F20: =CLASSEMENT!#REF! -> 
D22: COMMISSAIRES
D23: NOMS | F23: ASSOCIATIONS
C24: Prés. Du Jury
A25: 1. | B25: }
A26: 2. | C26: Commissaires
A27: 3.
C28: Juge à l'arrivée
B29: Commissaire moto
C30: Chronométreur
A33: ENGAGES : | C33: =Inscription!$D$8 -> 0 | D33: PARTANTS : | E33: =Inscription!$F$8 -> 0 | G33: =CLASSEMENT!#REF! -> 
A35: AVIS IMPORTANT :
A36: - Cet ETAT DE RESULTATS doit être rempli intégralement, le nom, le prénom usuel, le n°de licence et le nom de l'association du coureur doivent être indiqués en entier.
A38: - Ne pas omettre de signer au verso (Commissaires, chrono, etc…).
A39: - Joindre obligatoirement la liste des engagés

Sheet ETAT RES VERSO
A1: LIEU : | B1: =Inscription!D2 -> cyclo cross de Créhen | C1: DATE | E1: =Inscription!D4 -> 2024-11-30 | K1: CAT.: | M1: =Inscription!D5 -> 0 | O1: AVIS SUR LES DECISIONS CI-CONTRE
A2: PENALITES : (s'il y a lieu), par décision des trois Commissaires de Course, qui doivent apposer leur signature sous le(s) motif(s).
A3: N° | C3: ASSOCIATION
A4: DE | B4: NOM ET PRENOM | C4: N° DE LICENCE | M4: Pénalités | N4: MOTIF(S) | O4: Commission 29 | P4: F.S.G.T
A5: DOSSARD
B6: =IF(A6>0,CONCATENATE((VLOOKUP($A6,Inscription!$A$12:$G$211,3,FALSE))," ",(VLOOKUP($A6,Inscription!$A$12:$G$211,4,FALSE)))," ") ->  | C6: =IF(A6>0,(VLOOKUP($A6,Inscription!$A$12:$G$211,5,FALSE))," ") -> 
B7: =IF(A7>0,(VLOOKUP($C7,Inscription!$A$12:$G$211,3,FALSE))," ") ->  | C7: =IF(A6>0,(VLOOKUP($A6,Inscription!$A$12:$G$211,7,FALSE))," ") -> 
B8: =IF(A8>0,(VLOOKUP($A8,Inscription!$A$12:$G$211,3,FALSE))," ") ->  | C8: =IF(A8>0,(VLOOKUP($A8,Inscription!$A$12:$G$211,5,FALSE))," ") -> 
B9: =IF(A9>0,(VLOOKUP($C9,Inscription!$A$12:$G$211,3,FALSE))," ") ->  | C9: =IF(A8>0,(VLOOKUP($A8,Inscription!$A$12:$G$211,7,FALSE))," ") -> 
B10: =IF(A10>0,(VLOOKUP($A10,Inscription!$A$12:$G$211,3,FALSE))," ") ->  | C10: =IF(A10>0,(VLOOKUP($A10,Inscription!$A$12:$G$211,5,FALSE))," ") -> 
B11: =IF(A11>0,(VLOOKUP($C11,Inscription!$A$12:$G$211,3,FALSE))," ") ->  | C11: =IF(A10>0,(VLOOKUP($A10,Inscription!$A$12:$G$211,7,FALSE))," ") -> 
B12: =IF(A12>0,(VLOOKUP($A12,Inscription!$A$12:$G$211,3,FALSE))," ") ->  | C12: =IF(A12>0,(VLOOKUP($A12,Inscription!$A$12:$G$211,5,FALSE))," ") -> 
B13: =IF(A13>0,(VLOOKUP($C13,Inscription!$A$12:$G$211,3,FALSE))," ") ->  | C13: =IF(A12>0,(VLOOKUP($A12,Inscription!$A$12:$G$211,7,FALSE))," ") -> 
B14: =IF(A14>0,(VLOOKUP($A14,Inscription!$A$12:$G$211,3,FALSE))," ") ->  | C14: =IF(A14>0,(VLOOKUP($A14,Inscription!$A$12:$G$211,5,FALSE))," ") -> 
B15: =IF(A15>0,(VLOOKUP($C15,Inscription!$A$12:$G$211,3,FALSE))," ") ->  | C15: =IF(A14>0,(VLOOKUP($A14,Inscription!$A$12:$G$211,7,FALSE))," ") -> 
A16: CHUTES – ACCIDENTS : | M16: SUITE DONNEE
B17: =IF(A17>0,CONCATENATE((VLOOKUP($A17,Inscription!$A$12:$G$211,3,FALSE))," ",(VLOOKUP($A17,Inscription!$A$12:$G$211,4,FALSE)))," ") ->  | C17: =IF(A17>0,(VLOOKUP($A17,Inscription!$A$12:$G$211,5,FALSE))," ") -> 
B18: =IF(A18>0,(VLOOKUP($C18,Inscription!$A$12:$G$211,3,FALSE))," ") ->  | C18: =IF(A17>0,(VLOOKUP($A17,Inscription!$A$12:$G$211,7,FALSE))," ") -> 
B19: =IF(A19>0,CONCATENATE((VLOOKUP($A19,Inscription!$A$12:$G$211,3,FALSE))," ",(VLOOKUP($A19,Inscription!$A$12:$G$211,4,FALSE)))," ") ->  | C19: =IF(A19>0,(VLOOKUP($A19,Inscription!$A$12:$G$211,5,FALSE))," ") -> 
B20: =IF(A20>0,(VLOOKUP($C20,Inscription!$A$12:$G$211,3,FALSE))," ") ->  | C20: =IF(A19>0,(VLOOKUP($A19,Inscription!$A$12:$G$211,7,FALSE))," ") -> 
B21: =IF(A21>0,CONCATENATE((VLOOKUP($A21,Inscription!$A$12:$G$211,3,FALSE))," ",(VLOOKUP($A21,Inscription!$A$12:$G$211,4,FALSE)))," ") ->  | C21: =IF(A21>0,(VLOOKUP($A21,Inscription!$A$12:$G$211,5,FALSE))," ") -> 
B22: =IF(A22>0,(VLOOKUP($C22,Inscription!$A$12:$G$211,3,FALSE))," ") ->  | C22: =IF(A21>0,(VLOOKUP($A21,Inscription!$A$12:$G$211,7,FALSE))," ") -> 
B23: =IF(A23>0,CONCATENATE((VLOOKUP($A23,Inscription!$A$12:$G$211,3,FALSE))," ",(VLOOKUP($A23,Inscription!$A$12:$G$211,4,FALSE)))," ") ->  | C23: =IF(A23>0,(VLOOKUP($A23,Inscription!$A$12:$G$211,5,FALSE))," ") -> 
B24: =IF(A24>0,(VLOOKUP($C24,Inscription!$A$12:$G$211,3,FALSE))," ") ->  | C24: =IF(A23>0,(VLOOKUP($A23,Inscription!$A$12:$G$211,7,FALSE))," ") -> 
B25: =IF(A25>0,CONCATENATE((VLOOKUP($A25,Inscription!$A$12:$G$211,3,FALSE))," ",(VLOOKUP($A25,Inscription!$A$12:$G$211,4,FALSE)))," ") ->  | C25: =IF(A25>0,(VLOOKUP($A25,Inscription!$A$12:$G$211,5,FALSE))," ") -> 
B26: =IF(A26>0,(VLOOKUP($C26,Inscription!$A$12:$G$211,3,FALSE))," ") ->  | C26: =IF(A25>0,(VLOOKUP($A25,Inscription!$A$12:$G$211,7,FALSE))," ") -> 
B27: =IF(A27>0,CONCATENATE((VLOOKUP($A27,Inscription!$A$12:$G$211,3,FALSE))," ",(VLOOKUP($A27,Inscription!$A$12:$G$211,4,FALSE)))," ") ->  | C27: =IF(A27>0,(VLOOKUP($A27,Inscription!$A$12:$G$211,5,FALSE))," ") -> 
B28: =IF(A28>0,(VLOOKUP($C28,Inscription!$A$12:$G$211,3,FALSE))," ") ->  | C28: =IF(A27>0,(VLOOKUP($A27,Inscription!$A$12:$G$211,7,FALSE))," ") -> 
B29: =IF(A29>0,CONCATENATE((VLOOKUP($A29,Inscription!$A$12:$G$211,3,FALSE))," ",(VLOOKUP($A29,Inscription!$A$12:$G$211,4,FALSE)))," ") ->  | C29: =IF(A29>0,(VLOOKUP($A29,Inscription!$A$12:$G$211,5,FALSE))," ") -> 
B30: =IF(A30>0,(VLOOKUP($C30,Inscription!$A$12:$G$211,3,FALSE))," ") ->  | C30: =IF(A29>0,(VLOOKUP($A29,Inscription!$A$12:$G$211,7,FALSE))," ") -> 
B31: =IF(A31>0,CONCATENATE((VLOOKUP($A31,Inscription!$A$12:$G$211,3,FALSE))," ",(VLOOKUP($A31,Inscription!$A$12:$G$211,4,FALSE)))," ") ->  | C31: =IF(A31>0,(VLOOKUP($A31,Inscription!$A$12:$G$211,5,FALSE))," ") -> 
B32: =IF(A32>0,(VLOOKUP($C32,Inscription!$A$12:$G$211,3,FALSE))," ") ->  | C32: =IF(A31>0,(VLOOKUP($A31,Inscription!$A$12:$G$211,7,FALSE))," ") -> 
B33: =IF(A33>0,CONCATENATE((VLOOKUP($A33,Inscription!$A$12:$G$211,3,FALSE))," ",(VLOOKUP($A33,Inscription!$A$12:$G$211,4,FALSE)))," ") ->  | C33: =IF(A33>0,(VLOOKUP($A33,Inscription!$A$12:$G$211,5,FALSE))," ") -> 
B34: =IF(A34>0,(VLOOKUP($C34,Inscription!$A$12:$G$211,3,FALSE))," ") ->  | C34: =IF(A33>0,(VLOOKUP($A33,Inscription!$A$12:$G$211,7,FALSE))," ") -> 
B35: =IF(A35>0,CONCATENATE((VLOOKUP($A35,Inscription!$A$12:$G$211,3,FALSE))," ",(VLOOKUP($A35,Inscription!$A$12:$G$211,4,FALSE)))," ") ->  | C35: =IF(A35>0,(VLOOKUP($A35,Inscription!$A$12:$G$211,5,FALSE))," ") -> 
B36: =IF(A36>0,(VLOOKUP($C36,Inscription!$A$12:$G$211,3,FALSE))," ") ->  | C36: =IF(A35>0,(VLOOKUP($A35,Inscription!$A$12:$G$211,7,FALSE))," ") -> 
A38: Les soussignés, Commissaires de Course, Juge à l'arrivée et Chronométreur, certifient la sincérité des résultats mentionnés au tableau ci-contre.
A39: A | B39: , | C39: le | M39: 20…
A40: Le Président du Jury: | C40: Les Commissaires: | N40: Le Juge à l'arrivée: | O40: Le Chronométreur:

Sheet rapport jury
A1: FEDERATION SPORTIVE ET GYMNIQUE DU TRAVAIL
A2: COMITE DEPARTEMENTAL 29
A3: -------------------------
A4: RAPPORT DU PRESIDENT DU JURY
A5: -------------------------
A6: Renseignements sur la course :
A8: Dénomination de la course : | D8: =Inscription!$D$1 -> 0
A10: Date : | B10: =Inscription!$D$4 -> 2024-11-30 | D10: Ville : | E10: =Inscription!$D$2 -> cyclo cross de Créhen | L10: Dépt : | M10: =Inscription!$G$2 -> 0
A12: Club organisateur : | D12: =Inscription!$D$3 -> EC Créhen
A14: Catégorie de la course : | D14: =Inscription!$D$5 -> 00:00:00
B16: Engagés : | D16: =Inscription!$D$8 -> 0 | E16: Partants : | G16: =Inscription!$F$8 -> 0 | I16: Classés : | L16: =CLASSEMENT!#REF! -> 
B18: Kilométrage parcouru : | E18: ='FEUILLE RESULTATS'!$M$8 -> 0 | G18: Temps : | J18: ='FEUILLE RESULTATS'!$N$10 -> 
A20: Epreuve en circuit | F20: oui | I20: non
B21: Longueur du circuit | D21: =Inscription!C6 -> 0 | E21: km
A23: Epreuve en ligne | F23: oui | I23: non
A25: Collège des arbitres :
B26: Nom - prénom | F26: Club | L26: Qualification
A27: Président du jury | B27: ='ETAT RESULT'!$D24 -> 0 | F27: ='ETAT RESULT'!$F24 -> 0 | L27: ='ETAT RESULT'!$H24 -> 0
A28: Commissaire 1 | B28: ='ETAT RESULT'!$D25 -> 0 | F28: ='ETAT RESULT'!$F25 -> 0 | L28: ='ETAT RESULT'!$H25 -> 0
A29: Commissaire 2 | B29: ='ETAT RESULT'!$D26 -> 0 | F29: ='ETAT RESULT'!$F26 -> 0 | L29: ='ETAT RESULT'!$H26 -> 0
A30: Juge à l'arrivée | B30: ='ETAT RESULT'!$D28 -> 0 | F30: ='ETAT RESULT'!$F28 -> 0 | L30: ='ETAT RESULT'!$H28 -> 0
A31: Moto 1 | B31: ='ETAT RESULT'!$D29 -> 0 | F31: ='ETAT RESULT'!$F29 -> 0 | L31: ='ETAT RESULT'!$H29 -> 0
A32: Moto 2
A33: Chronométreur | B33: ='ETAT RESULT'!$D30 -> 0 | F33: ='ETAT RESULT'!$F30 -> 0 | L33: ='ETAT RESULT'!$H30 -> 0
A35: Les Commissaires étaient-ils identifiables ? | F35: oui | I35: non
A37: Organisation : | J37: (mettre un x dans la case)
A38: Présentation de l'autorisation préfectorale | F38: oui | I38: non
A40: Secrétariat | F40: médiocre | I40: moyen | L40: bon
A42: Local réservé pour les Commissaires | F42: oui | I42: non
A44: Structure de la course :
A45: WC prévus au départ | F45: oui | I45: non
A47: Barrières au départ | F47: oui | I47: non
A49: Parking suffisant au départ | F49: oui | I49: non
A51: Barrières à l'arrivée | F51: oui | I51: non
A53: Podium couvert indépendant pour les Commissaires à l'arrivée | F53: oui | I53: non
A55: Podium protocolaire situé conformément après la ligne | F55: oui | I55: non
A57: Local du contrôle anti-dopage : est-il prévu ? | F57: oui | I57: non
A59: est-il conforme ? | F59: oui | I59: non
A61: Médecin dans la course | F61: oui | I61: non
A63: Secours présent au départ de l'épreuve | F63: oui | I63: non
A65: Véhicule balai | F65: oui | I65: non
A67: Véhicules neutres de dépannage | F67: zéro | I67: 1 | L67: 2
A69: Radio course | F69: oui | I69: non
A71: Efficacité | F71: médiocre | I71: moyen | L71: bon
A73: Photo finish ou numérique | F73: médiocre | I73: moyen | L73: bon
A75: ou autre moyen vidéo d'arrivée | F75: médiocre | I75: moyen | L75: bon
A77: Sécurité de la course :
A78: Importance des moyens mis en œuvre | F78: médiocre | I78: moyen | L78: bon
A80: Nature des moyens
A81: escorte motos (nombre)
A83: signaleurs (nombre)
A85: Efficacité des moyens | F85: médiocre | I85: moyen | L85: bon
A87: Signalisation course :
A88: Fléchage du parcours (au sol ou sur panneau) | F88: médiocre | I88: moyen | L88: bon
A90: Banderole au départ | F90: oui | I90: non
A92: Banderole à l'arrivée | F92: oui | I92: non
A95: Observations complémentaires sur l'organisation et éventuellement suggestions d'améliorations dont vous aurez parlé avec l'organisateur
A98: Appréciation du président du jury
I101: Date : | J101: =Inscription!D4 -> 2024-11-30
I103: Signature :
A107: Annexes à joindre : | B107: Etat de résultats.
B108: Liste pointée des partants.
B109: Le récapitulatif des décisions des Commissaires (feuille de pénalité).
B110: Les lettres de réclamation (éventuellement, avec décision notifiée).
A112: Ce rapport doit être adressé dans les 48 heures après la course à la FSGT 29

Sheet Feuil1
